{"text_format":"2","workbook":"xlsx","n_sheets":7,"sheets":["Pontozólaphoz","Osszesitohoz","zsűri megjegyzései","Template-pontoz","Template-osszesit","Zsuri","Helyezesek_SZTE_AOK"],"not_rendered":{"charts":0,"images":0,"macros":0,"external_links":0,"defined_names":3,"comments":2,"pivot_tables":0},"unopened":[],"bounds":{"document_bytes":16777216,"sheet_cells":100000,"run_cost":"one","rows_first":2000,"rows_last":500,"rows_between":2000,"halvings":0,"cell_chars":16384,"cell_head_chars":4096},"cells_cut":0,"cells_raw":0,"read":"whole","date_system":"1900"}

{"sheet":"Pontozólaphoz","index":0,"n_rows":521,"n_cols":13,"rows_kept":521,"cut":false,"hidden":true,"merged":[[6,6,6,12],[61,6,61,12],[363,6,363,12],[478,6,478,12],[48,6,48,12],[94,6,94,12],[16,6,16,12]]}
["sorsz","Beosztott tagozat","Tagozatkód","Sorszám","Szerző(k)","Pályamunka címe",{"$f":"\"A: Absztrakt\"&CHAR(10)&\"(0-5 pont)\"","v":"A: Absztrakt\n(0-5 pont)"},{"$f":"\"B: Szakmai tartalom\"&CHAR(10)&\"(0-15 pont)\"","v":"B: Szakmai tartalom\n(0-15 pont)"},{"$f":"\"C: Előadói stílus\"&CHAR(10)&\"(0-10 pont)\"","v":"C: Előadói stílus\n(0-10 pont)"},{"$f":"\"D: Szemléltető eszközök használata, humán demonstráció \"&CHAR(10)&\"(0-10 pont)\"","v":"D: Szemléltető eszközök használata, humán demonstráció \n(0-10 pont)"},{"$f":"\"E: Vitakészség és szakmai kompetencia\"&CHAR(10)&\"(0-10 pont)\"","v":"E: Vitakészség és szakmai kompetencia\n(0-10 pont)"},{"$f":"\"F: Kötelező pontlevonások\"&CHAR(10)&\"(Függelék dia hiánya, 30 mp-t meghaladó időtúllépés)\"","v":"F: Kötelező pontlevonások\n(Függelék dia hiánya, 30 mp-t meghaladó időtúllépés)"},{"$f":"\"Összpontszám\"&CHAR(10)&\"(0-50 pont)\"&CHAR(10)&\"=A+B+C+D+E-F\"","v":"Összpontszám\n(0-50 pont)\n=A+B+C+D+E-F"}]
["2.","Egészségtudományok - Egészségügyi szervezés és menedzsment",{"$f":"VLOOKUP(B2,#REF!,2,FALSE)","v":{"$error":"#REF!"}},1,"Kajos Luca Fanni\nPTE - ETK","Különböző feltárásokkal végzett csípőízületi endoprotetizált betegek rövid és hosszútávú életminőségének vizsgálata a magán és állami ellátási szektor vonatkozásában"," "," "," "," ",null,null,{"$f":"SUM(G2:K2)-L2","v":0}]
["4.","Egészségtudományok - Egészségügyi szervezés és menedzsment",{"$f":"VLOOKUP(B3,#REF!,2,FALSE)","v":{"$error":"#REF!"}},2,"Kovács Dóra\nGFE - ESZK","A lovaglás jótékony hatásainak jelentősége a sport választásánál",{"$nulls":6},{"$f":"SUM(G3:K3)-L3","v":0}]
["1.","Egészségtudományok - Egészségügyi szervezés és menedzsment",{"$f":"VLOOKUP(B4,#REF!,2,FALSE)","v":{"$error":"#REF!"}},3,"Palotás Petra Anita\nGFE - ESZK","Alternatív terápiás eljárások Magyarországon",{"$nulls":6},0]
["86.","Egészségtudományok - Egészségügyi szervezés és menedzsment",{"$f":"VLOOKUP(B5,#REF!,2,FALSE)","v":{"$error":"#REF!"}},4,"Pigniczki Péter Pál\nSZTE - ETSZK","Hazai adatok a Myasthenia Gravisban szenvedő betegekről",{"$nulls":6},0]
["3.","Egészségtudományok - Egészségügyi szervezés és menedzsment",{"$f":"VLOOKUP(B6,#REF!,2,FALSE)","v":{"$error":"#REF!"}},5,"Sami Anett Anna\nME - EK","A 21. századi holisztikus egészségtudatosság jelenlétének vizsgálata a munkahelyi környezetben",{"$nulls":6},0]
["5.","Egészségtudományok - Egészségügyi szervezés és menedzsment",{"$f":"VLOOKUP(B7,#REF!,2,FALSE)","v":{"$error":"#REF!"}},6,"Varga Henrietta-Réka\nRO EMTE - MVK","Szexuális felvilágosultság az általános iskolások körében","Nem jelent meg"]
["12.","Egészségtudományok - Képalkotó diagnosztikai analitika",{"$f":"VLOOKUP(B8,#REF!,2,FALSE)","v":{"$error":"#REF!"}},1,"Antal Szabolcs István\nSZTE - ÁOK","Fokozott nyugalmi aktivitás a fehérállományi léziókban sclerosis multiplexesben",{"$nulls":6},0]
["6.","Egészségtudományok - Képalkotó diagnosztikai analitika",{"$f":"VLOOKUP(B9,#REF!,2,FALSE)","v":{"$error":"#REF!"}},2,"Bolla Gergő Levente\nME - EK","Dixon típusú, frekvencia alapú zsírelnyomásos MR szekvencia klinikai alkalmazhatósága",{"$nulls":6},0]
["9.","Egészségtudományok - Képalkotó diagnosztikai analitika",{"$f":"VLOOKUP(B10,#REF!,2,FALSE)","v":{"$error":"#REF!"}},3,"Fábián János Krisztián\nPTE - ETK","18F-FDOPA PET SUVmax paraméterének összefüggése; nem, életkor és szövettan viszonylatában",{"$nulls":6},0]
["13.","Egészségtudományok - Képalkotó diagnosztikai analitika",{"$f":"VLOOKUP(B11,#REF!,2,FALSE)","v":{"$error":"#REF!"}},4,"Gráczer Kitti\nME - EK","Nagyízületi protézisek vizsgálata szcintigráfiás módszerekkel",{"$nulls":6},0]
["8.","Egészségtudományok - Képalkotó diagnosztikai analitika",{"$f":"VLOOKUP(B12,#REF!,2,FALSE)","v":{"$error":"#REF!"}},5,"Kövesdi Orsolya Liza\nPTE - ETK","18F-FDG PET/MR prediktív érték vizsgálat kemoradioterápiával kezelt fej-nyak daganatos betegeknél",{"$nulls":6},0]
["10.","Egészségtudományok - Képalkotó diagnosztikai analitika",{"$f":"VLOOKUP(B13,#REF!,2,FALSE)","v":{"$error":"#REF!"}},6,"Szűcs Dániel István\nME - EK","Vírus eredetű tüdőbetegségek képalkotó differenciál diagnosztikája gyermek és felnőtt korban",{"$nulls":6},0]
["16.","Egészségtudományok - Klinikai és elméleti epidemiológia 1.",{"$f":"VLOOKUP(B14,#REF!,2,FALSE)","v":{"$error":"#REF!"}},1,"Abou Hamdah Ali\nDE - NK","The Prevalence and risk factors of Major Depressive Disorder (MDD) among Syrians in Damascus and Damascus Suburb",{"$nulls":6},0]
["17.","Egészségtudományok - Klinikai és elméleti epidemiológia 1.",{"$f":"VLOOKUP(B15,#REF!,2,FALSE)","v":{"$error":"#REF!"}},2,"Bokor Laura\nSE - ÁOK","A COVID-19 pandémia első hullámának másodlagos hatása és következményei a miokardiális infarktus ellátásában",{"$nulls":6},0]
["19.","Egészségtudományok - Klinikai és elméleti epidemiológia 1.",{"$f":"VLOOKUP(B16,#REF!,2,FALSE)","v":{"$error":"#REF!"}},3,"Cs. Kiss Veronika, Philippovich Márton\nSE - ÁOK","A COVID-19 pandémia első hullámának hatása az invazív vascularis radiológiai beavatkozásokra",{"$nulls":6},0]
["20.","Egészségtudományok - Klinikai és elméleti epidemiológia 1.",{"$f":"VLOOKUP(B17,#REF!,2,FALSE)","v":{"$error":"#REF!"}},4,"Huber Máté\nWJLF","A kórház, mint ökológiai tér","Nem jelent meg"]
["22.","Egészségtudományok - Klinikai és elméleti epidemiológia 1.",{"$f":"VLOOKUP(B18,#REF!,2,FALSE)","v":{"$error":"#REF!"}},5,"Liljedahl Eltér Julia Helena Christina, Száraz Lili\nSE","Az alkoholfogyasztás kardiális hatásai",{"$nulls":6},0]
["23.","Egészségtudományok - Klinikai és elméleti epidemiológia 1.",{"$f":"VLOOKUP(B19,#REF!,2,FALSE)","v":{"$error":"#REF!"}},6,"Pető Zsófia\nSZTE - ÁOK","Agyi érbetegségekhez vezető krónikus betegségek és állapotokkal kapcsolatos terápiás adherencia vizsgálata",{"$nulls":6},0]
["507.","Egészségtudományok - Klinikai és elméleti epidemiológia 1.",{"$f":"VLOOKUP(B20,#REF!,2,FALSE)","v":{"$error":"#REF!"}},7,"Rajj Réka\nPTE - GYTK","Biológiai terápiában részesülő betegek gyógyszeres terápiáját befolyásoló tényezők felmérése",{"$nulls":6},0]
["26.","Egészségtudományok - Klinikai és elméleti epidemiológia 2.",{"$f":"VLOOKUP(B21,#REF!,2,FALSE)","v":{"$error":"#REF!"}},1,"Amber Martinez\nPTE - ÁOK","Prevelance of depression amongst international medical students in Hungary",{"$nulls":6},0]
["18.","Egészségtudományok - Klinikai és elméleti epidemiológia 2.",{"$f":"VLOOKUP(B22,#REF!,2,FALSE)","v":{"$error":"#REF!"}},2,"Demeter-Lelkes Viktória\nPTE - ETK","Az endometriosissal élő nők életminőségének vizsgálata",{"$nulls":6},0]
["14.","Egészségtudományok - Klinikai és elméleti epidemiológia 2.",{"$f":"VLOOKUP(B23,#REF!,2,FALSE)","v":{"$error":"#REF!"}},3,"Fogarasi Csenge Emese, Gubán Renáta\nSE - ÁOK","Lezajlott SARS-CoV-2 fertőzés myocardialis érintettségének tanulmányozása szív mágneses rezonancia vizsgálattal élsportolók körében",{"$nulls":6},0]
["25.","Egészségtudományok - Klinikai és elméleti epidemiológia 2.",{"$f":"VLOOKUP(B24,#REF!,2,FALSE)","v":{"$error":"#REF!"}},4,"Fonál Sarolta\nSE - ETK","Biodozimetriai vizsgálatok szerepe a sugáregészségtani feladatok ellátásában",{"$nulls":6},0]
["15.","Egészségtudományok - Klinikai és elméleti epidemiológia 2.",{"$f":"VLOOKUP(B25,#REF!,2,FALSE)","v":{"$error":"#REF!"}},5,"Gyenes Gábor, Varga Loretta \nSE - ETK","Szennyvízvizsgálatok szerepe a COVID-19 járvány előrejelzésében: egy megye példája",{"$nulls":6},0]
["24.","Egészségtudományok - Klinikai és elméleti epidemiológia 2.",{"$f":"VLOOKUP(B26,#REF!,2,FALSE)","v":{"$error":"#REF!"}},6,"Kovács Barbara Nóra\nSZTE - ÁOK","A cukorbetegek kardiovaszkuláris állapotromlásának szezonális ingadozása: a vérnyomás szerepének vizsgálata",{"$nulls":6},0]
["352.","Egészségtudományok - Klinikai és elméleti epidemiológia 2.",{"$f":"VLOOKUP(B27,#REF!,2,FALSE)","v":{"$error":"#REF!"}},7,"Mayer Zita\nSE - ÁOK","Pulmonális hipertóniás gyermekek életminőségének vizsgálata",{"$nulls":6},0]
["21.","Egészségtudományok - Klinikai és elméleti epidemiológia 2.",{"$f":"VLOOKUP(B28,#REF!,2,FALSE)","v":{"$error":"#REF!"}},8,"Nguyen Minh Chau\nDE - NK","Awareness related to cardiometabolic diseases: a cross-sectional study in sounthern Vietnam",{"$nulls":6},0]
["58.","Egészségtudományok - Primer prevenció, védőnői prevenció, dietetika 1.",{"$f":"VLOOKUP(B29,#REF!,2,FALSE)","v":{"$error":"#REF!"}},1,"Dolhai Máté\nDE - NK","Az evészavar és a megjelenéssel kapcsolatos szociokulturális attitűdök vizsgálata serdülők körében",{"$nulls":6},0]
["39.","Egészségtudományok - Primer prevenció, védőnői prevenció, dietetika 1.",{"$f":"VLOOKUP(B30,#REF!,2,FALSE)","v":{"$error":"#REF!"}},2,"Fáki Eszter\nSE - ETK","Gluténmentes fánkok- állomány és érzékszervi vizsgálata",{"$nulls":6},0]
["62.","Egészségtudományok - Primer prevenció, védőnői prevenció, dietetika 1.",{"$f":"VLOOKUP(B31,#REF!,2,FALSE)","v":{"$error":"#REF!"}},3,"Galambosi Rebeka\nPTE - ETK","Élelmiszerek tárolására, szállítására használt műanyag edények potenciális genotoxikus hatása",{"$nulls":6},0]
["52.","Egészségtudományok - Primer prevenció, védőnői prevenció, dietetika 1.",{"$f":"VLOOKUP(B32,#REF!,2,FALSE)","v":{"$error":"#REF!"}},4,"Graff Andreas Bergheim\nPTE - ÁOK","The ketogenic diet: A solution for treating obesity and metabolic diseases or a serious helath risk? A systematic review and meta-analysis",{"$nulls":6},0]
["32.","Egészségtudományok - Primer prevenció, védőnői prevenció, dietetika 1.",{"$f":"VLOOKUP(B33,#REF!,2,FALSE)","v":{"$error":"#REF!"}},5,"Vigula Fanni\nSZTE - ÁOK","Várandósok jódbevitele és annak hatása a perinatális kimenetre",{"$nulls":6},0]
["50.","Egészségtudományok - Primer prevenció, védőnői prevenció, dietetika 1.",{"$f":"VLOOKUP(B34,#REF!,2,FALSE)","v":{"$error":"#REF!"}},6,"Zagraj Veronika Bettina\nME - EK","Cukorbeteg gyermeket nevelő családok és a gyermekek jól-lét érzésének összehasonlítása egészséges kortársaikkal",{"$nulls":6},0]
["29.","Egészségtudományok - Primer prevenció, védőnői prevenció, dietetika 2.",{"$f":"VLOOKUP(B35,#REF!,2,FALSE)","v":{"$error":"#REF!"}},1,"Csőke Imola, Tóth Enikő\nSZTE - ETSZK","A társas támogatás szerepe a dohányzás leszokásban",{"$nulls":6},0]
["63.","Egészségtudományok - Primer prevenció, védőnői prevenció, dietetika 2.",{"$f":"VLOOKUP(B36,#REF!,2,FALSE)","v":{"$error":"#REF!"}},2,"Dombai Flóra\nPTE - ÁOK","Hogyan befolyásolja a pasztörizálás az anyatej hormontartalmát?",{"$nulls":6},0]
["45.","Egészségtudományok - Primer prevenció, védőnői prevenció, dietetika 2.",{"$f":"VLOOKUP(B37,#REF!,2,FALSE)","v":{"$error":"#REF!"}},3,"Iván Gyöngyi\nPTE - ETK","Hagymafélék és készítményeik antimikrobiális hatásának váladékokból történő vizsgálata",{"$nulls":6},0]
["57.","Egészségtudományok - Primer prevenció, védőnői prevenció, dietetika 2.",{"$f":"VLOOKUP(B38,#REF!,2,FALSE)","v":{"$error":"#REF!"}},4,"Karikás Tamara Beáta\nDE - NK","Az influenza elleni védőoltás hatékonyságának vizsgálata cukorbetegek körében a 2015-ös járvány ideje alatt",{"$nulls":6},0]
["111.","Egészségtudományok - Primer prevenció, védőnői prevenció, dietetika 2.",{"$f":"VLOOKUP(B39,#REF!,2,FALSE)","v":{"$error":"#REF!"}},5,"Kovács Bernadett\nSE - ETK","Szülészeti ellátásban létrejövő kölcsönhatások vizsgálata",{"$nulls":6},0]
["35.","Egészségtudományok - Primer prevenció, védőnői prevenció, dietetika 2.",{"$f":"VLOOKUP(B40,#REF!,2,FALSE)","v":{"$error":"#REF!"}},6,"Tamás Vanessza\nSE - ETK","Cukorszirupok kimutatása mézekben referencia- és spektroszkópiai módszerekkel",{"$nulls":6},0]
["38.","Egészségtudományok - Primer prevenció, védőnői prevenció, dietetika 3.",{"$f":"VLOOKUP(B41,#REF!,2,FALSE)","v":{"$error":"#REF!"}},1,"Varga Loretta , Gyenes Gábor\nSE - ETK","A kézhigiéné gyakorlati készségeinek felmérése és összehasonlítása az elméleti tudással",{"$nulls":6},0]
["41.","Egészségtudományok - Primer prevenció, védőnői prevenció, dietetika 3.",{"$f":"VLOOKUP(B42,#REF!,2,FALSE)","v":{"$error":"#REF!"}},2,"Kabai Vivien\nDE - NK","Gyermekkori ártalmas élmények és a bullying kapcsolata alacsony szocioökönómiai státuszú serdülők körében",{"$nulls":6},0]
["30.","Egészségtudományok - Primer prevenció, védőnői prevenció, dietetika 3.",{"$f":"VLOOKUP(B43,#REF!,2,FALSE)","v":{"$error":"#REF!"}},3,"Kovács Linda Katalin\nSZTE - ETSZK","A fogászati félelem és az orális egészség kapcsolatának vizsgálata fiatal felnőttek körében",{"$nulls":6},0]
["95.","Egészségtudományok - Primer prevenció, védőnői prevenció, dietetika 3.",{"$f":"VLOOKUP(B44,#REF!,2,FALSE)","v":{"$error":"#REF!"}},4,"Papp Bernadett\nPTE - ETK","Az ápolók kézhigiénés szokásainak feltérképezése",{"$nulls":6},0]
["27.","Egészségtudományok - Primer prevenció, védőnői prevenció, dietetika 3.",{"$f":"VLOOKUP(B45,#REF!,2,FALSE)","v":{"$error":"#REF!"}},5,"Pethő Anna\nPTE - ETK","A dietetikai intervenció hatásossága a 2-es típusú diabetes mellitusban szenvedő betegek körében",{"$nulls":6},0]
["60.","Egészségtudományok - Primer prevenció, védőnői prevenció, dietetika 3.",{"$f":"VLOOKUP(B46,#REF!,2,FALSE)","v":{"$error":"#REF!"}},6,"Rádi Bence Márk\nDE - NK","Az orvostanhallgatók mentális egészségét kedvezőtlenül befolyásoló tényezők és a beavatkozások lehetséges pontjai hallgatói szemszögből",{"$nulls":6},0]
["112.","Egészségtudományok - Primer prevenció, védőnői prevenció, dietetika 3.",{"$f":"VLOOKUP(B47,#REF!,2,FALSE)","v":{"$error":"#REF!"}},7,"Vályi Adél Anna\nSZTE - ÁOK","Orvostan- és diplomás ápoló hallgatók hospice és palliatív ellátáshoz tanúsított attitűdje",{"$nulls":6},0]
["56.","Egészségtudományok - Primer prevenció, védőnői prevenció, dietetika 4.",{"$f":"VLOOKUP(B48,#REF!,2,FALSE)","v":{"$error":"#REF!"}},1,"Blatniczky Anna Laura\nPTE - ETK","A dietetikai kommunikáció vizsgálata az 1-es típusú diabetesszel élő 15 évnél fiatalabb gyermekek szülei és a kezelésben részt vevő dietetikusok szemszögéből",{"$nulls":6},0]
["48.","Egészségtudományok - Primer prevenció, védőnői prevenció, dietetika 4.",{"$f":"VLOOKUP(B49,#REF!,2,FALSE)","v":{"$error":"#REF!"}},2,"Dömötör Zsuzsa Réka, Mihály Péter, Miklós Stefánia\nETDK - OGYK","Szexuális prevenció: a szexuális attitűd felmérése és a kortársoktatás hatékonysága középiskolások körében","Nem jelent meg"]
["49.","Egészségtudományok - Primer prevenció, védőnői prevenció, dietetika 4.",{"$f":"VLOOKUP(B50,#REF!,2,FALSE)","v":{"$error":"#REF!"}},3,"Joó Viktória\nME - EK","Egészségügyi hallgatók szexuális attitűdje",{"$nulls":6},0]
["59.","Egészségtudományok - Primer prevenció, védőnői prevenció, dietetika 4.",{"$f":"VLOOKUP(B51,#REF!,2,FALSE)","v":{"$error":"#REF!"}},4,"Krébesz Róbert\nDE - NK","A szerencsejáték-függőség esetén is kimutatható kognitív torzítások megjelenésének kísérletes vizsgálata normál populáción",{"$nulls":6},0]
["34.","Egészségtudományok - Primer prevenció, védőnői prevenció, dietetika 4.",{"$f":"VLOOKUP(B52,#REF!,2,FALSE)","v":{"$error":"#REF!"}},5,"Szatmári Ferenc, Lázár Tímea\nSZTE - ÁOK","A méhnyakrákkal és a human papillomavírussal kapcsolatos ismeretek vizsgálata tudásindex használatával",{"$nulls":6},0]
["33.","Egészségtudományok - Primer prevenció, védőnői prevenció, dietetika 4.",{"$f":"VLOOKUP(B53,#REF!,2,FALSE)","v":{"$error":"#REF!"}},6,"Miklós Stefánia\nRO EMTE - MVK","Serdülő korú lányok ismeretei a HPV-ről",{"$nulls":6},0]
["42.","Egészségtudományok - Primer prevenció, védőnői prevenció, dietetika 4.",{"$f":"VLOOKUP(B54,#REF!,2,FALSE)","v":{"$error":"#REF!"}},7,"van der Meer Borbála Mária\nSE - ÁOK","Mit gondolnak a balassagyarmati serdülők a gyermekvállalás következményeiről?",{"$nulls":6},0]
["54.","Egészségtudományok - Primer prevenció, védőnői prevenció, dietetika 5.",{"$f":"VLOOKUP(B55,#REF!,2,FALSE)","v":{"$error":"#REF!"}},1,"Hoffmann Edina\nPTE - ETK","Intrauterin kötődés az anya-magzat között",{"$nulls":6},0]
["55.","Egészségtudományok - Primer prevenció, védőnői prevenció, dietetika 5.",{"$f":"VLOOKUP(B56,#REF!,2,FALSE)","v":{"$error":"#REF!"}},2,"Kejeradze Enver\nDE - NK","World’s First National HCV Elimination Program – Lessons to Learn from Georgia",{"$nulls":6},0]
["40.","Egészségtudományok - Primer prevenció, védőnői prevenció, dietetika 5.",{"$f":"VLOOKUP(B57,#REF!,2,FALSE)","v":{"$error":"#REF!"}},3,"Papp Szabolcs\nDE - NK","Influenza elleni átoltottság vizsgálata COPD-s betegek körében a magyar és szerb Európai Lakosság Egészségfelmérés adatai alapján",{"$nulls":6},0]
["51.","Egészségtudományok - Primer prevenció, védőnői prevenció, dietetika 5.",{"$f":"VLOOKUP(B58,#REF!,2,FALSE)","v":{"$error":"#REF!"}},4,"Péceli Fanni\nME - EK","Egyetemi hallgatók véleménye a házasságkötésről és gyermekvállalásról",{"$nulls":6},0]
["36.","Egészségtudományok - Primer prevenció, védőnői prevenció, dietetika 5.",{"$f":"VLOOKUP(B59,#REF!,2,FALSE)","v":{"$error":"#REF!"}},5,"Szabados Bence\nPTE - ETK","Bőrrákkal kapcsolatos ismeretek és fényvédelmi magatartás a magyar lakosság körében",{"$nulls":6},0]
["31.","Egészségtudományok - Primer prevenció, védőnői prevenció, dietetika 5.",{"$f":"VLOOKUP(B60,#REF!,2,FALSE)","v":{"$error":"#REF!"}},6,"Szabó-Kurucz Dóra\nSZTE - ETSZK","Az orális egészséggel összefüggő pszichológiai tényezők kapcsolatának vizsgálata",{"$nulls":6},0]
["37.","Egészségtudományok - Primer prevenció, védőnői prevenció, dietetika 5.",{"$f":"VLOOKUP(B61,#REF!,2,FALSE)","v":{"$error":"#REF!"}},7,"Vajdovich Dorottya Krisztina\nSE - ETK","Antioxidánssal, fehérjével és rosttal dúsított, álgabona-alapú növényi italok vizsgálata",{"$nulls":6},0]
["65.","Egészségtudományok - Szekunder prevenció, családorvoslás, preventív medicina 1.",{"$f":"VLOOKUP(B62,#REF!,2,FALSE)","v":{"$error":"#REF!"}},1,"Bődi Virág, Balla Dorottya\nSE","A szív mágneses rezonanciás vizsgálat szerepe sportolóknál strukturális szívbetegség gyanúja esetén","Nem jelent meg"]
["64.","Egészségtudományok - Szekunder prevenció, családorvoslás, preventív medicina 1.",{"$f":"VLOOKUP(B63,#REF!,2,FALSE)","v":{"$error":"#REF!"}},2,"Menyhárt-Hetényi Anna Klára, Frivaldszky Lőrinc\nSE","Az élsportolói szív elektromos átépülésének karakterizálása standard EKG paraméterek, szívfrekvencia variabilitás és QRST integrál mérésével",{"$nulls":6},0]
["100.","Egészségtudományok - Szekunder prevenció, családorvoslás, preventív medicina 1.",{"$f":"VLOOKUP(B64,#REF!,2,FALSE)","v":{"$error":"#REF!"}},3,"Horváth Anna\nDE - NK","A Polycystás Ovárium Szindrómával küzdő nők vizsgálata egyes pszichológiai változók tükrében",{"$nulls":6},0]
["70.","Egészségtudományok - Szekunder prevenció, családorvoslás, preventív medicina 1.",{"$f":"VLOOKUP(B65,#REF!,2,FALSE)","v":{"$error":"#REF!"}},4,"Pálinkás Zsófia, Horváth Nóra\nSZTE - ÁOK","A 2-es típusú cukorbetegség szűrésének, kezelésének jelentősége a kardiológiai gyakorlatban",{"$nulls":6},0]
["104.","Egészségtudományok - Szekunder prevenció, családorvoslás, preventív medicina 1.",{"$f":"VLOOKUP(B66,#REF!,2,FALSE)","v":{"$error":"#REF!"}},5,"Nagy Richárd\nPTE - ETK","Az alapszintű újraélesztés lehetséges módszerei - Videó támogatott oktatás hatékonyságának felmérése általános iskolás gyermekek körében",{"$nulls":6},0]
["66.","Egészségtudományok - Szekunder prevenció, családorvoslás, preventív medicina 1.",{"$f":"VLOOKUP(B67,#REF!,2,FALSE)","v":{"$error":"#REF!"}},6,"Orgoványi Máté\nPTE - ÁOK","Kockázatalapú szűrés a prediabetes/diabetes mellitus felismerésében",{"$nulls":6},{"$f":"SUM(G67:K67)-L67","v":0}]
["72.","Egészségtudományok - Szekunder prevenció, családorvoslás, preventív medicina 1.",{"$f":"VLOOKUP(B68,#REF!,2,FALSE)","v":{"$error":"#REF!"}},7,"Pintér Jenő Antal\nSZTE - ÁOK","ST-elevációs miokardiális infarktuson (STEMI-n) átesett betegek prehospitális késésének vizsgálata",{"$nulls":6},0]
["78.","Egészségtudományok - Szekunder prevenció, családorvoslás, preventív medicina 2.",{"$f":"VLOOKUP(B69,#REF!,2,FALSE)","v":{"$error":"#REF!"}},1,"Adamovits Otilíia Alexandra, Makan Judit Laura\nSZTE - ÁOK","A leszokási motiváció feltárása dohányzók online interakcióiban",{"$nulls":6},0]
["82.","Egészségtudományok - Szekunder prevenció, családorvoslás, preventív medicina 2.",{"$f":"VLOOKUP(B70,#REF!,2,FALSE)","v":{"$error":"#REF!"}},2,"Gyöngyösi Helga\nSE","Az affektív temperamentumok kifejeződése normotóniásokban, fehérköpeny hipertóniásokban, krónikus, nem rezisztens és krónikus, rezisztens hipertóniásokban: nemi különbségek",{"$nulls":6},0]
["67.","Egészségtudományok - Szekunder prevenció, családorvoslás, preventív medicina 2.",{"$f":"VLOOKUP(B71,#REF!,2,FALSE)","v":{"$error":"#REF!"}},3,"Kerekes Júlia\nPTE - ÁOK","Térlátásszűrő mobilalkalmazás vizsgálati paramétereinek tesztelése",{"$nulls":6},0]
["73.","Egészségtudományok - Szekunder prevenció, családorvoslás, preventív medicina 2.",{"$f":"VLOOKUP(B72,#REF!,2,FALSE)","v":{"$error":"#REF!"}},4,"Krishnan Rohan\nDE - NK","Mental health among International Medical Students at the University of Debrecen",{"$nulls":6},0]
["76.","Egészségtudományok - Szekunder prevenció, családorvoslás, preventív medicina 2.",{"$f":"VLOOKUP(B73,#REF!,2,FALSE)","v":{"$error":"#REF!"}},5,"Veress Noémi , Orbán Eszter\nSE - ETK","A policisztás ovárium szindróma lélektani vizsgálata",{"$nulls":6},0]
["80.","Egészségtudományok - Szekunder prevenció, családorvoslás, preventív medicina 2.",{"$f":"VLOOKUP(B74,#REF!,2,FALSE)","v":{"$error":"#REF!"}},6,"Szabó Klaudia\nPTE - ETK","A vastagbél daganattal kapcsolatos ismeretek és a szűréssel kapcsolatos attitűdök kistérségi lakosok körében",{"$nulls":6},0]
["69.","Egészségtudományok - Szekunder prevenció, családorvoslás, preventív medicina 2.",{"$f":"VLOOKUP(B75,#REF!,2,FALSE)","v":{"$error":"#REF!"}},7,"Szeles Dorottya Loretta\nDE - NK","Munkahelyi pszichés terhelés és az azzal összefüggésbe hozható pszichoszomatikus betegségek felmérése rendvédelmi dolgozók körében",{"$nulls":6},0]
["92.","Egészségtudományok - Szekunder prevenció, családorvoslás, preventív medicina 3.",{"$f":"VLOOKUP(B76,#REF!,2,FALSE)","v":{"$error":"#REF!"}},1,"Gaál Gabriella Katalin, Kis Tamás Gergő\nSZTE - ETSZK","A stroke incidenciájának és rizikófaktorainak vizsgálata az SZTE SZAKK Sürgősségi Betegellátó Osztályán. Agyi érbetegségekhez vezető, krónikus betegségekkel és állapotokkal kapcsolatos terápiás adherenciájának a vizsgálata",{"$nulls":6},0]
["110.","Egészségtudományok - Szekunder prevenció, családorvoslás, preventív medicina 3.",{"$f":"VLOOKUP(B77,#REF!,2,FALSE)","v":{"$error":"#REF!"}},2,"Horváth Zoltánné\nSE - ETK","\"Így szoktuk csinálni\" -  Szokásaink fogságában",{"$nulls":6},0]
["77.","Egészségtudományok - Szekunder prevenció, családorvoslás, preventív medicina 3.",{"$f":"VLOOKUP(B78,#REF!,2,FALSE)","v":{"$error":"#REF!"}},3,"Rózsa Árpád, Korányi Viktória\nSZTE - ÁOK","Férfiak szexuális zavarainak vizsgálata a „Diagnostic and statistical manual of mental disorders” (DSM-5) alapján",{"$nulls":6},0]
["74.","Egészségtudományok - Szekunder prevenció, családorvoslás, preventív medicina 3.",{"$f":"VLOOKUP(B79,#REF!,2,FALSE)","v":{"$error":"#REF!"}},4,"Kovács Ildikó Ágnes\nPTE - ETK","Osteoporosis Health Belief Scale (OHBS) kérdőív magyar nyelvre validálása",{"$nulls":6},0]
["89.","Egészségtudományok - Szekunder prevenció, családorvoslás, preventív medicina 3.",{"$f":"VLOOKUP(B80,#REF!,2,FALSE)","v":{"$error":"#REF!"}},5,"Lippai Anikó Zsuzsanna\nGFE - ESZK","Az etnicitás szerepe az akut betegellátás színterein, Békés megyére vonatkoztatva",{"$nulls":6},0]
["81.","Egészségtudományok - Szekunder prevenció, családorvoslás, preventív medicina 3.",{"$f":"VLOOKUP(B81,#REF!,2,FALSE)","v":{"$error":"#REF!"}},6,"Sarok Máté\nPTE - ETK","Balesetmegelőzés és elsősegélynyújtás oktatása óvodásoknak és általános iskolásoknak",{"$nulls":6},0]
["68.","Egészségtudományok - Szekunder prevenció, családorvoslás, preventív medicina 3.",{"$f":"VLOOKUP(B82,#REF!,2,FALSE)","v":{"$error":"#REF!"}},7,"Szikszai Alexandra\nDE - NK","A felsőoktatásban tanuló elsőéves hallgatók mentális egészségének a vizsgálata a  Covid-19 járvány idején a digitális és a jelenléti oktatás vonatkozásában",{"$nulls":6},0]
["85.","Egészségtudományok - Tercier prevenció, fizioterápia, rehabilitáció, ápolás és betegellátás 1.",{"$f":"VLOOKUP(B83,#REF!,2,FALSE)","v":{"$error":"#REF!"}},1,"Beták Orsolya\nSZTE - ETSZK","Fókuszban az egyensúly: A gyermekkori tartási és láb statikai rendellenességek befolyásolhatóságának és egyszerű mérési lehetőségeinek vizsgálata",{"$nulls":6},0]
["99.","Egészségtudományok - Tercier prevenció, fizioterápia, rehabilitáció, ápolás és betegellátás 1.",{"$f":"VLOOKUP(B84,#REF!,2,FALSE)","v":{"$error":"#REF!"}},2,"Erdei Renáta\nDE - NK","Légzőtorna gerincmobilitásra gyakorolt hatásának vizsgálata nők körében",{"$nulls":6},0]
["94.","Egészségtudományok - Tercier prevenció, fizioterápia, rehabilitáció, ápolás és betegellátás 1.",{"$f":"VLOOKUP(B85,#REF!,2,FALSE)","v":{"$error":"#REF!"}},3,"Holló Boglárka\nME - EK","Az egyensúly és a koordináció fejlesztése idős korban",{"$nulls":6},0]
["97.","Egészségtudományok - Tercier prevenció, fizioterápia, rehabilitáció, ápolás és betegellátás 1.",{"$f":"VLOOKUP(B86,#REF!,2,FALSE)","v":{"$error":"#REF!"}},4,"Hornisch Aliz Gabriella\nSE - ETK","Az úszóváll rizikófaktorai gyermekkorban",{"$nulls":6},0]
["46.","Egészségtudományok - Tercier prevenció, fizioterápia, rehabilitáció, ápolás és betegellátás 1.",{"$f":"VLOOKUP(B87,#REF!,2,FALSE)","v":{"$error":"#REF!"}},5,"Koronczai Patrik\nPTE - ETK","Krónikus boka instabilitásban szenvedő futsal játékosok alsó végtagi izomaktivitásának vizsgálata és fejlesztése",{"$nulls":6},0]
["106.","Egészségtudományok - Tercier prevenció, fizioterápia, rehabilitáció, ápolás és betegellátás 1.",{"$f":"VLOOKUP(B88,#REF!,2,FALSE)","v":{"$error":"#REF!"}},6,"Süle-Szigeti Attila\nPTE - ETK","Scapula diszkinézis, dobó váll, vállfájdalom, valamint adekvát mozgásterápiára történő változás összefüggésének kontrollcsoportos vizsgálata utánpótlás korú kézilabdázók körében",{"$nulls":6},0]
["88.","Egészségtudományok - Tercier prevenció, fizioterápia, rehabilitáció, ápolás és betegellátás 1.",{"$f":"VLOOKUP(B89,#REF!,2,FALSE)","v":{"$error":"#REF!"}},7,"Varga Ildikó\nSZTE - ETSZK","A zene hatása a futó teljesítményére",{"$nulls":6},0]
["98.","Egészségtudományok - Tercier prevenció, fizioterápia, rehabilitáció, ápolás és betegellátás 2.",{"$f":"VLOOKUP(B90,#REF!,2,FALSE)","v":{"$error":"#REF!"}},1,"Berki Krisztina\nDE - NK","Amatőr gamer-ek és e-sportolók fizikai állapotának vizsgálata, az e-sport következtében megjelenő mozgásszervi problémák beazonosítása",{"$nulls":6},0]
["79.","Egészségtudományok - Tercier prevenció, fizioterápia, rehabilitáció, ápolás és betegellátás 2.",{"$f":"VLOOKUP(B91,#REF!,2,FALSE)","v":{"$error":"#REF!"}},2,"Duzsik Lili\nSZTE - ETSZK","A hosszantartó ülés káros hatásainak mérséklése fizikális tréninggel, illetve kognitív és digitális eszközökön alapuló tartásjavítás révén",{"$nulls":6},0]
["105.","Egészségtudományok - Tercier prevenció, fizioterápia, rehabilitáció, ápolás és betegellátás 2.",{"$f":"VLOOKUP(B92,#REF!,2,FALSE)","v":{"$error":"#REF!"}},3,"Elizabeth Chibwe Musaba\nDE - NK","Access to Healthcare for people with Hearing Disability",{"$nulls":6},0]
["91.","Egészségtudományok - Tercier prevenció, fizioterápia, rehabilitáció, ápolás és betegellátás 2.",{"$f":"VLOOKUP(B93,#REF!,2,FALSE)","v":{"$error":"#REF!"}},4,"Meher Muhammad Zeeshan\nPTE - ETK","Predictors of life-threatening arrhythmia in Coronary Care Unit",{"$nulls":6},0]
["87.","Egészségtudományok - Tercier prevenció, fizioterápia, rehabilitáció, ápolás és betegellátás 2.",{"$f":"VLOOKUP(B94,#REF!,2,FALSE)","v":{"$error":"#REF!"}},5,"Mirk Brigitta\nSZTE - ETSZK","A neuromuscularis hatékonyság fejlesztése a nyaki gerinc lokális stabilizátorainak reaktivációjával - esettanulmány",{"$nulls":6},0]
["93.","Egészségtudományok - Tercier prevenció, fizioterápia, rehabilitáció, ápolás és betegellátás 2.",{"$f":"VLOOKUP(B95,#REF!,2,FALSE)","v":{"$error":"#REF!"}},6,"Müller Luca Zsófia\nME - EK","Krónikus légzőszervi betegek rekeszproblémáinak funkcionális megközelítése","Nem jelent meg"]
["84.","Egészségtudományok - Tercier prevenció, fizioterápia, rehabilitáció, ápolás és betegellátás 2.",{"$f":"VLOOKUP(B96,#REF!,2,FALSE)","v":{"$error":"#REF!"}},7,"Plajer Alexandra\nSE - ETK","Prevenciós tréningprogram hatásosságának vizsgálata serdülőkorú vízilabdázóknál",{"$nulls":6},0]
["102.","Egészségtudományok - Tercier prevenció, fizioterápia, rehabilitáció, ápolás és betegellátás 3.",{"$f":"VLOOKUP(B97,#REF!,2,FALSE)","v":{"$error":"#REF!"}},1,"Erős Kata Viktória, Iván Noémi\nSE - ETK","Az “Oesophagealis adenocarcinoma járvány” a Szent János Kórházban",{"$nulls":6},0]
["109.","Egészségtudományok - Tercier prevenció, fizioterápia, rehabilitáció, ápolás és betegellátás 3.",{"$f":"VLOOKUP(B98,#REF!,2,FALSE)","v":{"$error":"#REF!"}},2,"Fejes Dalma\nME - EK","Eszközös egyensúlyvizsgálat eredményei női sportolók körében",{"$nulls":6},0]
["108.","Egészségtudományok - Tercier prevenció, fizioterápia, rehabilitáció, ápolás és betegellátás 3.",{"$f":"VLOOKUP(B99,#REF!,2,FALSE)","v":{"$error":"#REF!"}},3,"Hidvégi Rebeka\nME - EK","Coxarthrosis komplex fizioterápiás kezelése, avagy subaqualis torna a mezőkövesdi kénes gyógyvízben",{"$nulls":6},0]
["115.","Egészségtudományok - Tercier prevenció, fizioterápia, rehabilitáció, ápolás és betegellátás 3.",{"$f":"VLOOKUP(B100,#REF!,2,FALSE)","v":{"$error":"#REF!"}},4,"Kocsány Péter\nDE - NK","A systemás thrombolysis hatása ischaemiás stroke betegek elsőbbségi rehabilitációjának funkcionális kimenetelére",{"$nulls":6},0]
["103.","Egészségtudományok - Tercier prevenció, fizioterápia, rehabilitáció, ápolás és betegellátás 3.",{"$f":"VLOOKUP(B101,#REF!,2,FALSE)","v":{"$error":"#REF!"}},5,"Rozner Klaudia\nPTE - ETK","Az ülőmunkából fakadó krónikus nyakfájdalom vizsgálata és komplex mozgásterápiás kezelése",{"$nulls":6},0]
["114.","Egészségtudományok - Tercier prevenció, fizioterápia, rehabilitáció, ápolás és betegellátás 3.",{"$f":"VLOOKUP(B102,#REF!,2,FALSE)","v":{"$error":"#REF!"}},6,"Vántus Hanna Orsolya, Veszter Dóra Gabriella\nSZTE - ETSZK","High Intensity Interval Training (HIIT): Erőben az egyensúly?",{"$nulls":6},0]
["113.","Egészségtudományok - Tercier prevenció, fizioterápia, rehabilitáció, ápolás és betegellátás 3.",{"$f":"VLOOKUP(B103,#REF!,2,FALSE)","v":{"$error":"#REF!"}},7,"Végh Bianka Éva\nSZTE - ETSZK","Tudatosan a sportban, tudatosan az itt és mostban Alcím: Avagy miért nélkülözhetetlen a testtudatosság fejlesztése egy fizioterápiás kezelés során?",{"$nulls":6},0]
["120.","Elméleti orvostudományok - Anatómia, morfológia, fejlődésbiológia 1.",{"$f":"VLOOKUP(B104,#REF!,2,FALSE)","v":{"$error":"#REF!"}},1,"Szőcs Szilárd, Agócs-Laboda Ágnes\nETDK - OGYK","Parasubiculum és a dorzális hippocampus közötti kapcsolati motívumok",{"$nulls":6},0]
["119.","Elméleti orvostudományok - Anatómia, morfológia, fejlődésbiológia 1.",{"$f":"VLOOKUP(B105,#REF!,2,FALSE)","v":{"$error":"#REF!"}},2,"Gyurok Gergő Péter\nPTE - ÁOK","A hallópálya és a Corti-szerv morfológiai vizsgálata hipofízis adenilát-cikláz aktiváló polipeptid-génkiütött (PACAP KO) és vad típusú egerekben",{"$nulls":6},0]
["128.","Elméleti orvostudományok - Anatómia, morfológia, fejlődésbiológia 1.",{"$f":"VLOOKUP(B106,#REF!,2,FALSE)","v":{"$error":"#REF!"}},3,"Hinnah Barbara\nDE - ÁOK","TGFβ útvonal megváltozásának eredménye fibrosis lehet Alzheimer-kóros egérmodell veséiben",{"$nulls":6},0]
["123.","Elméleti orvostudományok - Anatómia, morfológia, fejlődésbiológia 1.",{"$f":"VLOOKUP(B107,#REF!,2,FALSE)","v":{"$error":"#REF!"}},4,"Nyerges Miklós, Kellermayer Anna\nSE - ÁOK","Mikroglia aktiváció kinetikájának vizsgálata akut agyszeletpreparátumban",{"$nulls":6},0]
["121.","Elméleti orvostudományok - Anatómia, morfológia, fejlődésbiológia 1.",{"$f":"VLOOKUP(B108,#REF!,2,FALSE)","v":{"$error":"#REF!"}},5,"Lippai Bálint\nPTE - ÁOK","The presence and role of beta thymosins in mammalian inner ear development",{"$nulls":6},0]
["117.","Elméleti orvostudományok - Anatómia, morfológia, fejlődésbiológia 1.",{"$f":"VLOOKUP(B109,#REF!,2,FALSE)","v":{"$error":"#REF!"}},6,"Ujvári Katinka, Schwarcz Dóra Anett\nSE - ÁOK","Újonnan azonosított molekuláris szereplők a szomatikus mikroglia-idegsejt kapcsolatokban",{"$nulls":6},0]
["xxx","Elméleti orvostudományok - Anatómia, morfológia, fejlődésbiológia 1.",{"$f":"VLOOKUP(B110,#REF!,2,FALSE)","v":{"$error":"#REF!"}},7,"Sebők Hunor\nSE - ÁOK","A hippocampus alternatív kolinerg beidegzése",{"$nulls":6},0]
["133.","Elméleti orvostudományok - Anatómia, morfológia, fejlődésbiológia 1.",{"$f":"VLOOKUP(B111,#REF!,2,FALSE)","v":{"$error":"#REF!"}},8,"Vass Máté\nSZTE - ÁOK","Szisztémás neuroectodermalis őssejtkezeléssel indukált morfológiai és funkcionális felépülés kontúziós gerincvelő-sérülést követően",{"$nulls":6},0]
["130.","Elméleti orvostudományok - Anatómia, morfológia, fejlődésbiológia 2.",{"$f":"VLOOKUP(B112,#REF!,2,FALSE)","v":{"$error":"#REF!"}},1,"Gácsi Kristóf\nSZTE - ÁOK","A koponyabázis és intracranialis struktúrák cadaver alapú 3D-s modelljeinek felhasználása az általános orvostudományi alapképzésben és a klinikai gyakorlatban",{"$nulls":6},0]
["132.","Elméleti orvostudományok - Anatómia, morfológia, fejlődésbiológia 2.",{"$f":"VLOOKUP(B113,#REF!,2,FALSE)","v":{"$error":"#REF!"}},2,"Kellermayer Anna, Nyerges Miklós\nSE - ÁOK","Neuron-mikroglia interakciók vizsgálata fejlődő agyban",{"$nulls":6},0]
["127.","Elméleti orvostudományok - Anatómia, morfológia, fejlődésbiológia 2.",{"$f":"VLOOKUP(B114,#REF!,2,FALSE)","v":{"$error":"#REF!"}},3,"Kothalawala William Jayasekara\nDE - ÁOK","A kartogenin porcdifferenciációt serkentő hatásainak vizsgálata",{"$nulls":6},0]
["131.","Elméleti orvostudományok - Anatómia, morfológia, fejlődésbiológia 2.",{"$f":"VLOOKUP(B115,#REF!,2,FALSE)","v":{"$error":"#REF!"}},4,"Kovács Patrik\nDE - ÁOK","Transzporterek expressziójának átfogó szemléletű elemzése az in vitro porcdifferenciáció során",{"$nulls":6},0]
["124.","Elméleti orvostudományok - Anatómia, morfológia, fejlődésbiológia 2.",{"$f":"VLOOKUP(B116,#REF!,2,FALSE)","v":{"$error":"#REF!"}},5,"Láng Tamás\nSE","Szociális viselkedésben szerepjátszó neuronhálózatok chemogenetikai vizsgálata patkányokban",{"$nulls":6},0]
["129.","Elméleti orvostudományok - Anatómia, morfológia, fejlődésbiológia 2.",{"$f":"VLOOKUP(B117,#REF!,2,FALSE)","v":{"$error":"#REF!"}},6,"Zichó Krisztián, Major Ábel\nSE","A medián raphe szabályozza a negatív emlékek kialakulását",{"$nulls":6},0]
["126.","Elméleti orvostudományok - Anatómia, morfológia, fejlődésbiológia 2.",{"$f":"VLOOKUP(B118,#REF!,2,FALSE)","v":{"$error":"#REF!"}},7,"Molnár Tímea\nETDK - OGYK","Kérgi 5. rétegi kortikotalamikus pályák optogenetikai vizsgálatának anatómiai elemzése",{"$nulls":6},0]
["125.","Elméleti orvostudományok - Anatómia, morfológia, fejlődésbiológia 2.",{"$f":"VLOOKUP(B119,#REF!,2,FALSE)","v":{"$error":"#REF!"}},8,"Pytel Bence\nPTE - ÁOK","A centrális projekciójú Edinger-Westphal mag urocortin 1 neuronjainak vizsgálata a Parkinson-kórhoz társuló nem-motoros tünetek kialakulásában rotenon modellben, patkányban",{"$nulls":6},0]
["118.","Elméleti orvostudományok - Anatómia, morfológia, fejlődésbiológia 2.",{"$f":"VLOOKUP(B120,#REF!,2,FALSE)","v":{"$error":"#REF!"}},9,"Tóth Boglárka\nSE","Az 5. rétegi kortikotalamikus pályák vizsgálata frontális és parietális agykérgi területeken",{"$nulls":6},0]
["139.","Elméleti orvostudományok - Biofizika",{"$f":"VLOOKUP(B121,#REF!,2,FALSE)","v":{"$error":"#REF!"}},1,"Dr. Bunta Bálint Levente\nSE","BRAF szerepe az endotél sejtek mechanikájában: atomierő-mikroszkópos vizsgálatok",{"$nulls":6},0]
["138.","Elméleti orvostudományok - Biofizika",{"$f":"VLOOKUP(B122,#REF!,2,FALSE)","v":{"$error":"#REF!"}},2,"Góra Valér\nPTE - ÁOK","A profilin 1 fehérje hatása a vázizom- és szívizom aktinra oxidatív körülmények között",{"$nulls":6},0]
["135.","Elméleti orvostudományok - Biofizika",{"$f":"VLOOKUP(B123,#REF!,2,FALSE)","v":{"$error":"#REF!"}},3,"Kiss Luca Annamária\nSE - ÁOK","T7 bakteriofág DNS kilökődési folyamatának vizsgálata teljes belső visszaverődés fluoreszcencia mikroszkóppal",{"$nulls":6},0]
["136.","Elméleti orvostudományok - Biofizika",{"$f":"VLOOKUP(B124,#REF!,2,FALSE)","v":{"$error":"#REF!"}},4,"Szabó Máté\nDE - ÁOK","Szterolok és zsírsavak dipólpotenciálra gyakorolt hatásának vizsgálata új, nagy áteresztőképességű áramlási citometriás módszerrel",{"$nulls":6},0]
["275.","Elméleti orvostudományok - Biofizika",{"$f":"VLOOKUP(B125,#REF!,2,FALSE)","v":{"$error":"#REF!"}},5,"Tárnai Viktória\nPTE - ÁOK","A mikrotubuláris rendszer szerepének vizsgálata membrán nanocsövekben",{"$nulls":6},0]
["134.","Elméleti orvostudományok - Biofizika",{"$f":"VLOOKUP(B126,#REF!,2,FALSE)","v":{"$error":"#REF!"}},6,"Závoti Olivér\nSE - ÁOK","Nanoszálas sérvhálók mechanikai optimalizálása",{"$nulls":6},0]
["143.","Elméleti orvostudományok - Bioinformatika, számítógépes modellezés",{"$f":"VLOOKUP(B127,#REF!,2,FALSE)","v":{"$error":"#REF!"}},1,"Asztalos Leó\nSZTE - ÁOK","A neoantigének sötét oldala",{"$nulls":6},0]
["140.","Elméleti orvostudományok - Bioinformatika, számítógépes modellezés",{"$f":"VLOOKUP(B128,#REF!,2,FALSE)","v":{"$error":"#REF!"}},2,"Czoch Ákos, Keumbi Kim\nSE - ÁOK","Mentális terheltségi állapot automatizált azonosítása entrópia-alapú és gépi tanulásos módszerek segítségével",{"$nulls":6},0]
["148.","Elméleti orvostudományok - Bioinformatika, számítógépes modellezés",{"$f":"VLOOKUP(B129,#REF!,2,FALSE)","v":{"$error":"#REF!"}},3,"Di Giovanni Márk\nSE","Fogászati CT felvételek szegmentációjának automatizálása",{"$nulls":6},0]
["141.","Elméleti orvostudományok - Bioinformatika, számítógépes modellezés",{"$f":"VLOOKUP(B130,#REF!,2,FALSE)","v":{"$error":"#REF!"}},4,"Gargya Péter\nDE - ÁOK","Endometrium tumor grade és relapsus kockázat prediktálása génexpressziós adatokból",{"$nulls":6},0]
["142.","Elméleti orvostudományok - Bioinformatika, számítógépes modellezés",{"$f":"VLOOKUP(B131,#REF!,2,FALSE)","v":{"$error":"#REF!"}},5,"György Attila Tamás\nETDK - OGYK","A PAX6 bioinformatikai analízise és ennek jelentősége az aniridia kutatásában",{"$nulls":6},{"$f":"SUM(G131:K131)-L131","v":0}]
["146.","Elméleti orvostudományok - Bioinformatika, számítógépes modellezés",{"$f":"VLOOKUP(B132,#REF!,2,FALSE)","v":{"$error":"#REF!"}},6,"Kis Merse\nSZTE - ÁOK","MikroRNS-ek és targetjeik vizsgálata krónikus radiogén szívkárosodásban patkány modellben",{"$nulls":6},0]
["147.","Elméleti orvostudományok - Bioinformatika, számítógépes modellezés",{"$f":"VLOOKUP(B133,#REF!,2,FALSE)","v":{"$error":"#REF!"}},7,"Szilágyi Gábor Sándor\nSE","Szinaptikus polaritások egyensúlyának vizsgálata a Caenorhabditis elegans konnektómban",{"$nulls":6},0]
["145.","Elméleti orvostudományok - Bioinformatika, számítógépes modellezés",{"$f":"VLOOKUP(B134,#REF!,2,FALSE)","v":{"$error":"#REF!"}},8,"Vizi András\nPTE - ÁOK","3D nyomtatásban használt alapanyagok különböző fertőtlenítési eljárások utáni anyagtani tulajdonságai",{"$nulls":6},0]
["152.","Elméleti orvostudományok - Biokémia",{"$f":"VLOOKUP(B135,#REF!,2,FALSE)","v":{"$error":"#REF!"}},1,"De Villa Alexa Petra\nPTE - ÁOK","A fázis IV-es PARP-inhibitor olaparib hatásának vizsgálata mesterséges epitheliális határrétegen",{"$nulls":6},0]
["xxx","Elméleti orvostudományok - Biokémia",{"$f":"VLOOKUP(B136,#REF!,2,FALSE)","v":{"$error":"#REF!"}},2,"Guti Viktor\nSE","A β-arresztin2 interakcióinak vizsgálata nem-receptor fehérjékkel",{"$nulls":6},0]
["150.","Elméleti orvostudományok - Biokémia",{"$f":"VLOOKUP(B137,#REF!,2,FALSE)","v":{"$error":"#REF!"}},3,"Kokas Márton\nSE - ÁOK","A metilénkék hatása a citokróm-c redox állapotára in vivo és in vitro körülmények között",{"$nulls":6},0]
["153.","Elméleti orvostudományok - Biokémia",{"$f":"VLOOKUP(B138,#REF!,2,FALSE)","v":{"$error":"#REF!"}},4,"Kovács Szonja Anna\nDE - ÁOK","A smoothelin-szerű 1 fehérje inzulinérzékenyítő szerepe a vázizomban",{"$nulls":6},0]
["151.","Elméleti orvostudományok - Biokémia",{"$f":"VLOOKUP(B139,#REF!,2,FALSE)","v":{"$error":"#REF!"}},5,"Lovas Miklós\nSE","A polifoszfát nanopartikulumok és hisztonok stabilizálják a fibrin szerkezetét",{"$nulls":6},0]
["149.","Elméleti orvostudományok - Biokémia",{"$f":"VLOOKUP(B140,#REF!,2,FALSE)","v":{"$error":"#REF!"}},6,"Nászai Anna, Terhes Emil\nSZTE - ÁOK","Az extramitokondriális kalcium mozgás vizsgálata",{"$nulls":6},0]
["155.","Elméleti orvostudományok - Biokémia",{"$f":"VLOOKUP(B141,#REF!,2,FALSE)","v":{"$error":"#REF!"}},7,"Vinnai Boglárka Ágnes\nDE - ÁOK","A hosszú távú tiamin kezelés fokozza a humán adipociták hőtermelő képességét ex vivo",{"$nulls":6},0]
["192.","Elméleti orvostudományok - Élettan, kórélettan 1.",{"$f":"VLOOKUP(B142,#REF!,2,FALSE)","v":{"$error":"#REF!"}},1,"Ahmad Salah Mahmoud Totonji\nSZTE - ÁOK","Dimethyl-trisulfide: new approach to ameliorate experimental acute pancreatitis",{"$nulls":6},0]
["160.","Elméleti orvostudományok - Élettan, kórélettan 1.",{"$f":"VLOOKUP(B143,#REF!,2,FALSE)","v":{"$error":"#REF!"}},2,"Harangozó Márk\nSZTE - ÁOK","A temporális lebeny epilepszia kezelése a mediális szeptum elektromos ingerlésével",{"$nulls":6},0]
["159.","Elméleti orvostudományok - Élettan, kórélettan 1.",{"$f":"VLOOKUP(B144,#REF!,2,FALSE)","v":{"$error":"#REF!"}},3,"Lázár Dániel Benjámin, Sarkadi Mária\nDE - ÁOK","A KCNQ4 alegység hiánya felerősíti az akusztikus startle reflexet",{"$nulls":6},0]
["122.","Elméleti orvostudományok - Élettan, kórélettan 1.",{"$f":"VLOOKUP(B145,#REF!,2,FALSE)","v":{"$error":"#REF!"}},4,"Schwarcz Dóra Anett, Ujvári Katinka\nSE","A P2Y12 receptorok szerepe a mikroglia fiziológiás működésében",{"$nulls":6},0]
["508.","Elméleti orvostudományok - Élettan, kórélettan 1.",{"$f":"VLOOKUP(B146,#REF!,2,FALSE)","v":{"$error":"#REF!"}},5,"Vékony Roland Gábor\nPTE - ÁOK","A PACAP neuropeptid szerepének vizsgálata a citoszkeletális rendszer szabályozásában",{"$nulls":6},0]
["170.","Elméleti orvostudományok - Élettan, kórélettan 1.",{"$f":"VLOOKUP(B147,#REF!,2,FALSE)","v":{"$error":"#REF!"}},6,"Vető Kinga Nóra\nSE - ETK","Zsíretetéssel kiváltott atherosclerosis hatása az erek működésére LDL receptorhiányban",{"$nulls":6},0]
["309.","Elméleti orvostudományok - Élettan, kórélettan 2.",{"$f":"VLOOKUP(B148,#REF!,2,FALSE)","v":{"$error":"#REF!"}},1,"Balla Helga\nSE","A bradykinin B2 receptor szerepe a humán húgyhólyag kontrakció szabályozásában",{"$nulls":6},0]
["379.","Elméleti orvostudományok - Élettan, kórélettan 2.",{"$f":"VLOOKUP(B149,#REF!,2,FALSE)","v":{"$error":"#REF!"}},2,"Bottlik Olívia, Zsáry Eszter\nSE - ÁOK","A rendszeres fizikai edzés által kiváltott jobb kamrai remodelláció vizsgálata sportszív patkánymodellben",{"$nulls":6},0]
["178.","Elméleti orvostudományok - Élettan, kórélettan 2.",{"$f":"VLOOKUP(B150,#REF!,2,FALSE)","v":{"$error":"#REF!"}},3,"Dhanjal Roopkaran Singh, Jawahar Siddharth Krishnamurthi\nSZTE - ÁOK","The effect of obestatin and ketamine in an animal model of depression",{"$nulls":6},0]
["436.","Elméleti orvostudományok - Élettan, kórélettan 2.",{"$f":"VLOOKUP(B151,#REF!,2,FALSE)","v":{"$error":"#REF!"}},4,"Dr. Hantosi Dóra\nSZTE - ÁOK","A dimetil-triptamin neuroprotektív hatása iszkémiás patkány agykéregben",{"$nulls":6},0]
["196.","Elméleti orvostudományok - Élettan, kórélettan 2.",{"$f":"VLOOKUP(B152,#REF!,2,FALSE)","v":{"$error":"#REF!"}},5,"Max Heidböhmer\nPTE - ÁOK","Development of a mouse model of diabetic neuropathy",{"$nulls":6},0]
["413.","Elméleti orvostudományok - Élettan, kórélettan 2.",{"$f":"VLOOKUP(B153,#REF!,2,FALSE)","v":{"$error":"#REF!"}},6,"Szőllősi Panna\nDE - ÁOK","A testösszetétel és a felső végtag teljesítménye közötti összefüggések női kézilabdázók körében",{"$nulls":6},0]
["359.","Elméleti orvostudományok - Élettan, kórélettan 3.",{"$f":"VLOOKUP(B154,#REF!,2,FALSE)","v":{"$error":"#REF!"}},1,"Sayour Nabil, Gergely Tamás\nSE","A távoli iszkémiás kondícionálás kardioprotektív hatásainak összehasonlítása az akut miokardiális infarktus in vivo patkánymodelljeiben",{"$nulls":6},0]
["368.","Elméleti orvostudományok - Élettan, kórélettan 3.",{"$f":"VLOOKUP(B155,#REF!,2,FALSE)","v":{"$error":"#REF!"}},2,"Gulyás Lili\nSE - ÁOK","A RICTOR, mint a kardioprotektív ProtekromiR mikroRNS hálózat központi szabályozója",{"$nulls":6},0]
["171.","Elméleti orvostudományok - Élettan, kórélettan 3.",{"$f":"VLOOKUP(B156,#REF!,2,FALSE)","v":{"$error":"#REF!"}},3,"Hegedűs Dávid Áron, Szabó Ádám\nPTE - ÁOK","A ventrális pallidumba injektált szulpirid hatása a motivációs és tanulási folyamatokra egészséges és MAM-E17 skizofrénia modellállatokban",{"$nulls":6},0]
["176.","Elméleti orvostudományok - Élettan, kórélettan 3.",{"$f":"VLOOKUP(B157,#REF!,2,FALSE)","v":{"$error":"#REF!"}},4,"Hernádi Zsófia\nSZTE - ÁOK","Pericita kontraktillitás vizsgálata időskori agyi ischaemiás folyamatokban",{"$nulls":6},0]
["478.","Elméleti orvostudományok - Élettan, kórélettan 3.",{"$f":"VLOOKUP(B158,#REF!,2,FALSE)","v":{"$error":"#REF!"}},5,"Pathan Afrin Javed\nDE - ÁOK","Hemorheological alterations in a rat model of polycystic ovary syndrome",{"$nulls":6},0]
["172.","Elméleti orvostudományok - Élettan, kórélettan 3.",{"$f":"VLOOKUP(B159,#REF!,2,FALSE)","v":{"$error":"#REF!"}},6,"Szarvas Péter Archibald\nSZTE - ÁOK","Különböző módszerekkel kiváltott terjedő depolarizációk elektrofiziológiai és szövettani jellemzése patkány agyszeleten",{"$nulls":6},0]
["369.","Elméleti orvostudományok - Élettan, kórélettan 4.",{"$f":"VLOOKUP(B160,#REF!,2,FALSE)","v":{"$error":"#REF!"}},1,"Bálint Tímea, Nagy Dávid\nSE - ÁOK","A mikroRNS-ek szerepe a fokozott nyomás- és a fokozott volumenterhelés által indukált szívelégtelenségben",{"$nulls":6},0]
["227.","Elméleti orvostudományok - Élettan, kórélettan 4.",{"$f":"VLOOKUP(B161,#REF!,2,FALSE)","v":{"$error":"#REF!"}},2,"Demeter Flóra\nSE","A hypoxia és a komplement MASP-1 szinergista hatása az e-szelektin expresszióra humán endotélsejteken",{"$nulls":6},0]
["177.","Elméleti orvostudományok - Élettan, kórélettan 4.",{"$f":"VLOOKUP(B162,#REF!,2,FALSE)","v":{"$error":"#REF!"}},3,"Fejes Alexandra, Gausz Flóra Diána\nSZTE - ÁOK","A kinurénsav potenciális prekondícionáló hatásának vizsgálata doxorubicin indukálta akut szívkárosodás modellben",{"$nulls":6},0]
["174.","Elméleti orvostudományok - Élettan, kórélettan 4.",{"$f":"VLOOKUP(B163,#REF!,2,FALSE)","v":{"$error":"#REF!"}},4,"Kiss Orsolya\nPTE - ÁOK","Intraamygdaloid oxitocin receptorok szerepe szociális interakcióban, valproát indukálta autizmus állatmodellben",{"$nulls":6},0]
[543,"Elméleti orvostudományok - Élettan, kórélettan 4.",{"$f":"VLOOKUP(B164,#REF!,2,FALSE)","v":{"$error":"#REF!"}},5,"Mohammad Walid Ahmad Al-Smadi\nDE - ÁOK","Comparison of hemodynamic, histological and flow pattern changes caused by arterio-venous fistula or a loop-shaped venous interposition in the rat",{"$nulls":6},0]
["420.","Elméleti orvostudományok - Élettan, kórélettan 4.",{"$f":"VLOOKUP(B165,#REF!,2,FALSE)","v":{"$error":"#REF!"}},6,"Vidács Dániel László\nSZTE - ÁOK","Egészséges, felnőtt bőrből származó melanociták differenciációs potenciáljának vizsgálata",{"$nulls":6},0]
["175.","Elméleti orvostudományok - Élettan, kórélettan 5.",{"$f":"VLOOKUP(B166,#REF!,2,FALSE)","v":{"$error":"#REF!"}},1,"Homoki Orsolya\nPTE - ÁOK","A gyulladás hatása a posztnatális fejlődésre – állatkísérletes vizsgálat",{"$nulls":6},0]
["410.","Elméleti orvostudományok - Élettan, kórélettan 5.",{"$f":"VLOOKUP(B167,#REF!,2,FALSE)","v":{"$error":"#REF!"}},2,"Kovács Gábor\nSE","A VEGFC mRNS-LNP hosszú távon javítja a nyiroködémát transzgenikus állatmodellben",{"$nulls":6},0]
["180.","Elméleti orvostudományok - Élettan, kórélettan 5.",{"$f":"VLOOKUP(B168,#REF!,2,FALSE)","v":{"$error":"#REF!"}},3,"Nógrádi Bernát, Kristóf Rebeka\nSZTE - ÁOK","NLRP3 inflammaszóma aktivációjának gátlása perifériás idegsérülést követően",{"$nulls":6},0]
["161.","Elméleti orvostudományok - Élettan, kórélettan 5.",{"$f":"VLOOKUP(B169,#REF!,2,FALSE)","v":{"$error":"#REF!"}},4,"Lénárt Ádám\nSE - ÁOK","Izoprosztánok kontrakciós hatása és intracelluláris jelátvitele humán húgyhólyag simaizomban",{"$nulls":6},0]
["179.","Elméleti orvostudományok - Élettan, kórélettan 5.",{"$f":"VLOOKUP(B170,#REF!,2,FALSE)","v":{"$error":"#REF!"}},5,"Macula Gergő\nSZTE - ÁOK","Doxorubicin kiváltotta krónikus kardiotoxicitás mérséklése mirabegron alkalmazásával patkány modellben",{"$nulls":6},0]
["167.","Elméleti orvostudományok - Élettan, kórélettan 5.",{"$f":"VLOOKUP(B171,#REF!,2,FALSE)","v":{"$error":"#REF!"}},6,"Mészáros Zsófia Réka\nDE - ÁOK","Pozitív inotróp szerek hatásainak vizsgálata bal kamrai izolált szívizomsejtek összehúzódásaira és Ca2+ tranzienseire",{"$nulls":6},0]
["182.","Elméleti orvostudományok - Élettan, kórélettan 6.",{"$f":"VLOOKUP(B172,#REF!,2,FALSE)","v":{"$error":"#REF!"}},1,"Kovács Balázs, Buczkó Emma\nPTE - ÁOK","A sztereopszis vizsgálata a szenzoros maszkolás módszerével.",{"$nulls":6},0]
["183.","Elméleti orvostudományok - Élettan, kórélettan 6.",{"$f":"VLOOKUP(B173,#REF!,2,FALSE)","v":{"$error":"#REF!"}},2,"Grassalkovich Anna\nSZTE - ÁOK","A CFTR csatorna korrekciója és aktivációja csökkenti az akut pankreatitisz súlyosságát",{"$nulls":6},0]
["181.","Elméleti orvostudományok - Élettan, kórélettan 6.",{"$f":"VLOOKUP(B174,#REF!,2,FALSE)","v":{"$error":"#REF!"}},3,"Hajdu Dominika\nSZTE - ÁOK","TRESK háttér kálium csatornák módosító hatása a trigeminális nociceptív funkciókra",{"$nulls":6},0]
["194.","Elméleti orvostudományok - Élettan, kórélettan 6.",{"$f":"VLOOKUP(B175,#REF!,2,FALSE)","v":{"$error":"#REF!"}},4,"Ji Yeon Kwon\nSE","PPARγ activation reduces TGF-beta induced renal damage by repressing renal complement and galectin-3 expression",{"$nulls":6},0]
["168.","Elméleti orvostudományok - Élettan, kórélettan 6.",{"$f":"VLOOKUP(B176,#REF!,2,FALSE)","v":{"$error":"#REF!"}},5,"Török Zsolt, Sándor Gréta Boglárka\nDE - ÁOK","Az L-típusú kalciumáram és a nátrium-kalcium csereáram szerepe a szívizom béta-adrenerg adaptációja során.",{"$nulls":6},0]
["165.","Elméleti orvostudományok - Élettan, kórélettan 6.",{"$f":"VLOOKUP(B177,#REF!,2,FALSE)","v":{"$error":"#REF!"}},6,"Tóth Tímea\nSE - ÁOK","A lizofoszfatidilkolin endothelium diszfunkciót okozó hatásának molekuláris mechanizmusa",{"$nulls":6},0]
["184.","Elméleti orvostudományok - Élettan, kórélettan 7.",{"$f":"VLOOKUP(B178,#REF!,2,FALSE)","v":{"$error":"#REF!"}},1,"Gausz Flóra Diána, Fejes Alexandra\nSZTE - ÁOK","Szívkárosodás vizsgálata hím és nőstény db/db egerekben",{"$nulls":6},0]
["xxx","Elméleti orvostudományok - Élettan, kórélettan 7.",{"$f":"VLOOKUP(B179,#REF!,2,FALSE)","v":{"$error":"#REF!"}},2,"Nagy-Bozsoky József\nSE","Magasságfüggő hypoxia hatása az agy oxigénellátására földi repülésélettani szimuláció során",{"$nulls":6},0]
["163.","Elméleti orvostudományok - Élettan, kórélettan 7.",{"$f":"VLOOKUP(B180,#REF!,2,FALSE)","v":{"$error":"#REF!"}},3,"Rácz Vivien\nDE - ÁOK","Az omecamtiv mecarbil hatásai bal kamrai izolált szívizomsejtek összehúzódásaira és Ca2+ tranzienseire",{"$nulls":6},0]
["190.","Elméleti orvostudományok - Élettan, kórélettan 7.",{"$f":"VLOOKUP(B181,#REF!,2,FALSE)","v":{"$error":"#REF!"}},4,"Tóth Réka\nSZTE - ÁOK","A citotoxikus ödéma szimultán depolarizációt okoz anoxiás agyszeletekben",{"$nulls":6},0]
["186.","Elméleti orvostudományok - Élettan, kórélettan 7.",{"$f":"VLOOKUP(B182,#REF!,2,FALSE)","v":{"$error":"#REF!"}},5,"Victor Nabseth\nPTE - ÁOK","The thermal effects of acute and chronic acidosis in relation to the transient receptor potential vanilloid-1 channel",{"$nulls":6},0]
["166.","Elméleti orvostudományok - Élettan, kórélettan 7.",{"$f":"VLOOKUP(B183,#REF!,2,FALSE)","v":{"$error":"#REF!"}},6,"Xinari Elena\nSE - ÁOK","Investigation and functional rescue of a nephrogenic diabetes insipidus causing S127F substitution in the V2 vasopressin receptor",{"$nulls":6},0]
["164.","Elméleti orvostudományok - Élettan, kórélettan 8.",{"$f":"VLOOKUP(B184,#REF!,2,FALSE)","v":{"$error":"#REF!"}},1,"Fujii Erika\nDE - ÁOK","The late sodium current is regulated by intracellular calcium concentration",{"$nulls":6},0]
["189.","Elméleti orvostudományok - Élettan, kórélettan 8.",{"$f":"VLOOKUP(B185,#REF!,2,FALSE)","v":{"$error":"#REF!"}},2,"Taigiszer Márton Csaba, Kiss Orsolya\nPTE - ÁOK","Intraamygdaloid oxitocin hatása helytanulási folyamatok szabályozásában",{"$nulls":6},0]
["350.","Elméleti orvostudományok - Élettan, kórélettan 8.",{"$f":"VLOOKUP(B186,#REF!,2,FALSE)","v":{"$error":"#REF!"}},3,"Kelemen Hanga\nETDK - OGYK","A normocapnia fokozatos visszaállításának hosszú távú hatása a perinatális asphyxia patkánymodelljében",{"$nulls":6},0]
["173.","Elméleti orvostudományok - Élettan, kórélettan 8.",{"$f":"VLOOKUP(B187,#REF!,2,FALSE)","v":{"$error":"#REF!"}},4,"Major Ábel\nSE","Szinaptikus plaszticitás depressziós állatmodellben",{"$nulls":6},0]
["193.","Elméleti orvostudományok - Élettan, kórélettan 8.",{"$f":"VLOOKUP(B188,#REF!,2,FALSE)","v":{"$error":"#REF!"}},5,"Márványkövi Fanni Magdolna\nSZTE - ÁOK","A nemi különbségek hatásai az iszkémiás prekondícionálás által kiváltott kardioprotekcióra krónikus veseelégtelenségben: a STAT3 jelút lehetséges szerepe",{"$nulls":6},0]
["188.","Elméleti orvostudományok - Élettan, kórélettan 8.",{"$f":"VLOOKUP(B189,#REF!,2,FALSE)","v":{"$error":"#REF!"}},6,"Trencséni Eszter\nPTE - ÁOK","Ventrális pallidális dopamin-neurotenzin-interakciók szerepe a jutalmazás és a szorongás szabályozásában",{"$nulls":6},0]
["162.","Elméleti orvostudományok - Élettan, kórélettan 9.",{"$f":"VLOOKUP(B190,#REF!,2,FALSE)","v":{"$error":"#REF!"}},1,"Blénesi Szilvia\nSE - ÁOK","Éhezéssel társult olfaktoros ingerekre mutatott tanult viselkedés vizsgálata Caenorhabditis elegans modellen",{"$nulls":6},0]
["195.","Elméleti orvostudományok - Élettan, kórélettan 9.",{"$f":"VLOOKUP(B191,#REF!,2,FALSE)","v":{"$error":"#REF!"}},2,"Káposzta Zalán, Czocz Ákos\nSE - ÁOK","Agyi funkcionális kapcsolati hálózatok topológiájának vizsgálata nyugalmi állapotban és kognitív terhelés során, elektroencefalográfia segítségével\n",{"$nulls":6},0]
["185.","Elméleti orvostudományok - Élettan, kórélettan 9.",{"$f":"VLOOKUP(B192,#REF!,2,FALSE)","v":{"$error":"#REF!"}},3,"Jánosi Richárd, Horváth Cecília\nPTE - ÁOK","Az elektromos szinapszisok eloszlása kétféle szerveződési elvet követ az emlős retinában",{"$nulls":6},0]
["157.","Elméleti orvostudományok - Élettan, kórélettan 9.",{"$f":"VLOOKUP(B193,#REF!,2,FALSE)","v":{"$error":"#REF!"}},4,"Sándor Gréta Boglárka, Török Zsolt\nDE - ÁOK","Szerepet játszik-e az L típusú kalciumáram a káliumáramok profiljának szabályozásában kutya kamrai akciós potenciál alatt?",{"$nulls":6},0]
["158.","Elméleti orvostudományok - Élettan, kórélettan 9.",{"$f":"VLOOKUP(B194,#REF!,2,FALSE)","v":{"$error":"#REF!"}},5,"Szabó Johanna-Petra\nETDK - OGYK","Mediális szeptum és munkamemória kapcsolatának vizsgálata lokális mezőpotenciál elemzésével",{"$nulls":6},0]
["260.","Elméleti orvostudományok - Élettan, kórélettan 9.",{"$f":"VLOOKUP(B195,#REF!,2,FALSE)","v":{"$error":"#REF!"}},6,"Vigyikán Gyöngyvér, Vida Noémi\nSZTE - ÁOK","A kísérletes veno-venózus extrakorporális membrán oxigenizáció során kialakuló vesekárosodás vizsgálata",{"$nulls":6},{"$f":"SUM(G195:K195)-L195","v":0}]
["199.","Elméleti orvostudományok - Farmakológia 1.",{"$f":"VLOOKUP(B196,#REF!,2,FALSE)","v":{"$error":"#REF!"}},1,"Bernát Brigitta Renáta\nDE - GYTK","Telemetriás biopotenciál-mérő rendszer beállítása és a BGP-15 gyógyszerjelölt elektrofiziológiai hatásainak vizsgálata patkánymodellen",{"$nulls":6},0]
["204.","Elméleti orvostudományok - Farmakológia 1.",{"$f":"VLOOKUP(B197,#REF!,2,FALSE)","v":{"$error":"#REF!"}},2,"Gréczi Bence\nSZTE - ÁOK","Az újonnan szintetizált sigma-1 receptor agonista (S)-0758 védő hatása teljes előagyi iszkémia patkány modelljében",{"$nulls":6},0]
["202.","Elméleti orvostudományok - Farmakológia 1.",{"$f":"VLOOKUP(B198,#REF!,2,FALSE)","v":{"$error":"#REF!"}},3,"Hacsi Ágnes Dalma\nDE - GYTK","A BGP-15 gyógyszerjelölt hatásainak vizsgálata a mitokondriális redox homeosztázisra idős ZDF patkány miokardiumán",{"$nulls":6},0]
["207.","Elméleti orvostudományok - Farmakológia 1.",{"$f":"VLOOKUP(B199,#REF!,2,FALSE)","v":{"$error":"#REF!"}},4,"Karádi Dávid Árpád\nSE","Glycin transzporter-1 és glycin transzporter-2 gátlók együttesen adva szinergista fájdalomcsillapító hatást váltanak ki mononeuropátiás modellen",{"$nulls":6},0]
["198.","Elméleti orvostudományok - Farmakológia 1.",{"$f":"VLOOKUP(B200,#REF!,2,FALSE)","v":{"$error":"#REF!"}},5,"Kupecz Klaudia, Losonczi Réka Hajnalka\nSZTE - ÁOK","A preimplantációs faktor időbeli hatásainak a vizsgálata radiogén szívkárosodásban patkány modellben",{"$nulls":6},0]
["208.","Elméleti orvostudományok - Farmakológia 1.",{"$f":"VLOOKUP(B201,#REF!,2,FALSE)","v":{"$error":"#REF!"}},6,"Várallyay Anett Anna\nSE","A lizofoszfatidsav 2 (LPA2) receptor szerepe a nem-szteroid gyulladásgátlók által okozott bélkárosodásban egerekben",{"$nulls":6},0]
["200.","Elméleti orvostudományok - Farmakológia 2.",{"$f":"VLOOKUP(B202,#REF!,2,FALSE)","v":{"$error":"#REF!"}},1,"Bekő Anna\nETDK - OGYK","Tanulási teljesítmény vizsgálata intracerebroventrikuláris sztreptozocin adagolással indukált alzheimer-kór modellben long-evans patkányokon",{"$nulls":6},0]
["205.","Elméleti orvostudományok - Farmakológia 2.",{"$f":"VLOOKUP(B203,#REF!,2,FALSE)","v":{"$error":"#REF!"}},2,"Fejes Roland\nSZTE - ÁOK","Az N-metil-D-aszpartát receptorok gátlása javítja a mitokondriális funkciózavart polimikrobiális szepszis modellben patkányon",{"$nulls":6},0]
["197.","Elméleti orvostudományok - Farmakológia 2.",{"$f":"VLOOKUP(B204,#REF!,2,FALSE)","v":{"$error":"#REF!"}},3,"Ménes Ákos István\nDE - ÁOK","Védőoltás és az autoimmunitás kapcsolata: Fluart Influenza vakcina és a krónikus reumatoid artritisz kapcsolatának experimentális vizsgálata.",{"$nulls":6},0]
["209.","Elméleti orvostudományok - Farmakológia 2.",{"$f":"VLOOKUP(B205,#REF!,2,FALSE)","v":{"$error":"#REF!"}},4,"Miklós Gabriella\nSE - ÁOK","PD-1 ellenes immun ellenőrzőpont gátló hallásra kifejtett hatásának vizsgálata egereken",{"$nulls":6},0]
["374.","Elméleti orvostudományok - Farmakológia 2.",{"$f":"VLOOKUP(B206,#REF!,2,FALSE)","v":{"$error":"#REF!"}},5,"Tian Huimin, Váradi Barnabás\nSE - ÁOK","A szelektív COX-2 enzimgátlás funkciójavító hatásmechanizmusának vizsgálata koleszterin-kardiomiopátia patkánymodelljében elfogulatlan in silico eszköz segítségével",{"$nulls":6},0]
["206.","Elméleti orvostudományok - Farmakológia 2.",{"$f":"VLOOKUP(B207,#REF!,2,FALSE)","v":{"$error":"#REF!"}},6,"Volford Dávid\nSZTE - ÁOK","A losartan hatásainak vizsgálata krónikus radiogén szívkárosodásban patkány modellben",{"$nulls":6},0]
["510.","Elméleti orvostudományok - Farmakológia 2.",{"$f":"VLOOKUP(B208,#REF!,2,FALSE)","v":{"$error":"#REF!"}},7,"Wilisicz Ticián\nDE - ÁOK","A BGP-15-kezelés növeli a miokardiális cGMP-PKG útvonal aktivitását és javítja a diasztolés funkciót, nyúl modellen",{"$nulls":6},0]
["218.","Elméleti orvostudományok - Genetika, genomika",{"$f":"VLOOKUP(B209,#REF!,2,FALSE)","v":{"$error":"#REF!"}},1,"Bastos Inoue Carina Harue\nDE - ÁOK","Study of the significance of miR30 family members in ovarian cancer",{"$nulls":6},0]
["219.","Elméleti orvostudományok - Genetika, genomika",{"$f":"VLOOKUP(B210,#REF!,2,FALSE)","v":{"$error":"#REF!"}},2,"Berke Gergő\nPTE - ÁOK","Egy gyakori kimotripszin C (CTRC) polimorfizmus vizsgálata krónikus pankreatitiszben",{"$nulls":6},0]
["xxx","Elméleti orvostudományok - Genetika, genomika",{"$f":"VLOOKUP(B211,#REF!,2,FALSE)","v":{"$error":"#REF!"}},3,"Győrik Dorka\nSE","A CLOCK gén hatása a kronotípusra depresszióval interakcióban nagy európai átlagpopulációs mintán",{"$nulls":6},0]
["212.","Elméleti orvostudományok - Genetika, genomika",{"$f":"VLOOKUP(B212,#REF!,2,FALSE)","v":{"$error":"#REF!"}},4,"Kemenes Gréta\nDE - ÁOK","Az alveoláris makrofágok működését szabályozó EGR2 transzkripciós faktor jelentőségének vizsgálata COPD-ben",{"$nulls":6},0]
["217.","Elméleti orvostudományok - Genetika, genomika",{"$f":"VLOOKUP(B213,#REF!,2,FALSE)","v":{"$error":"#REF!"}},5,"Minya Patrícia\nSE - ÁOK","Interallélikus interakciók vizsgálata autoszomális recesszív kórképekben",{"$nulls":6},0]
["213.","Elméleti orvostudományok - Genetika, genomika",{"$f":"VLOOKUP(B214,#REF!,2,FALSE)","v":{"$error":"#REF!"}},6,"Nagy Zsófia Flóra\nSZTE - ÁOK","Amiotrófiás laterálszklerózisban szenvedő magyar betegek átfogó genetikai vizsgálata",{"$nulls":6},0]
["215.","Elméleti orvostudományok - Genetika, genomika",{"$f":"VLOOKUP(B215,#REF!,2,FALSE)","v":{"$error":"#REF!"}},7,"Stengl Roland, Ruskó Bernadett\nSE","A mutációkeresés stratégiájának optimalizálása Marfan-szindrómában",{"$nulls":6},0]
["216.","Elméleti orvostudományok - Genetika, genomika",{"$f":"VLOOKUP(B216,#REF!,2,FALSE)","v":{"$error":"#REF!"}},8,"Ruskó Bernadett, Stengl Roland\nSE","A Marfan-szindróma súlyos aorta manifesztációinak kockázatát előrejelző genetikai variánsok felderítése teljes genomasszociációs vizsgálattal",{"$nulls":6},0]
["214.","Elméleti orvostudományok - Genetika, genomika",{"$f":"VLOOKUP(B217,#REF!,2,FALSE)","v":{"$error":"#REF!"}},9,"Varga Alexandra Edit\nDE - ÁOK","Ösztrogének ovárium sejtekre kifejtett fenotípusos és miRNS expresszióban megmutatkozó hatásának vizsgálata",{"$nulls":6},0]
["230.","Elméleti orvostudományok - Kísérletes immunológia, mikrobiológia 1.",{"$f":"VLOOKUP(B218,#REF!,2,FALSE)","v":{"$error":"#REF!"}},1,"Tőkés Nikolett, Pál Endre Csaba\nETDK - OGYK","Karbapenemázt termelő klebsiella pneumoniae törzsek colistinérzékenységének vizsgálatára használt módszerek összehasonlítása",{"$nulls":6},0]
["222.","Elméleti orvostudományok - Kísérletes immunológia, mikrobiológia 1.",{"$f":"VLOOKUP(B219,#REF!,2,FALSE)","v":{"$error":"#REF!"}},2,"Orlovácz Katalin\nPTE - ÁOK","Három új picornavírus azonosítása vadon élő és laboratóriumi patkányok (Rattusnorvegicus) bélsár-, és szervmintáiban",{"$nulls":6},0]
["226.","Elméleti orvostudományok - Kísérletes immunológia, mikrobiológia 1.",{"$f":"VLOOKUP(B220,#REF!,2,FALSE)","v":{"$error":"#REF!"}},3,"Pázmándi Petra\nDE - ÁOK","NLRP3 inflammaszóma-mediált gyulladásos válaszok vizsgálata humán plazmacitoid dendritikus sejtekben",{"$nulls":6},0]
["221.","Elméleti orvostudományok - Kísérletes immunológia, mikrobiológia 1.",{"$f":"VLOOKUP(B221,#REF!,2,FALSE)","v":{"$error":"#REF!"}},4,"Sík Pál Botond\nSE - ÁOK","Comparison of resistance and virulence of Staphylococcus aureus isolates from different sources",{"$nulls":6},0]
["225.","Elméleti orvostudományok - Kísérletes immunológia, mikrobiológia 1.",{"$f":"VLOOKUP(B222,#REF!,2,FALSE)","v":{"$error":"#REF!"}},5,"Székelyhidi Virág Enikő\nDE - ÁOK","A Gaucher-kór in vitro modellrendszerének kialakítása THP-1 monocitákból",{"$nulls":6},0]
["224.","Elméleti orvostudományok - Kísérletes immunológia, mikrobiológia 1.",{"$f":"VLOOKUP(B223,#REF!,2,FALSE)","v":{"$error":"#REF!"}},6,"Tormássi Áron\nSE - ÁOK","Staphylococcus aureus előfordulása játszótereken és kültéri edzőgépeken",{"$nulls":6},0]
["220.","Elméleti orvostudományok - Kísérletes immunológia, mikrobiológia 1.",{"$f":"VLOOKUP(B224,#REF!,2,FALSE)","v":{"$error":"#REF!"}},7,"Tóth Péter Áron\nDE - ÁOK","Kiméra antigén receptort kifejező makrofág sejtek (CAR-M) alkalmazása a HER2+ solid tumorok terápiájában",{"$nulls":6},0]
["235.","Elméleti orvostudományok - Kísérletes immunológia, mikrobiológia 2.",{"$f":"VLOOKUP(B225,#REF!,2,FALSE)","v":{"$error":"#REF!"}},1,"Czikkely Márton\nSZTE - ÁOK","Új határok a bakteriális genomszerkesztésben – rekombináción alapuló genommérnökség hatásfokának növelése és gazda specificitásának kiszélesítése",{"$nulls":6},0]
["234.","Elméleti orvostudományok - Kísérletes immunológia, mikrobiológia 2.",{"$f":"VLOOKUP(B226,#REF!,2,FALSE)","v":{"$error":"#REF!"}},2,"Farkas Ferenc Balázs\nSE","A mikrobiom összetételének és diverzitásának analízise karbapenemáz-termelő Klebsiella pneumoniaevel kolonizált egerekben",{"$nulls":6},0]
["233.","Elméleti orvostudományok - Kísérletes immunológia, mikrobiológia 2.",{"$f":"VLOOKUP(B227,#REF!,2,FALSE)","v":{"$error":"#REF!"}},3,"Le Tran Linh Dan\nDE - ÁOK","In vitro characterization of HER2-redirected universal CAR T cells",{"$nulls":6},0]
["223.","Elméleti orvostudományok - Kísérletes immunológia, mikrobiológia 2.",{"$f":"VLOOKUP(B228,#REF!,2,FALSE)","v":{"$error":"#REF!"}},4,"Kisiczki Ármin Szabolcs, Koós Bence\nSE - ÁOK","A metabolikus ritmus immunmodulátor hatásai",{"$nulls":6},0]
["232.","Elméleti orvostudományok - Kísérletes immunológia, mikrobiológia 2.",{"$f":"VLOOKUP(B229,#REF!,2,FALSE)","v":{"$error":"#REF!"}},5,"Shlomie Briscoe\nDE - ÁOK","Comprehensive analysis of different tumor cell-line produced soluble mediators on the monocyte-derived dendritic cells’ differentiation and functional properties",{"$nulls":6},0]
["236.","Elméleti orvostudományok - Kísérletes immunológia, mikrobiológia 2.",{"$f":"VLOOKUP(B230,#REF!,2,FALSE)","v":{"$error":"#REF!"}},6,"Szőcs Emőke, Soós Ádám\nSE","A bursa Fabricii lymphoid follikulusainak embryonális fejlődése",{"$nulls":6},0]
["231.","Elméleti orvostudományok - Kísérletes immunológia, mikrobiológia 2.",{"$f":"VLOOKUP(B231,#REF!,2,FALSE)","v":{"$error":"#REF!"}},7,"Veres Júlia\nDE - ÁOK","Az NLRP3 és I-es típusú interferon útvonalak interakciójának vizsgálata humán plazmacitoid dendritikus sejtekben",{"$nulls":6},0]
["240.","Elméleti orvostudományok - Kísérletes onkológia, jelátvitel",{"$f":"VLOOKUP(B232,#REF!,2,FALSE)","v":{"$error":"#REF!"}},1,"Csikos Csaba\nDE - ÁOK","A sejtmagi NAD szintézis szerepe az aktinomicin D oszteoszarkóma sejtekre kifejtett citotoxikus hatásában",{"$nulls":6},0]
["238.","Elméleti orvostudományok - Kísérletes onkológia, jelátvitel",{"$f":"VLOOKUP(B233,#REF!,2,FALSE)","v":{"$error":"#REF!"}},2,"Kalabay Márton\nSE","Tamoxifen származékok tumorellenes hatásának vizsgálata pancreas- és emlőtumor sejtvonalakon",{"$nulls":6},0]
["237.","Elméleti orvostudományok - Kísérletes onkológia, jelátvitel",{"$f":"VLOOKUP(B234,#REF!,2,FALSE)","v":{"$error":"#REF!"}},3,"Khamis Reem\nDE - ÁOK","SMTNL-1 regulates the insulin signalling pathway in in vitro gestational diabetes model of human endometrial epithelium",{"$nulls":6},0]
["239.","Elméleti orvostudományok - Kísérletes onkológia, jelátvitel",{"$f":"VLOOKUP(B235,#REF!,2,FALSE)","v":{"$error":"#REF!"}},4,"Moldvai Dorottya\nSE","Immunszuppresszív kezelések mammalian target of rapamycin (mTOR) C1 és C2 komplexek aktivitás változását befolyásoló hatása vesetumor-xenograft modellekben",{"$nulls":6},0]
["246.","Elméleti orvostudományok - Kísérletes onkológia, jelátvitel",{"$f":"VLOOKUP(B236,#REF!,2,FALSE)","v":{"$error":"#REF!"}},5,"Papi Zsófia, Morhan Vlad\nSZTE - ÁOK","Evaluating the effects of miR-29b-3p in triple negative breast cancer cells",{"$nulls":6},0]
["144.","Elméleti orvostudományok - Kísérletes onkológia, jelátvitel",{"$f":"VLOOKUP(B237,#REF!,2,FALSE)","v":{"$error":"#REF!"}},6,"Schulc Klára\nSE - ÁOK","A jelátviteli hálózat átrendeződései a vastagbél adenoma és carcinoma kialakulása során",{"$nulls":6},0]
["154.","Elméleti orvostudományok - Kísérletes onkológia, jelátvitel",{"$f":"VLOOKUP(B238,#REF!,2,FALSE)","v":{"$error":"#REF!"}},7,"Szenci-Kaszás Balázs József\nSZTE - ÁOK","A BMP jelátvitelt indukáló tiloron hatása a vázizom atrófia csökkentésére",{"$nulls":6},0]
["288.","Elméleti orvostudományok - Molekuláris biológia",{"$f":"VLOOKUP(B239,#REF!,2,FALSE)","v":{"$error":"#REF!"}},1,"Farkas Benjámin\nPTE - ÁOK","My D88-as gén alternatív splicing termékeinek analízise primer Sjörgern szindrómában",{"$nulls":6},0]
["248.","Elméleti orvostudományok - Molekuláris biológia",{"$f":"VLOOKUP(B240,#REF!,2,FALSE)","v":{"$error":"#REF!"}},2,"Hetényi Roland\nPTE - ÁOK","Cellular internalization of Thymosin beta-4",{"$nulls":6},0]
["247.","Elméleti orvostudományok - Molekuláris biológia",{"$f":"VLOOKUP(B241,#REF!,2,FALSE)","v":{"$error":"#REF!"}},3,"Lengyel Máté, László Loretta\nDE - ÁOK","ZG16B fehérje hatása tumor és normál emlő epithel sejtek migrációjára és proliferációjára",{"$nulls":6},0]
["242.","Elméleti orvostudományok - Molekuláris biológia",{"$f":"VLOOKUP(B242,#REF!,2,FALSE)","v":{"$error":"#REF!"}},4,"Nagybányai-Nagy Blanka\nSE - ÁOK","A D-vitamin aktiválását végző CYP27B1 enzim genetikai variációinak vizsgálata",{"$nulls":6},0]
["244.","Elméleti orvostudományok - Molekuláris biológia",{"$f":"VLOOKUP(B243,#REF!,2,FALSE)","v":{"$error":"#REF!"}},5,"Tóth Dávid\nSZTE - ÁOK","SARS-Cov-2 fehérjék és LC3 kölcsönhatásának analízise MCF-7 sejtekben",{"$nulls":6},0]
["249.","Elméleti orvostudományok - Molekuláris biológia",{"$f":"VLOOKUP(B244,#REF!,2,FALSE)","v":{"$error":"#REF!"}},6,"Tóth Klaudia\nDE - ÁOK","A protein arginin metiltranszferáz 5 mutációinak hatása az enzim aktivitására",{"$nulls":6},0]
["245.","Elméleti orvostudományok - Molekuláris biológia",{"$f":"VLOOKUP(B245,#REF!,2,FALSE)","v":{"$error":"#REF!"}},7,"Tóth Szilárd\nPTE - ÁOK","OPA1 fehérje promóció kardiológiai hatásainak karakterizációja transzgén állatmodellben",{"$nulls":6},0]
["243.","Elméleti orvostudományok - Molekuláris biológia",{"$f":"VLOOKUP(B246,#REF!,2,FALSE)","v":{"$error":"#REF!"}},8,"Ungvári Ádám László\nDE - ÁOK","A smoothelin-szerű 1 fehérje inzulinérzékenyítő szerepe az inzulin receptor szubsztrát 1 szabályozásán keresztül",{"$nulls":6},0]
["250.","Elméleti orvostudományok - Molekuláris biológia",{"$f":"VLOOKUP(B247,#REF!,2,FALSE)","v":{"$error":"#REF!"}},9,"Zsigrai Emese\nDE - ÁOK","A surfaceome rendszerbiológiai szemléletű elemzése humán melanocytákon és melanoma sejteken",{"$nulls":6},0]
["251.","Konzervatív orvostudományok - Patológia, hisztológia, igazságügyi orvostan 1.",{"$f":"VLOOKUP(B248,#REF!,2,FALSE)","v":{"$error":"#REF!"}},1,"Fekete Zoltán, Bordács Barbara\nSZTE - ÁOK","Syntaxin-1A kifejeződése tápcsatornai neuroendokrin tumorokban és carcinomákban",{"$nulls":6},0]
["266.","Konzervatív orvostudományok - Patológia, hisztológia, igazságügyi orvostan 1.",{"$f":"VLOOKUP(B249,#REF!,2,FALSE)","v":{"$error":"#REF!"}},2,"Bősze Zsófia\nSZTE - ÁOK","A pancreas endoszkópos ultrahang vezérelt finomtű aspiráció nem-diagnosztikus prediktív értéke",{"$nulls":6},0]
["259.","Konzervatív orvostudományok - Patológia, hisztológia, igazságügyi orvostan 1.",{"$f":"VLOOKUP(B250,#REF!,2,FALSE)","v":{"$error":"#REF!"}},3,"Carmi Idan\nSE","Intratumoral cellular heterogeneity effects extracellular vesicle cargo and release in colorectal cancer",{"$nulls":6},0]
["258.","Konzervatív orvostudományok - Patológia, hisztológia, igazságügyi orvostan 1.",{"$f":"VLOOKUP(B251,#REF!,2,FALSE)","v":{"$error":"#REF!"}},4,"Jakab Ákos\nSE","Az ismeretlen eredetű malignus tumorokhoz asszociált paraneopláziás szindrómák vizsgálata",{"$nulls":6},0]
["261.","Konzervatív orvostudományok - Patológia, hisztológia, igazságügyi orvostan 1.",{"$f":"VLOOKUP(B252,#REF!,2,FALSE)","v":{"$error":"#REF!"}},5,"Máli Zorán Miklós\nPTE - ÁOK","Álpozitivitási határérték meghatározása metszeten végzett FISH-vizsgálatok során",{"$nulls":6},0]
["265.","Konzervatív orvostudományok - Patológia, hisztológia, igazságügyi orvostan 1.",{"$f":"VLOOKUP(B253,#REF!,2,FALSE)","v":{"$error":"#REF!"}},6,"Márton Zsombor, Pytel Bence\nPTE - ÁOK","A centrális projekciójú Edinger-Westphal mag urocortin-1 sejtjeinek vizsgálata a Parkinson-kórhoz asszociált hangulatzavarok kialakulásában, patkányban",{"$nulls":6},0]
["254.","Konzervatív orvostudományok - Patológia, hisztológia, igazságügyi orvostan 1.",{"$f":"VLOOKUP(B254,#REF!,2,FALSE)","v":{"$error":"#REF!"}},7,"Rostás Melinda\nDE - ÁOK","Extracelluláris mátrix molekulák szerepe glialis tumorok invazivitásában",{"$nulls":6},0]
["264.","Konzervatív orvostudományok - Patológia, hisztológia, igazságügyi orvostan 2.",{"$f":"VLOOKUP(B255,#REF!,2,FALSE)","v":{"$error":"#REF!"}},1,"Bátai Bence\nSE - ÁOK","EZH2 mutációk nyomonkövetése folyadék-biopsziás mintákból hazai follicularis lymphomás betegek körében",{"$nulls":6},0]
["428.","Konzervatív orvostudományok - Patológia, hisztológia, igazságügyi orvostan 2.",{"$f":"VLOOKUP(B256,#REF!,2,FALSE)","v":{"$error":"#REF!"}},2,"Bencs Viktor\nDE - ÁOK","Lemur tirozin-kináz 2 expresszió vizsgálata tauopathiákban",{"$nulls":6},0]
["255.","Konzervatív orvostudományok - Patológia, hisztológia, igazságügyi orvostan 2.",{"$f":"VLOOKUP(B257,#REF!,2,FALSE)","v":{"$error":"#REF!"}},3,"Hegedűs Fanni\nSZTE - ÁOK","A chronicus ileitis kórszövettani spektruma - a gastricus metaplasia és a Paneth-sejt hyperplasia diagnosztikus jelentősége",{"$nulls":6},0]
["263.","Konzervatív orvostudományok - Patológia, hisztológia, igazságügyi orvostan 2.",{"$f":"VLOOKUP(B258,#REF!,2,FALSE)","v":{"$error":"#REF!"}},4,"Jakab Flóra\nSE - ÁOK","Az endometrium carcinomák klinikopatológiai jellegzetességei és molekuláris patológiája",{"$nulls":6},0]
["257.","Konzervatív orvostudományok - Patológia, hisztológia, igazságügyi orvostan 2.",{"$f":"VLOOKUP(B259,#REF!,2,FALSE)","v":{"$error":"#REF!"}},5,"Meszlényi Valéria Éva, Nógrádi Bernát\nSZTE - ÁOK","Különböző genetikai mutációkkal rendelkező amiotrófiás laterálszklerózis betegek vérszérumával történő passzív transzfer hatása egerek ideg-izom szinapszisaira",{"$nulls":6},{"$f":"SUM(G259:K259)-L259","v":0}]
["262.","Konzervatív orvostudományok - Patológia, hisztológia, igazságügyi orvostan 2.",{"$f":"VLOOKUP(B260,#REF!,2,FALSE)","v":{"$error":"#REF!"}},6,"Radics Barbara\nPTE - ÁOK","Glioblastoma molekuláris klasszifikációja",{"$nulls":6},0]
["210.","Elméleti orvostudományok - Sejtbiológia, sejtélettan 1.",{"$f":"VLOOKUP(B261,#REF!,2,FALSE)","v":{"$error":"#REF!"}},1,"Cs. Szabó Bence\nDE - ÁOK","Ceramidok hatása a Kv1.3 ioncsatorna membrán mikrodomének közötti megoszlására és kapuzására",{"$nulls":6},0]
["267.","Elméleti orvostudományok - Sejtbiológia, sejtélettan 1.",{"$f":"VLOOKUP(B262,#REF!,2,FALSE)","v":{"$error":"#REF!"}},2,"Halmi Dóra, Erdélyi-Furka Barbara Fanni\nSZTE - ÁOK","A kinurénsav hatásának vizsgálata szimulált iszkémia/reoxigenizációnak kitett H9C2 patkány kardiomioblaszt sejteken",{"$nulls":6},0]
["271.","Elméleti orvostudományok - Sejtbiológia, sejtélettan 1.",{"$f":"VLOOKUP(B263,#REF!,2,FALSE)","v":{"$error":"#REF!"}},3,"Fentu Sanka\nSE - ÁOK","Molecular study of genetically labeled peroxidase protein in mammalian animal model system",{"$nulls":6},0]
["241.","Elméleti orvostudományok - Sejtbiológia, sejtélettan 1.",{"$f":"VLOOKUP(B264,#REF!,2,FALSE)","v":{"$error":"#REF!"}},4,"Gudmundsson Johann\nDE - ÁOK","The role of A2A receptor activation in the late endosomal localization of NPC1 protein in macrophages",{"$nulls":6},0]
["272.","Elméleti orvostudományok - Sejtbiológia, sejtélettan 1.",{"$f":"VLOOKUP(B265,#REF!,2,FALSE)","v":{"$error":"#REF!"}},5,"Nagy Dániel Károly\nSE","A plazmamembrán foszfatidilinozitol-3,4-biszfoszfát szint változása hormonális ingerlés hatására emlős sejtekben",{"$nulls":6},0]
["229.","Elméleti orvostudományok - Sejtbiológia, sejtélettan 1.",{"$f":"VLOOKUP(B266,#REF!,2,FALSE)","v":{"$error":"#REF!"}},6,"Tézsla Zsófia\nSZTE - ÁOK","Transzplantált humán indukált pluripotens őssejtek differenciálódásának és hatásmechanizmusának felderítése a gerincvelő kontúziós sérülését követően",{"$nulls":6},0]
["211.","Elméleti orvostudományok - Sejtbiológia, sejtélettan 1.",{"$f":"VLOOKUP(B267,#REF!,2,FALSE)","v":{"$error":"#REF!"}},7,"Vámosi Márton György\nSE","A D3 dopamin receptor agyi eloszlásának vizsgálata fluoreszcens antipszichotikummal",{"$nulls":6},0]
["340.","Elméleti orvostudományok - Sejtbiológia, sejtélettan 2.",{"$f":"VLOOKUP(B268,#REF!,2,FALSE)","v":{"$error":"#REF!"}},1,"Balla Abigél\nDE - ÁOK","Intraventrikuláris vérzés indukálta gyulladásos folyamatok vizsgálata humán choroid plexus epithelsejtekben",{"$nulls":6},0]
["269.","Elméleti orvostudományok - Sejtbiológia, sejtélettan 2.",{"$f":"VLOOKUP(B269,#REF!,2,FALSE)","v":{"$error":"#REF!"}},2,"Gyulai-Nagy Szuzina\nSZTE - ÁOK","Az exoszómák és az aktin nanoszerkezet szerepe a szindekán-4 sejtmigrációra gyakorolt hatásában",{"$nulls":6},0]
["273.","Elméleti orvostudományok - Sejtbiológia, sejtélettan 2.",{"$f":"VLOOKUP(B270,#REF!,2,FALSE)","v":{"$error":"#REF!"}},3,"Khozeimeh Mohammad Ali\nSE - ÁOK","Establishment of a lentiviral expression system for the expression of potassium channel genes in sensory neurons",{"$nulls":6},0]
["270.","Elméleti orvostudományok - Sejtbiológia, sejtélettan 2.",{"$f":"VLOOKUP(B271,#REF!,2,FALSE)","v":{"$error":"#REF!"}},4,"Omer Schlank\nDE - ÁOK","The role of Septin7 protein in the migration of cultured muscle cells",{"$nulls":6},0]
["274.","Elméleti orvostudományok - Sejtbiológia, sejtélettan 2.",{"$f":"VLOOKUP(B272,#REF!,2,FALSE)","v":{"$error":"#REF!"}},5,"Orbán Gábor\nSE - ÁOK","Új bioszenzorok fejlesztése az extracelluláris adenozin-nukleotidok sebzáródásban betöltött szerepének és egyéb funkcióinak megismerésére",{"$nulls":6},0]
["353.","Elméleti orvostudományok - Sejtbiológia, sejtélettan 2.",{"$f":"VLOOKUP(B273,#REF!,2,FALSE)","v":{"$error":"#REF!"}},6,"Szász Csenge\nSE - ÁOK","A PARK7 szerepe a peritoneális dialízis asszociált fibrózisban",{"$nulls":6},0]
["268.","Elméleti orvostudományok - Sejtbiológia, sejtélettan 2.",{"$f":"VLOOKUP(B274,#REF!,2,FALSE)","v":{"$error":"#REF!"}},7,"Szőke Krisztina\nSZTE - ÁOK","Szinergista radioszenzitizáció: az arany nanorészecskék és a hiszton-deacetiláz inhibitor SAHA kombinációja fokozza a sugárterápia hatékonyságát",{"$nulls":6},0]
["496.","Farmakognózia",{"$f":"VLOOKUP(B275,#REF!,2,FALSE)","v":{"$error":"#REF!"}},1,"Barta Anita\nSZTE - GYTK","A Juncus maritimus vegyületeinek izolálása és szerkezetmeghatározása",{"$nulls":6},0]
["519.","Farmakognózia",{"$f":"VLOOKUP(B276,#REF!,2,FALSE)","v":{"$error":"#REF!"}},2,"Fekete Helga\nDE - GYTK","Citrom (Citrus x limon) illóolaj tartalmú emulziók formulálása, biokompatibilitási vizsgálata",{"$nulls":6},0]
["489.","Farmakognózia",{"$f":"VLOOKUP(B277,#REF!,2,FALSE)","v":{"$error":"#REF!"}},3,"Kocsis Endre\nSZTE - GYTK","Bioaktív kaloniszteron származékok félszintetikus előállítása és vizsgálata",{"$nulls":6},0]
["502.","Farmakognózia",{"$f":"VLOOKUP(B278,#REF!,2,FALSE)","v":{"$error":"#REF!"}},4,"Sali Nikolett\nPTE - GYTK","Solidago hibridek gyógyászati jelentősége. Avagy messze esik-e az alma a fájától?",{"$nulls":6},0]
["500.","Farmakognózia",{"$f":"VLOOKUP(B279,#REF!,2,FALSE)","v":{"$error":"#REF!"}},5,"Szabó Réka Eszter\nSZTE - GYTK","Antibakteriális hatású fenolos vegyületek izolálása a Camelina microcarpa herbából",{"$nulls":6},0]
["497.","Farmakognózia",{"$f":"VLOOKUP(B280,#REF!,2,FALSE)","v":{"$error":"#REF!"}},6,"Varga Tamás\nSE - ÁOK","Kakukkfű illóolajminták metabolomikai vizsgálata NMR spektroszkópiával",{"$nulls":6},0]
["276.","Fogorvostudományok 1.",{"$f":"VLOOKUP(B281,#REF!,2,FALSE)","v":{"$error":"#REF!"}},1,"Horváth Kíra\nPTE - ÁOK","A complement rendszer aktivációjának vizsgálata szisztémás autoimmun betegek kis nyálmirigyeiben",{"$nulls":6},0]
["297.","Fogorvostudományok 1.",{"$f":"VLOOKUP(B282,#REF!,2,FALSE)","v":{"$error":"#REF!"}},2,"Kálmán Eszter\nSE","Dopaminnal módosított poliaszparaginsav alapú hidrogélek alkalmazása fogeredetű őssejtek tenyésztésére",{"$nulls":6},0]
["285.","Fogorvostudományok 1.",{"$f":"VLOOKUP(B283,#REF!,2,FALSE)","v":{"$error":"#REF!"}},3,"Oszkó Csenge\nPTE - ÁOK","Hagyományos hibrid, bulk-fill és szálerősítésű kompozitok polimerizációs fokának és exoterm reakciójának vizsgálata a rétegvastagság és konzisztencia függvényében",{"$nulls":6},0]
["304.","Fogorvostudományok 1.",{"$f":"VLOOKUP(B284,#REF!,2,FALSE)","v":{"$error":"#REF!"}},4,"Sipos Helga Eszter\nDE - FOK","A nyál és szérum immunglobulin A jelentősége autológ perifériás haemopoieticus őssejt-transzplantáció kapcsán kialakuló oralis mucositisben",{"$nulls":6},0]
["296.","Fogorvostudományok 1.",{"$f":"VLOOKUP(B285,#REF!,2,FALSE)","v":{"$error":"#REF!"}},5,"Vass Andrea Fanni\nSE","Epilepsziás betegek temporomandibuláris ízületi diszfunkciójának előfordulása, epidemiológiai szűrővizsgálatok tükrében",{"$nulls":6},0]
["279.","Fogorvostudományok 1.",{"$f":"VLOOKUP(B286,#REF!,2,FALSE)","v":{"$error":"#REF!"}},6,"Veress Fanni, Weninger Kristóf\nSE - FOK","Az ínykeringés változásának vizsgálata teljes és félvastag lebenytechnika alkalmazása során alveolus csontaugmentációs műtétet követően LSCI módszerrel",{"$nulls":6},0]
["306.","Fogorvostudományok 2.",{"$f":"VLOOKUP(B287,#REF!,2,FALSE)","v":{"$error":"#REF!"}},1,"Alaeddin Obeidallah\nDE - FOK","Photopolymerisable PVA/MPGA nanofibers for drug delivery.",{"$nulls":6},0]
["292.","Fogorvostudományok 2.",{"$f":"VLOOKUP(B288,#REF!,2,FALSE)","v":{"$error":"#REF!"}},2,"Fittler Márton\nPTE - ÁOK","Magyar pedagógusok felkészültsége fogászati sürgősségi esetek elsősegélynyújtása terén",{"$nulls":6},0]
["286.","Fogorvostudományok 2.",{"$f":"VLOOKUP(B289,#REF!,2,FALSE)","v":{"$error":"#REF!"}},3,"Jakab András Gábor\nSZTE - FOK","Gépi gyökércsatorna tágító rendszerek fogakra kifejtett biomechanikai hatásainak in vitro összehasonlítása",{"$nulls":6},0]
["287.","Fogorvostudományok 2.",{"$f":"VLOOKUP(B290,#REF!,2,FALSE)","v":{"$error":"#REF!"}},4,"Niklai Réka Rebeka\nPTE - ÁOK","Rögzített funkciós készülékek szkeletális és dentoalveoláris hatásának összehasonlító kefalometriai vizsgálata II. osztályú malokklúzió esetén",{"$nulls":6},0]
["280.","Fogorvostudományok 2.",{"$f":"VLOOKUP(B291,#REF!,2,FALSE)","v":{"$error":"#REF!"}},5,"Róna Virág\nSE - FOK","A Magyarországon elérhető többgenerációs intraorális szkennerek összehasonlító értékelése",{"$nulls":6},0]
["300.","Fogorvostudományok 2.",{"$f":"VLOOKUP(B292,#REF!,2,FALSE)","v":{"$error":"#REF!"}},6,"Schmalzl Judit, Vámos Orsolya\nSE","Digitális lenyomatok pontossága 9 intraorális szkenner vizsgálata alapján",{"$nulls":6},0]
["307.","Fogorvostudományok 3.",{"$f":"VLOOKUP(B293,#REF!,2,FALSE)","v":{"$error":"#REF!"}},1,"Burencheva Ekaterina\nDE - FOK","Improved adhesion to silica surface using a chemical etching method",{"$nulls":6},0]
["301.","Fogorvostudományok 3.",{"$f":"VLOOKUP(B294,#REF!,2,FALSE)","v":{"$error":"#REF!"}},2,"Lipták Laura, Lipták Klaudia\nSE","A palatum morfológiájának háromdimenziós vizsgálata szájszkennerrel ikerpárokon",{"$nulls":6},0]
["284.","Fogorvostudományok 3.",{"$f":"VLOOKUP(B295,#REF!,2,FALSE)","v":{"$error":"#REF!"}},3,"Radnai Fanni\nPTE - ÁOK","A fogakhoz kapcsolódó esztétika szerepe a gyermekek közötti társas viselkedésben",{"$nulls":6},0]
["303.","Fogorvostudományok 3.",{"$f":"VLOOKUP(B296,#REF!,2,FALSE)","v":{"$error":"#REF!"}},4,"Szabó Ágnes\nDE - FOK","Nagy dózisú kondícionáló kezelés hatása az orális mucosára",{"$nulls":6},0]
["299.","Fogorvostudományok 3.",{"$f":"VLOOKUP(B297,#REF!,2,FALSE)","v":{"$error":"#REF!"}},5,"Szekér Dóra Edina\nSE","Palatinális minicsavarok pozicionálása CBCT segítségével",{"$nulls":6},0]
["293.","Fogorvostudományok 3.",{"$f":"VLOOKUP(B298,#REF!,2,FALSE)","v":{"$error":"#REF!"}},6,"Takács Dalma\nPTE - ÁOK","Az állkapocsízületi hangok vizsgálati lehetőségei",{"$nulls":6},0]
["302.","Fogorvostudományok 4.",{"$f":"VLOOKUP(B299,#REF!,2,FALSE)","v":{"$error":"#REF!"}},1,"Bajsz Norman\nDE - FOK","Különböző módokon polimerizálható kompozit-nanoszálak előállíthatósága és vizsgálata",{"$nulls":6},0]
["281.","Fogorvostudományok 4.",{"$f":"VLOOKUP(B300,#REF!,2,FALSE)","v":{"$error":"#REF!"}},2,"Lőrincz Hajnal, Geréb Noémi, Kardos Olivér Gábor\nETDK - OGYK","Univerzális és bulk-fill típusú kompozittal restaurált fogak mechanikai tulajdonságai",{"$nulls":6},0]
["283.","Fogorvostudományok 4.",{"$f":"VLOOKUP(B301,#REF!,2,FALSE)","v":{"$error":"#REF!"}},3,"Jókai Blanka Zsuzsanna\nSZTE - FOK","Gyökérkezelt premoláris fogak üvegszálas anyagokkal történő restaurálhatóságának in vitro vizsgálata",{"$nulls":6},0]
["295.","Fogorvostudományok 4.",{"$f":"VLOOKUP(B302,#REF!,2,FALSE)","v":{"$error":"#REF!"}},4,"Kálmán Marcell, Prókai Gábor\nSE","Cirkónium-dioxid kerámiák spektrofotometriai vizsgálata",{"$nulls":6},0]
["298.","Fogorvostudományok 4.",{"$f":"VLOOKUP(B303,#REF!,2,FALSE)","v":{"$error":"#REF!"}},5,"Keglevich Bernát, Orosz Fanni\nSE","Sebészi motorral és nyomatékkulccsal történő implantátum-behelyezés pontosságának komparatív klinikai és radiológiai vizsgálata részlegesen navigált sebészi technika alkalmazásával",{"$nulls":6},0]
["290.","Fogorvostudományok 4.",{"$f":"VLOOKUP(B304,#REF!,2,FALSE)","v":{"$error":"#REF!"}},6,"Pintér Zsolt\nPTE - ÁOK","Kompozitok anyagtani tulajdonságainak vizsgálata és javításainak lehetőségei levegő-abráziós módszer használatával",{"$nulls":6},0]
["291.","Fogorvostudományok 4.",{"$f":"VLOOKUP(B305,#REF!,2,FALSE)","v":{"$error":"#REF!"}},7,"Szénai Réka\nPTE - ÁOK","A homokfúvás szakítószilárdságra kifejtett hatásának vizsgálata kompozit tömések javítása során",{"$nulls":6},0]
["305.","Fogorvostudományok 5.",{"$f":"VLOOKUP(B306,#REF!,2,FALSE)","v":{"$error":"#REF!"}},1,"Ágoston Réka\nDE - FOK","A lokális oralis immunitás és az osteopontin mucosalis védekezésben betöltött szerepének vizsgálata autológ perifériás haemopoieticus őssejt-transzplantáción áteső betegek körében",{"$nulls":6},0]
["278.","Fogorvostudományok 5.",{"$f":"VLOOKUP(B307,#REF!,2,FALSE)","v":{"$error":"#REF!"}},2,"Balázs Gergő, Mórocz Dávid Richárd\nSE - FOK","Életminőség vizsgálaton (PROMIS) alapuló új egészséghasznossági index alkalmasságának vizsgálata és validálása a szájsebészeti ellátásban",{"$nulls":6},0]
["294.","Fogorvostudományok 5.",{"$f":"VLOOKUP(B308,#REF!,2,FALSE)","v":{"$error":"#REF!"}},3,"Juhász Kincső Réka, Mátyás-Barta Kinga, Fazakas Beáta\nETDK - OGYK","Felső első őrlők gyökércsatornáinak változó morfológiája",{"$nulls":6},0]
["282.","Fogorvostudományok 5.",{"$f":"VLOOKUP(B309,#REF!,2,FALSE)","v":{"$error":"#REF!"}},4,"Horváth Kristóf Bence\nSZTE - FOK","Állkapocsízületi diszfunkcióra utaló jelek fogorvostanhallgatók körében",{"$nulls":6},0]
["289.","Fogorvostudományok 5.",{"$f":"VLOOKUP(B310,#REF!,2,FALSE)","v":{"$error":"#REF!"}},5,"Laith Naffa\nPTE - ÁOK","In vitro temperature rise of pulp chamber during polymerization of light-cured and dual-cured adhesive resin cement through different thicknesses of lithium-disilicate pressedceramic.",{"$nulls":6},0]
["277.","Fogorvostudományok 5.",{"$f":"VLOOKUP(B311,#REF!,2,FALSE)","v":{"$error":"#REF!"}},6,"Tóth Ágnes\nSE - FOK","A fog látómezőben elfoglalt helyzetének és a felvételi mód hatásának vizsgálata a gyökércsatornák képi megjelenítésére CBCT felvételeken",{"$nulls":6},0]
["491.","Gyógyszeranalitika, minőségellenőrzés",{"$f":"VLOOKUP(B312,#REF!,2,FALSE)","v":{"$error":"#REF!"}},1,"Ádám Márk, Dobó Máté\nSE - GYTK","Enantiomer elválasztás fenilkarbamát-β-ciklodextrin királis szelektort tartalmazó állófázison polár organikus módban",{"$nulls":6},0]
["495.","Gyógyszeranalitika, minőségellenőrzés",{"$f":"VLOOKUP(B313,#REF!,2,FALSE)","v":{"$error":"#REF!"}},2,"Ágh Ferenc\nSE - GYTK","Ciklodextrin komplexek vizsgálata CD- és NMR-spektroszkópiával",{"$nulls":6},0]
["499.","Gyógyszeranalitika, minőségellenőrzés",{"$f":"VLOOKUP(B314,#REF!,2,FALSE)","v":{"$error":"#REF!"}},3,"Bacskai Csilla\nSE - GYTK","Tiokarbamid típusú modellvegyületek szerkezetvizsgálata és ionkötőképesség vizsgálata NMR spektroszkópiával",{"$nulls":6},0]
["511.","Gyógyszeranalitika, minőségellenőrzés",{"$f":"VLOOKUP(B315,#REF!,2,FALSE)","v":{"$error":"#REF!"}},4,"Csertő Alinka\nSE - ÁOK","Embolizációs mikrogyöngyök radiokémiai jelzése és minőségellenőrzése",{"$nulls":6},0]
["488.","Gyógyszeranalitika, minőségellenőrzés",{"$f":"VLOOKUP(B316,#REF!,2,FALSE)","v":{"$error":"#REF!"}},5,"Füzesi Tamás\nSZTE - GYTK","Endocitózis indukció szerkezeti feltételei GM1 receptorokon keresztül",{"$nulls":6},0]
["515.","Gyógyszeranalitika, minőségellenőrzés",{"$f":"VLOOKUP(B317,#REF!,2,FALSE)","v":{"$error":"#REF!"}},6,"Nmar Klaudia Fatima\nPTE - GYTK","Növényi eredetű kivonatot tartalmazó kézfertőtlenítő gél stabilitásvizsgálata",{"$nulls":6},0]
["487.","Gyógyszeranalitika, minőségellenőrzés",{"$f":"VLOOKUP(B318,#REF!,2,FALSE)","v":{"$error":"#REF!"}},7,"Szabo Ákos Bálint\nPTE - GYTK","Alternariol mikotoxin eltávolítása vizes oldatokból és borból béta-ciklodextrin gyöngypolimerrel",{"$nulls":6},0]
["494.","Gyógyszerészi kémia",{"$f":"VLOOKUP(B319,#REF!,2,FALSE)","v":{"$error":"#REF!"}},1,"Csorba Dóra\nSE - GYTK","Fénnyel aktiválható kinolin-védőcsoportok előállítása és vizsgálata",{"$nulls":6},0]
["493.","Gyógyszerészi kémia",{"$f":"VLOOKUP(B320,#REF!,2,FALSE)","v":{"$error":"#REF!"}},2,"Demeter Adrienn Katalin\nSE - GYTK","Eljárás 1,4-Dihidropiridin előállítására",{"$nulls":6},0]
["498.","Gyógyszerészi kémia",{"$f":"VLOOKUP(B321,#REF!,2,FALSE)","v":{"$error":"#REF!"}},3,"Hotzi Judit\nDE - GYTK","Fluortartalmú morfolinó nukleozidok szintézise mono-, di- és trifluoretil-amin alkalmazásával",{"$nulls":6},0]
["501.","Gyógyszerészi kémia",{"$f":"VLOOKUP(B322,#REF!,2,FALSE)","v":{"$error":"#REF!"}},4,"Mándoki András\nSE - GYTK","Oxindol-származékok 3-as helyzetű alkilezése áramlásos kémiai módszerekkel",{"$nulls":6},0]
["486.","Gyógyszerészi kémia",{"$f":"VLOOKUP(B323,#REF!,2,FALSE)","v":{"$error":"#REF!"}},5,"Novák Tibor Tamás\nSZTE - GYTK","Halofluorozás és rokon reakciók alkalmazása új, fluorozott, funkcionalizált, ciklusos vegyületek szintézisére",{"$nulls":6},{"$f":"SUM(G323:K323)-L323","v":0}]
["503.","Gyógyszerészi kémia",{"$f":"VLOOKUP(B324,#REF!,2,FALSE)","v":{"$error":"#REF!"}},6,"Soltész János Zsolt\nSZTE - GYTK","Antitumor hatású p-kinol spirolakton analógok előállítása és vizsgálata",{"$nulls":6},0]
["504.","Gyógyszerhatástan, klinikai gyógyszerészet",{"$f":"VLOOKUP(B325,#REF!,2,FALSE)","v":{"$error":"#REF!"}},1,"Gyurics Anett\nSZTE - GYTK","A bilasztin farmakokinetikai vizsgálata vemhes és nem vemhes patkányokon",{"$nulls":6},0]
["506.","Gyógyszerhatástan, klinikai gyógyszerészet",{"$f":"VLOOKUP(B326,#REF!,2,FALSE)","v":{"$error":"#REF!"}},2,"Pozsgai Kevin\nPTE - ÁOK","Gyógyszer- és egészségügyi termék hamisítással kapcsolatos egészségkárosodások azonosítási lehetőségei",{"$nulls":6},0]
["509.","Gyógyszerhatástan, klinikai gyógyszerészet",{"$f":"VLOOKUP(B327,#REF!,2,FALSE)","v":{"$error":"#REF!"}},3,"Szekeres Réka Mária\nDE - GYTK","A Prunus cerasus extraktum-kezelés javítja a kardiális funkciót hiperkoleszterinémiás nyúl modellen",{"$nulls":6},0]
["492.","Gyógyszerhatástan, klinikai gyógyszerészet",{"$f":"VLOOKUP(B328,#REF!,2,FALSE)","v":{"$error":"#REF!"}},4,"Várnai Bianka\nSE - GYTK","Molekuláris kölcsönhatások jellemzése fondaparinux–ciklodextrin rendszerekben",{"$nulls":6},0]
["201.","Gyógyszerhatástan, klinikai gyógyszerészet",{"$f":"VLOOKUP(B329,#REF!,2,FALSE)","v":{"$error":"#REF!"}},5,"Vigh Dóra\nSZTE - GYTK","Akut stresszhatás jellemzése emésztőszervi és kardiális elektromiográfiával éber patkányban",{"$nulls":6},0]
["490.","Gyógyszerhatástan, klinikai gyógyszerészet",{"$f":"VLOOKUP(B330,#REF!,2,FALSE)","v":{"$error":"#REF!"}},6,"Vörös Annamária\nPTE - ÁOK","Lidokain analóg antiproliferatív C5-kurkuminoidok szintézise és farmakológiai vizsgálata",{"$nulls":6},0]
["517.","Gyógyszertechnológia",{"$f":"VLOOKUP(B331,#REF!,2,FALSE)","v":{"$error":"#REF!"}},1,"Gál Bernadett\nDE - GYTK","Lactobacillus plantarum tartalmú mikrokapszulák előállítása és pH-érzékenységének vizsgálata",{"$nulls":6},0]
["513.","Gyógyszertechnológia",{"$f":"VLOOKUP(B332,#REF!,2,FALSE)","v":{"$error":"#REF!"}},2,"Kósa Nóra\nETDK - OGYK","Aceklofenáktartalmú nanoszálalapú szájban diszpergálódó lapkák formulálása és vizsgálata",{"$nulls":6},0]
["518.","Gyógyszertechnológia",{"$f":"VLOOKUP(B333,#REF!,2,FALSE)","v":{"$error":"#REF!"}},3,"Páll Jázmin\nDE - GYTK","Növényi hatóanyagot tartalmazó innovatív gyógyszerhordozó rendszer formulálása és vizsgálatai",{"$nulls":6},0]
["514.","Gyógyszertechnológia",{"$f":"VLOOKUP(B334,#REF!,2,FALSE)","v":{"$error":"#REF!"}},4,"Party Petra\nSZTE - GYTK","Nano porlasztva-szárítás alkalmazása porinhalációs rendszerek előállítása céljából",{"$nulls":6},0]
["516.","Gyógyszertechnológia",{"$f":"VLOOKUP(B335,#REF!,2,FALSE)","v":{"$error":"#REF!"}},5,"Péterfi Orsolya\nETDK - OGYK","Mikonazoltartalmú gombaellenes szappanok előállítása és vizsgálata",{"$nulls":6},0]
["520.","Gyógyszertechnológia",{"$f":"VLOOKUP(B336,#REF!,2,FALSE)","v":{"$error":"#REF!"}},6,"Varga Patrícia\nSZTE - GYTK","Kapszula típusok befolyása antibiotikum tartalmú hordozómentes porinhalációs formuláció stabilitására",{"$nulls":6},0]
["317.","Konzervatív orvostudományok - Endokrinológia, nefrológia, gasztroenterológia 1.",{"$f":"VLOOKUP(B337,#REF!,2,FALSE)","v":{"$error":"#REF!"}},1,"Amna Yousaf Hashimi\nDE - ÁOK","Role of donor specific antibody and proteinuria in kidney transplantation and allograft outcomes",{"$nulls":6},0]
["316.","Konzervatív orvostudományok - Endokrinológia, nefrológia, gasztroenterológia 1.",{"$f":"VLOOKUP(B338,#REF!,2,FALSE)","v":{"$error":"#REF!"}},2,"Bacsárdi Anna\nSE","Nyelőcsővisszér kockázatbecslése nem-invazív módszerekkel krónikus májbetegségben szenvedőknél",{"$nulls":6},0]
["324.","Konzervatív orvostudományok - Endokrinológia, nefrológia, gasztroenterológia 1.",{"$f":"VLOOKUP(B339,#REF!,2,FALSE)","v":{"$error":"#REF!"}},3,"Kató Dorottya, Lillik Veronika\nPTE - ÁOK","A krónikus pancreatitis korai fázisának vizsgálata: a GOULASH-PLUS vizsgálatban résztvevő első 133 beteg 2 éves követésének eredményei",{"$nulls":6},0]
["319.","Konzervatív orvostudományok - Endokrinológia, nefrológia, gasztroenterológia 1.",{"$f":"VLOOKUP(B340,#REF!,2,FALSE)","v":{"$error":"#REF!"}},4,"Kiss Szonja Bianka\nSE","Fejlett genetikai diagnosztika alkalmazása veleszületett mellékvese hiperpláziában",{"$nulls":6},0]
["328.","Konzervatív orvostudományok - Endokrinológia, nefrológia, gasztroenterológia 1.",{"$f":"VLOOKUP(B341,#REF!,2,FALSE)","v":{"$error":"#REF!"}},5,"Matyók Kristóf\nPTE - ÁOK","Az immunoglobulin-A hiány prevalenciájának vizsgálata coeliakiás betegekben metaanalízis segítségével",{"$nulls":6},0]
["318.","Konzervatív orvostudományok - Endokrinológia, nefrológia, gasztroenterológia 1.",{"$f":"VLOOKUP(B342,#REF!,2,FALSE)","v":{"$error":"#REF!"}},6,"Vilmos Fruzsina\nDE - ÁOK","Az ustekinumab terápia hatékonyságának vizsgálata a DE KK Belgyógyászati Klinikán",{"$nulls":6},0]
["331.","Konzervatív orvostudományok - Endokrinológia, nefrológia, gasztroenterológia 2.",{"$f":"VLOOKUP(B343,#REF!,2,FALSE)","v":{"$error":"#REF!"}},1,"Antics Dorottya\nSE - ÁOK","Új non-invazív markerek az alacsony dózisú RAAS gátlók protektív hatásának követésére diabéteszes vesebetegségben",{"$nulls":6},0]
["323.","Konzervatív orvostudományok - Endokrinológia, nefrológia, gasztroenterológia 2.",{"$f":"VLOOKUP(B344,#REF!,2,FALSE)","v":{"$error":"#REF!"}},2,"Boldogh Diána Tímea\nDE - ÁOK","Kisdózisú anti-CD20 antitest kezelés hatásosságának vizsgálata súlyos, terápia refrakter endokrin orbitopathiában",{"$nulls":6},0]
["329.","Konzervatív orvostudományok - Endokrinológia, nefrológia, gasztroenterológia 2.",{"$f":"VLOOKUP(B345,#REF!,2,FALSE)","v":{"$error":"#REF!"}},3,"Kozma Alexandra\nPTE - ÁOK","A cisztás fibrózishoz társuló diabétesz diagnosztikai módszereinek összehasonlítása hálózati-metaanalízis segítségével",{"$nulls":6},0]
["320.","Konzervatív orvostudományok - Endokrinológia, nefrológia, gasztroenterológia 2.",{"$f":"VLOOKUP(B346,#REF!,2,FALSE)","v":{"$error":"#REF!"}},4,"Kurucz Petra Anna\nSE","Hypogonadotróp hypogonadizmus hátterében álló génpanel vizsgálata újgenerációs szekvenálás segítségével",{"$nulls":6},0]
["330.","Konzervatív orvostudományok - Endokrinológia, nefrológia, gasztroenterológia 2.",{"$f":"VLOOKUP(B347,#REF!,2,FALSE)","v":{"$error":"#REF!"}},5,"Lengyel Balázs\nSZTE - ÁOK","Are there any beneficial effects of metformin therapy in neuroendocrine tumors treated with somatostatin analogues?",{"$nulls":6},0]
["326.","Konzervatív orvostudományok - Endokrinológia, nefrológia, gasztroenterológia 2.",{"$f":"VLOOKUP(B348,#REF!,2,FALSE)","v":{"$error":"#REF!"}},6,"Lillik Veronika\nPTE - ÁOK","A sejtmentes DNS prognosztikai szerepe hasnyálmirigy adenokarcinómában – metaanalízis",{"$nulls":6},0]
["321.","Konzervatív orvostudományok - Endokrinológia, nefrológia, gasztroenterológia 2.",{"$f":"VLOOKUP(B349,#REF!,2,FALSE)","v":{"$error":"#REF!"}},7,"Reho Alexandra\nKTDK","A Bifidobacterium infantis 35624 alkalmazásának hatékonysága a depresszió tüneteinek csökkentésére a nem alkoholos zsírmájban és a 2. típusú cukorbetegségben szenvedő betegeknél",{"$nulls":6},0]
["333.","Konzervatív orvostudományok - Endokrinológia, nefrológia, gasztroenterológia 3.",{"$f":"VLOOKUP(B350,#REF!,2,FALSE)","v":{"$error":"#REF!"}},1,"Bacsur Péter\nSZTE - ÁOK","Anti-TNF-a kezelésben részesülő gyulladásos bélbetegek szérum, szöveti és széklet mintáiból történő gyógyszerszint monitorozással szerzett tapasztalataink",{"$nulls":6},0]
["325.","Konzervatív orvostudományok - Endokrinológia, nefrológia, gasztroenterológia 3.",{"$f":"VLOOKUP(B351,#REF!,2,FALSE)","v":{"$error":"#REF!"}},2,"Csige Dóra\nDE - ÁOK","A transzglutamináz 2 konformációs epitópjának vizsgálata a monoklonális 885 antitesttel",{"$nulls":6},0]
["322.","Konzervatív orvostudományok - Endokrinológia, nefrológia, gasztroenterológia 3.",{"$f":"VLOOKUP(B352,#REF!,2,FALSE)","v":{"$error":"#REF!"}},3,"Dobai Bernadett-Miriam\nETDK - OGYK","A gyermek- és felnőttkori akut pancreatitis diagnosztikus gyakorlatának követése",{"$nulls":6},0]
["332.","Konzervatív orvostudományok - Endokrinológia, nefrológia, gasztroenterológia 3.",{"$f":"VLOOKUP(B353,#REF!,2,FALSE)","v":{"$error":"#REF!"}},4,"Hahn Viktória, Kardos Anna Sára\nSE - ÁOK","A cukorbetegség és a vulnerábilis coronaria plakk jellemzők összefüggése és prognosztikai értéke",{"$nulls":6},0]
["335.","Konzervatív orvostudományok - Endokrinológia, nefrológia, gasztroenterológia 3.",{"$f":"VLOOKUP(B354,#REF!,2,FALSE)","v":{"$error":"#REF!"}},5,"Kötő Viktória\nPTE - ÁOK","A Crohn-betegség posztoperatív rekurranciája",{"$nulls":6},0]
["334.","Konzervatív orvostudományok - Endokrinológia, nefrológia, gasztroenterológia 3.",{"$f":"VLOOKUP(B355,#REF!,2,FALSE)","v":{"$error":"#REF!"}},6,"Ungvári-Veres Anita\nSE","Podocin: A glomeruláris résmembrán távtartója",{"$nulls":6},0]
["327.","Konzervatív orvostudományok - Endokrinológia, nefrológia, gasztroenterológia 3.",{"$f":"VLOOKUP(B356,#REF!,2,FALSE)","v":{"$error":"#REF!"}},7,"Vicena Viktória\nPTE - ÁOK","A PACAP és PAC1 receptor expresszió vizsgálata a hasnyálmirigy különböző szövettani mintáiban",{"$nulls":6},0]
["342.","Konzervatív orvostudományok - Gyermekgyógyászat, infektológia, pulmonológia 1.",{"$f":"VLOOKUP(B357,#REF!,2,FALSE)","v":{"$error":"#REF!"}},1,"Balogh Dóra Csenge\nSE","Predikciós pontrendszer létrehozása hypoxiás-ischaemiás encephalopathiás újszülöttekben",{"$nulls":6},0]
["341.","Konzervatív orvostudományok - Gyermekgyógyászat, infektológia, pulmonológia 1.",{"$f":"VLOOKUP(B358,#REF!,2,FALSE)","v":{"$error":"#REF!"}},2,"Burghardt Zsófia\nDE - ÁOK","A rectalis törlés során észlelt bakteriális kolonizáció szerepe a késői újszülöttkori infekciók előrejelzésében koraszülött intenzív osztályon",{"$nulls":6},0]
["336.","Konzervatív orvostudományok - Gyermekgyógyászat, infektológia, pulmonológia 1.",{"$f":"VLOOKUP(B359,#REF!,2,FALSE)","v":{"$error":"#REF!"}},3,"Kajlik Réka\nSZTE - ÁOK","Antibiotikum használat újszülöttkori korai szepszis prevenciójában",{"$nulls":6},0]
["338.","Konzervatív orvostudományok - Gyermekgyógyászat, infektológia, pulmonológia 1.",{"$f":"VLOOKUP(B360,#REF!,2,FALSE)","v":{"$error":"#REF!"}},4,"Nagy Alexandra, Palmer Erik\nSE","Intersitialis pneumonia autoimmun jellemzőkkel (IPAF) betegek klinikai jellemzői és terápiás lehetőségek",{"$nulls":6},0]
["337.","Konzervatív orvostudományok - Gyermekgyógyászat, infektológia, pulmonológia 1.",{"$f":"VLOOKUP(B361,#REF!,2,FALSE)","v":{"$error":"#REF!"}},5,"Vatamány-Einbeck Adrienn, Nyírő Ágota\nSE - ÁOK","A COVID-19 járvány első hullámának hatása az 1-es típusú diabétesszel élő gyermekek anyagcsereegyensúlyára",{"$nulls":6},0]
["339.","Konzervatív orvostudományok - Gyermekgyógyászat, infektológia, pulmonológia 1.",{"$f":"VLOOKUP(B362,#REF!,2,FALSE)","v":{"$error":"#REF!"}},6,"Somodi Borbála\nSE","Gyermekkori palpitációs panaszok katéterablációs kezelésének eredményei kiváltható tahikardia hiányában",{"$nulls":6},0]
["345.","Konzervatív orvostudományok - Gyermekgyógyászat, infektológia, pulmonológia 2.",{"$f":"VLOOKUP(B363,#REF!,2,FALSE)","v":{"$error":"#REF!"}},1,"Ágoston Blanka\nSE - ÁOK","Perioperatív NIRS-monitorizálás adatainak vizsgálata újszülöttkori nyelőcső műtétek során",{"$nulls":6},0]
["349.","Konzervatív orvostudományok - Gyermekgyógyászat, infektológia, pulmonológia 2.",{"$f":"VLOOKUP(B364,#REF!,2,FALSE)","v":{"$error":"#REF!"}},2,"Ilyés Norbert, Csiki Ferenc-Attila, Bíró Júlia\nETDK - OGYK","12-14 éves sportolók légzésfunkció-értékeinek elemzése a referenciaértékek, az antropometriai paraméterek és a sportspecificitás tükrében","Nem jelent meg"]
["348.","Konzervatív orvostudományok - Gyermekgyógyászat, infektológia, pulmonológia 2.",{"$f":"VLOOKUP(B365,#REF!,2,FALSE)","v":{"$error":"#REF!"}},3,"Boros Adrienn\nDE - ÁOK","Nozokomiális kolonizációk és fertőzések megoszlása egy belgyógyászati jellegű intenzív osztályon – egy év bakteriológiai tenyésztési adatainak retrospektív elemzése",{"$nulls":6},0]
["459.","Konzervatív orvostudományok - Gyermekgyógyászat, infektológia, pulmonológia 2.",{"$f":"VLOOKUP(B366,#REF!,2,FALSE)","v":{"$error":"#REF!"}},4,"Molnár Andrea, Kiss Liliána\nSZTE - ÁOK","Az intrapulmonális sönt emelkedése elhízott betegekben: romló oxigén igény-kínálat",{"$nulls":6},0]
["344.","Konzervatív orvostudományok - Gyermekgyógyászat, infektológia, pulmonológia 2.",{"$f":"VLOOKUP(B367,#REF!,2,FALSE)","v":{"$error":"#REF!"}},5,"Klaus Laura\nSE - ÁOK","Retinoblasztóma modern kezelési lehetőségeinek eredményei Magyarországon",{"$nulls":6},0]
["343.","Konzervatív orvostudományok - Gyermekgyógyászat, infektológia, pulmonológia 2.",{"$f":"VLOOKUP(B368,#REF!,2,FALSE)","v":{"$error":"#REF!"}},6,"Petrik Borisz Rabán, Laky Boglárka\nSE","Fiatal és középkorú felnőtt betegek Clostridiodes difficile infekciójának epidemiológiai és klinikai karakterisztikája",{"$nulls":6},0]
["346.","Konzervatív orvostudományok - Gyermekgyógyászat, infektológia, pulmonológia 2.",{"$f":"VLOOKUP(B369,#REF!,2,FALSE)","v":{"$error":"#REF!"}},7,"Tarek Gabriella Laila\nDE - ÁOK","Újszülöttkori bélelégtelenséghez társuló májbetegség (IFALD) rizikófaktorainak vizsgálata",{"$nulls":6},0]
["351.","Konzervatív orvostudományok - Gyermekgyógyászat, infektológia, pulmonológia 3.",{"$f":"VLOOKUP(B370,#REF!,2,FALSE)","v":{"$error":"#REF!"}},1,"Cseszneki Borbála\nSE - ÁOK","Gyulladásos markerek és korai újszülöttkori sepsis hypoxiás-ischaemiás encephalopathiával kezelt újszülöttekben",{"$nulls":6},0]
["347.","Konzervatív orvostudományok - Gyermekgyógyászat, infektológia, pulmonológia 3.",{"$f":"VLOOKUP(B371,#REF!,2,FALSE)","v":{"$error":"#REF!"}},2,"Erdős  Sándor\nSE","Virtuális valóság hatása pszichológiai és fiziológiai változókra kemoterápiában részesülő gyermekeknél",{"$nulls":6},0]
["525.","Konzervatív orvostudományok - Gyermekgyógyászat, infektológia, pulmonológia 3.",{"$f":"VLOOKUP(B372,#REF!,2,FALSE)","v":{"$error":"#REF!"}},3,"Forgács Robin\nSZTE - ÁOK","Légzésmechanikai paraméterek vizsgálata byssinonisban szenvedő betegeknél, szívműtét során.",{"$nulls":6},0]
["412.","Konzervatív orvostudományok - Gyermekgyógyászat, infektológia, pulmonológia 3.",{"$f":"VLOOKUP(B373,#REF!,2,FALSE)","v":{"$error":"#REF!"}},4,"Kremzner Noémi\nPTE - ÁOK","Szisztémás sclerosishoz társuló tüdőfibrosis biomarkerekkel való összefüggései",{"$nulls":6},0]
["393.","Konzervatív orvostudományok - Gyermekgyógyászat, infektológia, pulmonológia 3.",{"$f":"VLOOKUP(B374,#REF!,2,FALSE)","v":{"$error":"#REF!"}},5,"Peace Nkemdirim Ada Eze\nDE - ÁOK","Analysis of patient data from the Debrecen branch of the HUNCHEST II national trial.",{"$nulls":6},0]
["354.","Konzervatív orvostudományok - Gyermekgyógyászat, infektológia, pulmonológia 3.",{"$f":"VLOOKUP(B375,#REF!,2,FALSE)","v":{"$error":"#REF!"}},6,"Varga Viktória\nSE","Cytomegalovirus profilaxis és kezelés tüdőtranszplantált betegekben",{"$nulls":6},0]
["367.","Konzervatív orvostudományok - Kardiovaszkuláris medicina (kardiológia, szívsebészet) 1.",{"$f":"VLOOKUP(B376,#REF!,2,FALSE)","v":{"$error":"#REF!"}},1,"Dömötör Marcell\nSZTE - ÁOK","Teleauszkultációs módszerek a szívbillentyűbetegségek vizsgálatában",{"$nulls":6},0]
["355.","Konzervatív orvostudományok - Kardiovaszkuláris medicina (kardiológia, szívsebészet) 1.",{"$f":"VLOOKUP(B377,#REF!,2,FALSE)","v":{"$error":"#REF!"}},2,"Dr. Fábián Alexandra\nSE","A miokardiális mechanika és a sporttevékenység összefüggése élsportolókban:  a csúcs oxigénfelvétel predikciója gépi tanulás segítségével",{"$nulls":6},0]
["360.","Konzervatív orvostudományok - Kardiovaszkuláris medicina (kardiológia, szívsebészet) 1.",{"$f":"VLOOKUP(B378,#REF!,2,FALSE)","v":{"$error":"#REF!"}},3,"Furák Ádám\nSE","Jobb kamrai non-compactatio: mítosz vagy valóság?",{"$nulls":6},0]
["308.","Konzervatív orvostudományok - Kardiovaszkuláris medicina (kardiológia, szívsebészet) 1.",{"$f":"VLOOKUP(B379,#REF!,2,FALSE)","v":{"$error":"#REF!"}},4,"Mátyás Botond - Barna, Szőke Hunor, Katona Orsolya-Brigitta\nETDK - OGYK","A plakk körüli zsírszövet hatásának vizsgálata a koszorúérplakkok vulnerabilitására – összehasonlító vizsgálat",{"$nulls":6},0]
["376.","Konzervatív orvostudományok - Kardiovaszkuláris medicina (kardiológia, szívsebészet) 1.",{"$f":"VLOOKUP(B380,#REF!,2,FALSE)","v":{"$error":"#REF!"}},5,"Kothalawala Edward Saman\nDE - ÁOK","Szakubitril/valzartán alkalmazása a szisztolés szívelégtelenségben (HFrEF) - az első két év klinikai tapasztalatai",{"$nulls":6},0]
["358.","Konzervatív orvostudományok - Kardiovaszkuláris medicina (kardiológia, szívsebészet) 1.",{"$f":"VLOOKUP(B381,#REF!,2,FALSE)","v":{"$error":"#REF!"}},6,"Száraz Lili, Liljedahl Eltér Julia Helena Christina\nSE","A pitvarfibrilláció és a stroke/TIA prediktorainak meghatározása szív CT angiográfia segítségével",{"$nulls":6},0]
["389.","Konzervatív orvostudományok - Kardiovaszkuláris medicina (kardiológia, szívsebészet) 2.",{"$f":"VLOOKUP(B382,#REF!,2,FALSE)","v":{"$error":"#REF!"}},1,"Éreth Zsófia\nPTE - ÁOK","In-stent resztenózis kialakulása és kezelése vénás koronária bypass graftokban",{"$nulls":6},0]
["357.","Konzervatív orvostudományok - Kardiovaszkuláris medicina (kardiológia, szívsebészet) 2.",{"$f":"VLOOKUP(B383,#REF!,2,FALSE)","v":{"$error":"#REF!"}},2,"Farsang Vivien, Kis Dorottya\nSE","A circumferentialis strain szerepe a hypertrabecularisatioval járó cardiomyopathiák differenciál diagnosztikájában",{"$nulls":6},0]
["363.","Konzervatív orvostudományok - Kardiovaszkuláris medicina (kardiológia, szívsebészet) 2.",{"$f":"VLOOKUP(B384,#REF!,2,FALSE)","v":{"$error":"#REF!"}},3,"Grebur Kinga\nSE","Az EKG és az MR összefüggéseinek vizsgálata jó bal kamra funkciójú noncompact cardiomyopathiás betegeken",{"$nulls":6},0]
["364.","Konzervatív orvostudományok - Kardiovaszkuláris medicina (kardiológia, szívsebészet) 2.",{"$f":"VLOOKUP(B385,#REF!,2,FALSE)","v":{"$error":"#REF!"}},4,"Nagy Dávid, Karima Christian\nSE","A miofilamentumok Ca2+ érzékenysége korrelál a bal kamrai kontraktilitással a fokozott nyomásterhelés-indukálta patológiás szívizomhipertrófia kialakulása és progressziója során",{"$nulls":6},0]
["377.","Konzervatív orvostudományok - Kardiovaszkuláris medicina (kardiológia, szívsebészet) 2.",{"$f":"VLOOKUP(B386,#REF!,2,FALSE)","v":{"$error":"#REF!"}},5,"Oleynik Maria\nDE - ÁOK","Variability of NOAC dose adjustment in patients with renal dysfunction and non-valvular atrial fibrillation.",{"$nulls":6},0]
["361.","Konzervatív orvostudományok - Kardiovaszkuláris medicina (kardiológia, szívsebészet) 2.",{"$f":"VLOOKUP(B387,#REF!,2,FALSE)","v":{"$error":"#REF!"}},6,"Pintér Anita\nSE","Az anaemia, mint legerősebb független mortalitási prediktor a megtartott ejekciós frakcióval rendelkezõ szívelégtelen betegekben",{"$nulls":6},{"$f":"SUM(G387:K387)-L387","v":0}]
["380.","Konzervatív orvostudományok - Kardiovaszkuláris medicina (kardiológia, szívsebészet) 3.",{"$f":"VLOOKUP(B388,#REF!,2,FALSE)","v":{"$error":"#REF!"}},1,"Ágoston Dóra Erzsébet, Sipos Bence\nSE - ÁOK","Cardivascularis kórképek predikciója polysomnographiás adatok gépi tanulással történő elemzésével",{"$nulls":6},0]
["433.","Konzervatív orvostudományok - Kardiovaszkuláris medicina (kardiológia, szívsebészet) 3.",{"$f":"VLOOKUP(B389,#REF!,2,FALSE)","v":{"$error":"#REF!"}},2,"Pál Hanga, Csányi Borbála\nSE - ÁOK","Szignifikáns carotis stenosisban szenvedő betegek funkcionális transcranialis Doppler vizsgálatainak összehasonlító elemzése",{"$nulls":6},0]
["392.","Konzervatív orvostudományok - Kardiovaszkuláris medicina (kardiológia, szívsebészet) 3.",{"$f":"VLOOKUP(B390,#REF!,2,FALSE)","v":{"$error":"#REF!"}},3,"Debreceni Dorottya\nPTE - ÁOK","Konvencionálisan végzett, valamint zero-fluoroszkópos katéterablációk összehasonlítása PSVT-k esetén: single-center vizsgálat",{"$nulls":6},0]
["362.","Konzervatív orvostudományok - Kardiovaszkuláris medicina (kardiológia, szívsebészet) 3.",{"$f":"VLOOKUP(B391,#REF!,2,FALSE)","v":{"$error":"#REF!"}},4,"Dr. Barta Bálint András, Virág-Tulassay Eszter\nSE","A bal kamrai miokardium SGLT1 expressziójának vizsgálata szívelégtelen betegekben",{"$nulls":6},0]
["382.","Konzervatív orvostudományok - Kardiovaszkuláris medicina (kardiológia, szívsebészet) 3.",{"$f":"VLOOKUP(B392,#REF!,2,FALSE)","v":{"$error":"#REF!"}},5,"Virág-Tulassay Eszter, Ladányi Zsuzsanna\nSE - ÁOK","A sportszív funkcionális jellemzésének új bajnoka: a miokardiális munka index",{"$nulls":6},0]
["388.","Konzervatív orvostudományok - Kardiovaszkuláris medicina (kardiológia, szívsebészet) 3.",{"$f":"VLOOKUP(B393,#REF!,2,FALSE)","v":{"$error":"#REF!"}},6,"Simon Tamás\nSZTE - ÁOK","Chloroquin cardiomyopathiás betegek kliniko-morfológiai jellemzői",{"$nulls":6},0]
["384.","Konzervatív orvostudományok - Kardiovaszkuláris medicina (kardiológia, szívsebészet) 3.",{"$f":"VLOOKUP(B394,#REF!,2,FALSE)","v":{"$error":"#REF!"}},7,"Tolnai Fanni\nDE - ÁOK","Az epicardialis koszorúérmozgás háromdimenziós analízise Takotsubo-cardiomyopathiában",{"$nulls":6},0]
["385.","Konzervatív orvostudományok - Kardiovaszkuláris medicina (kardiológia, szívsebészet) 4.",{"$f":"VLOOKUP(B395,#REF!,2,FALSE)","v":{"$error":"#REF!"}},1,"Azzaya Dorj\nDE - ÁOK","Relations of the ‘Flow separation index’ to established physiological indexes  in coronary artery disease",{"$nulls":6},0]
["371.","Konzervatív orvostudományok - Kardiovaszkuláris medicina (kardiológia, szívsebészet) 4.",{"$f":"VLOOKUP(B396,#REF!,2,FALSE)","v":{"$error":"#REF!"}},2,"Czunyi Edina\nSE - ÁOK","Perkután balpitvari fülcsezárás - tíz év tapasztalatai",{"$nulls":6},0]
["375.","Konzervatív orvostudományok - Kardiovaszkuláris medicina (kardiológia, szívsebészet) 4.",{"$f":"VLOOKUP(B397,#REF!,2,FALSE)","v":{"$error":"#REF!"}},3,"Csikós Bálint\nSE - ÁOK","Minimál invazív szívsebészet: Izolált aortabillentyű műtétek spektrumának vizsgálata",{"$nulls":6},0]
["387.","Konzervatív orvostudományok - Kardiovaszkuláris medicina (kardiológia, szívsebészet) 4.",{"$f":"VLOOKUP(B398,#REF!,2,FALSE)","v":{"$error":"#REF!"}},4,"Kádár Gergő Péter\nDE - ÁOK","Levosimendan kezelés hatásainak vizsgálata előrehaladott stádiumú szisztolés szívelégtelenségben (HFrEF) szenvedő betegekben",{"$nulls":6},0]
["373.","Konzervatív orvostudományok - Kardiovaszkuláris medicina (kardiológia, szívsebészet) 4.",{"$f":"VLOOKUP(B399,#REF!,2,FALSE)","v":{"$error":"#REF!"}},5,"Kássa Krisztián István\nSE - ÁOK","Magas energiájú, rövid időtartamú rádiófrekvenciás abláció a pitvarfibrilláció kezelésében",{"$nulls":6},0]
["391.","Konzervatív orvostudományok - Kardiovaszkuláris medicina (kardiológia, szívsebészet) 4.",{"$f":"VLOOKUP(B400,#REF!,2,FALSE)","v":{"$error":"#REF!"}},6,"Lukács Réka Alíz\nPTE - ÁOK","Természetes clusterek azonosítása és túlélésvizsgálata myokardiális infarktuson átesett idős betegek esetén",{"$nulls":6},0]
["366.","Konzervatív orvostudományok - Kardiovaszkuláris medicina (kardiológia, szívsebészet) 5.",{"$f":"VLOOKUP(B401,#REF!,2,FALSE)","v":{"$error":"#REF!"}},1,"Csikor Virág\nSE","Supraventricularis tachycardiák zero-fluoroszkópiás katéter ablációja elektroanatómiai térképező rendszerek használatával",{"$nulls":6},0]
["390.","Konzervatív orvostudományok - Kardiovaszkuláris medicina (kardiológia, szívsebészet) 5.",{"$f":"VLOOKUP(B402,#REF!,2,FALSE)","v":{"$error":"#REF!"}},2,"Kósa Dániel\nPTE - ÁOK","Új, non-invazív véráramlási vizsgálómódszerek a koszorúér-betegség progressziójának predikciójában",{"$nulls":6},0]
["365.","Konzervatív orvostudományok - Kardiovaszkuláris medicina (kardiológia, szívsebészet) 5.",{"$f":"VLOOKUP(B403,#REF!,2,FALSE)","v":{"$error":"#REF!"}},3,"Kulcsár Flóra Zsófia\nSE","Machine Learning-alapú, nemek szerinti mortalitás-predikció a Kardiális Reszinkronizációs Terápián átesett betegekben",{"$nulls":6},0]
["370.","Konzervatív orvostudományok - Kardiovaszkuláris medicina (kardiológia, szívsebészet) 5.",{"$f":"VLOOKUP(B404,#REF!,2,FALSE)","v":{"$error":"#REF!"}},4,"Ladányi Zsuzsanna\nSE - ÁOK","Volumenterhelés által indukált bal kamrai miokardiális diszfunkció vizsgálata nyomás-strain-térfogat analízis segítségével",{"$nulls":6},0]
["386.","Konzervatív orvostudományok - Kardiovaszkuláris medicina (kardiológia, szívsebészet) 5.",{"$f":"VLOOKUP(B405,#REF!,2,FALSE)","v":{"$error":"#REF!"}},5,"Simon Ádám Antal\nDE - ÁOK","Akut szívelégtelenségben szenvedő betegek vizsgálata: a klinikai megjelenési forma szerepe",{"$nulls":6},0]
["383.","Konzervatív orvostudományok - Kardiovaszkuláris medicina (kardiológia, szívsebészet) 5.",{"$f":"VLOOKUP(B406,#REF!,2,FALSE)","v":{"$error":"#REF!"}},6,"Tóth Anna Zsófia\nDE - ÁOK","Jobb kamra longitudinális funkciójának a jelentősége a kardiális reszinkronizációs terápiára nonresponder betegek esetében",{"$nulls":6},0]
["372.","Konzervatív orvostudományok - Képalkotó diagnosztika 1.",{"$f":"VLOOKUP(B407,#REF!,2,FALSE)","v":{"$error":"#REF!"}},1,"Balla Dorottya, Fogarasi Csenge Emese\nSE - ÁOK","Szív mágneses rezonanciás vizsgálat alapú strain analízis szerepe a sportadaptáció vizsgálatában",{"$nulls":6},0]
["381.","Konzervatív orvostudományok - Képalkotó diagnosztika 1.",{"$f":"VLOOKUP(B408,#REF!,2,FALSE)","v":{"$error":"#REF!"}},2,"Benbabaali Abdessalem, Száraz Lili\nSE - ÁOK","Kalcium score alapú döntéstámogatás a koronária CT angiográfia elvégzését illetően",{"$nulls":6},0]
["505.","Konzervatív orvostudományok - Képalkotó diagnosztika 1.",{"$f":"VLOOKUP(B409,#REF!,2,FALSE)","v":{"$error":"#REF!"}},3,"Köllő Zoltán, Dho Nagy Eszter Anna, Cori Francesco\nETDK - OGYK","A nintedanib radiológiailag kimutatható tüdőre gyakorolt hatásai",{"$nulls":6},0]
["403.","Konzervatív orvostudományok - Képalkotó diagnosztika 1.",{"$f":"VLOOKUP(B410,#REF!,2,FALSE)","v":{"$error":"#REF!"}},4,"Dunai Ludovika Zsófia\nSE - ÁOK","MR score-rendszerek a neonatális hypoxiás-ischaemias encephalopathia prognosztikájában",{"$nulls":6},0]
["397.","Konzervatív orvostudományok - Képalkotó diagnosztika 1.",{"$f":"VLOOKUP(B411,#REF!,2,FALSE)","v":{"$error":"#REF!"}},5,"Garda Jennifer Luca\nSZTE - ÁOK","A diffúziósúlyozott MR által detektált fehérállományi mikrostruktúrális károsodás prediktív értéke sclerosis multiplexben",{"$nulls":6},0]
["395.","Konzervatív orvostudományok - Képalkotó diagnosztika 1.",{"$f":"VLOOKUP(B412,#REF!,2,FALSE)","v":{"$error":"#REF!"}},6,"Máthé Nóra Beatrix\nDE - ÁOK","Az MR képfeldolgozás hatása a textúra analízis kvantitatív eredményére",{"$nulls":6},0]
["404.","Konzervatív orvostudományok - Képalkotó diagnosztika 1.",{"$f":"VLOOKUP(B413,#REF!,2,FALSE)","v":{"$error":"#REF!"}},7,"Stollmayer Róbert\nSE - ÁOK","2D és 3D dense neurális hálók klasszifikációs pontosságának vizsgálata fokális májléziók multiszekvenciális MRI felvételeinek felhasználásával",{"$nulls":6},0]
["398.","Konzervatív orvostudományok - Képalkotó diagnosztika 2.",{"$f":"VLOOKUP(B414,#REF!,2,FALSE)","v":{"$error":"#REF!"}},1,"Dr. Hári Zsófia\nPTE - ÁOK","Pajzsmirigygöbök mesterséges intelligenciával történő értékelésének buktatói a klinikai ultrahang diagnosztikában",{"$nulls":6},0]
["356.","Konzervatív orvostudományok - Képalkotó diagnosztika 2.",{"$f":"VLOOKUP(B415,#REF!,2,FALSE)","v":{"$error":"#REF!"}},2,"Fábián Bálint\nSE","A ramus circumflexus anulus fibrosus sinisterhez való viszonyának háromdimenziós megjelenítése",{"$nulls":6},0]
["540.","Konzervatív orvostudományok - Képalkotó diagnosztika 2.",{"$f":"VLOOKUP(B416,#REF!,2,FALSE)","v":{"$error":"#REF!"}},3,"Hajnal Benjámin\nSE - ÁOK","Új módszer CT-alapú virtuális 3D lumbális gerinc modellek álló röntgen felvételhez illesztésére",{"$nulls":6},0]
["394.","Konzervatív orvostudományok - Képalkotó diagnosztika 2.",{"$f":"VLOOKUP(B417,#REF!,2,FALSE)","v":{"$error":"#REF!"}},4,"Jakab Fanni\nDE - ÁOK","A VUR korszerű képalkotó diagnosztikája gyermekkorban",{"$nulls":6},0]
["396.","Konzervatív orvostudományok - Képalkotó diagnosztika 2.",{"$f":"VLOOKUP(B418,#REF!,2,FALSE)","v":{"$error":"#REF!"}},5,"Kalmár Kamilla, Kis Barbara\nSZTE - ÁOK","Multiparametrikus ultrahangvizsgálat szerepe a férfi meddőségi kivizsgálás során – a nagyobb és rugalmasabb jobb!",{"$nulls":6},0]
["399.","Konzervatív orvostudományok - Képalkotó diagnosztika 2.",{"$f":"VLOOKUP(B419,#REF!,2,FALSE)","v":{"$error":"#REF!"}},6,"Vokó Boldizsár, Munkácsi Tamás\nSE - ÁOK","Ipsilateralis carotis műtét – contralateralis carotis stentelés: a hosszútávú eredmények vizsgálata",{"$nulls":6},0]
["378.","Konzervatív orvostudományok - Képalkotó diagnosztika 2.",{"$f":"VLOOKUP(B420,#REF!,2,FALSE)","v":{"$error":"#REF!"}},7,"Tóth Zsombor\nSE - ÁOK","Szív mágneses rezonancia képalkotás jelentősége és prognosztikai szerepe mitrális anulus diszjunkcióban",{"$nulls":6},0]
["401.","Konzervatív orvostudományok - Képalkotó diagnosztika 3.",{"$f":"VLOOKUP(B421,#REF!,2,FALSE)","v":{"$error":"#REF!"}},1,"Budai Bettina Katalin\nSE","A máj konvolúciós neurális hálozaton alapuló automatikus térfogat meghatározása összevetve manuális és egyéb félig automatikus szegmentálási technikákkal",{"$nulls":6},0]
["400.","Konzervatív orvostudományok - Képalkotó diagnosztika 3.",{"$f":"VLOOKUP(B422,#REF!,2,FALSE)","v":{"$error":"#REF!"}},2,"Hardi Roland\nDE - ÁOK","3D print alapú kisállat fantomok fejlesztése preklinikai képalkotáshoz",{"$nulls":6},0]
["402.","Konzervatív orvostudományok - Képalkotó diagnosztika 3.",{"$f":"VLOOKUP(B423,#REF!,2,FALSE)","v":{"$error":"#REF!"}},3,"Kovács Gergely Imre\nSE - ÁOK","A Digitális Variancia Angiográfia klinikai felhasználhatóságának vizsgálata csökkentett sugárdózisú alsó végtagi érfestések során",{"$nulls":6},0]
["406.","Konzervatív orvostudományok - Képalkotó diagnosztika 3.",{"$f":"VLOOKUP(B424,#REF!,2,FALSE)","v":{"$error":"#REF!"}},4,"Magyar Orsolya\nDE - ÁOK","Látens bal kamrai diszfunkció kimutatása megtartott bal kamra szisztolés funkcióval és szignifikáns aortabillentyű sztenózissal rendelkező betegekben",{"$nulls":6},0]
["405.","Konzervatív orvostudományok - Képalkotó diagnosztika 3.",{"$f":"VLOOKUP(B425,#REF!,2,FALSE)","v":{"$error":"#REF!"}},5,"Philippovich Márton\nSE","A femoralis plaque-karakterisztika jelentősége a carotis stentelés utáni restenosis kialakulásában",{"$nulls":6},0]
["432.","Konzervatív orvostudományok - Képalkotó diagnosztika 3.",{"$f":"VLOOKUP(B426,#REF!,2,FALSE)","v":{"$error":"#REF!"}},6,"Zsarnóczay Emese, Száraz Lili\nSE","A bal pitvari fülcse flow hatásának vizsgálata a stroke/TIA előfordulására valamint a pitvarfibrilláció rekurrenciára",{"$nulls":6},0]
["407.","Konzervatív orvostudományok - Képalkotó diagnosztika 3.",{"$f":"VLOOKUP(B427,#REF!,2,FALSE)","v":{"$error":"#REF!"}},7,"Vigh András István\nSZTE - ÁOK","A szürkeállományi aszimmetria, és téri figyelmi lateralizáció összefüggése sclerosis multiplexben",{"$nulls":6},0]
["411.","Konzervatív orvostudományok - Klinikai immunológia, reumatológia, bőrgyógyászat",{"$f":"VLOOKUP(B428,#REF!,2,FALSE)","v":{"$error":"#REF!"}},1,"Csiák-Osztotics Kitti\nPTE - ÁOK","Kézfunkció károsodás vizsgálata és összefüggések kutatása a szérumban jelenlévő specifikus biomarkerekkel szisztémás sclerosisos betegekben",{"$nulls":6},0]
["419.","Konzervatív orvostudományok - Klinikai immunológia, reumatológia, bőrgyógyászat",{"$f":"VLOOKUP(B429,#REF!,2,FALSE)","v":{"$error":"#REF!"}},2,"Kiss Franciska Ilona\nPTE - ÁOK","Fáradékonyság felmérése szisztémás sclerosisban szenvedő betegeknél",{"$nulls":6},0]
["408.","Konzervatív orvostudományok - Klinikai immunológia, reumatológia, bőrgyógyászat",{"$f":"VLOOKUP(B430,#REF!,2,FALSE)","v":{"$error":"#REF!"}},3,"Koreny Viktor Pál\nDE - ÁOK","Myositis alcsoportok vizsgálata az euroline immunoblottal detektált antitestek jelenléte alapján idiopathiás inflammatorikus myopathiás betegekben",{"$nulls":6},0]
["414.","Konzervatív orvostudományok - Klinikai immunológia, reumatológia, bőrgyógyászat",{"$f":"VLOOKUP(B431,#REF!,2,FALSE)","v":{"$error":"#REF!"}},4,"Kovács Réka\nPTE - ÁOK","Körömelváltozások vizsgálata digitális fényképek feldolgozásával",{"$nulls":6},0]
["417.","Konzervatív orvostudományok - Klinikai immunológia, reumatológia, bőrgyógyászat",{"$f":"VLOOKUP(B432,#REF!,2,FALSE)","v":{"$error":"#REF!"}},5,"Meznerics Fanni Adél\nSE - ÁOK","Teledermatológia széles körben való alkalmazása a COVID-19 járvány első hulláma során −  új lehetőség az onkodermatológiai prevencióban",{"$nulls":6},0]
["415.","Konzervatív orvostudományok - Klinikai immunológia, reumatológia, bőrgyógyászat",{"$f":"VLOOKUP(B433,#REF!,2,FALSE)","v":{"$error":"#REF!"}},6,"Nagy Laura\nDE - ÁOK","Tüdőérintettség jellemzése Sjögren-szindrómában",{"$nulls":6},0]
["416.","Konzervatív orvostudományok - Klinikai immunológia, reumatológia, bőrgyógyászat",{"$f":"VLOOKUP(B434,#REF!,2,FALSE)","v":{"$error":"#REF!"}},7,"Torner Bernadett\nDE - ÁOK","Antifoszfolipid antitestek és a β2-glikoprotein I különböző konformációi közötti interakció vizsgálata",{"$nulls":6},0]
["409.","Konzervatív orvostudományok - Klinikai immunológia, reumatológia, bőrgyógyászat",{"$f":"VLOOKUP(B435,#REF!,2,FALSE)","v":{"$error":"#REF!"}},8,"Varga Noémi Nóra\nSE - ÁOK","Melanoma malignum sebészi széleinek műtét előtti vizsgálata multispektrális LED-alapú eszköz használatával",{"$nulls":6},0]
["313.","Konzervatív orvostudományok - Laboratóriumi medicina, klinikai mikrobiológia",{"$f":"VLOOKUP(B436,#REF!,2,FALSE)","v":{"$error":"#REF!"}},1,"Berecki Bernadett\nETDK - OGYK","A 25-OH D vitaminszint jelentősége az ovulációban",{"$nulls":6},0]
["423.","Konzervatív orvostudományok - Laboratóriumi medicina, klinikai mikrobiológia",{"$f":"VLOOKUP(B437,#REF!,2,FALSE)","v":{"$error":"#REF!"}},2,"Hodossy-Takács Rebeka\nDE - ÁOK","Trombin generáció meghatározása gyulladásos bélbetegekben",{"$nulls":6},0]
["421.","Konzervatív orvostudományok - Laboratóriumi medicina, klinikai mikrobiológia",{"$f":"VLOOKUP(B438,#REF!,2,FALSE)","v":{"$error":"#REF!"}},3,"Horváth Réka\nPTE - ETK","A méz antimikrobiális hatásainak vizsgálata",{"$nulls":6},0]
["418.","Konzervatív orvostudományok - Laboratóriumi medicina, klinikai mikrobiológia",{"$f":"VLOOKUP(B439,#REF!,2,FALSE)","v":{"$error":"#REF!"}},4,"Hunyadi Karen\nPTE - ÁOK","PD-1 gátlókkal kezelt melanomás betegek utánkövetése",{"$nulls":6},0]
["425.","Konzervatív orvostudományok - Laboratóriumi medicina, klinikai mikrobiológia",{"$f":"VLOOKUP(B440,#REF!,2,FALSE)","v":{"$error":"#REF!"}},5,"Kozma Laura\nDE - ÁOK","Ponatinib hatása a prokoaguláns vérlemezkék kialakulására",{"$nulls":6},0]
["422.","Konzervatív orvostudományok - Laboratóriumi medicina, klinikai mikrobiológia",{"$f":"VLOOKUP(B441,#REF!,2,FALSE)","v":{"$error":"#REF!"}},6,"Tóth Anna\nDE - ÁOK","Az alpha2-plazmin inhibitor C-terminális heterogenitásának vizsgálata",{"$nulls":6},0]
["424.","Konzervatív orvostudományok - Laboratóriumi medicina, klinikai mikrobiológia",{"$f":"VLOOKUP(B442,#REF!,2,FALSE)","v":{"$error":"#REF!"}},7,"Tömöri Dóra\nDE - ÁOK","Antitrombin deficienciák molekuláris és laboratóriumi karakterizálása",{"$nulls":6},0]
["440.","Konzervatív orvostudományok - Neurológia, neurovaszkuláris medicina, pszichiátria 1.",{"$f":"VLOOKUP(B443,#REF!,2,FALSE)","v":{"$error":"#REF!"}},1,"Bálint Benedek, Békési Áron\nPTE - ÁOK","A harag és düh kifejezésének vizsgálata a League of Legends és Fortnite játékosok körében",{"$nulls":6},0]
["429.","Konzervatív orvostudományok - Neurológia, neurovaszkuláris medicina, pszichiátria 1.",{"$f":"VLOOKUP(B444,#REF!,2,FALSE)","v":{"$error":"#REF!"}},2,"Berente Dalida Borbála\nSE - ÁOK","Vizuomotoros készségekre épülő új automatikus diagnosztikus eszközök Alzheimer-kórban",{"$nulls":6},0]
["315.","Konzervatív orvostudományok - Neurológia, neurovaszkuláris medicina, pszichiátria 1.",{"$f":"VLOOKUP(B445,#REF!,2,FALSE)","v":{"$error":"#REF!"}},3,"Emig Justine, Weber Carmen Sahra\nSZTE - ÁOK","Influence of physiological and affective characteristics on sensory function",{"$nulls":6},0]
["xxx","Konzervatív orvostudományok - Neurológia, neurovaszkuláris medicina, pszichiátria 1.",{"$f":"VLOOKUP(B446,#REF!,2,FALSE)","v":{"$error":"#REF!"}},4,"Kalocsai Adél Krisztina\nSE - ÁOK","Szorongás és depresszió kérdőívek használhatósága a szédüléshez kapcsolódó pszichés eltérések vizsgálatában",{"$nulls":6},0]
["438.","Konzervatív orvostudományok - Neurológia, neurovaszkuláris medicina, pszichiátria 1.",{"$f":"VLOOKUP(B447,#REF!,2,FALSE)","v":{"$error":"#REF!"}},5,"Palatka Réka\nDE - ÁOK","Az alvásmegvonás hatása a neurovaszkuláris kapcsolatra",{"$nulls":6},0]
["442.","Konzervatív orvostudományok - Neurológia, neurovaszkuláris medicina, pszichiátria 1.",{"$f":"VLOOKUP(B448,#REF!,2,FALSE)","v":{"$error":"#REF!"}},6,"Szabó Petra\nPTE - ÁOK","Subduralis vagy mélyelektródákkal készített invazív EEG monitorozási eljárások",{"$nulls":6},0]
["434.","Konzervatív orvostudományok - Neurológia, neurovaszkuláris medicina, pszichiátria 1.",{"$f":"VLOOKUP(B449,#REF!,2,FALSE)","v":{"$error":"#REF!"}},7,"Szente Anna Tímea\nPTE - ÁOK","A digitalizáció központi idegrendszeri hatásai",{"$nulls":6},0]
["312.","Konzervatív orvostudományok - Neurológia, neurovaszkuláris medicina, pszichiátria 1.",{"$f":"VLOOKUP(B450,#REF!,2,FALSE)","v":{"$error":"#REF!"}},8,"Tóth Aletta\nSZTE - ÁOK","A neurofilamentumok és kvinolinsav szerepe sclerosis multiplexben",{"$nulls":6},0]
["314.","Konzervatív orvostudományok - Neurológia, neurovaszkuláris medicina, pszichiátria 2.",{"$f":"VLOOKUP(B451,#REF!,2,FALSE)","v":{"$error":"#REF!"}},1,"Weber Carmen Sahra, Emig Justine\nSZTE - ÁOK","Short term and long term reproducibility of Quantitative Sensory Testing (QST)",{"$nulls":6},{"$f":"SUM(G451:K451)-L451","v":0}]
["439.","Konzervatív orvostudományok - Neurológia, neurovaszkuláris medicina, pszichiátria 2.",{"$f":"VLOOKUP(B452,#REF!,2,FALSE)","v":{"$error":"#REF!"}},2,"Enyedi Enikő Edit\nDE - ÁOK","A szérum kitotriozidáz aktivitásának csökkenése a vér-agy gát zavarára utalhat sclerosis multiplexben",{"$nulls":6},0]
["435.","Konzervatív orvostudományok - Neurológia, neurovaszkuláris medicina, pszichiátria 2.",{"$f":"VLOOKUP(B453,#REF!,2,FALSE)","v":{"$error":"#REF!"}},3,"Matányi Marianna, Kákonyi Marcell\nSE - ÁOK","Reflexidő mérés saját fejlesztésű eszközzel – bevezető vizsgálatunk eredményei",{"$nulls":6},0]
["431.","Konzervatív orvostudományok - Neurológia, neurovaszkuláris medicina, pszichiátria 2.",{"$f":"VLOOKUP(B454,#REF!,2,FALSE)","v":{"$error":"#REF!"}},4,"Kegyes-Brassai Anna Csilla\nSE","Az alvási makrostruktúra összehasonlító vizsgálata major neurokognitív betegségekben",{"$nulls":6},0]
["539.","Konzervatív orvostudományok - Neurológia, neurovaszkuláris medicina, pszichiátria 2.",{"$f":"VLOOKUP(B455,#REF!,2,FALSE)","v":{"$error":"#REF!"}},5,"Kovács Viktória\nPTE - ÁOK","Neurovascularis kapcsolás vizsgálata TCD segítségével fiziológiás körülmények között",{"$nulls":6},0]
["437.","Konzervatív orvostudományok - Neurológia, neurovaszkuláris medicina, pszichiátria 2.",{"$f":"VLOOKUP(B456,#REF!,2,FALSE)","v":{"$error":"#REF!"}},6,"Nemes Kinga\nETDK - OGYK","A prehospitalizációs időszak teendőinek ismerete stroke-os budapesti betegek körében",{"$nulls":6},0]
["443.","Konzervatív orvostudományok - Neurológia, neurovaszkuláris medicina, pszichiátria 2.",{"$f":"VLOOKUP(B457,#REF!,2,FALSE)","v":{"$error":"#REF!"}},7,"Pethő Borbála\nPTE - ÁOK","Georg Trakl - alkotáslélektani és befogadáslélektani vizsgálatok",{"$nulls":6},0]
["441.","Konzervatív orvostudományok - Neurológia, neurovaszkuláris medicina, pszichiátria 2.",{"$f":"VLOOKUP(B458,#REF!,2,FALSE)","v":{"$error":"#REF!"}},8,"Szabó Máté\nSZTE - ÁOK","A direkcionalitás használatának létjogosultsága Parkinson-kórban alkalmazott mélyagyi stimuláció esetében – Az SZTE Neurológiai Klinika beteganyagán végzett pilot vizsgálat eredményei",{"$nulls":6},0]
["450.","Konzervatív orvostudományok - Onkológia, sugárterápia, hematológia-hemosztazeológia 1.",{"$f":"VLOOKUP(B459,#REF!,2,FALSE)","v":{"$error":"#REF!"}},1,"Gulyás Anita\nDE - ÁOK","Fertilitás vizsgálata Hodgkin-lymphomás betegeknél",{"$nulls":6},0]
["445.","Konzervatív orvostudományok - Onkológia, sugárterápia, hematológia-hemosztazeológia 1.",{"$f":"VLOOKUP(B460,#REF!,2,FALSE)","v":{"$error":"#REF!"}},2,"Karancsi Zsófia\nSE - ÁOK","A tumor-stroma arány (TSR) prediktív szerepe neoadjuváns kemoterápiával kezelt emlőrákos betegekben",{"$nulls":6},0]
["449.","Konzervatív orvostudományok - Onkológia, sugárterápia, hematológia-hemosztazeológia 1.",{"$f":"VLOOKUP(B461,#REF!,2,FALSE)","v":{"$error":"#REF!"}},3,"Kiss József\nPTE - ETK","A lineáris gyorsító dozimetriai paramétereinek és a tervverifikációs mérések eredményeinek összefüggés vizsgálata",{"$nulls":6},0]
["444.","Konzervatív orvostudományok - Onkológia, sugárterápia, hematológia-hemosztazeológia 1.",{"$f":"VLOOKUP(B462,#REF!,2,FALSE)","v":{"$error":"#REF!"}},4,"Miterli Mirjam\nDE - ÁOK","60 év feletti diffúz nagy B-sejtes limfómás (DLBCL) betegek túlélésének vizsgálata klinikánkon",{"$nulls":6},0]
["426.","Konzervatív orvostudományok - Onkológia, sugárterápia, hematológia-hemosztazeológia 1.",{"$f":"VLOOKUP(B463,#REF!,2,FALSE)","v":{"$error":"#REF!"}},5,"Tóth Eszter Lilla\nDE - ÁOK","Új, sejtciklus analízisen alapuló áramlási citometriai vizsgálat kidolgozása a méhnyak rákmegelőző állapotainak szűrése céljából",{"$nulls":6},0]
["453.","Konzervatív orvostudományok - Onkológia, sugárterápia, hematológia-hemosztazeológia 1.",{"$f":"VLOOKUP(B464,#REF!,2,FALSE)","v":{"$error":"#REF!"}},6,"Tóth Tünde\nPTE - ÁOK","Endogén PACAP vizsgálata myeloma multiplexes betegek vérplazma mintáiban",{"$nulls":6},0]
["446.","Konzervatív orvostudományok - Onkológia, sugárterápia, hematológia-hemosztazeológia 1.",{"$f":"VLOOKUP(B465,#REF!,2,FALSE)","v":{"$error":"#REF!"}},7,"Vizsolyi János Ádám\nSE - ÁOK","Humán kissejtes tüdőrák sejtvonalak mTORC1/C2-gátló érzékenysége",{"$nulls":6},0]
["452.","Konzervatív orvostudományok - Onkológia, sugárterápia, hematológia-hemosztazeológia 2.",{"$f":"VLOOKUP(B466,#REF!,2,FALSE)","v":{"$error":"#REF!"}},1,"Horváth Anna\nSE","Reziduális betegség és a központi idegrendszeri érintettség vizsgálata gyermekkori akut limfoblasztos leukémiában",{"$nulls":6},0]
["448.","Konzervatív orvostudományok - Onkológia, sugárterápia, hematológia-hemosztazeológia 2.",{"$f":"VLOOKUP(B467,#REF!,2,FALSE)","v":{"$error":"#REF!"}},2,"Kotmayer Lili\nSE - ÁOK","A BTK p.C481S rezisztenciamutáció érzékeny kimutatása és monitorozása ibrutinib kezelés során terápia refrakter/relabált krónikus lymphocytás leukémiában",{"$nulls":6},0]
["451.","Konzervatív orvostudományok - Onkológia, sugárterápia, hematológia-hemosztazeológia 2.",{"$f":"VLOOKUP(B468,#REF!,2,FALSE)","v":{"$error":"#REF!"}},3,"Kozma Orsolya\nDE - ÁOK","Multidimenzionális áramlási citometriai analízis hatékonyságának vizsgálata CD5 pozitív B-CLPD-ben",{"$nulls":6},0]
["454.","Konzervatív orvostudományok - Onkológia, sugárterápia, hematológia-hemosztazeológia 2.",{"$f":"VLOOKUP(B469,#REF!,2,FALSE)","v":{"$error":"#REF!"}},4,"Miskei Judith Anna\nPTE - ÁOK","Investigation of circulating miRNA based biomarkers for squamous cell lung carcinoma",{"$nulls":6},0]
["187.","Konzervatív orvostudományok - Onkológia, sugárterápia, hematológia-hemosztazeológia 2.",{"$f":"VLOOKUP(B470,#REF!,2,FALSE)","v":{"$error":"#REF!"}},5,"Nagy Mátyás\nPTE - ÁOK","Hemoreológiai profil vizsgálata coeliakiás betegekben eset-kontroll vizsgálat segítségével",{"$nulls":6},0]
["455.","Konzervatív orvostudományok - Onkológia, sugárterápia, hematológia-hemosztazeológia 2.",{"$f":"VLOOKUP(B471,#REF!,2,FALSE)","v":{"$error":"#REF!"}},6,"Rácz Benedek Péter\nDE - ÁOK","Hereditaer haemorrhagiás teleangiectasiában (HHT) szenvedő családok klinikai és genetikai vizsgálata",{"$nulls":6},0]
["xxx","Konzervatív orvostudományok - Onkológia, sugárterápia, hematológia-hemosztazeológia 2.",{"$f":"VLOOKUP(B472,#REF!,2,FALSE)","v":{"$error":"#REF!"}},7,"Tóth Rebeka\nSE - GYTK","Glioblastoma sejtek detektálása és kezelése chlorotoxin konjugátumokkal",{"$nulls":6},0]
["456.","Operatív orvostudományok - Aneszteziológia és intenzív terápia, sürgősségi betegellátás 1.",{"$f":"VLOOKUP(B473,#REF!,2,FALSE)","v":{"$error":"#REF!"}},1,"Ballók Bence, Kulcsár Richárd Máté\nSZTE - ÁOK","Új modalitás fejlesztése a gépi lélegeztetésben: kevert frekvenciák alkalmazása állatkísérletes modellben",{"$nulls":6},0]
["462.","Operatív orvostudományok - Aneszteziológia és intenzív terápia, sürgősségi betegellátás 1.",{"$f":"VLOOKUP(B474,#REF!,2,FALSE)","v":{"$error":"#REF!"}},2,"Döbrönte László\nSE","Szintetikus kolloid oldat perioperatív alkalmazásának következményei a posztoperatív kimenetelre elektív szívműtétre kerülő betegeknél",{"$nulls":6},0]
["463.","Operatív orvostudományok - Aneszteziológia és intenzív terápia, sürgősségi betegellátás 1.",{"$f":"VLOOKUP(B475,#REF!,2,FALSE)","v":{"$error":"#REF!"}},3,"Priskin Gábor\nPTE - ETK","Akut kardiovaszkuláris kórképek a sürgősségi ellátásban Grey-zone vizsgálata az NSTEMI betegpopulációban",{"$nulls":6},0]
["457.","Operatív orvostudományok - Aneszteziológia és intenzív terápia, sürgősségi betegellátás 1.",{"$f":"VLOOKUP(B476,#REF!,2,FALSE)","v":{"$error":"#REF!"}},4,"Stankovics Levente, Takáts Dániel\nPTE - ÁOK","Trauma indukálta koagulopátia vizsgálata légimentésben ellátott súlyos sérült betegeknél",{"$nulls":6},0]
["460.","Operatív orvostudományok - Aneszteziológia és intenzív terápia, sürgősségi betegellátás 1.",{"$f":"VLOOKUP(B477,#REF!,2,FALSE)","v":{"$error":"#REF!"}},5,"Sümegi Donát\nPTE - ÁOK","A presepsin, mint a szepszis egy korai, szenzitív biomarkere",{"$nulls":6},0]
["465.","Operatív orvostudományok - Aneszteziológia és intenzív terápia, sürgősségi betegellátás 1.",{"$f":"VLOOKUP(B478,#REF!,2,FALSE)","v":{"$error":"#REF!"}},6,"Weisz Erik Herman\nSE - ÁOK","Nehéz légúti helyzetek modellezése cadaveren",{"$nulls":6},0]
["466.","Operatív orvostudományok - Aneszteziológia és intenzív terápia, sürgősségi betegellátás 2.",{"$f":"VLOOKUP(B479,#REF!,2,FALSE)","v":{"$error":"#REF!"}},1,"Fülöp Bence\nPTE - ÁOK","Éretlen monocyta alakok szerepe az infekció korai előrejelzésében","Nem jelent meg"]
["458.","Operatív orvostudományok - Aneszteziológia és intenzív terápia, sürgősségi betegellátás 2.",{"$f":"VLOOKUP(B480,#REF!,2,FALSE)","v":{"$error":"#REF!"}},2,"Kiss Boldizsár, Párkányi Anna\nSE","FORECAST pilot score vizsgálata és alkalmazása az újraélesztett betegek mortalitásának korai becslésére",{"$nulls":6},0]
["467.","Operatív orvostudományok - Aneszteziológia és intenzív terápia, sürgősségi betegellátás 2.",{"$f":"VLOOKUP(B481,#REF!,2,FALSE)","v":{"$error":"#REF!"}},3,"Ledneczki Dávid\nPTE - ETK","A szepszis vizsgálata a sürgősségi ellátásban",{"$nulls":6},0]
["464.","Operatív orvostudományok - Aneszteziológia és intenzív terápia, sürgősségi betegellátás 2.",{"$f":"VLOOKUP(B482,#REF!,2,FALSE)","v":{"$error":"#REF!"}},4,"Mező Nóra\nDE - ÁOK","Szimultán végzett akceleromiográfiás és elektromiográfiás neuromuszkuláris monitorozás a musculus adductor pollicison: klinikai összehasonlító vizsgálat",{"$nulls":6},0]
["461.","Operatív orvostudományok - Aneszteziológia és intenzív terápia, sürgősségi betegellátás 2.",{"$f":"VLOOKUP(B483,#REF!,2,FALSE)","v":{"$error":"#REF!"}},5,"Szakáll Richárd\nSZTE - ÁOK","„Ápol és eltakar”?: Transzkután CO2 mérés pontosságának vizsgálata",{"$nulls":6},0]
["468.","Operatív orvostudományok - Aneszteziológia és intenzív terápia, sürgősségi betegellátás 2.",{"$f":"VLOOKUP(B484,#REF!,2,FALSE)","v":{"$error":"#REF!"}},6,"Tóth Natália\nPTE - ÁOK","Vitaminok és kis dózisú hidrokortizon adása szeptikus betegek szupportív terápiájában",{"$nulls":6},0]
["479.","Operatív orvostudományok - Fül-orr-gégészet, fej-nyak sebészet, szemészet",{"$f":"VLOOKUP(B485,#REF!,2,FALSE)","v":{"$error":"#REF!"}},1,"Dr. Bölcsföldi T. Barbara\nPTE - ÁOK","Kadáver disszekciós vezérfonal az endoszkópos fülsebészethez",{"$nulls":6},0]
["470.","Operatív orvostudományok - Fül-orr-gégészet, fej-nyak sebészet, szemészet",{"$f":"VLOOKUP(B486,#REF!,2,FALSE)","v":{"$error":"#REF!"}},2,"Dr. Bukovszky Botond\nSE","Második primer malignus daganat nem HPV okozta laphámsejtes fej-nyaki rákot követően",{"$nulls":6},0]
["485.","Operatív orvostudományok - Fül-orr-gégészet, fej-nyak sebészet, szemészet",{"$f":"VLOOKUP(B487,#REF!,2,FALSE)","v":{"$error":"#REF!"}},3,"Forgony Áron\nDE - ÁOK","Keratoplasztikán átesett betegek vizsgálata elülső szegmentum OCT-vel",{"$nulls":6},0]
["476.","Operatív orvostudományok - Fül-orr-gégészet, fej-nyak sebészet, szemészet",{"$f":"VLOOKUP(B488,#REF!,2,FALSE)","v":{"$error":"#REF!"}},4,"Lászik Gábor\nSZTE - ÁOK","A makula érsűrűségének változása, mint a látásromlás biomarkere sikeres retina leválás ellenes műtét után",{"$nulls":6},0]
["475.","Operatív orvostudományok - Fül-orr-gégészet, fej-nyak sebészet, szemészet",{"$f":"VLOOKUP(B489,#REF!,2,FALSE)","v":{"$error":"#REF!"}},5,"Molnár Fiona Anna\nSZTE - ÁOK","Identification of cochlear implant (CI) tip fold-over using a novel software, Trans-Impedance Matrix (TIM)",{"$nulls":6},0]
["484.","Operatív orvostudományok - Fül-orr-gégészet, fej-nyak sebészet, szemészet",{"$f":"VLOOKUP(B490,#REF!,2,FALSE)","v":{"$error":"#REF!"}},6,"Nahas Ahmad\nDE - ÁOK","Differentiation and spatial organization of limbal, conjunctival and oral mucosal biopsies grown on contact lenses for autotransplantation in limbal stem cell deficiency",{"$nulls":6},0]
["480.","Operatív orvostudományok - Fül-orr-gégészet, fej-nyak sebészet, szemészet",{"$f":"VLOOKUP(B491,#REF!,2,FALSE)","v":{"$error":"#REF!"}},7,"Somfalvi Beáta Krisztina\nSE","A posztoperatív látóélesség és betegelégedettség összehasonlítása trifokális műlencsék beültetését követően",{"$nulls":6},0]
["473.","Operatív orvostudományok - Fül-orr-gégészet, fej-nyak sebészet, szemészet",{"$f":"VLOOKUP(B492,#REF!,2,FALSE)","v":{"$error":"#REF!"}},8,"Szabó Éva\nPTE - ÁOK","Krónikus oro-antralis fistula hagyományos és endoszkópos ellátást követő életminőség változás összehasonlító vizsgálata",{"$nulls":6},0]
["474.","Operatív orvostudományok - Fül-orr-gégészet, fej-nyak sebészet, szemészet",{"$f":"VLOOKUP(B493,#REF!,2,FALSE)","v":{"$error":"#REF!"}},9,"Szabó Réka Judit\nPTE - ÁOK","Életminőség-felmérés és száloptikás endoszkóppal végzett nyelésvizsgálat korai stádiumú hangajak tumorok szén-dioxid lézerrel végzett transzorális reszekcióját követően",{"$nulls":6},0]
["310.","Operatív orvostudományok - Kísérletes sebészet, kísérletes aneszteziológia",{"$f":"VLOOKUP(B494,#REF!,2,FALSE)","v":{"$error":"#REF!"}},1,"Kulcsár Richárd Máté, Ballók Bence\nSZTE - ÁOK","Humán használatú kapnográf adaptálása kisállat modellre 3D-nyomtatás felhasználásával",{"$nulls":6},0]
["521.","Operatív orvostudományok - Kísérletes sebészet, kísérletes aneszteziológia",{"$f":"VLOOKUP(B495,#REF!,2,FALSE)","v":{"$error":"#REF!"}},2,"Fazekas László Ádám\nDE - ÁOK","A hipofízis adenilát-cikláz aktiváló polipeptid (PACAP) hatása microvascularis anastomosisok regenerációjára patkányban",{"$nulls":6},0]
["527.","Operatív orvostudományok - Kísérletes sebészet, kísérletes aneszteziológia",{"$f":"VLOOKUP(B496,#REF!,2,FALSE)","v":{"$error":"#REF!"}},3,"Gömöri Lídia Éva\nDE - ÁOK","A gerincvelői fájdalominformáció-feldolgozásban résztvevő neuronális elemek célzott vizsgálatát lehetővé tevő vírusjelölés műtéti technikáinak optimalizálása",{"$nulls":6},0]
["522.","Operatív orvostudományok - Kísérletes sebészet, kísérletes aneszteziológia",{"$f":"VLOOKUP(B497,#REF!,2,FALSE)","v":{"$error":"#REF!"}},4,"Varga Zoltán, Hodoniczki Ádám\nSZTE - ÁOK","Hemodinamikai változások 24 órás veno-venózus extrakorporális membrán oxigenizáció nagyállat modelljében",{"$nulls":6},0]
["526.","Operatív orvostudományok - Kísérletes sebészet, kísérletes aneszteziológia",{"$f":"VLOOKUP(B498,#REF!,2,FALSE)","v":{"$error":"#REF!"}},5,"Lehoczki Csaba Ferenc, Sepp Yvette\nSE","Reverzibilis vena portae embolizáció vizsgálatára alkalmas kisállat modell kidolgozása",{"$nulls":6},0]
["524.","Operatív orvostudományok - Kísérletes sebészet, kísérletes aneszteziológia",{"$f":"VLOOKUP(B499,#REF!,2,FALSE)","v":{"$error":"#REF!"}},6,"Lévay Klára, Pollner Nóra\nSE","Preoperatív testedzés mitokondriális hatásának vizsgálata indukált májregeneráció patkány modelljében",{"$nulls":6},0]
["530.","Operatív orvostudományok - Mellkasi- hasi- és plasztikai sebészet, transzplantációs sebészet",{"$f":"VLOOKUP(B500,#REF!,2,FALSE)","v":{"$error":"#REF!"}},1,"Bajzát Dorina Rita\nDE - ÁOK","Ileo-coecalis resectiók Crohn-beteg gyermekekben: országos, multicentrikus felmérés a HUPIR (Hungarian Pediatric IBD Registry) adatai alapján",{"$nulls":6},0]
["532.","Operatív orvostudományok - Mellkasi- hasi- és plasztikai sebészet, transzplantációs sebészet",{"$f":"VLOOKUP(B501,#REF!,2,FALSE)","v":{"$error":"#REF!"}},2,"Jász Dávid Kurszán, Baráth Bálint\nSZTE - ÁOK","Metán dúsított transzplantációs oldat javítja a graft funkciót heterotróp szívtranszplantáció patkány modelljében",{"$nulls":6},0]
["529.","Operatív orvostudományok - Mellkasi- hasi- és plasztikai sebészet, transzplantációs sebészet",{"$f":"VLOOKUP(B502,#REF!,2,FALSE)","v":{"$error":"#REF!"}},3,"Dr. Szalai Orsolya\nSE","Allograft vasculopathia rizikótényezőinek vizsgálata szívtranszplantáltak körében",{"$nulls":6},0]
["523.","Operatív orvostudományok - Mellkasi- hasi- és plasztikai sebészet, transzplantációs sebészet",{"$f":"VLOOKUP(B503,#REF!,2,FALSE)","v":{"$error":"#REF!"}},4,"Fazekas Balázs\nPTE - ÁOK","Subnormothermiás májperfúzió és hideg prezerválás összehasonlító vizsgálata",{"$nulls":6},0]
["531.","Operatív orvostudományok - Mellkasi- hasi- és plasztikai sebészet, transzplantációs sebészet",{"$f":"VLOOKUP(B504,#REF!,2,FALSE)","v":{"$error":"#REF!"}},5,"Hartyánszky István\nSZTE - ÁOK","Coarctatio aortae sebészi kezelése gyermek- és felnőttkorban",{"$nulls":6},0]
["528.","Operatív orvostudományok - Mellkasi- hasi- és plasztikai sebészet, transzplantációs sebészet",{"$f":"VLOOKUP(B505,#REF!,2,FALSE)","v":{"$error":"#REF!"}},6,"Szécsi Balázs, Tóth Krisztina\nSE","A donorgondozás új lehetőségei: pajzsmirigyhormonok szerepe a szívátültetésben.",{"$nulls":6},0]
["533.","Operatív orvostudományok - Traumatológia, ortopédia, idegsebészet",{"$f":"VLOOKUP(B506,#REF!,2,FALSE)","v":{"$error":"#REF!"}},1,"Boros Roxána Krisztina\nSE - ÁOK","A műtéti feltárás és vértelenség hatása a térdízületi artroplasztika korai rehabilitációra",{"$nulls":6},0]
["535.","Operatív orvostudományok - Traumatológia, ortopédia, idegsebészet",{"$f":"VLOOKUP(B507,#REF!,2,FALSE)","v":{"$error":"#REF!"}},2,"Demeter Zsófia\nDE - ÁOK","Oligodendrogliomák és asztrocitomák inváziós spektrumának összehasonlítása",{"$nulls":6},0]
["311.","Operatív orvostudományok - Traumatológia, ortopédia, idegsebészet",{"$f":"VLOOKUP(B508,#REF!,2,FALSE)","v":{"$error":"#REF!"}},3,"Ejide Chikolum Afamefuna\nSZTE - ÁOK","Differences in radiographic and clinical outcomes of Transforaminal lumbar interbody fusion and Oblique lumbar interbody fusion for lumbar degenerative disc disease",{"$nulls":6},0]
["542.","Operatív orvostudományok - Traumatológia, ortopédia, idegsebészet",{"$f":"VLOOKUP(B509,#REF!,2,FALSE)","v":{"$error":"#REF!"}},4,"Hargitai Emma\nPTE - ÁOK","Különböző kezelési módszerek összehasonlítása másodfokú égési sérülés állatmodelljében",{"$nulls":6},0]
["534.","Operatív orvostudományok - Traumatológia, ortopédia, idegsebészet",{"$f":"VLOOKUP(B510,#REF!,2,FALSE)","v":{"$error":"#REF!"}},5,"Nagy Zsófia Katalin\nSE - ÁOK","Véralvadásgátlók szedésének hatása a traumás intrakraniális vérzések akut idegsebészeti ellátására és túlélésére – elemzés 10 év távlatából",{"$nulls":6},0]
["541.","Operatív orvostudományok - Traumatológia, ortopédia, idegsebészet",{"$f":"VLOOKUP(B511,#REF!,2,FALSE)","v":{"$error":"#REF!"}},6,"Nyakas Viktória\nPTE - ÁOK","A collodiaphysealis szög konvencionális röntgenfelvételen történő mérési módszereinek megbízhatósági vizsgálata",{"$nulls":6},0]
["536.","Operatív orvostudományok - Traumatológia, ortopédia, idegsebészet",{"$f":"VLOOKUP(B512,#REF!,2,FALSE)","v":{"$error":"#REF!"}},7,"Törköly Péter Márk\nDE - ÁOK","Önzáró elven működő szárkiütő műszer biomechanikai vizsgálata",{"$nulls":6},0]
["538.","Operatív orvostudományok - Traumatológia, ortopédia, idegsebészet",{"$f":"VLOOKUP(B513,#REF!,2,FALSE)","v":{"$error":"#REF!"}},8,"Turbucz Máté\nSE","A Closed Loop sacrectomia utáni lumbopelvicus stabilizációs rendszer in silico biomechanikai vizsgálata végeselem módszer felhasználásával",{"$nulls":6},0]
["537.","Operatív orvostudományok - Traumatológia, ortopédia, idegsebészet",{"$f":"VLOOKUP(B514,#REF!,2,FALSE)","v":{"$error":"#REF!"}},9,"Zatykó Dóra Zoé\nSE - ÁOK","Akut, kritikus alsó végtagi ischaemia kezelése katéterrel végzett thrombolysissel",{"$nulls":6},0]
["469.","Operatív orvostudományok - Urológia, szülészet-nőgyógyászat",{"$f":"VLOOKUP(B515,#REF!,2,FALSE)","v":{"$error":"#REF!"}},1,"Kovács Kristóf\nDE - ÁOK","Koraszülés = Népbetegség? A DE KK Szülészeti és Nőgyógyászati Klinikáján koraszüléssel végződő terhességek elemzése a 2018-2019. évi adatok alapján",{"$nulls":6},{"$f":"SUM(G515:K515)-L515","v":0}]
["471.","Operatív orvostudományok - Urológia, szülészet-nőgyógyászat",{"$f":"VLOOKUP(B516,#REF!,2,FALSE)","v":{"$error":"#REF!"}},2,"Lukács Luca\nDE - ÁOK","Perifériás fehérvérsejtek fagocita funkcióinak vizsgálata plazmakísérletek által endometriózisban szenvedő nőkben műtét előtt és után",{"$nulls":6},0]
["481.","Operatív orvostudományok - Urológia, szülészet-nőgyógyászat",{"$f":"VLOOKUP(B517,#REF!,2,FALSE)","v":{"$error":"#REF!"}},3,"Mayer Tamás\nSE","Az MMP-7 szérumszintjének jelentősége a felső húgyúti urothel sejtes carcinóma várható klinikai viselkedésének előrejelzésében.",{"$nulls":6},0]
["477.","Operatív orvostudományok - Urológia, szülészet-nőgyógyászat",{"$f":"VLOOKUP(B518,#REF!,2,FALSE)","v":{"$error":"#REF!"}},4,"Nagy Ákos Zalán\nDE - ÁOK","A transurethralis bipoláris prosztata enukleácio eredményességének vizsgálata",{"$nulls":6},0]
["482.","Operatív orvostudományok - Urológia, szülészet-nőgyógyászat",{"$f":"VLOOKUP(B519,#REF!,2,FALSE)","v":{"$error":"#REF!"}},5,"Nagyistók Luca Éva\nSE","Pravastatin kezelés hatása preeclampsiás terhességekben – metaanalízis",{"$nulls":6},0]
["483.","Operatív orvostudományok - Urológia, szülészet-nőgyógyászat",{"$f":"VLOOKUP(B520,#REF!,2,FALSE)","v":{"$error":"#REF!"}},6,"Takács Tímea\nPTE - ÁOK","Az anyatej hipofízis hormon tartalmának vizsgálata a gesztációs hetek függvényében",{"$nulls":6},0]
["472.","Operatív orvostudományok - Urológia, szülészet-nőgyógyászat",{"$f":"VLOOKUP(B521,#REF!,2,FALSE)","v":{"$error":"#REF!"}},7,"Vas Lilla Éva\nDE - ÁOK","Neoadjuváns kemoterápia szerepe az előrehaladott petefészekrákos betegek kezelésében",{"$nulls":6},0]

{"sheet":"Osszesitohoz","index":1,"n_rows":521,"n_cols":15,"rows_kept":521,"cut":false,"hidden":true,"merged":[[6,7,6,14],[61,7,61,14],[363,7,363,14],[48,7,48,14],[478,7,478,14],[94,7,94,14],[16,7,16,14]]}
["sorsz","Beosztott tagozat","Tagozatkód","Sorszám","Szerző(k)","Pályamunka címe","Pályamunka azonosítószáma","DE","PTE","SE","SZTE","Külső","Átlag","Helyezés","Végleges díjazás"]
["2.","Egészségtudományok - Egészségügyi szervezés és menedzsment",{"$f":"VLOOKUP(B2,#REF!,2,FALSE)","v":{"$error":"#REF!"}},1,"Kajos Luca Fanni\nPTE - ETK","Különböző feltárásokkal végzett csípőízületi endoprotetizált betegek rövid és hosszútávú életminőségének vizsgálata a magán és állami ellátási szektor vonatkozásában","PTE-ETK/12/040"," "," "," "," ",null,{"$f":"AVERAGE(H2:L2)","v":{"$error":"#DIV/0!"}},{"$f":"_xlfn.RANK.EQ(M2,M:M)","v":{"$error":"#DIV/0!"}}]
["4.","Egészségtudományok - Egészségügyi szervezés és menedzsment",{"$f":"VLOOKUP(B3,#REF!,2,FALSE)","v":{"$error":"#REF!"}},2,"Kovács Dóra\nGFE - ESZK","A lovaglás jótékony hatásainak jelentősége a sport választásánál","GFE-ESZK/12/001",{"$nulls":5},{"$f":"AVERAGE(H3:L3)","v":{"$error":"#DIV/0!"}},{"$f":"_xlfn.RANK.EQ(M3,M:M)","v":{"$error":"#DIV/0!"}}]
["1.","Egészségtudományok - Egészségügyi szervezés és menedzsment",{"$f":"VLOOKUP(B4,#REF!,2,FALSE)","v":{"$error":"#REF!"}},3,"Palotás Petra Anita\nGFE - ESZK","Alternatív terápiás eljárások Magyarországon","GFE-ESZK/12/003",{"$nulls":5},{"$error":"#DIV/0!"},{"$error":"#DIV/0!"}]
["86.","Egészségtudományok - Egészségügyi szervezés és menedzsment",{"$f":"VLOOKUP(B5,#REF!,2,FALSE)","v":{"$error":"#REF!"}},4,"Pigniczki Péter Pál\nSZTE - ETSZK","Hazai adatok a Myasthenia Gravisban szenvedő betegekről","SZTE-ETSZK/12/004",{"$nulls":5},{"$error":"#DIV/0!"},{"$error":"#DIV/0!"}]
["3.","Egészségtudományok - Egészségügyi szervezés és menedzsment",{"$f":"VLOOKUP(B6,#REF!,2,FALSE)","v":{"$error":"#REF!"}},5,"Sami Anett Anna\nME - EK","A 21. századi holisztikus egészségtudatosság jelenlétének vizsgálata a munkahelyi környezetben","ME-EK/12/011",{"$nulls":5},{"$error":"#DIV/0!"},{"$error":"#DIV/0!"}]
["5.","Egészségtudományok - Egészségügyi szervezés és menedzsment",{"$f":"VLOOKUP(B7,#REF!,2,FALSE)","v":{"$error":"#REF!"}},6,"Varga Henrietta-Réka\nRO EMTE - MVK","Szexuális felvilágosultság az általános iskolások körében","RO EMTE-MVK/12/001","Nem jelent meg"]
["12.","Egészségtudományok - Képalkotó diagnosztikai analitika",{"$f":"VLOOKUP(B8,#REF!,2,FALSE)","v":{"$error":"#REF!"}},1,"Antal Szabolcs István\nSZTE - ÁOK","Fokozott nyugalmi aktivitás a fehérállományi léziókban sclerosis multiplexesben","SZTE-ÁOK/12/071",{"$nulls":5},{"$error":"#DIV/0!"},{"$error":"#DIV/0!"}]
["6.","Egészségtudományok - Képalkotó diagnosztikai analitika",{"$f":"VLOOKUP(B9,#REF!,2,FALSE)","v":{"$error":"#REF!"}},2,"Bolla Gergő Levente\nME - EK","Dixon típusú, frekvencia alapú zsírelnyomásos MR szekvencia klinikai alkalmazhatósága","ME-EK/12/002",{"$nulls":5},{"$error":"#DIV/0!"},{"$error":"#DIV/0!"}]
["9.","Egészségtudományok - Képalkotó diagnosztikai analitika",{"$f":"VLOOKUP(B10,#REF!,2,FALSE)","v":{"$error":"#REF!"}},3,"Fábián János Krisztián\nPTE - ETK","18F-FDOPA PET SUVmax paraméterének összefüggése; nem, életkor és szövettan viszonylatában","PTE-ETK/12/038",{"$nulls":5},{"$error":"#DIV/0!"},{"$error":"#DIV/0!"}]
["13.","Egészségtudományok - Képalkotó diagnosztikai analitika",{"$f":"VLOOKUP(B11,#REF!,2,FALSE)","v":{"$error":"#REF!"}},4,"Gráczer Kitti\nME - EK","Nagyízületi protézisek vizsgálata szcintigráfiás módszerekkel","ME-EK/12/010",{"$nulls":5},{"$error":"#DIV/0!"},{"$error":"#DIV/0!"}]
["8.","Egészségtudományok - Képalkotó diagnosztikai analitika",{"$f":"VLOOKUP(B12,#REF!,2,FALSE)","v":{"$error":"#REF!"}},5,"Kövesdi Orsolya Liza\nPTE - ETK","18F-FDG PET/MR prediktív érték vizsgálat kemoradioterápiával kezelt fej-nyak daganatos betegeknél","PTE-ETK/12/015",{"$nulls":5},{"$error":"#DIV/0!"},{"$error":"#DIV/0!"}]
["10.","Egészségtudományok - Képalkotó diagnosztikai analitika",{"$f":"VLOOKUP(B13,#REF!,2,FALSE)","v":{"$error":"#REF!"}},6,"Szűcs Dániel István\nME - EK","Vírus eredetű tüdőbetegségek képalkotó differenciál diagnosztikája gyermek és felnőtt korban","ME-EK/12/001",{"$nulls":5},{"$error":"#DIV/0!"},{"$error":"#DIV/0!"}]
["16.","Egészségtudományok - Klinikai és elméleti epidemiológia 1.",{"$f":"VLOOKUP(B14,#REF!,2,FALSE)","v":{"$error":"#REF!"}},1,"Abou Hamdah Ali\nDE - NK","The Prevalence and risk factors of Major Depressive Disorder (MDD) among Syrians in Damascus and Damascus Suburb","DE-NK/12/008",{"$nulls":5},{"$error":"#DIV/0!"},{"$error":"#DIV/0!"}]
["17.","Egészségtudományok - Klinikai és elméleti epidemiológia 1.",{"$f":"VLOOKUP(B15,#REF!,2,FALSE)","v":{"$error":"#REF!"}},2,"Bokor Laura\nSE - ÁOK","A COVID-19 pandémia első hullámának másodlagos hatása és következményei a miokardiális infarktus ellátásában","SE-ÁOK/12/072",{"$nulls":5},{"$error":"#DIV/0!"},{"$error":"#DIV/0!"}]
["19.","Egészségtudományok - Klinikai és elméleti epidemiológia 1.",{"$f":"VLOOKUP(B16,#REF!,2,FALSE)","v":{"$error":"#REF!"}},3,"Cs. Kiss Veronika, Philippovich Márton\nSE - ÁOK","A COVID-19 pandémia első hullámának hatása az invazív vascularis radiológiai beavatkozásokra","SE-ÁOK/12/084",{"$nulls":5},{"$error":"#DIV/0!"},{"$error":"#DIV/0!"}]
["20.","Egészségtudományok - Klinikai és elméleti epidemiológia 1.",{"$f":"VLOOKUP(B17,#REF!,2,FALSE)","v":{"$error":"#REF!"}},4,"Huber Máté\nWJLF","A kórház, mint ökológiai tér","WJLF/12/001","Nem jelent meg"]
["22.","Egészségtudományok - Klinikai és elméleti epidemiológia 1.",{"$f":"VLOOKUP(B18,#REF!,2,FALSE)","v":{"$error":"#REF!"}},5,"Liljedahl Eltér Julia Helena Christina, Száraz Lili\nSE","Az alkoholfogyasztás kardiális hatásai","SE/12/077",{"$nulls":5},{"$error":"#DIV/0!"},{"$error":"#DIV/0!"}]
["23.","Egészségtudományok - Klinikai és elméleti epidemiológia 1.",{"$f":"VLOOKUP(B19,#REF!,2,FALSE)","v":{"$error":"#REF!"}},6,"Pető Zsófia\nSZTE - ÁOK","Agyi érbetegségekhez vezető krónikus betegségek és állapotokkal kapcsolatos terápiás adherencia vizsgálata","SZTE-ÁOK/12/046",{"$nulls":5},{"$error":"#DIV/0!"},{"$error":"#DIV/0!"}]
["507.","Egészségtudományok - Klinikai és elméleti epidemiológia 1.",{"$f":"VLOOKUP(B20,#REF!,2,FALSE)","v":{"$error":"#REF!"}},7,"Rajj Réka\nPTE - GYTK","Biológiai terápiában részesülő betegek gyógyszeres terápiáját befolyásoló tényezők felmérése","PTE-GYTK/12/001",{"$nulls":5},{"$error":"#DIV/0!"},{"$error":"#DIV/0!"}]
["26.","Egészségtudományok - Klinikai és elméleti epidemiológia 2.",{"$f":"VLOOKUP(B21,#REF!,2,FALSE)","v":{"$error":"#REF!"}},1,"Amber Martinez\nPTE - ÁOK","Prevelance of depression amongst international medical students in Hungary","PTE-ÁOK/12/022",{"$nulls":5},{"$error":"#DIV/0!"},{"$error":"#DIV/0!"}]
["18.","Egészségtudományok - Klinikai és elméleti epidemiológia 2.",{"$f":"VLOOKUP(B22,#REF!,2,FALSE)","v":{"$error":"#REF!"}},2,"Demeter-Lelkes Viktória\nPTE - ETK","Az endometriosissal élő nők életminőségének vizsgálata","PTE-ETK/12/004",{"$nulls":5},{"$error":"#DIV/0!"},{"$error":"#DIV/0!"}]
["14.","Egészségtudományok - Klinikai és elméleti epidemiológia 2.",{"$f":"VLOOKUP(B23,#REF!,2,FALSE)","v":{"$error":"#REF!"}},3,"Fogarasi Csenge Emese, Gubán Renáta\nSE - ÁOK","Lezajlott SARS-CoV-2 fertőzés myocardialis érintettségének tanulmányozása szív mágneses rezonancia vizsgálattal élsportolók körében","SE-ÁOK/12/050",{"$nulls":5},{"$error":"#DIV/0!"},{"$error":"#DIV/0!"}]
["25.","Egészségtudományok - Klinikai és elméleti epidemiológia 2.",{"$f":"VLOOKUP(B24,#REF!,2,FALSE)","v":{"$error":"#REF!"}},4,"Fonál Sarolta\nSE - ETK","Biodozimetriai vizsgálatok szerepe a sugáregészségtani feladatok ellátásában","SE-ETK/12/032",{"$nulls":5},{"$error":"#DIV/0!"},{"$error":"#DIV/0!"}]
["15.","Egészségtudományok - Klinikai és elméleti epidemiológia 2.",{"$f":"VLOOKUP(B25,#REF!,2,FALSE)","v":{"$error":"#REF!"}},5,"Gyenes Gábor, Varga Loretta \nSE - ETK","Szennyvízvizsgálatok szerepe a COVID-19 járvány előrejelzésében: egy megye példája","SE-ETK/12/016",{"$nulls":5},{"$error":"#DIV/0!"},{"$error":"#DIV/0!"}]
["24.","Egészségtudományok - Klinikai és elméleti epidemiológia 2.",{"$f":"VLOOKUP(B26,#REF!,2,FALSE)","v":{"$error":"#REF!"}},6,"Kovács Barbara Nóra\nSZTE - ÁOK","A cukorbetegek kardiovaszkuláris állapotromlásának szezonális ingadozása: a vérnyomás szerepének vizsgálata","SZTE-ÁOK/12/015",{"$nulls":5},{"$error":"#DIV/0!"},{"$error":"#DIV/0!"}]
["352.","Egészségtudományok - Klinikai és elméleti epidemiológia 2.",{"$f":"VLOOKUP(B27,#REF!,2,FALSE)","v":{"$error":"#REF!"}},7,"Mayer Zita\nSE - ÁOK","Pulmonális hipertóniás gyermekek életminőségének vizsgálata","SE-ÁOK/12/067",{"$nulls":5},{"$error":"#DIV/0!"},{"$error":"#DIV/0!"}]
["21.","Egészségtudományok - Klinikai és elméleti epidemiológia 2.",{"$f":"VLOOKUP(B28,#REF!,2,FALSE)","v":{"$error":"#REF!"}},8,"Nguyen Minh Chau\nDE - NK","Awareness related to cardiometabolic diseases: a cross-sectional study in sounthern Vietnam","DE-NK/12/007",{"$nulls":5},{"$error":"#DIV/0!"},{"$error":"#DIV/0!"}]
["58.","Egészségtudományok - Primer prevenció, védőnői prevenció, dietetika 1.",{"$f":"VLOOKUP(B29,#REF!,2,FALSE)","v":{"$error":"#REF!"}},1,"Dolhai Máté\nDE - NK","Az evészavar és a megjelenéssel kapcsolatos szociokulturális attitűdök vizsgálata serdülők körében","DE-NK/12/003",{"$nulls":5},{"$error":"#DIV/0!"},{"$error":"#DIV/0!"}]
["39.","Egészségtudományok - Primer prevenció, védőnői prevenció, dietetika 1.",{"$f":"VLOOKUP(B30,#REF!,2,FALSE)","v":{"$error":"#REF!"}},2,"Fáki Eszter\nSE - ETK","Gluténmentes fánkok- állomány és érzékszervi vizsgálata","SE-ETK/12/011",{"$nulls":5},{"$error":"#DIV/0!"},{"$error":"#DIV/0!"}]
["62.","Egészségtudományok - Primer prevenció, védőnői prevenció, dietetika 1.",{"$f":"VLOOKUP(B31,#REF!,2,FALSE)","v":{"$error":"#REF!"}},3,"Galambosi Rebeka\nPTE - ETK","Élelmiszerek tárolására, szállítására használt műanyag edények potenciális genotoxikus hatása","PTE-ETK/12/003",{"$nulls":5},{"$error":"#DIV/0!"},{"$error":"#DIV/0!"}]
["52.","Egészségtudományok - Primer prevenció, védőnői prevenció, dietetika 1.",{"$f":"VLOOKUP(B32,#REF!,2,FALSE)","v":{"$error":"#REF!"}},4,"Graff Andreas Bergheim\nPTE - ÁOK","The ketogenic diet: A solution for treating obesity and metabolic diseases or a serious helath risk? A systematic review and meta-analysis","PTE-ÁOK/12/001",{"$nulls":5},{"$error":"#DIV/0!"},{"$error":"#DIV/0!"}]
["32.","Egészségtudományok - Primer prevenció, védőnői prevenció, dietetika 1.",{"$f":"VLOOKUP(B33,#REF!,2,FALSE)","v":{"$error":"#REF!"}},5,"Vigula Fanni\nSZTE - ÁOK","Várandósok jódbevitele és annak hatása a perinatális kimenetre","SZTE-ÁOK/12/070",{"$nulls":5},{"$error":"#DIV/0!"},{"$error":"#DIV/0!"}]
["50.","Egészségtudományok - Primer prevenció, védőnői prevenció, dietetika 1.",{"$f":"VLOOKUP(B34,#REF!,2,FALSE)","v":{"$error":"#REF!"}},6,"Zagraj Veronika Bettina\nME - EK","Cukorbeteg gyermeket nevelő családok és a gyermekek jól-lét érzésének összehasonlítása egészséges kortársaikkal","ME-EK/12/005",{"$nulls":5},{"$error":"#DIV/0!"},{"$error":"#DIV/0!"}]
["29.","Egészségtudományok - Primer prevenció, védőnői prevenció, dietetika 2.",{"$f":"VLOOKUP(B35,#REF!,2,FALSE)","v":{"$error":"#REF!"}},1,"Csőke Imola, Tóth Enikő\nSZTE - ETSZK","A társas támogatás szerepe a dohányzás leszokásban","SZTE-ETSZK/12/007",{"$nulls":5},{"$error":"#DIV/0!"},{"$error":"#DIV/0!"}]
["63.","Egészségtudományok - Primer prevenció, védőnői prevenció, dietetika 2.",{"$f":"VLOOKUP(B36,#REF!,2,FALSE)","v":{"$error":"#REF!"}},2,"Dombai Flóra\nPTE - ÁOK","Hogyan befolyásolja a pasztörizálás az anyatej hormontartalmát?","PTE-ÁOK/12/062",{"$nulls":5},{"$error":"#DIV/0!"},{"$error":"#DIV/0!"}]
["45.","Egészségtudományok - Primer prevenció, védőnői prevenció, dietetika 2.",{"$f":"VLOOKUP(B37,#REF!,2,FALSE)","v":{"$error":"#REF!"}},3,"Iván Gyöngyi\nPTE - ETK","Hagymafélék és készítményeik antimikrobiális hatásának váladékokból történő vizsgálata","PTE-ETK/12/009",{"$nulls":5},{"$error":"#DIV/0!"},{"$error":"#DIV/0!"}]
["57.","Egészségtudományok - Primer prevenció, védőnői prevenció, dietetika 2.",{"$f":"VLOOKUP(B38,#REF!,2,FALSE)","v":{"$error":"#REF!"}},4,"Karikás Tamara Beáta\nDE - NK","Az influenza elleni védőoltás hatékonyságának vizsgálata cukorbetegek körében a 2015-ös járvány ideje alatt","DE-NK/12/012",{"$nulls":5},{"$error":"#DIV/0!"},{"$error":"#DIV/0!"}]
["111.","Egészségtudományok - Primer prevenció, védőnői prevenció, dietetika 2.",{"$f":"VLOOKUP(B39,#REF!,2,FALSE)","v":{"$error":"#REF!"}},5,"Kovács Bernadett\nSE - ETK","Szülészeti ellátásban létrejövő kölcsönhatások vizsgálata","SE-ETK/12/013",{"$nulls":5},{"$error":"#DIV/0!"},{"$error":"#DIV/0!"}]
["35.","Egészségtudományok - Primer prevenció, védőnői prevenció, dietetika 2.",{"$f":"VLOOKUP(B40,#REF!,2,FALSE)","v":{"$error":"#REF!"}},6,"Tamás Vanessza\nSE - ETK","Cukorszirupok kimutatása mézekben referencia- és spektroszkópiai módszerekkel","SE-ETK/12/021",{"$nulls":5},{"$error":"#DIV/0!"},{"$error":"#DIV/0!"}]
["38.","Egészségtudományok - Primer prevenció, védőnői prevenció, dietetika 3.",{"$f":"VLOOKUP(B41,#REF!,2,FALSE)","v":{"$error":"#REF!"}},1,"Varga Loretta , Gyenes Gábor\nSE - ETK","A kézhigiéné gyakorlati készségeinek felmérése és összehasonlítása az elméleti tudással","SE-ETK/12/017",{"$nulls":5},{"$error":"#DIV/0!"},{"$error":"#DIV/0!"}]
["41.","Egészségtudományok - Primer prevenció, védőnői prevenció, dietetika 3.",{"$f":"VLOOKUP(B42,#REF!,2,FALSE)","v":{"$error":"#REF!"}},2,"Kabai Vivien\nDE - NK","Gyermekkori ártalmas élmények és a bullying kapcsolata alacsony szocioökönómiai státuszú serdülők körében","DE-NK/12/013",{"$nulls":5},{"$error":"#DIV/0!"},{"$error":"#DIV/0!"}]
["30.","Egészségtudományok - Primer prevenció, védőnői prevenció, dietetika 3.",{"$f":"VLOOKUP(B43,#REF!,2,FALSE)","v":{"$error":"#REF!"}},3,"Kovács Linda Katalin\nSZTE - ETSZK","A fogászati félelem és az orális egészség kapcsolatának vizsgálata fiatal felnőttek körében","SZTE-ETSZK/12/002",{"$nulls":5},{"$error":"#DIV/0!"},{"$error":"#DIV/0!"}]
["95.","Egészségtudományok - Primer prevenció, védőnői prevenció, dietetika 3.",{"$f":"VLOOKUP(B44,#REF!,2,FALSE)","v":{"$error":"#REF!"}},4,"Papp Bernadett\nPTE - ETK","Az ápolók kézhigiénés szokásainak feltérképezése","PTE-ETK/12/041",{"$nulls":5},{"$error":"#DIV/0!"},{"$error":"#DIV/0!"}]
["27.","Egészségtudományok - Primer prevenció, védőnői prevenció, dietetika 3.",{"$f":"VLOOKUP(B45,#REF!,2,FALSE)","v":{"$error":"#REF!"}},5,"Pethő Anna\nPTE - ETK","A dietetikai intervenció hatásossága a 2-es típusú diabetes mellitusban szenvedő betegek körében","PTE-ETK/12/029",{"$nulls":5},{"$error":"#DIV/0!"},{"$error":"#DIV/0!"}]
["60.","Egészségtudományok - Primer prevenció, védőnői prevenció, dietetika 3.",{"$f":"VLOOKUP(B46,#REF!,2,FALSE)","v":{"$error":"#REF!"}},6,"Rádi Bence Márk\nDE - NK","Az orvostanhallgatók mentális egészségét kedvezőtlenül befolyásoló tényezők és a beavatkozások lehetséges pontjai hallgatói szemszögből","DE-NK/12/002",{"$nulls":5},{"$error":"#DIV/0!"},{"$error":"#DIV/0!"}]
["112.","Egészségtudományok - Primer prevenció, védőnői prevenció, dietetika 3.",{"$f":"VLOOKUP(B47,#REF!,2,FALSE)","v":{"$error":"#REF!"}},7,"Vályi Adél Anna\nSZTE - ÁOK","Orvostan- és diplomás ápoló hallgatók hospice és palliatív ellátáshoz tanúsított attitűdje","SZTE-ÁOK/12/026",{"$nulls":5},{"$error":"#DIV/0!"},{"$error":"#DIV/0!"}]
["56.","Egészségtudományok - Primer prevenció, védőnői prevenció, dietetika 4.",{"$f":"VLOOKUP(B48,#REF!,2,FALSE)","v":{"$error":"#REF!"}},1,"Blatniczky Anna Laura\nPTE - ETK","A dietetikai kommunikáció vizsgálata az 1-es típusú diabetesszel élő 15 évnél fiatalabb gyermekek szülei és a kezelésben részt vevő dietetikusok szemszögéből","PTE-ETK/12/030",{"$nulls":5},{"$error":"#DIV/0!"},{"$error":"#DIV/0!"}]
["48.","Egészségtudományok - Primer prevenció, védőnői prevenció, dietetika 4.",{"$f":"VLOOKUP(B49,#REF!,2,FALSE)","v":{"$error":"#REF!"}},2,"Dömötör Zsuzsa Réka, Mihály Péter, Miklós Stefánia\nETDK - OGYK","Szexuális prevenció: a szexuális attitűd felmérése és a kortársoktatás hatékonysága középiskolások körében","ETDK-OGYK/12/018","Nem jelent meg"]
["49.","Egészségtudományok - Primer prevenció, védőnői prevenció, dietetika 4.",{"$f":"VLOOKUP(B50,#REF!,2,FALSE)","v":{"$error":"#REF!"}},3,"Joó Viktória\nME - EK","Egészségügyi hallgatók szexuális attitűdje","ME-EK/12/006",{"$nulls":5},{"$error":"#DIV/0!"},{"$error":"#DIV/0!"}]
["59.","Egészségtudományok - Primer prevenció, védőnői prevenció, dietetika 4.",{"$f":"VLOOKUP(B51,#REF!,2,FALSE)","v":{"$error":"#REF!"}},4,"Krébesz Róbert\nDE - NK","A szerencsejáték-függőség esetén is kimutatható kognitív torzítások megjelenésének kísérletes vizsgálata normál populáción","DE-NK/12/001",{"$nulls":5},{"$error":"#DIV/0!"},{"$error":"#DIV/0!"}]
["34.","Egészségtudományok - Primer prevenció, védőnői prevenció, dietetika 4.",{"$f":"VLOOKUP(B52,#REF!,2,FALSE)","v":{"$error":"#REF!"}},5,"Szatmári Ferenc, Lázár Tímea\nSZTE - ÁOK","A méhnyakrákkal és a human papillomavírussal kapcsolatos ismeretek vizsgálata tudásindex használatával","SZTE-ÁOK/12/065",{"$nulls":5},{"$error":"#DIV/0!"},{"$error":"#DIV/0!"}]
["33.","Egészségtudományok - Primer prevenció, védőnői prevenció, dietetika 4.",{"$f":"VLOOKUP(B53,#REF!,2,FALSE)","v":{"$error":"#REF!"}},6,"Miklós Stefánia\nRO EMTE - MVK","Serdülő korú lányok ismeretei a HPV-ről","RO EMTE-MVK/12/002",{"$nulls":5},{"$error":"#DIV/0!"},{"$error":"#DIV/0!"}]
["42.","Egészségtudományok - Primer prevenció, védőnői prevenció, dietetika 4.",{"$f":"VLOOKUP(B54,#REF!,2,FALSE)","v":{"$error":"#REF!"}},7,"van der Meer Borbála Mária\nSE - ÁOK","Mit gondolnak a balassagyarmati serdülők a gyermekvállalás következményeiről?","SE-ÁOK/12/076",{"$nulls":5},{"$error":"#DIV/0!"},{"$error":"#DIV/0!"}]
["54.","Egészségtudományok - Primer prevenció, védőnői prevenció, dietetika 5.",{"$f":"VLOOKUP(B55,#REF!,2,FALSE)","v":{"$error":"#REF!"}},1,"Hoffmann Edina\nPTE - ETK","Intrauterin kötődés az anya-magzat között","PTE-ETK/12/037",{"$nulls":5},{"$error":"#DIV/0!"},{"$error":"#DIV/0!"}]
["55.","Egészségtudományok - Primer prevenció, védőnői prevenció, dietetika 5.",{"$f":"VLOOKUP(B56,#REF!,2,FALSE)","v":{"$error":"#REF!"}},2,"Kejeradze Enver\nDE - NK","World’s First National HCV Elimination Program – Lessons to Learn from Georgia","DE-NK/12/004",{"$nulls":5},{"$error":"#DIV/0!"},{"$error":"#DIV/0!"}]
["40.","Egészségtudományok - Primer prevenció, védőnői prevenció, dietetika 5.",{"$f":"VLOOKUP(B57,#REF!,2,FALSE)","v":{"$error":"#REF!"}},3,"Papp Szabolcs\nDE - NK","Influenza elleni átoltottság vizsgálata COPD-s betegek körében a magyar és szerb Európai Lakosság Egészségfelmérés adatai alapján","DE-NK/12/016",{"$nulls":5},{"$error":"#DIV/0!"},{"$error":"#DIV/0!"}]
["51.","Egészségtudományok - Primer prevenció, védőnői prevenció, dietetika 5.",{"$f":"VLOOKUP(B58,#REF!,2,FALSE)","v":{"$error":"#REF!"}},4,"Péceli Fanni\nME - EK","Egyetemi hallgatók véleménye a házasságkötésről és gyermekvállalásról","ME-EK/12/003",{"$nulls":5},{"$error":"#DIV/0!"},{"$error":"#DIV/0!"}]
["36.","Egészségtudományok - Primer prevenció, védőnői prevenció, dietetika 5.",{"$f":"VLOOKUP(B59,#REF!,2,FALSE)","v":{"$error":"#REF!"}},5,"Szabados Bence\nPTE - ETK","Bőrrákkal kapcsolatos ismeretek és fényvédelmi magatartás a magyar lakosság körében","PTE-ETK/12/033",{"$nulls":5},{"$error":"#DIV/0!"},{"$error":"#DIV/0!"}]
["31.","Egészségtudományok - Primer prevenció, védőnői prevenció, dietetika 5.",{"$f":"VLOOKUP(B60,#REF!,2,FALSE)","v":{"$error":"#REF!"}},6,"Szabó-Kurucz Dóra\nSZTE - ETSZK","Az orális egészséggel összefüggő pszichológiai tényezők kapcsolatának vizsgálata","SZTE-ETSZK/12/001",{"$nulls":5},{"$error":"#DIV/0!"},{"$error":"#DIV/0!"}]
["37.","Egészségtudományok - Primer prevenció, védőnői prevenció, dietetika 5.",{"$f":"VLOOKUP(B61,#REF!,2,FALSE)","v":{"$error":"#REF!"}},7,"Vajdovich Dorottya Krisztina\nSE - ETK","Antioxidánssal, fehérjével és rosttal dúsított, álgabona-alapú növényi italok vizsgálata","SE-ETK/12/001",{"$nulls":5},{"$error":"#DIV/0!"},{"$error":"#DIV/0!"}]
["65.","Egészségtudományok - Szekunder prevenció, családorvoslás, preventív medicina 1.",{"$f":"VLOOKUP(B62,#REF!,2,FALSE)","v":{"$error":"#REF!"}},1,"Bődi Virág, Balla Dorottya\nSE","A szív mágneses rezonanciás vizsgálat szerepe sportolóknál strukturális szívbetegség gyanúja esetén","SE/12/075","Nem jelent meg"]
["64.","Egészségtudományok - Szekunder prevenció, családorvoslás, preventív medicina 1.",{"$f":"VLOOKUP(B63,#REF!,2,FALSE)","v":{"$error":"#REF!"}},2,"Menyhárt-Hetényi Anna Klára, Frivaldszky Lőrinc\nSE","Az élsportolói szív elektromos átépülésének karakterizálása standard EKG paraméterek, szívfrekvencia variabilitás és QRST integrál mérésével","SE/12/059",{"$nulls":5},{"$error":"#DIV/0!"},{"$error":"#DIV/0!"}]
["100.","Egészségtudományok - Szekunder prevenció, családorvoslás, preventív medicina 1.",{"$f":"VLOOKUP(B64,#REF!,2,FALSE)","v":{"$error":"#REF!"}},3,"Horváth Anna\nDE - NK","A Polycystás Ovárium Szindrómával küzdő nők vizsgálata egyes pszichológiai változók tükrében","DE-NK/12/006",{"$nulls":5},{"$error":"#DIV/0!"},{"$error":"#DIV/0!"}]
["70.","Egészségtudományok - Szekunder prevenció, családorvoslás, preventív medicina 1.",{"$f":"VLOOKUP(B65,#REF!,2,FALSE)","v":{"$error":"#REF!"}},4,"Pálinkás Zsófia, Horváth Nóra\nSZTE - ÁOK","A 2-es típusú cukorbetegség szűrésének, kezelésének jelentősége a kardiológiai gyakorlatban","SZTE-ÁOK/12/068",{"$nulls":5},{"$error":"#DIV/0!"},{"$error":"#DIV/0!"}]
["104.","Egészségtudományok - Szekunder prevenció, családorvoslás, preventív medicina 1.",{"$f":"VLOOKUP(B66,#REF!,2,FALSE)","v":{"$error":"#REF!"}},5,"Nagy Richárd\nPTE - ETK","Az alapszintű újraélesztés lehetséges módszerei - Videó támogatott oktatás hatékonyságának felmérése általános iskolás gyermekek körében","PTE-ETK/12/017",{"$nulls":5},{"$error":"#DIV/0!"},{"$error":"#DIV/0!"}]
["66.","Egészségtudományok - Szekunder prevenció, családorvoslás, preventív medicina 1.",{"$f":"VLOOKUP(B67,#REF!,2,FALSE)","v":{"$error":"#REF!"}},6,"Orgoványi Máté\nPTE - ÁOK","Kockázatalapú szűrés a prediabetes/diabetes mellitus felismerésében","PTE-ÁOK/12/028",{"$nulls":5},{"$f":"AVERAGE(H67:L67)","v":{"$error":"#DIV/0!"}},{"$f":"_xlfn.RANK.EQ(M67,M:M)","v":{"$error":"#DIV/0!"}}]
["72.","Egészségtudományok - Szekunder prevenció, családorvoslás, preventív medicina 1.",{"$f":"VLOOKUP(B68,#REF!,2,FALSE)","v":{"$error":"#REF!"}},7,"Pintér Jenő Antal\nSZTE - ÁOK","ST-elevációs miokardiális infarktuson (STEMI-n) átesett betegek prehospitális késésének vizsgálata","SZTE-ÁOK/12/027",{"$nulls":5},{"$error":"#DIV/0!"},{"$error":"#DIV/0!"}]
["78.","Egészségtudományok - Szekunder prevenció, családorvoslás, preventív medicina 2.",{"$f":"VLOOKUP(B69,#REF!,2,FALSE)","v":{"$error":"#REF!"}},1,"Adamovits Otilíia Alexandra, Makan Judit Laura\nSZTE - ÁOK","A leszokási motiváció feltárása dohányzók online interakcióiban","SZTE-ÁOK/12/075",{"$nulls":5},{"$error":"#DIV/0!"},{"$error":"#DIV/0!"}]
["82.","Egészségtudományok - Szekunder prevenció, családorvoslás, preventív medicina 2.",{"$f":"VLOOKUP(B70,#REF!,2,FALSE)","v":{"$error":"#REF!"}},2,"Gyöngyösi Helga\nSE","Az affektív temperamentumok kifejeződése normotóniásokban, fehérköpeny hipertóniásokban, krónikus, nem rezisztens és krónikus, rezisztens hipertóniásokban: nemi különbségek","SE/12/069",{"$nulls":5},{"$error":"#DIV/0!"},{"$error":"#DIV/0!"}]
["67.","Egészségtudományok - Szekunder prevenció, családorvoslás, preventív medicina 2.",{"$f":"VLOOKUP(B71,#REF!,2,FALSE)","v":{"$error":"#REF!"}},3,"Kerekes Júlia\nPTE - ÁOK","Térlátásszűrő mobilalkalmazás vizsgálati paramétereinek tesztelése","PTE-ÁOK/12/011",{"$nulls":5},{"$error":"#DIV/0!"},{"$error":"#DIV/0!"}]
["73.","Egészségtudományok - Szekunder prevenció, családorvoslás, preventív medicina 2.",{"$f":"VLOOKUP(B72,#REF!,2,FALSE)","v":{"$error":"#REF!"}},4,"Krishnan Rohan\nDE - NK","Mental health among International Medical Students at the University of Debrecen","DE-NK/12/014",{"$nulls":5},{"$error":"#DIV/0!"},{"$error":"#DIV/0!"}]
["76.","Egészségtudományok - Szekunder prevenció, családorvoslás, preventív medicina 2.",{"$f":"VLOOKUP(B73,#REF!,2,FALSE)","v":{"$error":"#REF!"}},5,"Veress Noémi , Orbán Eszter\nSE - ETK","A policisztás ovárium szindróma lélektani vizsgálata","SE-ETK/12/024",{"$nulls":5},{"$error":"#DIV/0!"},{"$error":"#DIV/0!"}]
["80.","Egészségtudományok - Szekunder prevenció, családorvoslás, preventív medicina 2.",{"$f":"VLOOKUP(B74,#REF!,2,FALSE)","v":{"$error":"#REF!"}},6,"Szabó Klaudia\nPTE - ETK","A vastagbél daganattal kapcsolatos ismeretek és a szűréssel kapcsolatos attitűdök kistérségi lakosok körében","PTE-ETK/12/010",{"$nulls":5},{"$error":"#DIV/0!"},{"$error":"#DIV/0!"}]
["69.","Egészségtudományok - Szekunder prevenció, családorvoslás, preventív medicina 2.",{"$f":"VLOOKUP(B75,#REF!,2,FALSE)","v":{"$error":"#REF!"}},7,"Szeles Dorottya Loretta\nDE - NK","Munkahelyi pszichés terhelés és az azzal összefüggésbe hozható pszichoszomatikus betegségek felmérése rendvédelmi dolgozók körében","DE-NK/12/011",{"$nulls":5},{"$error":"#DIV/0!"},{"$error":"#DIV/0!"}]
["92.","Egészségtudományok - Szekunder prevenció, családorvoslás, preventív medicina 3.",{"$f":"VLOOKUP(B76,#REF!,2,FALSE)","v":{"$error":"#REF!"}},1,"Gaál Gabriella Katalin, Kis Tamás Gergő\nSZTE - ETSZK","A stroke incidenciájának és rizikófaktorainak vizsgálata az SZTE SZAKK Sürgősségi Betegellátó Osztályán. Agyi érbetegségekhez vezető, krónikus betegségekkel és állapotokkal kapcsolatos terápiás adherenciájának a vizsgálata","SZTE-ETSZK/12/011",{"$nulls":5},{"$error":"#DIV/0!"},{"$error":"#DIV/0!"}]
["110.","Egészségtudományok - Szekunder prevenció, családorvoslás, preventív medicina 3.",{"$f":"VLOOKUP(B77,#REF!,2,FALSE)","v":{"$error":"#REF!"}},2,"Horváth Zoltánné\nSE - ETK","\"Így szoktuk csinálni\" -  Szokásaink fogságában","SE-ETK/12/004",{"$nulls":5},{"$error":"#DIV/0!"},{"$error":"#DIV/0!"}]
["77.","Egészségtudományok - Szekunder prevenció, családorvoslás, preventív medicina 3.",{"$f":"VLOOKUP(B78,#REF!,2,FALSE)","v":{"$error":"#REF!"}},3,"Rózsa Árpád, Korányi Viktória\nSZTE - ÁOK","Férfiak szexuális zavarainak vizsgálata a „Diagnostic and statistical manual of mental disorders” (DSM-5) alapján","SZTE-ÁOK/12/063",{"$nulls":5},{"$error":"#DIV/0!"},{"$error":"#DIV/0!"}]
["74.","Egészségtudományok - Szekunder prevenció, családorvoslás, preventív medicina 3.",{"$f":"VLOOKUP(B79,#REF!,2,FALSE)","v":{"$error":"#REF!"}},4,"Kovács Ildikó Ágnes\nPTE - ETK","Osteoporosis Health Belief Scale (OHBS) kérdőív magyar nyelvre validálása","PTE-ETK/12/012",{"$nulls":5},{"$error":"#DIV/0!"},{"$error":"#DIV/0!"}]
["89.","Egészségtudományok - Szekunder prevenció, családorvoslás, preventív medicina 3.",{"$f":"VLOOKUP(B80,#REF!,2,FALSE)","v":{"$error":"#REF!"}},5,"Lippai Anikó Zsuzsanna\nGFE - ESZK","Az etnicitás szerepe az akut betegellátás színterein, Békés megyére vonatkoztatva","GFE-ESZK/12/002",{"$nulls":5},{"$error":"#DIV/0!"},{"$error":"#DIV/0!"}]
["81.","Egészségtudományok - Szekunder prevenció, családorvoslás, preventív medicina 3.",{"$f":"VLOOKUP(B81,#REF!,2,FALSE)","v":{"$error":"#REF!"}},6,"Sarok Máté\nPTE - ETK","Balesetmegelőzés és elsősegélynyújtás oktatása óvodásoknak és általános iskolásoknak","PTE-ETK/12/013",{"$nulls":5},{"$error":"#DIV/0!"},{"$error":"#DIV/0!"}]
["68.","Egészségtudományok - Szekunder prevenció, családorvoslás, preventív medicina 3.",{"$f":"VLOOKUP(B82,#REF!,2,FALSE)","v":{"$error":"#REF!"}},7,"Szikszai Alexandra\nDE - NK","A felsőoktatásban tanuló elsőéves hallgatók mentális egészségének a vizsgálata a  Covid-19 járvány idején a digitális és a jelenléti oktatás vonatkozásában","DE-NK/12/010",{"$nulls":5},{"$error":"#DIV/0!"},{"$error":"#DIV/0!"}]
["85.","Egészségtudományok - Tercier prevenció, fizioterápia, rehabilitáció, ápolás és betegellátás 1.",{"$f":"VLOOKUP(B83,#REF!,2,FALSE)","v":{"$error":"#REF!"}},1,"Beták Orsolya\nSZTE - ETSZK","Fókuszban az egyensúly: A gyermekkori tartási és láb statikai rendellenességek befolyásolhatóságának és egyszerű mérési lehetőségeinek vizsgálata","SZTE-ETSZK/12/010",{"$nulls":5},{"$error":"#DIV/0!"},{"$error":"#DIV/0!"}]
["99.","Egészségtudományok - Tercier prevenció, fizioterápia, rehabilitáció, ápolás és betegellátás 1.",{"$f":"VLOOKUP(B84,#REF!,2,FALSE)","v":{"$error":"#REF!"}},2,"Erdei Renáta\nDE - NK","Légzőtorna gerincmobilitásra gyakorolt hatásának vizsgálata nők körében","DE-NK/12/009",{"$nulls":5},{"$error":"#DIV/0!"},{"$error":"#DIV/0!"}]
["94.","Egészségtudományok - Tercier prevenció, fizioterápia, rehabilitáció, ápolás és betegellátás 1.",{"$f":"VLOOKUP(B85,#REF!,2,FALSE)","v":{"$error":"#REF!"}},3,"Holló Boglárka\nME - EK","Az egyensúly és a koordináció fejlesztése idős korban","ME-EK/12/004",{"$nulls":5},{"$error":"#DIV/0!"},{"$error":"#DIV/0!"}]
["97.","Egészségtudományok - Tercier prevenció, fizioterápia, rehabilitáció, ápolás és betegellátás 1.",{"$f":"VLOOKUP(B86,#REF!,2,FALSE)","v":{"$error":"#REF!"}},4,"Hornisch Aliz Gabriella\nSE - ETK","Az úszóváll rizikófaktorai gyermekkorban","SE-ETK/12/008",{"$nulls":5},{"$error":"#DIV/0!"},{"$error":"#DIV/0!"}]
["46.","Egészségtudományok - Tercier prevenció, fizioterápia, rehabilitáció, ápolás és betegellátás 1.",{"$f":"VLOOKUP(B87,#REF!,2,FALSE)","v":{"$error":"#REF!"}},5,"Koronczai Patrik\nPTE - ETK","Krónikus boka instabilitásban szenvedő futsal játékosok alsó végtagi izomaktivitásának vizsgálata és fejlesztése","PTE-ETK/12/014",{"$nulls":5},{"$error":"#DIV/0!"},{"$error":"#DIV/0!"}]
["106.","Egészségtudományok - Tercier prevenció, fizioterápia, rehabilitáció, ápolás és betegellátás 1.",{"$f":"VLOOKUP(B88,#REF!,2,FALSE)","v":{"$error":"#REF!"}},6,"Süle-Szigeti Attila\nPTE - ETK","Scapula diszkinézis, dobó váll, vállfájdalom, valamint adekvát mozgásterápiára történő változás összefüggésének kontrollcsoportos vizsgálata utánpótlás korú kézilabdázók körében","PTE-ETK/12/024",{"$nulls":5},{"$error":"#DIV/0!"},{"$error":"#DIV/0!"}]
["88.","Egészségtudományok - Tercier prevenció, fizioterápia, rehabilitáció, ápolás és betegellátás 1.",{"$f":"VLOOKUP(B89,#REF!,2,FALSE)","v":{"$error":"#REF!"}},7,"Varga Ildikó\nSZTE - ETSZK","A zene hatása a futó teljesítményére","SZTE-ETSZK/12/008",{"$nulls":5},{"$error":"#DIV/0!"},{"$error":"#DIV/0!"}]
["98.","Egészségtudományok - Tercier prevenció, fizioterápia, rehabilitáció, ápolás és betegellátás 2.",{"$f":"VLOOKUP(B90,#REF!,2,FALSE)","v":{"$error":"#REF!"}},1,"Berki Krisztina\nDE - NK","Amatőr gamer-ek és e-sportolók fizikai állapotának vizsgálata, az e-sport következtében megjelenő mozgásszervi problémák beazonosítása","DE-NK/12/017",{"$nulls":5},{"$error":"#DIV/0!"},{"$error":"#DIV/0!"}]
["79.","Egészségtudományok - Tercier prevenció, fizioterápia, rehabilitáció, ápolás és betegellátás 2.",{"$f":"VLOOKUP(B91,#REF!,2,FALSE)","v":{"$error":"#REF!"}},2,"Duzsik Lili\nSZTE - ETSZK","A hosszantartó ülés káros hatásainak mérséklése fizikális tréninggel, illetve kognitív és digitális eszközökön alapuló tartásjavítás révén","SZTE-ETSZK/12/009",{"$nulls":5},{"$error":"#DIV/0!"},{"$error":"#DIV/0!"}]
["105.","Egészségtudományok - Tercier prevenció, fizioterápia, rehabilitáció, ápolás és betegellátás 2.",{"$f":"VLOOKUP(B92,#REF!,2,FALSE)","v":{"$error":"#REF!"}},3,"Elizabeth Chibwe Musaba\nDE - NK","Access to Healthcare for people with Hearing Disability","DE-NK/12/005",{"$nulls":5},{"$error":"#DIV/0!"},{"$error":"#DIV/0!"}]
["91.","Egészségtudományok - Tercier prevenció, fizioterápia, rehabilitáció, ápolás és betegellátás 2.",{"$f":"VLOOKUP(B93,#REF!,2,FALSE)","v":{"$error":"#REF!"}},4,"Meher Muhammad Zeeshan\nPTE - ETK","Predictors of life-threatening arrhythmia in Coronary Care Unit","PTE-ETK/12/007",{"$nulls":5},{"$error":"#DIV/0!"},{"$error":"#DIV/0!"}]
["87.","Egészségtudományok - Tercier prevenció, fizioterápia, rehabilitáció, ápolás és betegellátás 2.",{"$f":"VLOOKUP(B94,#REF!,2,FALSE)","v":{"$error":"#REF!"}},5,"Mirk Brigitta\nSZTE - ETSZK","A neuromuscularis hatékonyság fejlesztése a nyaki gerinc lokális stabilizátorainak reaktivációjával - esettanulmány","SZTE-ETSZK/12/006",{"$nulls":5},{"$error":"#DIV/0!"},{"$error":"#DIV/0!"}]
["93.","Egészségtudományok - Tercier prevenció, fizioterápia, rehabilitáció, ápolás és betegellátás 2.",{"$f":"VLOOKUP(B95,#REF!,2,FALSE)","v":{"$error":"#REF!"}},6,"Müller Luca Zsófia\nME - EK","Krónikus légzőszervi betegek rekeszproblémáinak funkcionális megközelítése","ME-EK/12/007","Nem jelent meg"]
["84.","Egészségtudományok - Tercier prevenció, fizioterápia, rehabilitáció, ápolás és betegellátás 2.",{"$f":"VLOOKUP(B96,#REF!,2,FALSE)","v":{"$error":"#REF!"}},7,"Plajer Alexandra\nSE - ETK","Prevenciós tréningprogram hatásosságának vizsgálata serdülőkorú vízilabdázóknál","SE-ETK/12/014",{"$nulls":5},{"$error":"#DIV/0!"},{"$error":"#DIV/0!"}]
["102.","Egészségtudományok - Tercier prevenció, fizioterápia, rehabilitáció, ápolás és betegellátás 3.",{"$f":"VLOOKUP(B97,#REF!,2,FALSE)","v":{"$error":"#REF!"}},1,"Erős Kata Viktória, Iván Noémi\nSE - ETK","Az “Oesophagealis adenocarcinoma járvány” a Szent János Kórházban","SE-ETK/12/019",{"$nulls":5},{"$error":"#DIV/0!"},{"$error":"#DIV/0!"}]
["109.","Egészségtudományok - Tercier prevenció, fizioterápia, rehabilitáció, ápolás és betegellátás 3.",{"$f":"VLOOKUP(B98,#REF!,2,FALSE)","v":{"$error":"#REF!"}},2,"Fejes Dalma\nME - EK","Eszközös egyensúlyvizsgálat eredményei női sportolók körében","ME-EK/12/008",{"$nulls":5},{"$error":"#DIV/0!"},{"$error":"#DIV/0!"}]
["108.","Egészségtudományok - Tercier prevenció, fizioterápia, rehabilitáció, ápolás és betegellátás 3.",{"$f":"VLOOKUP(B99,#REF!,2,FALSE)","v":{"$error":"#REF!"}},3,"Hidvégi Rebeka\nME - EK","Coxarthrosis komplex fizioterápiás kezelése, avagy subaqualis torna a mezőkövesdi kénes gyógyvízben","ME-EK/12/009",{"$nulls":5},{"$error":"#DIV/0!"},{"$error":"#DIV/0!"}]
["115.","Egészségtudományok - Tercier prevenció, fizioterápia, rehabilitáció, ápolás és betegellátás 3.",{"$f":"VLOOKUP(B100,#REF!,2,FALSE)","v":{"$error":"#REF!"}},4,"Kocsány Péter\nDE - NK","A systemás thrombolysis hatása ischaemiás stroke betegek elsőbbségi rehabilitációjának funkcionális kimenetelére","DE-NK/12/015",{"$nulls":5},{"$error":"#DIV/0!"},{"$error":"#DIV/0!"}]
["103.","Egészségtudományok - Tercier prevenció, fizioterápia, rehabilitáció, ápolás és betegellátás 3.",{"$f":"VLOOKUP(B101,#REF!,2,FALSE)","v":{"$error":"#REF!"}},5,"Rozner Klaudia\nPTE - ETK","Az ülőmunkából fakadó krónikus nyakfájdalom vizsgálata és komplex mozgásterápiás kezelése","PTE-ETK/12/023",{"$nulls":5},{"$error":"#DIV/0!"},{"$error":"#DIV/0!"}]
["114.","Egészségtudományok - Tercier prevenció, fizioterápia, rehabilitáció, ápolás és betegellátás 3.",{"$f":"VLOOKUP(B102,#REF!,2,FALSE)","v":{"$error":"#REF!"}},6,"Vántus Hanna Orsolya, Veszter Dóra Gabriella\nSZTE - ETSZK","High Intensity Interval Training (HIIT): Erőben az egyensúly?","SZTE-ETSZK/12/003",{"$nulls":5},{"$error":"#DIV/0!"},{"$error":"#DIV/0!"}]
["113.","Egészségtudományok - Tercier prevenció, fizioterápia, rehabilitáció, ápolás és betegellátás 3.",{"$f":"VLOOKUP(B103,#REF!,2,FALSE)","v":{"$error":"#REF!"}},7,"Végh Bianka Éva\nSZTE - ETSZK","Tudatosan a sportban, tudatosan az itt és mostban Alcím: Avagy miért nélkülözhetetlen a testtudatosság fejlesztése egy fizioterápiás kezelés során?","SZTE-ETSZK/12/005",{"$nulls":5},{"$error":"#DIV/0!"},{"$error":"#DIV/0!"}]
["120.","Elméleti orvostudományok - Anatómia, morfológia, fejlődésbiológia 1.",{"$f":"VLOOKUP(B104,#REF!,2,FALSE)","v":{"$error":"#REF!"}},1,"Szőcs Szilárd, Agócs-Laboda Ágnes\nETDK - OGYK","Parasubiculum és a dorzális hippocampus közötti kapcsolati motívumok","ETDK-OGYK/12/014",{"$nulls":5},{"$error":"#DIV/0!"},{"$error":"#DIV/0!"}]
["119.","Elméleti orvostudományok - Anatómia, morfológia, fejlődésbiológia 1.",{"$f":"VLOOKUP(B105,#REF!,2,FALSE)","v":{"$error":"#REF!"}},2,"Gyurok Gergő Péter\nPTE - ÁOK","A hallópálya és a Corti-szerv morfológiai vizsgálata hipofízis adenilát-cikláz aktiváló polipeptid-génkiütött (PACAP KO) és vad típusú egerekben","PTE-ÁOK/12/005",{"$nulls":5},{"$error":"#DIV/0!"},{"$error":"#DIV/0!"}]
["128.","Elméleti orvostudományok - Anatómia, morfológia, fejlődésbiológia 1.",{"$f":"VLOOKUP(B106,#REF!,2,FALSE)","v":{"$error":"#REF!"}},3,"Hinnah Barbara\nDE - ÁOK","TGFβ útvonal megváltozásának eredménye fibrosis lehet Alzheimer-kóros egérmodell veséiben","DE-ÁOK/12/064",{"$nulls":5},{"$error":"#DIV/0!"},{"$error":"#DIV/0!"}]
["123.","Elméleti orvostudományok - Anatómia, morfológia, fejlődésbiológia 1.",{"$f":"VLOOKUP(B107,#REF!,2,FALSE)","v":{"$error":"#REF!"}},4,"Nyerges Miklós, Kellermayer Anna\nSE - ÁOK","Mikroglia aktiváció kinetikájának vizsgálata akut agyszeletpreparátumban","SE-ÁOK/12/044",{"$nulls":5},{"$error":"#DIV/0!"},{"$error":"#DIV/0!"}]
["121.","Elméleti orvostudományok - Anatómia, morfológia, fejlődésbiológia 1.",{"$f":"VLOOKUP(B108,#REF!,2,FALSE)","v":{"$error":"#REF!"}},5,"Lippai Bálint\nPTE - ÁOK","The presence and role of beta thymosins in mammalian inner ear development","PTE-ÁOK/12/021",{"$nulls":5},{"$error":"#DIV/0!"},{"$error":"#DIV/0!"}]
["117.","Elméleti orvostudományok - Anatómia, morfológia, fejlődésbiológia 1.",{"$f":"VLOOKUP(B109,#REF!,2,FALSE)","v":{"$error":"#REF!"}},6,"Ujvári Katinka, Schwarcz Dóra Anett\nSE - ÁOK","Újonnan azonosított molekuláris szereplők a szomatikus mikroglia-idegsejt kapcsolatokban","SE-ÁOK/12/063",{"$nulls":5},{"$error":"#DIV/0!"},{"$error":"#DIV/0!"}]
["xxx","Elméleti orvostudományok - Anatómia, morfológia, fejlődésbiológia 1.",{"$f":"VLOOKUP(B110,#REF!,2,FALSE)","v":{"$error":"#REF!"}},7,"Sebők Hunor\nSE - ÁOK","A hippocampus alternatív kolinerg beidegzése","SE-ÁOK/12/087",{"$nulls":5},{"$error":"#DIV/0!"},{"$error":"#DIV/0!"}]
["133.","Elméleti orvostudományok - Anatómia, morfológia, fejlődésbiológia 1.",{"$f":"VLOOKUP(B111,#REF!,2,FALSE)","v":{"$error":"#REF!"}},8,"Vass Máté\nSZTE - ÁOK","Szisztémás neuroectodermalis őssejtkezeléssel indukált morfológiai és funkcionális felépülés kontúziós gerincvelő-sérülést követően","SZTE-ÁOK/12/060",{"$nulls":5},{"$error":"#DIV/0!"},{"$error":"#DIV/0!"}]
["130.","Elméleti orvostudományok - Anatómia, morfológia, fejlődésbiológia 2.",{"$f":"VLOOKUP(B112,#REF!,2,FALSE)","v":{"$error":"#REF!"}},1,"Gácsi Kristóf\nSZTE - ÁOK","A koponyabázis és intracranialis struktúrák cadaver alapú 3D-s modelljeinek felhasználása az általános orvostudományi alapképzésben és a klinikai gyakorlatban","SZTE-ÁOK/12/059",{"$nulls":5},{"$error":"#DIV/0!"},{"$error":"#DIV/0!"}]
["132.","Elméleti orvostudományok - Anatómia, morfológia, fejlődésbiológia 2.",{"$f":"VLOOKUP(B113,#REF!,2,FALSE)","v":{"$error":"#REF!"}},2,"Kellermayer Anna, Nyerges Miklós\nSE - ÁOK","Neuron-mikroglia interakciók vizsgálata fejlődő agyban","SE-ÁOK/12/003",{"$nulls":5},{"$error":"#DIV/0!"},{"$error":"#DIV/0!"}]
["127.","Elméleti orvostudományok - Anatómia, morfológia, fejlődésbiológia 2.",{"$f":"VLOOKUP(B114,#REF!,2,FALSE)","v":{"$error":"#REF!"}},3,"Kothalawala William Jayasekara\nDE - ÁOK","A kartogenin porcdifferenciációt serkentő hatásainak vizsgálata","DE-ÁOK/12/012",{"$nulls":5},{"$error":"#DIV/0!"},{"$error":"#DIV/0!"}]
["131.","Elméleti orvostudományok - Anatómia, morfológia, fejlődésbiológia 2.",{"$f":"VLOOKUP(B115,#REF!,2,FALSE)","v":{"$error":"#REF!"}},4,"Kovács Patrik\nDE - ÁOK","Transzporterek expressziójának átfogó szemléletű elemzése az in vitro porcdifferenciáció során","DE-ÁOK/12/013",{"$nulls":5},{"$error":"#DIV/0!"},{"$error":"#DIV/0!"}]
["124.","Elméleti orvostudományok - Anatómia, morfológia, fejlődésbiológia 2.",{"$f":"VLOOKUP(B116,#REF!,2,FALSE)","v":{"$error":"#REF!"}},5,"Láng Tamás\nSE","Szociális viselkedésben szerepjátszó neuronhálózatok chemogenetikai vizsgálata patkányokban","SE/12/057",{"$nulls":5},{"$error":"#DIV/0!"},{"$error":"#DIV/0!"}]
["129.","Elméleti orvostudományok - Anatómia, morfológia, fejlődésbiológia 2.",{"$f":"VLOOKUP(B117,#REF!,2,FALSE)","v":{"$error":"#REF!"}},6,"Zichó Krisztián, Major Ábel\nSE","A medián raphe szabályozza a negatív emlékek kialakulását","SE/12/038",{"$nulls":5},{"$error":"#DIV/0!"},{"$error":"#DIV/0!"}]
["126.","Elméleti orvostudományok - Anatómia, morfológia, fejlődésbiológia 2.",{"$f":"VLOOKUP(B118,#REF!,2,FALSE)","v":{"$error":"#REF!"}},7,"Molnár Tímea\nETDK - OGYK","Kérgi 5. rétegi kortikotalamikus pályák optogenetikai vizsgálatának anatómiai elemzése","ETDK-OGYK/12/015",{"$nulls":5},{"$error":"#DIV/0!"},{"$error":"#DIV/0!"}]
["125.","Elméleti orvostudományok - Anatómia, morfológia, fejlődésbiológia 2.",{"$f":"VLOOKUP(B119,#REF!,2,FALSE)","v":{"$error":"#REF!"}},8,"Pytel Bence\nPTE - ÁOK","A centrális projekciójú Edinger-Westphal mag urocortin 1 neuronjainak vizsgálata a Parkinson-kórhoz társuló nem-motoros tünetek kialakulásában rotenon modellben, patkányban","PTE-ÁOK/12/012",{"$nulls":5},{"$error":"#DIV/0!"},{"$error":"#DIV/0!"}]
["118.","Elméleti orvostudományok - Anatómia, morfológia, fejlődésbiológia 2.",{"$f":"VLOOKUP(B120,#REF!,2,FALSE)","v":{"$error":"#REF!"}},9,"Tóth Boglárka\nSE","Az 5. rétegi kortikotalamikus pályák vizsgálata frontális és parietális agykérgi területeken","SE/12/081",{"$nulls":5},{"$error":"#DIV/0!"},{"$error":"#DIV/0!"}]
["139.","Elméleti orvostudományok - Biofizika",{"$f":"VLOOKUP(B121,#REF!,2,FALSE)","v":{"$error":"#REF!"}},1,"Dr. Bunta Bálint Levente\nSE","BRAF szerepe az endotél sejtek mechanikájában: atomierő-mikroszkópos vizsgálatok","SE/12/035",{"$nulls":5},{"$error":"#DIV/0!"},{"$error":"#DIV/0!"}]
["138.","Elméleti orvostudományok - Biofizika",{"$f":"VLOOKUP(B122,#REF!,2,FALSE)","v":{"$error":"#REF!"}},2,"Góra Valér\nPTE - ÁOK","A profilin 1 fehérje hatása a vázizom- és szívizom aktinra oxidatív körülmények között","PTE-ÁOK/12/049",{"$nulls":5},{"$error":"#DIV/0!"},{"$error":"#DIV/0!"}]
["135.","Elméleti orvostudományok - Biofizika",{"$f":"VLOOKUP(B123,#REF!,2,FALSE)","v":{"$error":"#REF!"}},3,"Kiss Luca Annamária\nSE - ÁOK","T7 bakteriofág DNS kilökődési folyamatának vizsgálata teljes belső visszaverődés fluoreszcencia mikroszkóppal","SE-ÁOK/12/082",{"$nulls":5},{"$error":"#DIV/0!"},{"$error":"#DIV/0!"}]
["136.","Elméleti orvostudományok - Biofizika",{"$f":"VLOOKUP(B124,#REF!,2,FALSE)","v":{"$error":"#REF!"}},4,"Szabó Máté\nDE - ÁOK","Szterolok és zsírsavak dipólpotenciálra gyakorolt hatásának vizsgálata új, nagy áteresztőképességű áramlási citometriás módszerrel","DE-ÁOK/12/026",{"$nulls":5},{"$error":"#DIV/0!"},{"$error":"#DIV/0!"}]
["275.","Elméleti orvostudományok - Biofizika",{"$f":"VLOOKUP(B125,#REF!,2,FALSE)","v":{"$error":"#REF!"}},5,"Tárnai Viktória\nPTE - ÁOK","A mikrotubuláris rendszer szerepének vizsgálata membrán nanocsövekben","PTE-ÁOK/12/072",{"$nulls":5},{"$error":"#DIV/0!"},{"$error":"#DIV/0!"}]
["134.","Elméleti orvostudományok - Biofizika",{"$f":"VLOOKUP(B126,#REF!,2,FALSE)","v":{"$error":"#REF!"}},6,"Závoti Olivér\nSE - ÁOK","Nanoszálas sérvhálók mechanikai optimalizálása","SE-ÁOK/12/061",{"$nulls":5},{"$error":"#DIV/0!"},{"$error":"#DIV/0!"}]
["143.","Elméleti orvostudományok - Bioinformatika, számítógépes modellezés",{"$f":"VLOOKUP(B127,#REF!,2,FALSE)","v":{"$error":"#REF!"}},1,"Asztalos Leó\nSZTE - ÁOK","A neoantigének sötét oldala","SZTE-ÁOK/12/048",{"$nulls":5},{"$error":"#DIV/0!"},{"$error":"#DIV/0!"}]
["140.","Elméleti orvostudományok - Bioinformatika, számítógépes modellezés",{"$f":"VLOOKUP(B128,#REF!,2,FALSE)","v":{"$error":"#REF!"}},2,"Czoch Ákos, Keumbi Kim\nSE - ÁOK","Mentális terheltségi állapot automatizált azonosítása entrópia-alapú és gépi tanulásos módszerek segítségével","SE-ÁOK/12/038",{"$nulls":5},{"$error":"#DIV/0!"},{"$error":"#DIV/0!"}]
["148.","Elméleti orvostudományok - Bioinformatika, számítógépes modellezés",{"$f":"VLOOKUP(B129,#REF!,2,FALSE)","v":{"$error":"#REF!"}},3,"Di Giovanni Márk\nSE","Fogászati CT felvételek szegmentációjának automatizálása","SE/12/031",{"$nulls":5},{"$error":"#DIV/0!"},{"$error":"#DIV/0!"}]
["141.","Elméleti orvostudományok - Bioinformatika, számítógépes modellezés",{"$f":"VLOOKUP(B130,#REF!,2,FALSE)","v":{"$error":"#REF!"}},4,"Gargya Péter\nDE - ÁOK","Endometrium tumor grade és relapsus kockázat prediktálása génexpressziós adatokból","DE-ÁOK/12/020",{"$nulls":5},{"$error":"#DIV/0!"},{"$error":"#DIV/0!"}]
["142.","Elméleti orvostudományok - Bioinformatika, számítógépes modellezés",{"$f":"VLOOKUP(B131,#REF!,2,FALSE)","v":{"$error":"#REF!"}},5,"György Attila Tamás\nETDK - OGYK","A PAX6 bioinformatikai analízise és ennek jelentősége az aniridia kutatásában","ETDK-OGYK/12/002",{"$nulls":5},{"$f":"AVERAGE(H131:L131)","v":{"$error":"#DIV/0!"}},{"$f":"_xlfn.RANK.EQ(M131,M:M)","v":{"$error":"#DIV/0!"}}]
["146.","Elméleti orvostudományok - Bioinformatika, számítógépes modellezés",{"$f":"VLOOKUP(B132,#REF!,2,FALSE)","v":{"$error":"#REF!"}},6,"Kis Merse\nSZTE - ÁOK","MikroRNS-ek és targetjeik vizsgálata krónikus radiogén szívkárosodásban patkány modellben","SZTE-ÁOK/12/014",{"$nulls":5},{"$error":"#DIV/0!"},{"$error":"#DIV/0!"}]
["147.","Elméleti orvostudományok - Bioinformatika, számítógépes modellezés",{"$f":"VLOOKUP(B133,#REF!,2,FALSE)","v":{"$error":"#REF!"}},7,"Szilágyi Gábor Sándor\nSE","Szinaptikus polaritások egyensúlyának vizsgálata a Caenorhabditis elegans konnektómban","SE/12/042",{"$nulls":5},{"$error":"#DIV/0!"},{"$error":"#DIV/0!"}]
["145.","Elméleti orvostudományok - Bioinformatika, számítógépes modellezés",{"$f":"VLOOKUP(B134,#REF!,2,FALSE)","v":{"$error":"#REF!"}},8,"Vizi András\nPTE - ÁOK","3D nyomtatásban használt alapanyagok különböző fertőtlenítési eljárások utáni anyagtani tulajdonságai","PTE-ÁOK/12/034",{"$nulls":5},{"$error":"#DIV/0!"},{"$error":"#DIV/0!"}]
["152.","Elméleti orvostudományok - Biokémia",{"$f":"VLOOKUP(B135,#REF!,2,FALSE)","v":{"$error":"#REF!"}},1,"De Villa Alexa Petra\nPTE - ÁOK","A fázis IV-es PARP-inhibitor olaparib hatásának vizsgálata mesterséges epitheliális határrétegen","PTE-ÁOK/12/040",{"$nulls":5},{"$error":"#DIV/0!"},{"$error":"#DIV/0!"}]
["xxx","Elméleti orvostudományok - Biokémia",{"$f":"VLOOKUP(B136,#REF!,2,FALSE)","v":{"$error":"#REF!"}},2,"Guti Viktor\nSE","A β-arresztin2 interakcióinak vizsgálata nem-receptor fehérjékkel","SE-ÁOK/12/089",{"$nulls":5},{"$error":"#DIV/0!"},{"$error":"#DIV/0!"}]
["150.","Elméleti orvostudományok - Biokémia",{"$f":"VLOOKUP(B137,#REF!,2,FALSE)","v":{"$error":"#REF!"}},3,"Kokas Márton\nSE - ÁOK","A metilénkék hatása a citokróm-c redox állapotára in vivo és in vitro körülmények között","SE-ÁOK/12/005",{"$nulls":5},{"$error":"#DIV/0!"},{"$error":"#DIV/0!"}]
["153.","Elméleti orvostudományok - Biokémia",{"$f":"VLOOKUP(B138,#REF!,2,FALSE)","v":{"$error":"#REF!"}},4,"Kovács Szonja Anna\nDE - ÁOK","A smoothelin-szerű 1 fehérje inzulinérzékenyítő szerepe a vázizomban","DE-ÁOK/12/052",{"$nulls":5},{"$error":"#DIV/0!"},{"$error":"#DIV/0!"}]
["151.","Elméleti orvostudományok - Biokémia",{"$f":"VLOOKUP(B139,#REF!,2,FALSE)","v":{"$error":"#REF!"}},5,"Lovas Miklós\nSE","A polifoszfát nanopartikulumok és hisztonok stabilizálják a fibrin szerkezetét","SE/12/040",{"$nulls":5},{"$error":"#DIV/0!"},{"$error":"#DIV/0!"}]
["149.","Elméleti orvostudományok - Biokémia",{"$f":"VLOOKUP(B140,#REF!,2,FALSE)","v":{"$error":"#REF!"}},6,"Nászai Anna, Terhes Emil\nSZTE - ÁOK","Az extramitokondriális kalcium mozgás vizsgálata","SZTE-ÁOK/12/054",{"$nulls":5},{"$error":"#DIV/0!"},{"$error":"#DIV/0!"}]
["155.","Elméleti orvostudományok - Biokémia",{"$f":"VLOOKUP(B141,#REF!,2,FALSE)","v":{"$error":"#REF!"}},7,"Vinnai Boglárka Ágnes\nDE - ÁOK","A hosszú távú tiamin kezelés fokozza a humán adipociták hőtermelő képességét ex vivo","DE-ÁOK/12/038",{"$nulls":5},{"$error":"#DIV/0!"},{"$error":"#DIV/0!"}]
["192.","Elméleti orvostudományok - Élettan, kórélettan 1.",{"$f":"VLOOKUP(B142,#REF!,2,FALSE)","v":{"$error":"#REF!"}},1,"Ahmad Salah Mahmoud Totonji\nSZTE - ÁOK","Dimethyl-trisulfide: new approach to ameliorate experimental acute pancreatitis","SZTE-ÁOK/12/001",{"$nulls":5},{"$error":"#DIV/0!"},{"$error":"#DIV/0!"}]
["160.","Elméleti orvostudományok - Élettan, kórélettan 1.",{"$f":"VLOOKUP(B143,#REF!,2,FALSE)","v":{"$error":"#REF!"}},2,"Harangozó Márk\nSZTE - ÁOK","A temporális lebeny epilepszia kezelése a mediális szeptum elektromos ingerlésével","SZTE-ÁOK/12/036",{"$nulls":5},{"$error":"#DIV/0!"},{"$error":"#DIV/0!"}]
["159.","Elméleti orvostudományok - Élettan, kórélettan 1.",{"$f":"VLOOKUP(B144,#REF!,2,FALSE)","v":{"$error":"#REF!"}},3,"Lázár Dániel Benjámin, Sarkadi Mária\nDE - ÁOK","A KCNQ4 alegység hiánya felerősíti az akusztikus startle reflexet","DE-ÁOK/12/067",{"$nulls":5},{"$error":"#DIV/0!"},{"$error":"#DIV/0!"}]
["122.","Elméleti orvostudományok - Élettan, kórélettan 1.",{"$f":"VLOOKUP(B145,#REF!,2,FALSE)","v":{"$error":"#REF!"}},4,"Schwarcz Dóra Anett, Ujvári Katinka\nSE","A P2Y12 receptorok szerepe a mikroglia fiziológiás működésében","SE/12/047",{"$nulls":5},{"$error":"#DIV/0!"},{"$error":"#DIV/0!"}]
["508.","Elméleti orvostudományok - Élettan, kórélettan 1.",{"$f":"VLOOKUP(B146,#REF!,2,FALSE)","v":{"$error":"#REF!"}},5,"Vékony Roland Gábor\nPTE - ÁOK","A PACAP neuropeptid szerepének vizsgálata a citoszkeletális rendszer szabályozásában","PTE-ÁOK/12/041",{"$nulls":5},{"$error":"#DIV/0!"},{"$error":"#DIV/0!"}]
["170.","Elméleti orvostudományok - Élettan, kórélettan 1.",{"$f":"VLOOKUP(B147,#REF!,2,FALSE)","v":{"$error":"#REF!"}},6,"Vető Kinga Nóra\nSE - ETK","Zsíretetéssel kiváltott atherosclerosis hatása az erek működésére LDL receptorhiányban","SE-ETK/12/015",{"$nulls":5},{"$error":"#DIV/0!"},{"$error":"#DIV/0!"}]
["309.","Elméleti orvostudományok - Élettan, kórélettan 2.",{"$f":"VLOOKUP(B148,#REF!,2,FALSE)","v":{"$error":"#REF!"}},1,"Balla Helga\nSE","A bradykinin B2 receptor szerepe a humán húgyhólyag kontrakció szabályozásában","SE/12/055",{"$nulls":5},{"$error":"#DIV/0!"},{"$error":"#DIV/0!"}]
["379.","Elméleti orvostudományok - Élettan, kórélettan 2.",{"$f":"VLOOKUP(B149,#REF!,2,FALSE)","v":{"$error":"#REF!"}},2,"Bottlik Olívia, Zsáry Eszter\nSE - ÁOK","A rendszeres fizikai edzés által kiváltott jobb kamrai remodelláció vizsgálata sportszív patkánymodellben","SE-ÁOK/12/073",{"$nulls":5},{"$error":"#DIV/0!"},{"$error":"#DIV/0!"}]
["178.","Elméleti orvostudományok - Élettan, kórélettan 2.",{"$f":"VLOOKUP(B150,#REF!,2,FALSE)","v":{"$error":"#REF!"}},3,"Dhanjal Roopkaran Singh, Jawahar Siddharth Krishnamurthi\nSZTE - ÁOK","The effect of obestatin and ketamine in an animal model of depression","SZTE-ÁOK/12/073",{"$nulls":5},{"$error":"#DIV/0!"},{"$error":"#DIV/0!"}]
["436.","Elméleti orvostudományok - Élettan, kórélettan 2.",{"$f":"VLOOKUP(B151,#REF!,2,FALSE)","v":{"$error":"#REF!"}},4,"Dr. Hantosi Dóra\nSZTE - ÁOK","A dimetil-triptamin neuroprotektív hatása iszkémiás patkány agykéregben","SZTE-ÁOK/12/062",{"$nulls":5},{"$error":"#DIV/0!"},{"$error":"#DIV/0!"}]
["196.","Elméleti orvostudományok - Élettan, kórélettan 2.",{"$f":"VLOOKUP(B152,#REF!,2,FALSE)","v":{"$error":"#REF!"}},5,"Max Heidböhmer\nPTE - ÁOK","Development of a mouse model of diabetic neuropathy","PTE-ÁOK/12/073",{"$nulls":5},{"$error":"#DIV/0!"},{"$error":"#DIV/0!"}]
["413.","Elméleti orvostudományok - Élettan, kórélettan 2.",{"$f":"VLOOKUP(B153,#REF!,2,FALSE)","v":{"$error":"#REF!"}},6,"Szőllősi Panna\nDE - ÁOK","A testösszetétel és a felső végtag teljesítménye közötti összefüggések női kézilabdázók körében","DE-ÁOK/12/051",{"$nulls":5},{"$error":"#DIV/0!"},{"$error":"#DIV/0!"}]
["359.","Elméleti orvostudományok - Élettan, kórélettan 3.",{"$f":"VLOOKUP(B154,#REF!,2,FALSE)","v":{"$error":"#REF!"}},1,"Sayour Nabil, Gergely Tamás\nSE","A távoli iszkémiás kondícionálás kardioprotektív hatásainak összehasonlítása az akut miokardiális infarktus in vivo patkánymodelljeiben","SE/12/070",{"$nulls":5},{"$error":"#DIV/0!"},{"$error":"#DIV/0!"}]
["368.","Elméleti orvostudományok - Élettan, kórélettan 3.",{"$f":"VLOOKUP(B155,#REF!,2,FALSE)","v":{"$error":"#REF!"}},2,"Gulyás Lili\nSE - ÁOK","A RICTOR, mint a kardioprotektív ProtekromiR mikroRNS hálózat központi szabályozója","SE-ÁOK/12/053",{"$nulls":5},{"$error":"#DIV/0!"},{"$error":"#DIV/0!"}]
["171.","Elméleti orvostudományok - Élettan, kórélettan 3.",{"$f":"VLOOKUP(B156,#REF!,2,FALSE)","v":{"$error":"#REF!"}},3,"Hegedűs Dávid Áron, Szabó Ádám\nPTE - ÁOK","A ventrális pallidumba injektált szulpirid hatása a motivációs és tanulási folyamatokra egészséges és MAM-E17 skizofrénia modellállatokban","PTE-ÁOK/12/043",{"$nulls":5},{"$error":"#DIV/0!"},{"$error":"#DIV/0!"}]
["176.","Elméleti orvostudományok - Élettan, kórélettan 3.",{"$f":"VLOOKUP(B157,#REF!,2,FALSE)","v":{"$error":"#REF!"}},4,"Hernádi Zsófia\nSZTE - ÁOK","Pericita kontraktillitás vizsgálata időskori agyi ischaemiás folyamatokban","SZTE-ÁOK/12/018",{"$nulls":5},{"$error":"#DIV/0!"},{"$error":"#DIV/0!"}]
["478.","Elméleti orvostudományok - Élettan, kórélettan 3.",{"$f":"VLOOKUP(B158,#REF!,2,FALSE)","v":{"$error":"#REF!"}},5,"Pathan Afrin Javed\nDE - ÁOK","Hemorheological alterations in a rat model of polycystic ovary syndrome","DE-ÁOK/12/041",{"$nulls":5},{"$error":"#DIV/0!"},{"$error":"#DIV/0!"}]
["172.","Elméleti orvostudományok - Élettan, kórélettan 3.",{"$f":"VLOOKUP(B159,#REF!,2,FALSE)","v":{"$error":"#REF!"}},6,"Szarvas Péter Archibald\nSZTE - ÁOK","Különböző módszerekkel kiváltott terjedő depolarizációk elektrofiziológiai és szövettani jellemzése patkány agyszeleten","SZTE-ÁOK/12/013",{"$nulls":5},{"$error":"#DIV/0!"},{"$error":"#DIV/0!"}]
["369.","Elméleti orvostudományok - Élettan, kórélettan 4.",{"$f":"VLOOKUP(B160,#REF!,2,FALSE)","v":{"$error":"#REF!"}},1,"Bálint Tímea, Nagy Dávid\nSE - ÁOK","A mikroRNS-ek szerepe a fokozott nyomás- és a fokozott volumenterhelés által indukált szívelégtelenségben","SE-ÁOK/12/020",{"$nulls":5},{"$error":"#DIV/0!"},{"$error":"#DIV/0!"}]
["227.","Elméleti orvostudományok - Élettan, kórélettan 4.",{"$f":"VLOOKUP(B161,#REF!,2,FALSE)","v":{"$error":"#REF!"}},2,"Demeter Flóra\nSE","A hypoxia és a komplement MASP-1 szinergista hatása az e-szelektin expresszióra humán endotélsejteken","SE/12/027",{"$nulls":5},{"$error":"#DIV/0!"},{"$error":"#DIV/0!"}]
["177.","Elméleti orvostudományok - Élettan, kórélettan 4.",{"$f":"VLOOKUP(B162,#REF!,2,FALSE)","v":{"$error":"#REF!"}},3,"Fejes Alexandra, Gausz Flóra Diána\nSZTE - ÁOK","A kinurénsav potenciális prekondícionáló hatásának vizsgálata doxorubicin indukálta akut szívkárosodás modellben","SZTE-ÁOK/12/028",{"$nulls":5},{"$error":"#DIV/0!"},{"$error":"#DIV/0!"}]
["174.","Elméleti orvostudományok - Élettan, kórélettan 4.",{"$f":"VLOOKUP(B163,#REF!,2,FALSE)","v":{"$error":"#REF!"}},4,"Kiss Orsolya\nPTE - ÁOK","Intraamygdaloid oxitocin receptorok szerepe szociális interakcióban, valproát indukálta autizmus állatmodellben","PTE-ÁOK/12/008",{"$nulls":5},{"$error":"#DIV/0!"},{"$error":"#DIV/0!"}]
[543,"Elméleti orvostudományok - Élettan, kórélettan 4.",{"$f":"VLOOKUP(B164,#REF!,2,FALSE)","v":{"$error":"#REF!"}},5,"Mohammad Walid Ahmad Al-Smadi\nDE - ÁOK","Comparison of hemodynamic, histological and flow pattern changes caused by arterio-venous fistula or a loop-shaped venous interposition in the rat","DE-ÁOK/12/082",{"$nulls":5},{"$error":"#DIV/0!"},{"$error":"#DIV/0!"}]
["420.","Elméleti orvostudományok - Élettan, kórélettan 4.",{"$f":"VLOOKUP(B165,#REF!,2,FALSE)","v":{"$error":"#REF!"}},6,"Vidács Dániel László\nSZTE - ÁOK","Egészséges, felnőtt bőrből származó melanociták differenciációs potenciáljának vizsgálata","SZTE-ÁOK/12/045",{"$nulls":5},{"$error":"#DIV/0!"},{"$error":"#DIV/0!"}]
["175.","Elméleti orvostudományok - Élettan, kórélettan 5.",{"$f":"VLOOKUP(B166,#REF!,2,FALSE)","v":{"$error":"#REF!"}},1,"Homoki Orsolya\nPTE - ÁOK","A gyulladás hatása a posztnatális fejlődésre – állatkísérletes vizsgálat","PTE-ÁOK/12/074",{"$nulls":5},{"$error":"#DIV/0!"},{"$error":"#DIV/0!"}]
["410.","Elméleti orvostudományok - Élettan, kórélettan 5.",{"$f":"VLOOKUP(B167,#REF!,2,FALSE)","v":{"$error":"#REF!"}},2,"Kovács Gábor\nSE","A VEGFC mRNS-LNP hosszú távon javítja a nyiroködémát transzgenikus állatmodellben","SE/12/039",{"$nulls":5},{"$error":"#DIV/0!"},{"$error":"#DIV/0!"}]
["180.","Elméleti orvostudományok - Élettan, kórélettan 5.",{"$f":"VLOOKUP(B168,#REF!,2,FALSE)","v":{"$error":"#REF!"}},3,"Nógrádi Bernát, Kristóf Rebeka\nSZTE - ÁOK","NLRP3 inflammaszóma aktivációjának gátlása perifériás idegsérülést követően","SZTE-ÁOK/12/040",{"$nulls":5},{"$error":"#DIV/0!"},{"$error":"#DIV/0!"}]
["161.","Elméleti orvostudományok - Élettan, kórélettan 5.",{"$f":"VLOOKUP(B169,#REF!,2,FALSE)","v":{"$error":"#REF!"}},4,"Lénárt Ádám\nSE - ÁOK","Izoprosztánok kontrakciós hatása és intracelluláris jelátvitele humán húgyhólyag simaizomban","SE-ÁOK/12/040",{"$nulls":5},{"$error":"#DIV/0!"},{"$error":"#DIV/0!"}]
["179.","Elméleti orvostudományok - Élettan, kórélettan 5.",{"$f":"VLOOKUP(B170,#REF!,2,FALSE)","v":{"$error":"#REF!"}},5,"Macula Gergő\nSZTE - ÁOK","Doxorubicin kiváltotta krónikus kardiotoxicitás mérséklése mirabegron alkalmazásával patkány modellben","SZTE-ÁOK/12/025",{"$nulls":5},{"$error":"#DIV/0!"},{"$error":"#DIV/0!"}]
["167.","Elméleti orvostudományok - Élettan, kórélettan 5.",{"$f":"VLOOKUP(B171,#REF!,2,FALSE)","v":{"$error":"#REF!"}},6,"Mészáros Zsófia Réka\nDE - ÁOK","Pozitív inotróp szerek hatásainak vizsgálata bal kamrai izolált szívizomsejtek összehúzódásaira és Ca2+ tranzienseire","DE-ÁOK/12/048",{"$nulls":5},{"$error":"#DIV/0!"},{"$error":"#DIV/0!"}]
["182.","Elméleti orvostudományok - Élettan, kórélettan 6.",{"$f":"VLOOKUP(B172,#REF!,2,FALSE)","v":{"$error":"#REF!"}},1,"Kovács Balázs, Buczkó Emma\nPTE - ÁOK","A sztereopszis vizsgálata a szenzoros maszkolás módszerével.","PTE-ÁOK/12/009",{"$nulls":5},{"$error":"#DIV/0!"},{"$error":"#DIV/0!"}]
["183.","Elméleti orvostudományok - Élettan, kórélettan 6.",{"$f":"VLOOKUP(B173,#REF!,2,FALSE)","v":{"$error":"#REF!"}},2,"Grassalkovich Anna\nSZTE - ÁOK","A CFTR csatorna korrekciója és aktivációja csökkenti az akut pankreatitisz súlyosságát","SZTE-ÁOK/12/009",{"$nulls":5},{"$error":"#DIV/0!"},{"$error":"#DIV/0!"}]
["181.","Elméleti orvostudományok - Élettan, kórélettan 6.",{"$f":"VLOOKUP(B174,#REF!,2,FALSE)","v":{"$error":"#REF!"}},3,"Hajdu Dominika\nSZTE - ÁOK","TRESK háttér kálium csatornák módosító hatása a trigeminális nociceptív funkciókra","SZTE-ÁOK/12/031",{"$nulls":5},{"$error":"#DIV/0!"},{"$error":"#DIV/0!"}]
["194.","Elméleti orvostudományok - Élettan, kórélettan 6.",{"$f":"VLOOKUP(B175,#REF!,2,FALSE)","v":{"$error":"#REF!"}},4,"Ji Yeon Kwon\nSE","PPARγ activation reduces TGF-beta induced renal damage by repressing renal complement and galectin-3 expression","SE/12/007",{"$nulls":5},{"$error":"#DIV/0!"},{"$error":"#DIV/0!"}]
["168.","Elméleti orvostudományok - Élettan, kórélettan 6.",{"$f":"VLOOKUP(B176,#REF!,2,FALSE)","v":{"$error":"#REF!"}},5,"Török Zsolt, Sándor Gréta Boglárka\nDE - ÁOK","Az L-típusú kalciumáram és a nátrium-kalcium csereáram szerepe a szívizom béta-adrenerg adaptációja során.","DE-ÁOK/12/046",{"$nulls":5},{"$error":"#DIV/0!"},{"$error":"#DIV/0!"}]
["165.","Elméleti orvostudományok - Élettan, kórélettan 6.",{"$f":"VLOOKUP(B177,#REF!,2,FALSE)","v":{"$error":"#REF!"}},6,"Tóth Tímea\nSE - ÁOK","A lizofoszfatidilkolin endothelium diszfunkciót okozó hatásának molekuláris mechanizmusa","SE-ÁOK/12/059",{"$nulls":5},{"$error":"#DIV/0!"},{"$error":"#DIV/0!"}]
["184.","Elméleti orvostudományok - Élettan, kórélettan 7.",{"$f":"VLOOKUP(B178,#REF!,2,FALSE)","v":{"$error":"#REF!"}},1,"Gausz Flóra Diána, Fejes Alexandra\nSZTE - ÁOK","Szívkárosodás vizsgálata hím és nőstény db/db egerekben","SZTE-ÁOK/12/030",{"$nulls":5},{"$error":"#DIV/0!"},{"$error":"#DIV/0!"}]
["xxx","Elméleti orvostudományok - Élettan, kórélettan 7.",{"$f":"VLOOKUP(B179,#REF!,2,FALSE)","v":{"$error":"#REF!"}},2,"Nagy-Bozsoky József\nSE","Magasságfüggő hypoxia hatása az agy oxigénellátására földi repülésélettani szimuláció során","SE-ÁOK/12/088",{"$nulls":5},{"$error":"#DIV/0!"},{"$error":"#DIV/0!"}]
["163.","Elméleti orvostudományok - Élettan, kórélettan 7.",{"$f":"VLOOKUP(B180,#REF!,2,FALSE)","v":{"$error":"#REF!"}},3,"Rácz Vivien\nDE - ÁOK","Az omecamtiv mecarbil hatásai bal kamrai izolált szívizomsejtek összehúzódásaira és Ca2+ tranzienseire","DE-ÁOK/12/047",{"$nulls":5},{"$error":"#DIV/0!"},{"$error":"#DIV/0!"}]
["190.","Elméleti orvostudományok - Élettan, kórélettan 7.",{"$f":"VLOOKUP(B181,#REF!,2,FALSE)","v":{"$error":"#REF!"}},4,"Tóth Réka\nSZTE - ÁOK","A citotoxikus ödéma szimultán depolarizációt okoz anoxiás agyszeletekben","SZTE-ÁOK/12/011",{"$nulls":5},{"$error":"#DIV/0!"},{"$error":"#DIV/0!"}]
["186.","Elméleti orvostudományok - Élettan, kórélettan 7.",{"$f":"VLOOKUP(B182,#REF!,2,FALSE)","v":{"$error":"#REF!"}},5,"Victor Nabseth\nPTE - ÁOK","The thermal effects of acute and chronic acidosis in relation to the transient receptor potential vanilloid-1 channel","PTE-ÁOK/12/070",{"$nulls":5},{"$error":"#DIV/0!"},{"$error":"#DIV/0!"}]
["166.","Elméleti orvostudományok - Élettan, kórélettan 7.",{"$f":"VLOOKUP(B183,#REF!,2,FALSE)","v":{"$error":"#REF!"}},6,"Xinari Elena\nSE - ÁOK","Investigation and functional rescue of a nephrogenic diabetes insipidus causing S127F substitution in the V2 vasopressin receptor","SE-ÁOK/12/014",{"$nulls":5},{"$error":"#DIV/0!"},{"$error":"#DIV/0!"}]
["164.","Elméleti orvostudományok - Élettan, kórélettan 8.",{"$f":"VLOOKUP(B184,#REF!,2,FALSE)","v":{"$error":"#REF!"}},1,"Fujii Erika\nDE - ÁOK","The late sodium current is regulated by intracellular calcium concentration","DE-ÁOK/12/080",{"$nulls":5},{"$error":"#DIV/0!"},{"$error":"#DIV/0!"}]
["189.","Elméleti orvostudományok - Élettan, kórélettan 8.",{"$f":"VLOOKUP(B185,#REF!,2,FALSE)","v":{"$error":"#REF!"}},2,"Taigiszer Márton Csaba, Kiss Orsolya\nPTE - ÁOK","Intraamygdaloid oxitocin hatása helytanulási folyamatok szabályozásában","PTE-ÁOK/12/042",{"$nulls":5},{"$error":"#DIV/0!"},{"$error":"#DIV/0!"}]
["350.","Elméleti orvostudományok - Élettan, kórélettan 8.",{"$f":"VLOOKUP(B186,#REF!,2,FALSE)","v":{"$error":"#REF!"}},3,"Kelemen Hanga\nETDK - OGYK","A normocapnia fokozatos visszaállításának hosszú távú hatása a perinatális asphyxia patkánymodelljében","ETDK-OGYK/12/013",{"$nulls":5},{"$error":"#DIV/0!"},{"$error":"#DIV/0!"}]
["173.","Elméleti orvostudományok - Élettan, kórélettan 8.",{"$f":"VLOOKUP(B187,#REF!,2,FALSE)","v":{"$error":"#REF!"}},4,"Major Ábel\nSE","Szinaptikus plaszticitás depressziós állatmodellben","SE/12/003",{"$nulls":5},{"$error":"#DIV/0!"},{"$error":"#DIV/0!"}]
["193.","Elméleti orvostudományok - Élettan, kórélettan 8.",{"$f":"VLOOKUP(B188,#REF!,2,FALSE)","v":{"$error":"#REF!"}},5,"Márványkövi Fanni Magdolna\nSZTE - ÁOK","A nemi különbségek hatásai az iszkémiás prekondícionálás által kiváltott kardioprotekcióra krónikus veseelégtelenségben: a STAT3 jelút lehetséges szerepe","SZTE-ÁOK/12/017",{"$nulls":5},{"$error":"#DIV/0!"},{"$error":"#DIV/0!"}]
["188.","Elméleti orvostudományok - Élettan, kórélettan 8.",{"$f":"VLOOKUP(B189,#REF!,2,FALSE)","v":{"$error":"#REF!"}},6,"Trencséni Eszter\nPTE - ÁOK","Ventrális pallidális dopamin-neurotenzin-interakciók szerepe a jutalmazás és a szorongás szabályozásában","PTE-ÁOK/12/030",{"$nulls":5},{"$error":"#DIV/0!"},{"$error":"#DIV/0!"}]
["162.","Elméleti orvostudományok - Élettan, kórélettan 9.",{"$f":"VLOOKUP(B190,#REF!,2,FALSE)","v":{"$error":"#REF!"}},1,"Blénesi Szilvia\nSE - ÁOK","Éhezéssel társult olfaktoros ingerekre mutatott tanult viselkedés vizsgálata Caenorhabditis elegans modellen","SE-ÁOK/12/033",{"$nulls":5},{"$error":"#DIV/0!"},{"$error":"#DIV/0!"}]
["195.","Elméleti orvostudományok - Élettan, kórélettan 9.",{"$f":"VLOOKUP(B191,#REF!,2,FALSE)","v":{"$error":"#REF!"}},2,"Káposzta Zalán, Czocz Ákos\nSE - ÁOK","Agyi funkcionális kapcsolati hálózatok topológiájának vizsgálata nyugalmi állapotban és kognitív terhelés során, elektroencefalográfia segítségével\n","SE-ÁOK/12/036",{"$nulls":5},{"$error":"#DIV/0!"},{"$error":"#DIV/0!"}]
["185.","Elméleti orvostudományok - Élettan, kórélettan 9.",{"$f":"VLOOKUP(B192,#REF!,2,FALSE)","v":{"$error":"#REF!"}},3,"Jánosi Richárd, Horváth Cecília\nPTE - ÁOK","Az elektromos szinapszisok eloszlása kétféle szerveződési elvet követ az emlős retinában","PTE-ÁOK/12/010",{"$nulls":5},{"$error":"#DIV/0!"},{"$error":"#DIV/0!"}]
["157.","Elméleti orvostudományok - Élettan, kórélettan 9.",{"$f":"VLOOKUP(B193,#REF!,2,FALSE)","v":{"$error":"#REF!"}},4,"Sándor Gréta Boglárka, Török Zsolt\nDE - ÁOK","Szerepet játszik-e az L típusú kalciumáram a káliumáramok profiljának szabályozásában kutya kamrai akciós potenciál alatt?","DE-ÁOK/12/023",{"$nulls":5},{"$error":"#DIV/0!"},{"$error":"#DIV/0!"}]
["158.","Elméleti orvostudományok - Élettan, kórélettan 9.",{"$f":"VLOOKUP(B194,#REF!,2,FALSE)","v":{"$error":"#REF!"}},5,"Szabó Johanna-Petra\nETDK - OGYK","Mediális szeptum és munkamemória kapcsolatának vizsgálata lokális mezőpotenciál elemzésével","ETDK-OGYK/12/012",{"$nulls":5},{"$error":"#DIV/0!"},{"$error":"#DIV/0!"}]
["260.","Elméleti orvostudományok - Élettan, kórélettan 9.",{"$f":"VLOOKUP(B195,#REF!,2,FALSE)","v":{"$error":"#REF!"}},6,"Vigyikán Gyöngyvér, Vida Noémi\nSZTE - ÁOK","A kísérletes veno-venózus extrakorporális membrán oxigenizáció során kialakuló vesekárosodás vizsgálata","SZTE-ÁOK/12/033",{"$nulls":5},{"$f":"AVERAGE(H195:L195)","v":{"$error":"#DIV/0!"}},{"$f":"_xlfn.RANK.EQ(M195,M:M)","v":{"$error":"#DIV/0!"}}]
["199.","Elméleti orvostudományok - Farmakológia 1.",{"$f":"VLOOKUP(B196,#REF!,2,FALSE)","v":{"$error":"#REF!"}},1,"Bernát Brigitta Renáta\nDE - GYTK","Telemetriás biopotenciál-mérő rendszer beállítása és a BGP-15 gyógyszerjelölt elektrofiziológiai hatásainak vizsgálata patkánymodellen","DE-GYTK/12/001",{"$nulls":5},{"$error":"#DIV/0!"},{"$error":"#DIV/0!"}]
["204.","Elméleti orvostudományok - Farmakológia 1.",{"$f":"VLOOKUP(B197,#REF!,2,FALSE)","v":{"$error":"#REF!"}},2,"Gréczi Bence\nSZTE - ÁOK","Az újonnan szintetizált sigma-1 receptor agonista (S)-0758 védő hatása teljes előagyi iszkémia patkány modelljében","SZTE-ÁOK/12/019",{"$nulls":5},{"$error":"#DIV/0!"},{"$error":"#DIV/0!"}]
["202.","Elméleti orvostudományok - Farmakológia 1.",{"$f":"VLOOKUP(B198,#REF!,2,FALSE)","v":{"$error":"#REF!"}},3,"Hacsi Ágnes Dalma\nDE - GYTK","A BGP-15 gyógyszerjelölt hatásainak vizsgálata a mitokondriális redox homeosztázisra idős ZDF patkány miokardiumán","DE-GYTK/12/004",{"$nulls":5},{"$error":"#DIV/0!"},{"$error":"#DIV/0!"}]
["207.","Elméleti orvostudományok - Farmakológia 1.",{"$f":"VLOOKUP(B199,#REF!,2,FALSE)","v":{"$error":"#REF!"}},4,"Karádi Dávid Árpád\nSE","Glycin transzporter-1 és glycin transzporter-2 gátlók együttesen adva szinergista fájdalomcsillapító hatást váltanak ki mononeuropátiás modellen","SE/12/062",{"$nulls":5},{"$error":"#DIV/0!"},{"$error":"#DIV/0!"}]
["198.","Elméleti orvostudományok - Farmakológia 1.",{"$f":"VLOOKUP(B200,#REF!,2,FALSE)","v":{"$error":"#REF!"}},5,"Kupecz Klaudia, Losonczi Réka Hajnalka\nSZTE - ÁOK","A preimplantációs faktor időbeli hatásainak a vizsgálata radiogén szívkárosodásban patkány modellben","SZTE-ÁOK/12/029",{"$nulls":5},{"$error":"#DIV/0!"},{"$error":"#DIV/0!"}]
["208.","Elméleti orvostudományok - Farmakológia 1.",{"$f":"VLOOKUP(B201,#REF!,2,FALSE)","v":{"$error":"#REF!"}},6,"Várallyay Anett Anna\nSE","A lizofoszfatidsav 2 (LPA2) receptor szerepe a nem-szteroid gyulladásgátlók által okozott bélkárosodásban egerekben","SE/12/046",{"$nulls":5},{"$error":"#DIV/0!"},{"$error":"#DIV/0!"}]
["200.","Elméleti orvostudományok - Farmakológia 2.",{"$f":"VLOOKUP(B202,#REF!,2,FALSE)","v":{"$error":"#REF!"}},1,"Bekő Anna\nETDK - OGYK","Tanulási teljesítmény vizsgálata intracerebroventrikuláris sztreptozocin adagolással indukált alzheimer-kór modellben long-evans patkányokon","ETDK-OGYK/12/008",{"$nulls":5},{"$error":"#DIV/0!"},{"$error":"#DIV/0!"}]
["205.","Elméleti orvostudományok - Farmakológia 2.",{"$f":"VLOOKUP(B203,#REF!,2,FALSE)","v":{"$error":"#REF!"}},2,"Fejes Roland\nSZTE - ÁOK","Az N-metil-D-aszpartát receptorok gátlása javítja a mitokondriális funkciózavart polimikrobiális szepszis modellben patkányon","SZTE-ÁOK/12/002",{"$nulls":5},{"$error":"#DIV/0!"},{"$error":"#DIV/0!"}]
["197.","Elméleti orvostudományok - Farmakológia 2.",{"$f":"VLOOKUP(B204,#REF!,2,FALSE)","v":{"$error":"#REF!"}},3,"Ménes Ákos István\nDE - ÁOK","Védőoltás és az autoimmunitás kapcsolata: Fluart Influenza vakcina és a krónikus reumatoid artritisz kapcsolatának experimentális vizsgálata.","DE-GYTK/12/002",{"$nulls":5},{"$error":"#DIV/0!"},{"$error":"#DIV/0!"}]
["209.","Elméleti orvostudományok - Farmakológia 2.",{"$f":"VLOOKUP(B205,#REF!,2,FALSE)","v":{"$error":"#REF!"}},4,"Miklós Gabriella\nSE - ÁOK","PD-1 ellenes immun ellenőrzőpont gátló hallásra kifejtett hatásának vizsgálata egereken","SE-ÁOK/12/058",{"$nulls":5},{"$error":"#DIV/0!"},{"$error":"#DIV/0!"}]
["374.","Elméleti orvostudományok - Farmakológia 2.",{"$f":"VLOOKUP(B206,#REF!,2,FALSE)","v":{"$error":"#REF!"}},5,"Tian Huimin, Váradi Barnabás\nSE - ÁOK","A szelektív COX-2 enzimgátlás funkciójavító hatásmechanizmusának vizsgálata koleszterin-kardiomiopátia patkánymodelljében elfogulatlan in silico eszköz segítségével","SE-ÁOK/12/081",{"$nulls":5},{"$error":"#DIV/0!"},{"$error":"#DIV/0!"}]
["206.","Elméleti orvostudományok - Farmakológia 2.",{"$f":"VLOOKUP(B207,#REF!,2,FALSE)","v":{"$error":"#REF!"}},6,"Volford Dávid\nSZTE - ÁOK","A losartan hatásainak vizsgálata krónikus radiogén szívkárosodásban patkány modellben","SZTE-ÁOK/12/024",{"$nulls":5},{"$error":"#DIV/0!"},{"$error":"#DIV/0!"}]
["510.","Elméleti orvostudományok - Farmakológia 2.",{"$f":"VLOOKUP(B208,#REF!,2,FALSE)","v":{"$error":"#REF!"}},7,"Wilisicz Ticián\nDE - ÁOK","A BGP-15-kezelés növeli a miokardiális cGMP-PKG útvonal aktivitását és javítja a diasztolés funkciót, nyúl modellen","DE-GYTK/12/003",{"$nulls":5},{"$error":"#DIV/0!"},{"$error":"#DIV/0!"}]
["218.","Elméleti orvostudományok - Genetika, genomika",{"$f":"VLOOKUP(B209,#REF!,2,FALSE)","v":{"$error":"#REF!"}},1,"Bastos Inoue Carina Harue\nDE - ÁOK","Study of the significance of miR30 family members in ovarian cancer","DE-ÁOK/12/070",{"$nulls":5},{"$error":"#DIV/0!"},{"$error":"#DIV/0!"}]
["219.","Elméleti orvostudományok - Genetika, genomika",{"$f":"VLOOKUP(B210,#REF!,2,FALSE)","v":{"$error":"#REF!"}},2,"Berke Gergő\nPTE - ÁOK","Egy gyakori kimotripszin C (CTRC) polimorfizmus vizsgálata krónikus pankreatitiszben","PTE-ÁOK/12/046",{"$nulls":5},{"$error":"#DIV/0!"},{"$error":"#DIV/0!"}]
["xxx","Elméleti orvostudományok - Genetika, genomika",{"$f":"VLOOKUP(B211,#REF!,2,FALSE)","v":{"$error":"#REF!"}},3,"Győrik Dorka\nSE","A CLOCK gén hatása a kronotípusra depresszióval interakcióban nagy európai átlagpopulációs mintán","SE-ÁOK/12/085",{"$nulls":5},{"$error":"#DIV/0!"},{"$error":"#DIV/0!"}]
["212.","Elméleti orvostudományok - Genetika, genomika",{"$f":"VLOOKUP(B212,#REF!,2,FALSE)","v":{"$error":"#REF!"}},4,"Kemenes Gréta\nDE - ÁOK","Az alveoláris makrofágok működését szabályozó EGR2 transzkripciós faktor jelentőségének vizsgálata COPD-ben","DE-ÁOK/12/061",{"$nulls":5},{"$error":"#DIV/0!"},{"$error":"#DIV/0!"}]
["217.","Elméleti orvostudományok - Genetika, genomika",{"$f":"VLOOKUP(B213,#REF!,2,FALSE)","v":{"$error":"#REF!"}},5,"Minya Patrícia\nSE - ÁOK","Interallélikus interakciók vizsgálata autoszomális recesszív kórképekben","SE-ÁOK/12/078",{"$nulls":5},{"$error":"#DIV/0!"},{"$error":"#DIV/0!"}]
["213.","Elméleti orvostudományok - Genetika, genomika",{"$f":"VLOOKUP(B214,#REF!,2,FALSE)","v":{"$error":"#REF!"}},6,"Nagy Zsófia Flóra\nSZTE - ÁOK","Amiotrófiás laterálszklerózisban szenvedő magyar betegek átfogó genetikai vizsgálata","SZTE-ÁOK/12/003",{"$nulls":5},{"$error":"#DIV/0!"},{"$error":"#DIV/0!"}]
["215.","Elméleti orvostudományok - Genetika, genomika",{"$f":"VLOOKUP(B215,#REF!,2,FALSE)","v":{"$error":"#REF!"}},7,"Stengl Roland, Ruskó Bernadett\nSE","A mutációkeresés stratégiájának optimalizálása Marfan-szindrómában","SE/12/028",{"$nulls":5},{"$error":"#DIV/0!"},{"$error":"#DIV/0!"}]
["216.","Elméleti orvostudományok - Genetika, genomika",{"$f":"VLOOKUP(B216,#REF!,2,FALSE)","v":{"$error":"#REF!"}},8,"Ruskó Bernadett, Stengl Roland\nSE","A Marfan-szindróma súlyos aorta manifesztációinak kockázatát előrejelző genetikai variánsok felderítése teljes genomasszociációs vizsgálattal","SE/12/061",{"$nulls":5},{"$error":"#DIV/0!"},{"$error":"#DIV/0!"}]
["214.","Elméleti orvostudományok - Genetika, genomika",{"$f":"VLOOKUP(B217,#REF!,2,FALSE)","v":{"$error":"#REF!"}},9,"Varga Alexandra Edit\nDE - ÁOK","Ösztrogének ovárium sejtekre kifejtett fenotípusos és miRNS expresszióban megmutatkozó hatásának vizsgálata","DE-ÁOK/12/032",{"$nulls":5},{"$error":"#DIV/0!"},{"$error":"#DIV/0!"}]
["230.","Elméleti orvostudományok - Kísérletes immunológia, mikrobiológia 1.",{"$f":"VLOOKUP(B218,#REF!,2,FALSE)","v":{"$error":"#REF!"}},1,"Tőkés Nikolett, Pál Endre Csaba\nETDK - OGYK","Karbapenemázt termelő klebsiella pneumoniae törzsek colistinérzékenységének vizsgálatára használt módszerek összehasonlítása","ETDK-OGYK/12/004",{"$nulls":5},{"$error":"#DIV/0!"},{"$error":"#DIV/0!"}]
["222.","Elméleti orvostudományok - Kísérletes immunológia, mikrobiológia 1.",{"$f":"VLOOKUP(B219,#REF!,2,FALSE)","v":{"$error":"#REF!"}},2,"Orlovácz Katalin\nPTE - ÁOK","Három új picornavírus azonosítása vadon élő és laboratóriumi patkányok (Rattusnorvegicus) bélsár-, és szervmintáiban","PTE-ÁOK/12/054",{"$nulls":5},{"$error":"#DIV/0!"},{"$error":"#DIV/0!"}]
["226.","Elméleti orvostudományok - Kísérletes immunológia, mikrobiológia 1.",{"$f":"VLOOKUP(B220,#REF!,2,FALSE)","v":{"$error":"#REF!"}},3,"Pázmándi Petra\nDE - ÁOK","NLRP3 inflammaszóma-mediált gyulladásos válaszok vizsgálata humán plazmacitoid dendritikus sejtekben","DE-ÁOK/12/024",{"$nulls":5},{"$error":"#DIV/0!"},{"$error":"#DIV/0!"}]
["221.","Elméleti orvostudományok - Kísérletes immunológia, mikrobiológia 1.",{"$f":"VLOOKUP(B221,#REF!,2,FALSE)","v":{"$error":"#REF!"}},4,"Sík Pál Botond\nSE - ÁOK","Comparison of resistance and virulence of Staphylococcus aureus isolates from different sources","SE-ÁOK/12/025",{"$nulls":5},{"$error":"#DIV/0!"},{"$error":"#DIV/0!"}]
["225.","Elméleti orvostudományok - Kísérletes immunológia, mikrobiológia 1.",{"$f":"VLOOKUP(B222,#REF!,2,FALSE)","v":{"$error":"#REF!"}},5,"Székelyhidi Virág Enikő\nDE - ÁOK","A Gaucher-kór in vitro modellrendszerének kialakítása THP-1 monocitákból","DE-ÁOK/12/007",{"$nulls":5},{"$error":"#DIV/0!"},{"$error":"#DIV/0!"}]
["224.","Elméleti orvostudományok - Kísérletes immunológia, mikrobiológia 1.",{"$f":"VLOOKUP(B223,#REF!,2,FALSE)","v":{"$error":"#REF!"}},6,"Tormássi Áron\nSE - ÁOK","Staphylococcus aureus előfordulása játszótereken és kültéri edzőgépeken","SE-ÁOK/12/069",{"$nulls":5},{"$error":"#DIV/0!"},{"$error":"#DIV/0!"}]
["220.","Elméleti orvostudományok - Kísérletes immunológia, mikrobiológia 1.",{"$f":"VLOOKUP(B224,#REF!,2,FALSE)","v":{"$error":"#REF!"}},7,"Tóth Péter Áron\nDE - ÁOK","Kiméra antigén receptort kifejező makrofág sejtek (CAR-M) alkalmazása a HER2+ solid tumorok terápiájában","DE-ÁOK/12/035",{"$nulls":5},{"$error":"#DIV/0!"},{"$error":"#DIV/0!"}]
["235.","Elméleti orvostudományok - Kísérletes immunológia, mikrobiológia 2.",{"$f":"VLOOKUP(B225,#REF!,2,FALSE)","v":{"$error":"#REF!"}},1,"Czikkely Márton\nSZTE - ÁOK","Új határok a bakteriális genomszerkesztésben – rekombináción alapuló genommérnökség hatásfokának növelése és gazda specificitásának kiszélesítése","SZTE-ÁOK/12/004",{"$nulls":5},{"$error":"#DIV/0!"},{"$error":"#DIV/0!"}]
["234.","Elméleti orvostudományok - Kísérletes immunológia, mikrobiológia 2.",{"$f":"VLOOKUP(B226,#REF!,2,FALSE)","v":{"$error":"#REF!"}},2,"Farkas Ferenc Balázs\nSE","A mikrobiom összetételének és diverzitásának analízise karbapenemáz-termelő Klebsiella pneumoniaevel kolonizált egerekben","SE/12/005",{"$nulls":5},{"$error":"#DIV/0!"},{"$error":"#DIV/0!"}]
["233.","Elméleti orvostudományok - Kísérletes immunológia, mikrobiológia 2.",{"$f":"VLOOKUP(B227,#REF!,2,FALSE)","v":{"$error":"#REF!"}},3,"Le Tran Linh Dan\nDE - ÁOK","In vitro characterization of HER2-redirected universal CAR T cells","DE-ÁOK/12/059",{"$nulls":5},{"$error":"#DIV/0!"},{"$error":"#DIV/0!"}]
["223.","Elméleti orvostudományok - Kísérletes immunológia, mikrobiológia 2.",{"$f":"VLOOKUP(B228,#REF!,2,FALSE)","v":{"$error":"#REF!"}},4,"Kisiczki Ármin Szabolcs, Koós Bence\nSE - ÁOK","A metabolikus ritmus immunmodulátor hatásai","SE-ÁOK/12/008",{"$nulls":5},{"$error":"#DIV/0!"},{"$error":"#DIV/0!"}]
["232.","Elméleti orvostudományok - Kísérletes immunológia, mikrobiológia 2.",{"$f":"VLOOKUP(B229,#REF!,2,FALSE)","v":{"$error":"#REF!"}},5,"Shlomie Briscoe\nDE - ÁOK","Comprehensive analysis of different tumor cell-line produced soluble mediators on the monocyte-derived dendritic cells’ differentiation and functional properties","DE-ÁOK/12/045",{"$nulls":5},{"$error":"#DIV/0!"},{"$error":"#DIV/0!"}]
["236.","Elméleti orvostudományok - Kísérletes immunológia, mikrobiológia 2.",{"$f":"VLOOKUP(B230,#REF!,2,FALSE)","v":{"$error":"#REF!"}},6,"Szőcs Emőke, Soós Ádám\nSE","A bursa Fabricii lymphoid follikulusainak embryonális fejlődése","SE/12/002",{"$nulls":5},{"$error":"#DIV/0!"},{"$error":"#DIV/0!"}]
["231.","Elméleti orvostudományok - Kísérletes immunológia, mikrobiológia 2.",{"$f":"VLOOKUP(B231,#REF!,2,FALSE)","v":{"$error":"#REF!"}},7,"Veres Júlia\nDE - ÁOK","Az NLRP3 és I-es típusú interferon útvonalak interakciójának vizsgálata humán plazmacitoid dendritikus sejtekben","DE-ÁOK/12/014",{"$nulls":5},{"$error":"#DIV/0!"},{"$error":"#DIV/0!"}]
["240.","Elméleti orvostudományok - Kísérletes onkológia, jelátvitel",{"$f":"VLOOKUP(B232,#REF!,2,FALSE)","v":{"$error":"#REF!"}},1,"Csikos Csaba\nDE - ÁOK","A sejtmagi NAD szintézis szerepe az aktinomicin D oszteoszarkóma sejtekre kifejtett citotoxikus hatásában","DE-ÁOK/12/027",{"$nulls":5},{"$error":"#DIV/0!"},{"$error":"#DIV/0!"}]
["238.","Elméleti orvostudományok - Kísérletes onkológia, jelátvitel",{"$f":"VLOOKUP(B233,#REF!,2,FALSE)","v":{"$error":"#REF!"}},2,"Kalabay Márton\nSE","Tamoxifen származékok tumorellenes hatásának vizsgálata pancreas- és emlőtumor sejtvonalakon","SE/12/067",{"$nulls":5},{"$error":"#DIV/0!"},{"$error":"#DIV/0!"}]
["237.","Elméleti orvostudományok - Kísérletes onkológia, jelátvitel",{"$f":"VLOOKUP(B234,#REF!,2,FALSE)","v":{"$error":"#REF!"}},3,"Khamis Reem\nDE - ÁOK","SMTNL-1 regulates the insulin signalling pathway in in vitro gestational diabetes model of human endometrial epithelium","DE-ÁOK/12/054",{"$nulls":5},{"$error":"#DIV/0!"},{"$error":"#DIV/0!"}]
["239.","Elméleti orvostudományok - Kísérletes onkológia, jelátvitel",{"$f":"VLOOKUP(B235,#REF!,2,FALSE)","v":{"$error":"#REF!"}},4,"Moldvai Dorottya\nSE","Immunszuppresszív kezelések mammalian target of rapamycin (mTOR) C1 és C2 komplexek aktivitás változását befolyásoló hatása vesetumor-xenograft modellekben","SE/12/063",{"$nulls":5},{"$error":"#DIV/0!"},{"$error":"#DIV/0!"}]
["246.","Elméleti orvostudományok - Kísérletes onkológia, jelátvitel",{"$f":"VLOOKUP(B236,#REF!,2,FALSE)","v":{"$error":"#REF!"}},5,"Papi Zsófia, Morhan Vlad\nSZTE - ÁOK","Evaluating the effects of miR-29b-3p in triple negative breast cancer cells","SZTE-ÁOK/12/039",{"$nulls":5},{"$error":"#DIV/0!"},{"$error":"#DIV/0!"}]
["144.","Elméleti orvostudományok - Kísérletes onkológia, jelátvitel",{"$f":"VLOOKUP(B237,#REF!,2,FALSE)","v":{"$error":"#REF!"}},6,"Schulc Klára\nSE - ÁOK","A jelátviteli hálózat átrendeződései a vastagbél adenoma és carcinoma kialakulása során","SE-ÁOK/12/021",{"$nulls":5},{"$error":"#DIV/0!"},{"$error":"#DIV/0!"}]
["154.","Elméleti orvostudományok - Kísérletes onkológia, jelátvitel",{"$f":"VLOOKUP(B238,#REF!,2,FALSE)","v":{"$error":"#REF!"}},7,"Szenci-Kaszás Balázs József\nSZTE - ÁOK","A BMP jelátvitelt indukáló tiloron hatása a vázizom atrófia csökkentésére","SZTE-ÁOK/12/010",{"$nulls":5},{"$error":"#DIV/0!"},{"$error":"#DIV/0!"}]
["288.","Elméleti orvostudományok - Molekuláris biológia",{"$f":"VLOOKUP(B239,#REF!,2,FALSE)","v":{"$error":"#REF!"}},1,"Farkas Benjámin\nPTE - ÁOK","My D88-as gén alternatív splicing termékeinek analízise primer Sjörgern szindrómában","PTE-ÁOK/12/039",{"$nulls":5},{"$error":"#DIV/0!"},{"$error":"#DIV/0!"}]
["248.","Elméleti orvostudományok - Molekuláris biológia",{"$f":"VLOOKUP(B240,#REF!,2,FALSE)","v":{"$error":"#REF!"}},2,"Hetényi Roland\nPTE - ÁOK","Cellular internalization of Thymosin beta-4","PTE-ÁOK/12/064",{"$nulls":5},{"$error":"#DIV/0!"},{"$error":"#DIV/0!"}]
["247.","Elméleti orvostudományok - Molekuláris biológia",{"$f":"VLOOKUP(B241,#REF!,2,FALSE)","v":{"$error":"#REF!"}},3,"Lengyel Máté, László Loretta\nDE - ÁOK","ZG16B fehérje hatása tumor és normál emlő epithel sejtek migrációjára és proliferációjára","DE-ÁOK/12/034",{"$nulls":5},{"$error":"#DIV/0!"},{"$error":"#DIV/0!"}]
["242.","Elméleti orvostudományok - Molekuláris biológia",{"$f":"VLOOKUP(B242,#REF!,2,FALSE)","v":{"$error":"#REF!"}},4,"Nagybányai-Nagy Blanka\nSE - ÁOK","A D-vitamin aktiválását végző CYP27B1 enzim genetikai variációinak vizsgálata","SE-ÁOK/12/017",{"$nulls":5},{"$error":"#DIV/0!"},{"$error":"#DIV/0!"}]
["244.","Elméleti orvostudományok - Molekuláris biológia",{"$f":"VLOOKUP(B243,#REF!,2,FALSE)","v":{"$error":"#REF!"}},5,"Tóth Dávid\nSZTE - ÁOK","SARS-Cov-2 fehérjék és LC3 kölcsönhatásának analízise MCF-7 sejtekben","SZTE-ÁOK/12/051",{"$nulls":5},{"$error":"#DIV/0!"},{"$error":"#DIV/0!"}]
["249.","Elméleti orvostudományok - Molekuláris biológia",{"$f":"VLOOKUP(B244,#REF!,2,FALSE)","v":{"$error":"#REF!"}},6,"Tóth Klaudia\nDE - ÁOK","A protein arginin metiltranszferáz 5 mutációinak hatása az enzim aktivitására","DE-ÁOK/12/018",{"$nulls":5},{"$error":"#DIV/0!"},{"$error":"#DIV/0!"}]
["245.","Elméleti orvostudományok - Molekuláris biológia",{"$f":"VLOOKUP(B245,#REF!,2,FALSE)","v":{"$error":"#REF!"}},7,"Tóth Szilárd\nPTE - ÁOK","OPA1 fehérje promóció kardiológiai hatásainak karakterizációja transzgén állatmodellben","PTE-ÁOK/12/016",{"$nulls":5},{"$error":"#DIV/0!"},{"$error":"#DIV/0!"}]
["243.","Elméleti orvostudományok - Molekuláris biológia",{"$f":"VLOOKUP(B246,#REF!,2,FALSE)","v":{"$error":"#REF!"}},8,"Ungvári Ádám László\nDE - ÁOK","A smoothelin-szerű 1 fehérje inzulinérzékenyítő szerepe az inzulin receptor szubsztrát 1 szabályozásán keresztül","DE-ÁOK/12/030",{"$nulls":5},{"$error":"#DIV/0!"},{"$error":"#DIV/0!"}]
["250.","Elméleti orvostudományok - Molekuláris biológia",{"$f":"VLOOKUP(B247,#REF!,2,FALSE)","v":{"$error":"#REF!"}},9,"Zsigrai Emese\nDE - ÁOK","A surfaceome rendszerbiológiai szemléletű elemzése humán melanocytákon és melanoma sejteken","DE-ÁOK/12/005",{"$nulls":5},{"$error":"#DIV/0!"},{"$error":"#DIV/0!"}]
["251.","Konzervatív orvostudományok - Patológia, hisztológia, igazságügyi orvostan 1.",{"$f":"VLOOKUP(B248,#REF!,2,FALSE)","v":{"$error":"#REF!"}},1,"Fekete Zoltán, Bordács Barbara\nSZTE - ÁOK","Syntaxin-1A kifejeződése tápcsatornai neuroendokrin tumorokban és carcinomákban","SZTE-ÁOK/12/016",{"$nulls":5},{"$error":"#DIV/0!"},{"$error":"#DIV/0!"}]
["266.","Konzervatív orvostudományok - Patológia, hisztológia, igazságügyi orvostan 1.",{"$f":"VLOOKUP(B249,#REF!,2,FALSE)","v":{"$error":"#REF!"}},2,"Bősze Zsófia\nSZTE - ÁOK","A pancreas endoszkópos ultrahang vezérelt finomtű aspiráció nem-diagnosztikus prediktív értéke","SZTE-ÁOK/12/007",{"$nulls":5},{"$error":"#DIV/0!"},{"$error":"#DIV/0!"}]
["259.","Konzervatív orvostudományok - Patológia, hisztológia, igazságügyi orvostan 1.",{"$f":"VLOOKUP(B250,#REF!,2,FALSE)","v":{"$error":"#REF!"}},3,"Carmi Idan\nSE","Intratumoral cellular heterogeneity effects extracellular vesicle cargo and release in colorectal cancer","SE/12/074",{"$nulls":5},{"$error":"#DIV/0!"},{"$error":"#DIV/0!"}]
["258.","Konzervatív orvostudományok - Patológia, hisztológia, igazságügyi orvostan 1.",{"$f":"VLOOKUP(B251,#REF!,2,FALSE)","v":{"$error":"#REF!"}},4,"Jakab Ákos\nSE","Az ismeretlen eredetű malignus tumorokhoz asszociált paraneopláziás szindrómák vizsgálata","SE/12/006",{"$nulls":5},{"$error":"#DIV/0!"},{"$error":"#DIV/0!"}]
["261.","Konzervatív orvostudományok - Patológia, hisztológia, igazságügyi orvostan 1.",{"$f":"VLOOKUP(B252,#REF!,2,FALSE)","v":{"$error":"#REF!"}},5,"Máli Zorán Miklós\nPTE - ÁOK","Álpozitivitási határérték meghatározása metszeten végzett FISH-vizsgálatok során","PTE-ÁOK/12/075",{"$nulls":5},{"$error":"#DIV/0!"},{"$error":"#DIV/0!"}]
["265.","Konzervatív orvostudományok - Patológia, hisztológia, igazságügyi orvostan 1.",{"$f":"VLOOKUP(B253,#REF!,2,FALSE)","v":{"$error":"#REF!"}},6,"Márton Zsombor, Pytel Bence\nPTE - ÁOK","A centrális projekciójú Edinger-Westphal mag urocortin-1 sejtjeinek vizsgálata a Parkinson-kórhoz asszociált hangulatzavarok kialakulásában, patkányban","PTE-ÁOK/12/029",{"$nulls":5},{"$error":"#DIV/0!"},{"$error":"#DIV/0!"}]
["254.","Konzervatív orvostudományok - Patológia, hisztológia, igazságügyi orvostan 1.",{"$f":"VLOOKUP(B254,#REF!,2,FALSE)","v":{"$error":"#REF!"}},7,"Rostás Melinda\nDE - ÁOK","Extracelluláris mátrix molekulák szerepe glialis tumorok invazivitásában","DE-ÁOK/12/072",{"$nulls":5},{"$error":"#DIV/0!"},{"$error":"#DIV/0!"}]
["264.","Konzervatív orvostudományok - Patológia, hisztológia, igazságügyi orvostan 2.",{"$f":"VLOOKUP(B255,#REF!,2,FALSE)","v":{"$error":"#REF!"}},1,"Bátai Bence\nSE - ÁOK","EZH2 mutációk nyomonkövetése folyadék-biopsziás mintákból hazai follicularis lymphomás betegek körében","SE-ÁOK/12/028",{"$nulls":5},{"$error":"#DIV/0!"},{"$error":"#DIV/0!"}]
["428.","Konzervatív orvostudományok - Patológia, hisztológia, igazságügyi orvostan 2.",{"$f":"VLOOKUP(B256,#REF!,2,FALSE)","v":{"$error":"#REF!"}},2,"Bencs Viktor\nDE - ÁOK","Lemur tirozin-kináz 2 expresszió vizsgálata tauopathiákban","DE-ÁOK/12/049",{"$nulls":5},{"$error":"#DIV/0!"},{"$error":"#DIV/0!"}]
["255.","Konzervatív orvostudományok - Patológia, hisztológia, igazságügyi orvostan 2.",{"$f":"VLOOKUP(B257,#REF!,2,FALSE)","v":{"$error":"#REF!"}},3,"Hegedűs Fanni\nSZTE - ÁOK","A chronicus ileitis kórszövettani spektruma - a gastricus metaplasia és a Paneth-sejt hyperplasia diagnosztikus jelentősége","SZTE-ÁOK/12/023",{"$nulls":5},{"$error":"#DIV/0!"},{"$error":"#DIV/0!"}]
["263.","Konzervatív orvostudományok - Patológia, hisztológia, igazságügyi orvostan 2.",{"$f":"VLOOKUP(B258,#REF!,2,FALSE)","v":{"$error":"#REF!"}},4,"Jakab Flóra\nSE - ÁOK","Az endometrium carcinomák klinikopatológiai jellegzetességei és molekuláris patológiája","SE-ÁOK/12/024",{"$nulls":5},{"$error":"#DIV/0!"},{"$error":"#DIV/0!"}]
["257.","Konzervatív orvostudományok - Patológia, hisztológia, igazságügyi orvostan 2.",{"$f":"VLOOKUP(B259,#REF!,2,FALSE)","v":{"$error":"#REF!"}},5,"Meszlényi Valéria Éva, Nógrádi Bernát\nSZTE - ÁOK","Különböző genetikai mutációkkal rendelkező amiotrófiás laterálszklerózis betegek vérszérumával történő passzív transzfer hatása egerek ideg-izom szinapszisaira","SZTE-ÁOK/12/052",{"$nulls":5},{"$f":"AVERAGE(H259:L259)","v":{"$error":"#DIV/0!"}},{"$f":"_xlfn.RANK.EQ(M259,M:M)","v":{"$error":"#DIV/0!"}}]
["262.","Konzervatív orvostudományok - Patológia, hisztológia, igazságügyi orvostan 2.",{"$f":"VLOOKUP(B260,#REF!,2,FALSE)","v":{"$error":"#REF!"}},6,"Radics Barbara\nPTE - ÁOK","Glioblastoma molekuláris klasszifikációja","PTE-ÁOK/12/019",{"$nulls":5},{"$error":"#DIV/0!"},{"$error":"#DIV/0!"}]
["210.","Elméleti orvostudományok - Sejtbiológia, sejtélettan 1.",{"$f":"VLOOKUP(B261,#REF!,2,FALSE)","v":{"$error":"#REF!"}},1,"Cs. Szabó Bence\nDE - ÁOK","Ceramidok hatása a Kv1.3 ioncsatorna membrán mikrodomének közötti megoszlására és kapuzására","DE-ÁOK/12/003",{"$nulls":5},{"$error":"#DIV/0!"},{"$error":"#DIV/0!"}]
["267.","Elméleti orvostudományok - Sejtbiológia, sejtélettan 1.",{"$f":"VLOOKUP(B262,#REF!,2,FALSE)","v":{"$error":"#REF!"}},2,"Halmi Dóra, Erdélyi-Furka Barbara Fanni\nSZTE - ÁOK","A kinurénsav hatásának vizsgálata szimulált iszkémia/reoxigenizációnak kitett H9C2 patkány kardiomioblaszt sejteken","SZTE-ÁOK/12/038",{"$nulls":5},{"$error":"#DIV/0!"},{"$error":"#DIV/0!"}]
["271.","Elméleti orvostudományok - Sejtbiológia, sejtélettan 1.",{"$f":"VLOOKUP(B263,#REF!,2,FALSE)","v":{"$error":"#REF!"}},3,"Fentu Sanka\nSE - ÁOK","Molecular study of genetically labeled peroxidase protein in mammalian animal model system","SE-ÁOK/12/009",{"$nulls":5},{"$error":"#DIV/0!"},{"$error":"#DIV/0!"}]
["241.","Elméleti orvostudományok - Sejtbiológia, sejtélettan 1.",{"$f":"VLOOKUP(B264,#REF!,2,FALSE)","v":{"$error":"#REF!"}},4,"Gudmundsson Johann\nDE - ÁOK","The role of A2A receptor activation in the late endosomal localization of NPC1 protein in macrophages","DE-ÁOK/12/078",{"$nulls":5},{"$error":"#DIV/0!"},{"$error":"#DIV/0!"}]
["272.","Elméleti orvostudományok - Sejtbiológia, sejtélettan 1.",{"$f":"VLOOKUP(B265,#REF!,2,FALSE)","v":{"$error":"#REF!"}},5,"Nagy Dániel Károly\nSE","A plazmamembrán foszfatidilinozitol-3,4-biszfoszfát szint változása hormonális ingerlés hatására emlős sejtekben","SE/12/060",{"$nulls":5},{"$error":"#DIV/0!"},{"$error":"#DIV/0!"}]
["229.","Elméleti orvostudományok - Sejtbiológia, sejtélettan 1.",{"$f":"VLOOKUP(B266,#REF!,2,FALSE)","v":{"$error":"#REF!"}},6,"Tézsla Zsófia\nSZTE - ÁOK","Transzplantált humán indukált pluripotens őssejtek differenciálódásának és hatásmechanizmusának felderítése a gerincvelő kontúziós sérülését követően","SZTE-ÁOK/12/043",{"$nulls":5},{"$error":"#DIV/0!"},{"$error":"#DIV/0!"}]
["211.","Elméleti orvostudományok - Sejtbiológia, sejtélettan 1.",{"$f":"VLOOKUP(B267,#REF!,2,FALSE)","v":{"$error":"#REF!"}},7,"Vámosi Márton György\nSE","A D3 dopamin receptor agyi eloszlásának vizsgálata fluoreszcens antipszichotikummal","SE/12/026",{"$nulls":5},{"$error":"#DIV/0!"},{"$error":"#DIV/0!"}]
["340.","Elméleti orvostudományok - Sejtbiológia, sejtélettan 2.",{"$f":"VLOOKUP(B268,#REF!,2,FALSE)","v":{"$error":"#REF!"}},1,"Balla Abigél\nDE - ÁOK","Intraventrikuláris vérzés indukálta gyulladásos folyamatok vizsgálata humán choroid plexus epithelsejtekben","DE-ÁOK/12/015",{"$nulls":5},{"$error":"#DIV/0!"},{"$error":"#DIV/0!"}]
["269.","Elméleti orvostudományok - Sejtbiológia, sejtélettan 2.",{"$f":"VLOOKUP(B269,#REF!,2,FALSE)","v":{"$error":"#REF!"}},2,"Gyulai-Nagy Szuzina\nSZTE - ÁOK","Az exoszómák és az aktin nanoszerkezet szerepe a szindekán-4 sejtmigrációra gyakorolt hatásában","SZTE-ÁOK/12/061",{"$nulls":5},{"$error":"#DIV/0!"},{"$error":"#DIV/0!"}]
["273.","Elméleti orvostudományok - Sejtbiológia, sejtélettan 2.",{"$f":"VLOOKUP(B270,#REF!,2,FALSE)","v":{"$error":"#REF!"}},3,"Khozeimeh Mohammad Ali\nSE - ÁOK","Establishment of a lentiviral expression system for the expression of potassium channel genes in sensory neurons","SE-ÁOK/12/018",{"$nulls":5},{"$error":"#DIV/0!"},{"$error":"#DIV/0!"}]
["270.","Elméleti orvostudományok - Sejtbiológia, sejtélettan 2.",{"$f":"VLOOKUP(B271,#REF!,2,FALSE)","v":{"$error":"#REF!"}},4,"Omer Schlank\nDE - ÁOK","The role of Septin7 protein in the migration of cultured muscle cells","DE-ÁOK/12/031",{"$nulls":5},{"$error":"#DIV/0!"},{"$error":"#DIV/0!"}]
["274.","Elméleti orvostudományok - Sejtbiológia, sejtélettan 2.",{"$f":"VLOOKUP(B272,#REF!,2,FALSE)","v":{"$error":"#REF!"}},5,"Orbán Gábor\nSE - ÁOK","Új bioszenzorok fejlesztése az extracelluláris adenozin-nukleotidok sebzáródásban betöltött szerepének és egyéb funkcióinak megismerésére","SE-ÁOK/12/031",{"$nulls":5},{"$error":"#DIV/0!"},{"$error":"#DIV/0!"}]
["353.","Elméleti orvostudományok - Sejtbiológia, sejtélettan 2.",{"$f":"VLOOKUP(B273,#REF!,2,FALSE)","v":{"$error":"#REF!"}},6,"Szász Csenge\nSE - ÁOK","A PARK7 szerepe a peritoneális dialízis asszociált fibrózisban","SE-ÁOK/12/049",{"$nulls":5},{"$error":"#DIV/0!"},{"$error":"#DIV/0!"}]
["268.","Elméleti orvostudományok - Sejtbiológia, sejtélettan 2.",{"$f":"VLOOKUP(B274,#REF!,2,FALSE)","v":{"$error":"#REF!"}},7,"Szőke Krisztina\nSZTE - ÁOK","Szinergista radioszenzitizáció: az arany nanorészecskék és a hiszton-deacetiláz inhibitor SAHA kombinációja fokozza a sugárterápia hatékonyságát","SZTE-ÁOK/12/041",{"$nulls":5},{"$error":"#DIV/0!"},{"$error":"#DIV/0!"}]
["496.","Farmakognózia",{"$f":"VLOOKUP(B275,#REF!,2,FALSE)","v":{"$error":"#REF!"}},1,"Barta Anita\nSZTE - GYTK","A Juncus maritimus vegyületeinek izolálása és szerkezetmeghatározása","SZTE-GYTK/12/007",{"$nulls":5},{"$error":"#DIV/0!"},{"$error":"#DIV/0!"}]
["519.","Farmakognózia",{"$f":"VLOOKUP(B276,#REF!,2,FALSE)","v":{"$error":"#REF!"}},2,"Fekete Helga\nDE - GYTK","Citrom (Citrus x limon) illóolaj tartalmú emulziók formulálása, biokompatibilitási vizsgálata","DE-GYTK/12/006",{"$nulls":5},{"$error":"#DIV/0!"},{"$error":"#DIV/0!"}]
["489.","Farmakognózia",{"$f":"VLOOKUP(B277,#REF!,2,FALSE)","v":{"$error":"#REF!"}},3,"Kocsis Endre\nSZTE - GYTK","Bioaktív kaloniszteron származékok félszintetikus előállítása és vizsgálata","SZTE-GYTK/12/010",{"$nulls":5},{"$error":"#DIV/0!"},{"$error":"#DIV/0!"}]
["502.","Farmakognózia",{"$f":"VLOOKUP(B278,#REF!,2,FALSE)","v":{"$error":"#REF!"}},4,"Sali Nikolett\nPTE - GYTK","Solidago hibridek gyógyászati jelentősége. Avagy messze esik-e az alma a fájától?","PTE-GYTK/12/003",{"$nulls":5},{"$error":"#DIV/0!"},{"$error":"#DIV/0!"}]
["500.","Farmakognózia",{"$f":"VLOOKUP(B279,#REF!,2,FALSE)","v":{"$error":"#REF!"}},5,"Szabó Réka Eszter\nSZTE - GYTK","Antibakteriális hatású fenolos vegyületek izolálása a Camelina microcarpa herbából","SZTE-GYTK/12/001",{"$nulls":5},{"$error":"#DIV/0!"},{"$error":"#DIV/0!"}]
["497.","Farmakognózia",{"$f":"VLOOKUP(B280,#REF!,2,FALSE)","v":{"$error":"#REF!"}},6,"Varga Tamás\nSE - ÁOK","Kakukkfű illóolajminták metabolomikai vizsgálata NMR spektroszkópiával","SE-ÁOK/12/052",{"$nulls":5},{"$error":"#DIV/0!"},{"$error":"#DIV/0!"}]
["276.","Fogorvostudományok 1.",{"$f":"VLOOKUP(B281,#REF!,2,FALSE)","v":{"$error":"#REF!"}},1,"Horváth Kíra\nPTE - ÁOK","A complement rendszer aktivációjának vizsgálata szisztémás autoimmun betegek kis nyálmirigyeiben","PTE-ÁOK/12/035",{"$nulls":5},{"$error":"#DIV/0!"},{"$error":"#DIV/0!"}]
["297.","Fogorvostudományok 1.",{"$f":"VLOOKUP(B282,#REF!,2,FALSE)","v":{"$error":"#REF!"}},2,"Kálmán Eszter\nSE","Dopaminnal módosított poliaszparaginsav alapú hidrogélek alkalmazása fogeredetű őssejtek tenyésztésére","SE/12/022",{"$nulls":5},{"$error":"#DIV/0!"},{"$error":"#DIV/0!"}]
["285.","Fogorvostudományok 1.",{"$f":"VLOOKUP(B283,#REF!,2,FALSE)","v":{"$error":"#REF!"}},3,"Oszkó Csenge\nPTE - ÁOK","Hagyományos hibrid, bulk-fill és szálerősítésű kompozitok polimerizációs fokának és exoterm reakciójának vizsgálata a rétegvastagság és konzisztencia függvényében","PTE-ÁOK/12/037",{"$nulls":5},{"$error":"#DIV/0!"},{"$error":"#DIV/0!"}]
["304.","Fogorvostudományok 1.",{"$f":"VLOOKUP(B284,#REF!,2,FALSE)","v":{"$error":"#REF!"}},4,"Sipos Helga Eszter\nDE - FOK","A nyál és szérum immunglobulin A jelentősége autológ perifériás haemopoieticus őssejt-transzplantáció kapcsán kialakuló oralis mucositisben","DE-FOK/12/004",{"$nulls":5},{"$error":"#DIV/0!"},{"$error":"#DIV/0!"}]
["296.","Fogorvostudományok 1.",{"$f":"VLOOKUP(B285,#REF!,2,FALSE)","v":{"$error":"#REF!"}},5,"Vass Andrea Fanni\nSE","Epilepsziás betegek temporomandibuláris ízületi diszfunkciójának előfordulása, epidemiológiai szűrővizsgálatok tükrében","SE/12/051",{"$nulls":5},{"$error":"#DIV/0!"},{"$error":"#DIV/0!"}]
["279.","Fogorvostudományok 1.",{"$f":"VLOOKUP(B286,#REF!,2,FALSE)","v":{"$error":"#REF!"}},6,"Veress Fanni, Weninger Kristóf\nSE - FOK","Az ínykeringés változásának vizsgálata teljes és félvastag lebenytechnika alkalmazása során alveolus csontaugmentációs műtétet követően LSCI módszerrel","SE-FOK/12/005",{"$nulls":5},{"$error":"#DIV/0!"},{"$error":"#DIV/0!"}]
["306.","Fogorvostudományok 2.",{"$f":"VLOOKUP(B287,#REF!,2,FALSE)","v":{"$error":"#REF!"}},1,"Alaeddin Obeidallah\nDE - FOK","Photopolymerisable PVA/MPGA nanofibers for drug delivery.","DE-FOK/12/001",{"$nulls":5},{"$error":"#DIV/0!"},{"$error":"#DIV/0!"}]
["292.","Fogorvostudományok 2.",{"$f":"VLOOKUP(B288,#REF!,2,FALSE)","v":{"$error":"#REF!"}},2,"Fittler Márton\nPTE - ÁOK","Magyar pedagógusok felkészültsége fogászati sürgősségi esetek elsősegélynyújtása terén","PTE-ÁOK/12/020",{"$nulls":5},{"$error":"#DIV/0!"},{"$error":"#DIV/0!"}]
["286.","Fogorvostudományok 2.",{"$f":"VLOOKUP(B289,#REF!,2,FALSE)","v":{"$error":"#REF!"}},3,"Jakab András Gábor\nSZTE - FOK","Gépi gyökércsatorna tágító rendszerek fogakra kifejtett biomechanikai hatásainak in vitro összehasonlítása","SZTE-FOK/12/001",{"$nulls":5},{"$error":"#DIV/0!"},{"$error":"#DIV/0!"}]
["287.","Fogorvostudományok 2.",{"$f":"VLOOKUP(B290,#REF!,2,FALSE)","v":{"$error":"#REF!"}},4,"Niklai Réka Rebeka\nPTE - ÁOK","Rögzített funkciós készülékek szkeletális és dentoalveoláris hatásának összehasonlító kefalometriai vizsgálata II. osztályú malokklúzió esetén","PTE-ÁOK/12/006",{"$nulls":5},{"$error":"#DIV/0!"},{"$error":"#DIV/0!"}]
["280.","Fogorvostudományok 2.",{"$f":"VLOOKUP(B291,#REF!,2,FALSE)","v":{"$error":"#REF!"}},5,"Róna Virág\nSE - FOK","A Magyarországon elérhető többgenerációs intraorális szkennerek összehasonlító értékelése","SE-FOK/12/001",{"$nulls":5},{"$error":"#DIV/0!"},{"$error":"#DIV/0!"}]
["300.","Fogorvostudományok 2.",{"$f":"VLOOKUP(B292,#REF!,2,FALSE)","v":{"$error":"#REF!"}},6,"Schmalzl Judit, Vámos Orsolya\nSE","Digitális lenyomatok pontossága 9 intraorális szkenner vizsgálata alapján","SE/12/041",{"$nulls":5},{"$error":"#DIV/0!"},{"$error":"#DIV/0!"}]
["307.","Fogorvostudományok 3.",{"$f":"VLOOKUP(B293,#REF!,2,FALSE)","v":{"$error":"#REF!"}},1,"Burencheva Ekaterina\nDE - FOK","Improved adhesion to silica surface using a chemical etching method","DE-FOK/12/003",{"$nulls":5},{"$error":"#DIV/0!"},{"$error":"#DIV/0!"}]
["301.","Fogorvostudományok 3.",{"$f":"VLOOKUP(B294,#REF!,2,FALSE)","v":{"$error":"#REF!"}},2,"Lipták Laura, Lipták Klaudia\nSE","A palatum morfológiájának háromdimenziós vizsgálata szájszkennerrel ikerpárokon","SE/12/020",{"$nulls":5},{"$error":"#DIV/0!"},{"$error":"#DIV/0!"}]
["284.","Fogorvostudományok 3.",{"$f":"VLOOKUP(B295,#REF!,2,FALSE)","v":{"$error":"#REF!"}},3,"Radnai Fanni\nPTE - ÁOK","A fogakhoz kapcsolódó esztétika szerepe a gyermekek közötti társas viselkedésben","PTE-ÁOK/12/002",{"$nulls":5},{"$error":"#DIV/0!"},{"$error":"#DIV/0!"}]
["303.","Fogorvostudományok 3.",{"$f":"VLOOKUP(B296,#REF!,2,FALSE)","v":{"$error":"#REF!"}},4,"Szabó Ágnes\nDE - FOK","Nagy dózisú kondícionáló kezelés hatása az orális mucosára","DE-FOK/12/005",{"$nulls":5},{"$error":"#DIV/0!"},{"$error":"#DIV/0!"}]
["299.","Fogorvostudományok 3.",{"$f":"VLOOKUP(B297,#REF!,2,FALSE)","v":{"$error":"#REF!"}},5,"Szekér Dóra Edina\nSE","Palatinális minicsavarok pozicionálása CBCT segítségével","SE/12/050",{"$nulls":5},{"$error":"#DIV/0!"},{"$error":"#DIV/0!"}]
["293.","Fogorvostudományok 3.",{"$f":"VLOOKUP(B298,#REF!,2,FALSE)","v":{"$error":"#REF!"}},6,"Takács Dalma\nPTE - ÁOK","Az állkapocsízületi hangok vizsgálati lehetőségei","PTE-ÁOK/12/027",{"$nulls":5},{"$error":"#DIV/0!"},{"$error":"#DIV/0!"}]
["302.","Fogorvostudományok 4.",{"$f":"VLOOKUP(B299,#REF!,2,FALSE)","v":{"$error":"#REF!"}},1,"Bajsz Norman\nDE - FOK","Különböző módokon polimerizálható kompozit-nanoszálak előállíthatósága és vizsgálata","DE-FOK/12/002",{"$nulls":5},{"$error":"#DIV/0!"},{"$error":"#DIV/0!"}]
["281.","Fogorvostudományok 4.",{"$f":"VLOOKUP(B300,#REF!,2,FALSE)","v":{"$error":"#REF!"}},2,"Lőrincz Hajnal, Geréb Noémi, Kardos Olivér Gábor\nETDK - OGYK","Univerzális és bulk-fill típusú kompozittal restaurált fogak mechanikai tulajdonságai","ETDK-OGYK/12/003",{"$nulls":5},{"$error":"#DIV/0!"},{"$error":"#DIV/0!"}]
["283.","Fogorvostudományok 4.",{"$f":"VLOOKUP(B301,#REF!,2,FALSE)","v":{"$error":"#REF!"}},3,"Jókai Blanka Zsuzsanna\nSZTE - FOK","Gyökérkezelt premoláris fogak üvegszálas anyagokkal történő restaurálhatóságának in vitro vizsgálata","SZTE-FOK/12/002",{"$nulls":5},{"$error":"#DIV/0!"},{"$error":"#DIV/0!"}]
["295.","Fogorvostudományok 4.",{"$f":"VLOOKUP(B302,#REF!,2,FALSE)","v":{"$error":"#REF!"}},4,"Kálmán Marcell, Prókai Gábor\nSE","Cirkónium-dioxid kerámiák spektrofotometriai vizsgálata","SE/12/045",{"$nulls":5},{"$error":"#DIV/0!"},{"$error":"#DIV/0!"}]
["298.","Fogorvostudományok 4.",{"$f":"VLOOKUP(B303,#REF!,2,FALSE)","v":{"$error":"#REF!"}},5,"Keglevich Bernát, Orosz Fanni\nSE","Sebészi motorral és nyomatékkulccsal történő implantátum-behelyezés pontosságának komparatív klinikai és radiológiai vizsgálata részlegesen navigált sebészi technika alkalmazásával","SE/12/036",{"$nulls":5},{"$error":"#DIV/0!"},{"$error":"#DIV/0!"}]
["290.","Fogorvostudományok 4.",{"$f":"VLOOKUP(B304,#REF!,2,FALSE)","v":{"$error":"#REF!"}},6,"Pintér Zsolt\nPTE - ÁOK","Kompozitok anyagtani tulajdonságainak vizsgálata és javításainak lehetőségei levegő-abráziós módszer használatával","PTE-ÁOK/12/077",{"$nulls":5},{"$error":"#DIV/0!"},{"$error":"#DIV/0!"}]
["291.","Fogorvostudományok 4.",{"$f":"VLOOKUP(B305,#REF!,2,FALSE)","v":{"$error":"#REF!"}},7,"Szénai Réka\nPTE - ÁOK","A homokfúvás szakítószilárdságra kifejtett hatásának vizsgálata kompozit tömések javítása során","PTE-ÁOK/12/069",{"$nulls":5},{"$error":"#DIV/0!"},{"$error":"#DIV/0!"}]
["305.","Fogorvostudományok 5.",{"$f":"VLOOKUP(B306,#REF!,2,FALSE)","v":{"$error":"#REF!"}},1,"Ágoston Réka\nDE - FOK","A lokális oralis immunitás és az osteopontin mucosalis védekezésben betöltött szerepének vizsgálata autológ perifériás haemopoieticus őssejt-transzplantáción áteső betegek körében","DE-FOK/12/006",{"$nulls":5},{"$error":"#DIV/0!"},{"$error":"#DIV/0!"}]
["278.","Fogorvostudományok 5.",{"$f":"VLOOKUP(B307,#REF!,2,FALSE)","v":{"$error":"#REF!"}},2,"Balázs Gergő, Mórocz Dávid Richárd\nSE - FOK","Életminőség vizsgálaton (PROMIS) alapuló új egészséghasznossági index alkalmasságának vizsgálata és validálása a szájsebészeti ellátásban","SE-FOK/12/004",{"$nulls":5},{"$error":"#DIV/0!"},{"$error":"#DIV/0!"}]
["294.","Fogorvostudományok 5.",{"$f":"VLOOKUP(B308,#REF!,2,FALSE)","v":{"$error":"#REF!"}},3,"Juhász Kincső Réka, Mátyás-Barta Kinga, Fazakas Beáta\nETDK - OGYK","Felső első őrlők gyökércsatornáinak változó morfológiája","ETDK-OGYK/12/005",{"$nulls":5},{"$error":"#DIV/0!"},{"$error":"#DIV/0!"}]
["282.","Fogorvostudományok 5.",{"$f":"VLOOKUP(B309,#REF!,2,FALSE)","v":{"$error":"#REF!"}},4,"Horváth Kristóf Bence\nSZTE - FOK","Állkapocsízületi diszfunkcióra utaló jelek fogorvostanhallgatók körében","SZTE-FOK/12/003",{"$nulls":5},{"$error":"#DIV/0!"},{"$error":"#DIV/0!"}]
["289.","Fogorvostudományok 5.",{"$f":"VLOOKUP(B310,#REF!,2,FALSE)","v":{"$error":"#REF!"}},5,"Laith Naffa\nPTE - ÁOK","In vitro temperature rise of pulp chamber during polymerization of light-cured and dual-cured adhesive resin cement through different thicknesses of lithium-disilicate pressedceramic.","PTE-ÁOK/12/056",{"$nulls":5},{"$error":"#DIV/0!"},{"$error":"#DIV/0!"}]
["277.","Fogorvostudományok 5.",{"$f":"VLOOKUP(B311,#REF!,2,FALSE)","v":{"$error":"#REF!"}},6,"Tóth Ágnes\nSE - FOK","A fog látómezőben elfoglalt helyzetének és a felvételi mód hatásának vizsgálata a gyökércsatornák képi megjelenítésére CBCT felvételeken","SE-FOK/12/003",{"$nulls":5},{"$error":"#DIV/0!"},{"$error":"#DIV/0!"}]
["491.","Gyógyszeranalitika, minőségellenőrzés",{"$f":"VLOOKUP(B312,#REF!,2,FALSE)","v":{"$error":"#REF!"}},1,"Ádám Márk, Dobó Máté\nSE - GYTK","Enantiomer elválasztás fenilkarbamát-β-ciklodextrin királis szelektort tartalmazó állófázison polár organikus módban","SE/12/018",{"$nulls":5},{"$error":"#DIV/0!"},{"$error":"#DIV/0!"}]
["495.","Gyógyszeranalitika, minőségellenőrzés",{"$f":"VLOOKUP(B313,#REF!,2,FALSE)","v":{"$error":"#REF!"}},2,"Ágh Ferenc\nSE - GYTK","Ciklodextrin komplexek vizsgálata CD- és NMR-spektroszkópiával","SE-ÁOK/12/023",{"$nulls":5},{"$error":"#DIV/0!"},{"$error":"#DIV/0!"}]
["499.","Gyógyszeranalitika, minőségellenőrzés",{"$f":"VLOOKUP(B314,#REF!,2,FALSE)","v":{"$error":"#REF!"}},3,"Bacskai Csilla\nSE - GYTK","Tiokarbamid típusú modellvegyületek szerkezetvizsgálata és ionkötőképesség vizsgálata NMR spektroszkópiával","SE/12/080",{"$nulls":5},{"$error":"#DIV/0!"},{"$error":"#DIV/0!"}]
["511.","Gyógyszeranalitika, minőségellenőrzés",{"$f":"VLOOKUP(B315,#REF!,2,FALSE)","v":{"$error":"#REF!"}},4,"Csertő Alinka\nSE - ÁOK","Embolizációs mikrogyöngyök radiokémiai jelzése és minőségellenőrzése","SE/12/054",{"$nulls":5},{"$error":"#DIV/0!"},{"$error":"#DIV/0!"}]
["488.","Gyógyszeranalitika, minőségellenőrzés",{"$f":"VLOOKUP(B316,#REF!,2,FALSE)","v":{"$error":"#REF!"}},5,"Füzesi Tamás\nSZTE - GYTK","Endocitózis indukció szerkezeti feltételei GM1 receptorokon keresztül","SZTE-GYTK/12/003",{"$nulls":5},{"$error":"#DIV/0!"},{"$error":"#DIV/0!"}]
["515.","Gyógyszeranalitika, minőségellenőrzés",{"$f":"VLOOKUP(B317,#REF!,2,FALSE)","v":{"$error":"#REF!"}},6,"Nmar Klaudia Fatima\nPTE - GYTK","Növényi eredetű kivonatot tartalmazó kézfertőtlenítő gél stabilitásvizsgálata","PTE-ÁOK/12/048",{"$nulls":5},{"$error":"#DIV/0!"},{"$error":"#DIV/0!"}]
["487.","Gyógyszeranalitika, minőségellenőrzés",{"$f":"VLOOKUP(B318,#REF!,2,FALSE)","v":{"$error":"#REF!"}},7,"Szabo Ákos Bálint\nPTE - GYTK","Alternariol mikotoxin eltávolítása vizes oldatokból és borból béta-ciklodextrin gyöngypolimerrel","PTE-GYTK/12/002",{"$nulls":5},{"$error":"#DIV/0!"},{"$error":"#DIV/0!"}]
["494.","Gyógyszerészi kémia",{"$f":"VLOOKUP(B319,#REF!,2,FALSE)","v":{"$error":"#REF!"}},1,"Csorba Dóra\nSE - GYTK","Fénnyel aktiválható kinolin-védőcsoportok előállítása és vizsgálata","SE-ÁOK/12/083",{"$nulls":5},{"$error":"#DIV/0!"},{"$error":"#DIV/0!"}]
["493.","Gyógyszerészi kémia",{"$f":"VLOOKUP(B320,#REF!,2,FALSE)","v":{"$error":"#REF!"}},2,"Demeter Adrienn Katalin\nSE - GYTK","Eljárás 1,4-Dihidropiridin előállítására","SE-ÁOK/12/071",{"$nulls":5},{"$error":"#DIV/0!"},{"$error":"#DIV/0!"}]
["498.","Gyógyszerészi kémia",{"$f":"VLOOKUP(B321,#REF!,2,FALSE)","v":{"$error":"#REF!"}},3,"Hotzi Judit\nDE - GYTK","Fluortartalmú morfolinó nukleozidok szintézise mono-, di- és trifluoretil-amin alkalmazásával","DE-GYTK/12/007",{"$nulls":5},{"$error":"#DIV/0!"},{"$error":"#DIV/0!"}]
["501.","Gyógyszerészi kémia",{"$f":"VLOOKUP(B322,#REF!,2,FALSE)","v":{"$error":"#REF!"}},4,"Mándoki András\nSE - GYTK","Oxindol-származékok 3-as helyzetű alkilezése áramlásos kémiai módszerekkel","SE-ÁOK/12/065",{"$nulls":5},{"$error":"#DIV/0!"},{"$error":"#DIV/0!"}]
["486.","Gyógyszerészi kémia",{"$f":"VLOOKUP(B323,#REF!,2,FALSE)","v":{"$error":"#REF!"}},5,"Novák Tibor Tamás\nSZTE - GYTK","Halofluorozás és rokon reakciók alkalmazása új, fluorozott, funkcionalizált, ciklusos vegyületek szintézisére","SZTE-GYTK/12/004",{"$nulls":5},{"$f":"AVERAGE(H323:L323)","v":{"$error":"#DIV/0!"}},{"$f":"_xlfn.RANK.EQ(M323,M:M)","v":{"$error":"#DIV/0!"}}]
["503.","Gyógyszerészi kémia",{"$f":"VLOOKUP(B324,#REF!,2,FALSE)","v":{"$error":"#REF!"}},6,"Soltész János Zsolt\nSZTE - GYTK","Antitumor hatású p-kinol spirolakton analógok előállítása és vizsgálata","SZTE-GYTK/12/006",{"$nulls":5},{"$error":"#DIV/0!"},{"$error":"#DIV/0!"}]
["504.","Gyógyszerhatástan, klinikai gyógyszerészet",{"$f":"VLOOKUP(B325,#REF!,2,FALSE)","v":{"$error":"#REF!"}},1,"Gyurics Anett\nSZTE - GYTK","A bilasztin farmakokinetikai vizsgálata vemhes és nem vemhes patkányokon","SZTE-GYTK/12/011",{"$nulls":5},{"$error":"#DIV/0!"},{"$error":"#DIV/0!"}]
["506.","Gyógyszerhatástan, klinikai gyógyszerészet",{"$f":"VLOOKUP(B326,#REF!,2,FALSE)","v":{"$error":"#REF!"}},2,"Pozsgai Kevin\nPTE - ÁOK","Gyógyszer- és egészségügyi termék hamisítással kapcsolatos egészségkárosodások azonosítási lehetőségei","PTE-ÁOK/12/013",{"$nulls":5},{"$error":"#DIV/0!"},{"$error":"#DIV/0!"}]
["509.","Gyógyszerhatástan, klinikai gyógyszerészet",{"$f":"VLOOKUP(B327,#REF!,2,FALSE)","v":{"$error":"#REF!"}},3,"Szekeres Réka Mária\nDE - GYTK","A Prunus cerasus extraktum-kezelés javítja a kardiális funkciót hiperkoleszterinémiás nyúl modellen","DE-GYTK/12/009",{"$nulls":5},{"$error":"#DIV/0!"},{"$error":"#DIV/0!"}]
["492.","Gyógyszerhatástan, klinikai gyógyszerészet",{"$f":"VLOOKUP(B328,#REF!,2,FALSE)","v":{"$error":"#REF!"}},4,"Várnai Bianka\nSE - GYTK","Molekuláris kölcsönhatások jellemzése fondaparinux–ciklodextrin rendszerekben","SE/12/037",{"$nulls":5},{"$error":"#DIV/0!"},{"$error":"#DIV/0!"}]
["201.","Gyógyszerhatástan, klinikai gyógyszerészet",{"$f":"VLOOKUP(B329,#REF!,2,FALSE)","v":{"$error":"#REF!"}},5,"Vigh Dóra\nSZTE - GYTK","Akut stresszhatás jellemzése emésztőszervi és kardiális elektromiográfiával éber patkányban","SZTE-GYTK/12/008",{"$nulls":5},{"$error":"#DIV/0!"},{"$error":"#DIV/0!"}]
["490.","Gyógyszerhatástan, klinikai gyógyszerészet",{"$f":"VLOOKUP(B330,#REF!,2,FALSE)","v":{"$error":"#REF!"}},6,"Vörös Annamária\nPTE - ÁOK","Lidokain analóg antiproliferatív C5-kurkuminoidok szintézise és farmakológiai vizsgálata","PTE-ÁOK/12/033",{"$nulls":5},{"$error":"#DIV/0!"},{"$error":"#DIV/0!"}]
["517.","Gyógyszertechnológia",{"$f":"VLOOKUP(B331,#REF!,2,FALSE)","v":{"$error":"#REF!"}},1,"Gál Bernadett\nDE - GYTK","Lactobacillus plantarum tartalmú mikrokapszulák előállítása és pH-érzékenységének vizsgálata","DE-GYTK/12/008",{"$nulls":5},{"$error":"#DIV/0!"},{"$error":"#DIV/0!"}]
["513.","Gyógyszertechnológia",{"$f":"VLOOKUP(B332,#REF!,2,FALSE)","v":{"$error":"#REF!"}},2,"Kósa Nóra\nETDK - OGYK","Aceklofenáktartalmú nanoszálalapú szájban diszpergálódó lapkák formulálása és vizsgálata","ETDK-OGYK/12/017",{"$nulls":5},{"$error":"#DIV/0!"},{"$error":"#DIV/0!"}]
["518.","Gyógyszertechnológia",{"$f":"VLOOKUP(B333,#REF!,2,FALSE)","v":{"$error":"#REF!"}},3,"Páll Jázmin\nDE - GYTK","Növényi hatóanyagot tartalmazó innovatív gyógyszerhordozó rendszer formulálása és vizsgálatai","DE-GYTK/12/005",{"$nulls":5},{"$error":"#DIV/0!"},{"$error":"#DIV/0!"}]
["514.","Gyógyszertechnológia",{"$f":"VLOOKUP(B334,#REF!,2,FALSE)","v":{"$error":"#REF!"}},4,"Party Petra\nSZTE - GYTK","Nano porlasztva-szárítás alkalmazása porinhalációs rendszerek előállítása céljából","SZTE-GYTK/12/005",{"$nulls":5},{"$error":"#DIV/0!"},{"$error":"#DIV/0!"}]
["516.","Gyógyszertechnológia",{"$f":"VLOOKUP(B335,#REF!,2,FALSE)","v":{"$error":"#REF!"}},5,"Péterfi Orsolya\nETDK - OGYK","Mikonazoltartalmú gombaellenes szappanok előállítása és vizsgálata","ETDK-OGYK/12/010",{"$nulls":5},{"$error":"#DIV/0!"},{"$error":"#DIV/0!"}]
["520.","Gyógyszertechnológia",{"$f":"VLOOKUP(B336,#REF!,2,FALSE)","v":{"$error":"#REF!"}},6,"Varga Patrícia\nSZTE - GYTK","Kapszula típusok befolyása antibiotikum tartalmú hordozómentes porinhalációs formuláció stabilitására","SZTE-GYTK/12/009",{"$nulls":5},{"$error":"#DIV/0!"},{"$error":"#DIV/0!"}]
["317.","Konzervatív orvostudományok - Endokrinológia, nefrológia, gasztroenterológia 1.",{"$f":"VLOOKUP(B337,#REF!,2,FALSE)","v":{"$error":"#REF!"}},1,"Amna Yousaf Hashimi\nDE - ÁOK","Role of donor specific antibody and proteinuria in kidney transplantation and allograft outcomes","DE-ÁOK/12/077",{"$nulls":5},{"$error":"#DIV/0!"},{"$error":"#DIV/0!"}]
["316.","Konzervatív orvostudományok - Endokrinológia, nefrológia, gasztroenterológia 1.",{"$f":"VLOOKUP(B338,#REF!,2,FALSE)","v":{"$error":"#REF!"}},2,"Bacsárdi Anna\nSE","Nyelőcsővisszér kockázatbecslése nem-invazív módszerekkel krónikus májbetegségben szenvedőknél","SE/12/011",{"$nulls":5},{"$error":"#DIV/0!"},{"$error":"#DIV/0!"}]
["324.","Konzervatív orvostudományok - Endokrinológia, nefrológia, gasztroenterológia 1.",{"$f":"VLOOKUP(B339,#REF!,2,FALSE)","v":{"$error":"#REF!"}},3,"Kató Dorottya, Lillik Veronika\nPTE - ÁOK","A krónikus pancreatitis korai fázisának vizsgálata: a GOULASH-PLUS vizsgálatban résztvevő első 133 beteg 2 éves követésének eredményei","PTE-ÁOK/12/045",{"$nulls":5},{"$error":"#DIV/0!"},{"$error":"#DIV/0!"}]
["319.","Konzervatív orvostudományok - Endokrinológia, nefrológia, gasztroenterológia 1.",{"$f":"VLOOKUP(B340,#REF!,2,FALSE)","v":{"$error":"#REF!"}},4,"Kiss Szonja Bianka\nSE","Fejlett genetikai diagnosztika alkalmazása veleszületett mellékvese hiperpláziában","SE/12/016",{"$nulls":5},{"$error":"#DIV/0!"},{"$error":"#DIV/0!"}]
["328.","Konzervatív orvostudományok - Endokrinológia, nefrológia, gasztroenterológia 1.",{"$f":"VLOOKUP(B341,#REF!,2,FALSE)","v":{"$error":"#REF!"}},5,"Matyók Kristóf\nPTE - ÁOK","Az immunoglobulin-A hiány prevalenciájának vizsgálata coeliakiás betegekben metaanalízis segítségével","PTE-ÁOK/12/066",{"$nulls":5},{"$error":"#DIV/0!"},{"$error":"#DIV/0!"}]
["318.","Konzervatív orvostudományok - Endokrinológia, nefrológia, gasztroenterológia 1.",{"$f":"VLOOKUP(B342,#REF!,2,FALSE)","v":{"$error":"#REF!"}},6,"Vilmos Fruzsina\nDE - ÁOK","Az ustekinumab terápia hatékonyságának vizsgálata a DE KK Belgyógyászati Klinikán","DE-ÁOK/12/033",{"$nulls":5},{"$error":"#DIV/0!"},{"$error":"#DIV/0!"}]
["331.","Konzervatív orvostudományok - Endokrinológia, nefrológia, gasztroenterológia 2.",{"$f":"VLOOKUP(B343,#REF!,2,FALSE)","v":{"$error":"#REF!"}},1,"Antics Dorottya\nSE - ÁOK","Új non-invazív markerek az alacsony dózisú RAAS gátlók protektív hatásának követésére diabéteszes vesebetegségben","SE-ÁOK/12/013",{"$nulls":5},{"$error":"#DIV/0!"},{"$error":"#DIV/0!"}]
["323.","Konzervatív orvostudományok - Endokrinológia, nefrológia, gasztroenterológia 2.",{"$f":"VLOOKUP(B344,#REF!,2,FALSE)","v":{"$error":"#REF!"}},2,"Boldogh Diána Tímea\nDE - ÁOK","Kisdózisú anti-CD20 antitest kezelés hatásosságának vizsgálata súlyos, terápia refrakter endokrin orbitopathiában","DE-ÁOK/12/050",{"$nulls":5},{"$error":"#DIV/0!"},{"$error":"#DIV/0!"}]
["329.","Konzervatív orvostudományok - Endokrinológia, nefrológia, gasztroenterológia 2.",{"$f":"VLOOKUP(B345,#REF!,2,FALSE)","v":{"$error":"#REF!"}},3,"Kozma Alexandra\nPTE - ÁOK","A cisztás fibrózishoz társuló diabétesz diagnosztikai módszereinek összehasonlítása hálózati-metaanalízis segítségével","PTE-ÁOK/12/053",{"$nulls":5},{"$error":"#DIV/0!"},{"$error":"#DIV/0!"}]
["320.","Konzervatív orvostudományok - Endokrinológia, nefrológia, gasztroenterológia 2.",{"$f":"VLOOKUP(B346,#REF!,2,FALSE)","v":{"$error":"#REF!"}},4,"Kurucz Petra Anna\nSE","Hypogonadotróp hypogonadizmus hátterében álló génpanel vizsgálata újgenerációs szekvenálás segítségével","SE/12/068",{"$nulls":5},{"$error":"#DIV/0!"},{"$error":"#DIV/0!"}]
["330.","Konzervatív orvostudományok - Endokrinológia, nefrológia, gasztroenterológia 2.",{"$f":"VLOOKUP(B347,#REF!,2,FALSE)","v":{"$error":"#REF!"}},5,"Lengyel Balázs\nSZTE - ÁOK","Are there any beneficial effects of metformin therapy in neuroendocrine tumors treated with somatostatin analogues?","SZTE-ÁOK/12/037",{"$nulls":5},{"$error":"#DIV/0!"},{"$error":"#DIV/0!"}]
["326.","Konzervatív orvostudományok - Endokrinológia, nefrológia, gasztroenterológia 2.",{"$f":"VLOOKUP(B348,#REF!,2,FALSE)","v":{"$error":"#REF!"}},6,"Lillik Veronika\nPTE - ÁOK","A sejtmentes DNS prognosztikai szerepe hasnyálmirigy adenokarcinómában – metaanalízis","PTE-ÁOK/12/044",{"$nulls":5},{"$error":"#DIV/0!"},{"$error":"#DIV/0!"}]
["321.","Konzervatív orvostudományok - Endokrinológia, nefrológia, gasztroenterológia 2.",{"$f":"VLOOKUP(B349,#REF!,2,FALSE)","v":{"$error":"#REF!"}},7,"Reho Alexandra\nKTDK","A Bifidobacterium infantis 35624 alkalmazásának hatékonysága a depresszió tüneteinek csökkentésére a nem alkoholos zsírmájban és a 2. típusú cukorbetegségben szenvedő betegeknél","KTDK/12/001",{"$nulls":5},{"$error":"#DIV/0!"},{"$error":"#DIV/0!"}]
["333.","Konzervatív orvostudományok - Endokrinológia, nefrológia, gasztroenterológia 3.",{"$f":"VLOOKUP(B350,#REF!,2,FALSE)","v":{"$error":"#REF!"}},1,"Bacsur Péter\nSZTE - ÁOK","Anti-TNF-a kezelésben részesülő gyulladásos bélbetegek szérum, szöveti és széklet mintáiból történő gyógyszerszint monitorozással szerzett tapasztalataink","SZTE-ÁOK/12/005",{"$nulls":5},{"$error":"#DIV/0!"},{"$error":"#DIV/0!"}]
["325.","Konzervatív orvostudományok - Endokrinológia, nefrológia, gasztroenterológia 3.",{"$f":"VLOOKUP(B351,#REF!,2,FALSE)","v":{"$error":"#REF!"}},2,"Csige Dóra\nDE - ÁOK","A transzglutamináz 2 konformációs epitópjának vizsgálata a monoklonális 885 antitesttel","DE-ÁOK/12/037",{"$nulls":5},{"$error":"#DIV/0!"},{"$error":"#DIV/0!"}]
["322.","Konzervatív orvostudományok - Endokrinológia, nefrológia, gasztroenterológia 3.",{"$f":"VLOOKUP(B352,#REF!,2,FALSE)","v":{"$error":"#REF!"}},3,"Dobai Bernadett-Miriam\nETDK - OGYK","A gyermek- és felnőttkori akut pancreatitis diagnosztikus gyakorlatának követése","ETDK-OGYK/12/009",{"$nulls":5},{"$error":"#DIV/0!"},{"$error":"#DIV/0!"}]
["332.","Konzervatív orvostudományok - Endokrinológia, nefrológia, gasztroenterológia 3.",{"$f":"VLOOKUP(B353,#REF!,2,FALSE)","v":{"$error":"#REF!"}},4,"Hahn Viktória, Kardos Anna Sára\nSE - ÁOK","A cukorbetegség és a vulnerábilis coronaria plakk jellemzők összefüggése és prognosztikai értéke","SE-ÁOK/12/046",{"$nulls":5},{"$error":"#DIV/0!"},{"$error":"#DIV/0!"}]
["335.","Konzervatív orvostudományok - Endokrinológia, nefrológia, gasztroenterológia 3.",{"$f":"VLOOKUP(B354,#REF!,2,FALSE)","v":{"$error":"#REF!"}},5,"Kötő Viktória\nPTE - ÁOK","A Crohn-betegség posztoperatív rekurranciája","PTE-ÁOK/12/015",{"$nulls":5},{"$error":"#DIV/0!"},{"$error":"#DIV/0!"}]
["334.","Konzervatív orvostudományok - Endokrinológia, nefrológia, gasztroenterológia 3.",{"$f":"VLOOKUP(B355,#REF!,2,FALSE)","v":{"$error":"#REF!"}},6,"Ungvári-Veres Anita\nSE","Podocin: A glomeruláris résmembrán távtartója","SE/12/049",{"$nulls":5},{"$error":"#DIV/0!"},{"$error":"#DIV/0!"}]
["327.","Konzervatív orvostudományok - Endokrinológia, nefrológia, gasztroenterológia 3.",{"$f":"VLOOKUP(B356,#REF!,2,FALSE)","v":{"$error":"#REF!"}},7,"Vicena Viktória\nPTE - ÁOK","A PACAP és PAC1 receptor expresszió vizsgálata a hasnyálmirigy különböző szövettani mintáiban","PTE-ÁOK/12/061",{"$nulls":5},{"$error":"#DIV/0!"},{"$error":"#DIV/0!"}]
["342.","Konzervatív orvostudományok - Gyermekgyógyászat, infektológia, pulmonológia 1.",{"$f":"VLOOKUP(B357,#REF!,2,FALSE)","v":{"$error":"#REF!"}},1,"Balogh Dóra Csenge\nSE","Predikciós pontrendszer létrehozása hypoxiás-ischaemiás encephalopathiás újszülöttekben","SE/12/002",{"$nulls":5},{"$error":"#DIV/0!"},{"$error":"#DIV/0!"}]
["341.","Konzervatív orvostudományok - Gyermekgyógyászat, infektológia, pulmonológia 1.",{"$f":"VLOOKUP(B358,#REF!,2,FALSE)","v":{"$error":"#REF!"}},2,"Burghardt Zsófia\nDE - ÁOK","A rectalis törlés során észlelt bakteriális kolonizáció szerepe a késői újszülöttkori infekciók előrejelzésében koraszülött intenzív osztályon","DE-ÁOK/12/017",{"$nulls":5},{"$error":"#DIV/0!"},{"$error":"#DIV/0!"}]
["336.","Konzervatív orvostudományok - Gyermekgyógyászat, infektológia, pulmonológia 1.",{"$f":"VLOOKUP(B359,#REF!,2,FALSE)","v":{"$error":"#REF!"}},3,"Kajlik Réka\nSZTE - ÁOK","Antibiotikum használat újszülöttkori korai szepszis prevenciójában","SZTE-ÁOK/12/069",{"$nulls":5},{"$error":"#DIV/0!"},{"$error":"#DIV/0!"}]
["338.","Konzervatív orvostudományok - Gyermekgyógyászat, infektológia, pulmonológia 1.",{"$f":"VLOOKUP(B360,#REF!,2,FALSE)","v":{"$error":"#REF!"}},4,"Nagy Alexandra, Palmer Erik\nSE","Intersitialis pneumonia autoimmun jellemzőkkel (IPAF) betegek klinikai jellemzői és terápiás lehetőségek","SE/12/058",{"$nulls":5},{"$error":"#DIV/0!"},{"$error":"#DIV/0!"}]
["337.","Konzervatív orvostudományok - Gyermekgyógyászat, infektológia, pulmonológia 1.",{"$f":"VLOOKUP(B361,#REF!,2,FALSE)","v":{"$error":"#REF!"}},5,"Vatamány-Einbeck Adrienn, Nyírő Ágota\nSE - ÁOK","A COVID-19 járvány első hullámának hatása az 1-es típusú diabétesszel élő gyermekek anyagcsereegyensúlyára","SE-ÁOK/12/074",{"$nulls":5},{"$error":"#DIV/0!"},{"$error":"#DIV/0!"}]
["339.","Konzervatív orvostudományok - Gyermekgyógyászat, infektológia, pulmonológia 1.",{"$f":"VLOOKUP(B362,#REF!,2,FALSE)","v":{"$error":"#REF!"}},6,"Somodi Borbála\nSE","Gyermekkori palpitációs panaszok katéterablációs kezelésének eredményei kiváltható tahikardia hiányában","SE/12/044",{"$nulls":5},{"$error":"#DIV/0!"},{"$error":"#DIV/0!"}]
["345.","Konzervatív orvostudományok - Gyermekgyógyászat, infektológia, pulmonológia 2.",{"$f":"VLOOKUP(B363,#REF!,2,FALSE)","v":{"$error":"#REF!"}},1,"Ágoston Blanka\nSE - ÁOK","Perioperatív NIRS-monitorizálás adatainak vizsgálata újszülöttkori nyelőcső műtétek során","SE-ÁOK/12/029",{"$nulls":5},{"$error":"#DIV/0!"},{"$error":"#DIV/0!"}]
["349.","Konzervatív orvostudományok - Gyermekgyógyászat, infektológia, pulmonológia 2.",{"$f":"VLOOKUP(B364,#REF!,2,FALSE)","v":{"$error":"#REF!"}},2,"Ilyés Norbert, Csiki Ferenc-Attila, Bíró Júlia\nETDK - OGYK","12-14 éves sportolók légzésfunkció-értékeinek elemzése a referenciaértékek, az antropometriai paraméterek és a sportspecificitás tükrében","ETDK-OGYK/12/016","Nem jelent meg"]
["348.","Konzervatív orvostudományok - Gyermekgyógyászat, infektológia, pulmonológia 2.",{"$f":"VLOOKUP(B365,#REF!,2,FALSE)","v":{"$error":"#REF!"}},3,"Boros Adrienn\nDE - ÁOK","Nozokomiális kolonizációk és fertőzések megoszlása egy belgyógyászati jellegű intenzív osztályon – egy év bakteriológiai tenyésztési adatainak retrospektív elemzése","DE-ÁOK/12/025",{"$nulls":5},{"$error":"#DIV/0!"},{"$error":"#DIV/0!"}]
["459.","Konzervatív orvostudományok - Gyermekgyógyászat, infektológia, pulmonológia 2.",{"$f":"VLOOKUP(B366,#REF!,2,FALSE)","v":{"$error":"#REF!"}},4,"Molnár Andrea, Kiss Liliána\nSZTE - ÁOK","Az intrapulmonális sönt emelkedése elhízott betegekben: romló oxigén igény-kínálat","SZTE-ÁOK/12/057",{"$nulls":5},{"$error":"#DIV/0!"},{"$error":"#DIV/0!"}]
["344.","Konzervatív orvostudományok - Gyermekgyógyászat, infektológia, pulmonológia 2.",{"$f":"VLOOKUP(B367,#REF!,2,FALSE)","v":{"$error":"#REF!"}},5,"Klaus Laura\nSE - ÁOK","Retinoblasztóma modern kezelési lehetőségeinek eredményei Magyarországon","SE-ÁOK/12/027",{"$nulls":5},{"$error":"#DIV/0!"},{"$error":"#DIV/0!"}]
["343.","Konzervatív orvostudományok - Gyermekgyógyászat, infektológia, pulmonológia 2.",{"$f":"VLOOKUP(B368,#REF!,2,FALSE)","v":{"$error":"#REF!"}},6,"Petrik Borisz Rabán, Laky Boglárka\nSE","Fiatal és középkorú felnőtt betegek Clostridiodes difficile infekciójának epidemiológiai és klinikai karakterisztikája","SE/12/034",{"$nulls":5},{"$error":"#DIV/0!"},{"$error":"#DIV/0!"}]
["346.","Konzervatív orvostudományok - Gyermekgyógyászat, infektológia, pulmonológia 2.",{"$f":"VLOOKUP(B369,#REF!,2,FALSE)","v":{"$error":"#REF!"}},7,"Tarek Gabriella Laila\nDE - ÁOK","Újszülöttkori bélelégtelenséghez társuló májbetegség (IFALD) rizikófaktorainak vizsgálata","DE-ÁOK/12/053",{"$nulls":5},{"$error":"#DIV/0!"},{"$error":"#DIV/0!"}]
["351.","Konzervatív orvostudományok - Gyermekgyógyászat, infektológia, pulmonológia 3.",{"$f":"VLOOKUP(B370,#REF!,2,FALSE)","v":{"$error":"#REF!"}},1,"Cseszneki Borbála\nSE - ÁOK","Gyulladásos markerek és korai újszülöttkori sepsis hypoxiás-ischaemiás encephalopathiával kezelt újszülöttekben","SE-ÁOK/12/012",{"$nulls":5},{"$error":"#DIV/0!"},{"$error":"#DIV/0!"}]
["347.","Konzervatív orvostudományok - Gyermekgyógyászat, infektológia, pulmonológia 3.",{"$f":"VLOOKUP(B371,#REF!,2,FALSE)","v":{"$error":"#REF!"}},2,"Erdős  Sándor\nSE","Virtuális valóság hatása pszichológiai és fiziológiai változókra kemoterápiában részesülő gyermekeknél","SE/12/034",{"$nulls":5},{"$error":"#DIV/0!"},{"$error":"#DIV/0!"}]
["525.","Konzervatív orvostudományok - Gyermekgyógyászat, infektológia, pulmonológia 3.",{"$f":"VLOOKUP(B372,#REF!,2,FALSE)","v":{"$error":"#REF!"}},3,"Forgács Robin\nSZTE - ÁOK","Légzésmechanikai paraméterek vizsgálata byssinonisban szenvedő betegeknél, szívműtét során.","SZTE-ÁOK/12/058",{"$nulls":5},{"$error":"#DIV/0!"},{"$error":"#DIV/0!"}]
["412.","Konzervatív orvostudományok - Gyermekgyógyászat, infektológia, pulmonológia 3.",{"$f":"VLOOKUP(B373,#REF!,2,FALSE)","v":{"$error":"#REF!"}},4,"Kremzner Noémi\nPTE - ÁOK","Szisztémás sclerosishoz társuló tüdőfibrosis biomarkerekkel való összefüggései","PTE-ÁOK/12/059",{"$nulls":5},{"$error":"#DIV/0!"},{"$error":"#DIV/0!"}]
["393.","Konzervatív orvostudományok - Gyermekgyógyászat, infektológia, pulmonológia 3.",{"$f":"VLOOKUP(B374,#REF!,2,FALSE)","v":{"$error":"#REF!"}},5,"Peace Nkemdirim Ada Eze\nDE - ÁOK","Analysis of patient data from the Debrecen branch of the HUNCHEST II national trial.","DE-ÁOK/12/043",{"$nulls":5},{"$error":"#DIV/0!"},{"$error":"#DIV/0!"}]
["354.","Konzervatív orvostudományok - Gyermekgyógyászat, infektológia, pulmonológia 3.",{"$f":"VLOOKUP(B375,#REF!,2,FALSE)","v":{"$error":"#REF!"}},6,"Varga Viktória\nSE","Cytomegalovirus profilaxis és kezelés tüdőtranszplantált betegekben","SE/12/071",{"$nulls":5},{"$error":"#DIV/0!"},{"$error":"#DIV/0!"}]
["367.","Konzervatív orvostudományok - Kardiovaszkuláris medicina (kardiológia, szívsebészet) 1.",{"$f":"VLOOKUP(B376,#REF!,2,FALSE)","v":{"$error":"#REF!"}},1,"Dömötör Marcell\nSZTE - ÁOK","Teleauszkultációs módszerek a szívbillentyűbetegségek vizsgálatában","SZTE-ÁOK/12/008",{"$nulls":5},{"$error":"#DIV/0!"},{"$error":"#DIV/0!"}]
["355.","Konzervatív orvostudományok - Kardiovaszkuláris medicina (kardiológia, szívsebészet) 1.",{"$f":"VLOOKUP(B377,#REF!,2,FALSE)","v":{"$error":"#REF!"}},2,"Dr. Fábián Alexandra\nSE","A miokardiális mechanika és a sporttevékenység összefüggése élsportolókban:  a csúcs oxigénfelvétel predikciója gépi tanulás segítségével","SE/12/033",{"$nulls":5},{"$error":"#DIV/0!"},{"$error":"#DIV/0!"}]
["360.","Konzervatív orvostudományok - Kardiovaszkuláris medicina (kardiológia, szívsebészet) 1.",{"$f":"VLOOKUP(B378,#REF!,2,FALSE)","v":{"$error":"#REF!"}},3,"Furák Ádám\nSE","Jobb kamrai non-compactatio: mítosz vagy valóság?","SE/12/075",{"$nulls":5},{"$error":"#DIV/0!"},{"$error":"#DIV/0!"}]
["308.","Konzervatív orvostudományok - Kardiovaszkuláris medicina (kardiológia, szívsebészet) 1.",{"$f":"VLOOKUP(B379,#REF!,2,FALSE)","v":{"$error":"#REF!"}},4,"Mátyás Botond - Barna, Szőke Hunor, Katona Orsolya-Brigitta\nETDK - OGYK","A plakk körüli zsírszövet hatásának vizsgálata a koszorúérplakkok vulnerabilitására – összehasonlító vizsgálat","ETDK-OGYK/12/001",{"$nulls":5},{"$error":"#DIV/0!"},{"$error":"#DIV/0!"}]
["376.","Konzervatív orvostudományok - Kardiovaszkuláris medicina (kardiológia, szívsebészet) 1.",{"$f":"VLOOKUP(B380,#REF!,2,FALSE)","v":{"$error":"#REF!"}},5,"Kothalawala Edward Saman\nDE - ÁOK","Szakubitril/valzartán alkalmazása a szisztolés szívelégtelenségben (HFrEF) - az első két év klinikai tapasztalatai","DE-ÁOK/12/057",{"$nulls":5},{"$error":"#DIV/0!"},{"$error":"#DIV/0!"}]
["358.","Konzervatív orvostudományok - Kardiovaszkuláris medicina (kardiológia, szívsebészet) 1.",{"$f":"VLOOKUP(B381,#REF!,2,FALSE)","v":{"$error":"#REF!"}},6,"Száraz Lili, Liljedahl Eltér Julia Helena Christina\nSE","A pitvarfibrilláció és a stroke/TIA prediktorainak meghatározása szív CT angiográfia segítségével","SE/12/066",{"$nulls":5},{"$error":"#DIV/0!"},{"$error":"#DIV/0!"}]
["389.","Konzervatív orvostudományok - Kardiovaszkuláris medicina (kardiológia, szívsebészet) 2.",{"$f":"VLOOKUP(B382,#REF!,2,FALSE)","v":{"$error":"#REF!"}},1,"Éreth Zsófia\nPTE - ÁOK","In-stent resztenózis kialakulása és kezelése vénás koronária bypass graftokban","PTE-ÁOK/12/023",{"$nulls":5},{"$error":"#DIV/0!"},{"$error":"#DIV/0!"}]
["357.","Konzervatív orvostudományok - Kardiovaszkuláris medicina (kardiológia, szívsebészet) 2.",{"$f":"VLOOKUP(B383,#REF!,2,FALSE)","v":{"$error":"#REF!"}},2,"Farsang Vivien, Kis Dorottya\nSE","A circumferentialis strain szerepe a hypertrabecularisatioval járó cardiomyopathiák differenciál diagnosztikájában","SE/12/007",{"$nulls":5},{"$error":"#DIV/0!"},{"$error":"#DIV/0!"}]
["363.","Konzervatív orvostudományok - Kardiovaszkuláris medicina (kardiológia, szívsebészet) 2.",{"$f":"VLOOKUP(B384,#REF!,2,FALSE)","v":{"$error":"#REF!"}},3,"Grebur Kinga\nSE","Az EKG és az MR összefüggéseinek vizsgálata jó bal kamra funkciójú noncompact cardiomyopathiás betegeken","SE/12/023",{"$nulls":5},{"$error":"#DIV/0!"},{"$error":"#DIV/0!"}]
["364.","Konzervatív orvostudományok - Kardiovaszkuláris medicina (kardiológia, szívsebészet) 2.",{"$f":"VLOOKUP(B385,#REF!,2,FALSE)","v":{"$error":"#REF!"}},4,"Nagy Dávid, Karima Christian\nSE","A miofilamentumok Ca2+ érzékenysége korrelál a bal kamrai kontraktilitással a fokozott nyomásterhelés-indukálta patológiás szívizomhipertrófia kialakulása és progressziója során","SE/12/010",{"$nulls":5},{"$error":"#DIV/0!"},{"$error":"#DIV/0!"}]
["377.","Konzervatív orvostudományok - Kardiovaszkuláris medicina (kardiológia, szívsebészet) 2.",{"$f":"VLOOKUP(B386,#REF!,2,FALSE)","v":{"$error":"#REF!"}},5,"Oleynik Maria\nDE - ÁOK","Variability of NOAC dose adjustment in patients with renal dysfunction and non-valvular atrial fibrillation.","DE-ÁOK/12/065",{"$nulls":5},{"$error":"#DIV/0!"},{"$error":"#DIV/0!"}]
["361.","Konzervatív orvostudományok - Kardiovaszkuláris medicina (kardiológia, szívsebészet) 2.",{"$f":"VLOOKUP(B387,#REF!,2,FALSE)","v":{"$error":"#REF!"}},6,"Pintér Anita\nSE","Az anaemia, mint legerősebb független mortalitási prediktor a megtartott ejekciós frakcióval rendelkezõ szívelégtelen betegekben","SE/12/048",{"$nulls":5},{"$f":"AVERAGE(H387:L387)","v":{"$error":"#DIV/0!"}},{"$f":"_xlfn.RANK.EQ(M387,M:M)","v":{"$error":"#DIV/0!"}}]
["380.","Konzervatív orvostudományok - Kardiovaszkuláris medicina (kardiológia, szívsebészet) 3.",{"$f":"VLOOKUP(B388,#REF!,2,FALSE)","v":{"$error":"#REF!"}},1,"Ágoston Dóra Erzsébet, Sipos Bence\nSE - ÁOK","Cardivascularis kórképek predikciója polysomnographiás adatok gépi tanulással történő elemzésével","SE-ÁOK/12/057",{"$nulls":5},{"$error":"#DIV/0!"},{"$error":"#DIV/0!"}]
["433.","Konzervatív orvostudományok - Kardiovaszkuláris medicina (kardiológia, szívsebészet) 3.",{"$f":"VLOOKUP(B389,#REF!,2,FALSE)","v":{"$error":"#REF!"}},2,"Pál Hanga, Csányi Borbála\nSE - ÁOK","Szignifikáns carotis stenosisban szenvedő betegek funkcionális transcranialis Doppler vizsgálatainak összehasonlító elemzése","SE-ÁOK/12/037",{"$nulls":5},{"$error":"#DIV/0!"},{"$error":"#DIV/0!"}]
["392.","Konzervatív orvostudományok - Kardiovaszkuláris medicina (kardiológia, szívsebészet) 3.",{"$f":"VLOOKUP(B390,#REF!,2,FALSE)","v":{"$error":"#REF!"}},3,"Debreceni Dorottya\nPTE - ÁOK","Konvencionálisan végzett, valamint zero-fluoroszkópos katéterablációk összehasonlítása PSVT-k esetén: single-center vizsgálat","PTE-ÁOK/12/052",{"$nulls":5},{"$error":"#DIV/0!"},{"$error":"#DIV/0!"}]
["362.","Konzervatív orvostudományok - Kardiovaszkuláris medicina (kardiológia, szívsebészet) 3.",{"$f":"VLOOKUP(B391,#REF!,2,FALSE)","v":{"$error":"#REF!"}},4,"Dr. Barta Bálint András, Virág-Tulassay Eszter\nSE","A bal kamrai miokardium SGLT1 expressziójának vizsgálata szívelégtelen betegekben","SE/12/012",{"$nulls":5},{"$error":"#DIV/0!"},{"$error":"#DIV/0!"}]
["382.","Konzervatív orvostudományok - Kardiovaszkuláris medicina (kardiológia, szívsebészet) 3.",{"$f":"VLOOKUP(B392,#REF!,2,FALSE)","v":{"$error":"#REF!"}},5,"Virág-Tulassay Eszter, Ladányi Zsuzsanna\nSE - ÁOK","A sportszív funkcionális jellemzésének új bajnoka: a miokardiális munka index","SE-ÁOK/12/019",{"$nulls":5},{"$error":"#DIV/0!"},{"$error":"#DIV/0!"}]
["388.","Konzervatív orvostudományok - Kardiovaszkuláris medicina (kardiológia, szívsebészet) 3.",{"$f":"VLOOKUP(B393,#REF!,2,FALSE)","v":{"$error":"#REF!"}},6,"Simon Tamás\nSZTE - ÁOK","Chloroquin cardiomyopathiás betegek kliniko-morfológiai jellemzői","SZTE-ÁOK/12/064",{"$nulls":5},{"$error":"#DIV/0!"},{"$error":"#DIV/0!"}]
["384.","Konzervatív orvostudományok - Kardiovaszkuláris medicina (kardiológia, szívsebészet) 3.",{"$f":"VLOOKUP(B394,#REF!,2,FALSE)","v":{"$error":"#REF!"}},7,"Tolnai Fanni\nDE - ÁOK","Az epicardialis koszorúérmozgás háromdimenziós analízise Takotsubo-cardiomyopathiában","DE-ÁOK/12/071",{"$nulls":5},{"$error":"#DIV/0!"},{"$error":"#DIV/0!"}]
["385.","Konzervatív orvostudományok - Kardiovaszkuláris medicina (kardiológia, szívsebészet) 4.",{"$f":"VLOOKUP(B395,#REF!,2,FALSE)","v":{"$error":"#REF!"}},1,"Azzaya Dorj\nDE - ÁOK","Relations of the ‘Flow separation index’ to established physiological indexes  in coronary artery disease","DE-ÁOK/12/081",{"$nulls":5},{"$error":"#DIV/0!"},{"$error":"#DIV/0!"}]
["371.","Konzervatív orvostudományok - Kardiovaszkuláris medicina (kardiológia, szívsebészet) 4.",{"$f":"VLOOKUP(B396,#REF!,2,FALSE)","v":{"$error":"#REF!"}},2,"Czunyi Edina\nSE - ÁOK","Perkután balpitvari fülcsezárás - tíz év tapasztalatai","SE-ÁOK/12/080",{"$nulls":5},{"$error":"#DIV/0!"},{"$error":"#DIV/0!"}]
["375.","Konzervatív orvostudományok - Kardiovaszkuláris medicina (kardiológia, szívsebészet) 4.",{"$f":"VLOOKUP(B397,#REF!,2,FALSE)","v":{"$error":"#REF!"}},3,"Csikós Bálint\nSE - ÁOK","Minimál invazív szívsebészet: Izolált aortabillentyű műtétek spektrumának vizsgálata","SE-ÁOK/12/055",{"$nulls":5},{"$error":"#DIV/0!"},{"$error":"#DIV/0!"}]
["387.","Konzervatív orvostudományok - Kardiovaszkuláris medicina (kardiológia, szívsebészet) 4.",{"$f":"VLOOKUP(B398,#REF!,2,FALSE)","v":{"$error":"#REF!"}},4,"Kádár Gergő Péter\nDE - ÁOK","Levosimendan kezelés hatásainak vizsgálata előrehaladott stádiumú szisztolés szívelégtelenségben (HFrEF) szenvedő betegekben","DE-ÁOK/12/066",{"$nulls":5},{"$error":"#DIV/0!"},{"$error":"#DIV/0!"}]
["373.","Konzervatív orvostudományok - Kardiovaszkuláris medicina (kardiológia, szívsebészet) 4.",{"$f":"VLOOKUP(B399,#REF!,2,FALSE)","v":{"$error":"#REF!"}},5,"Kássa Krisztián István\nSE - ÁOK","Magas energiájú, rövid időtartamú rádiófrekvenciás abláció a pitvarfibrilláció kezelésében","SE-ÁOK/12/056",{"$nulls":5},{"$error":"#DIV/0!"},{"$error":"#DIV/0!"}]
["391.","Konzervatív orvostudományok - Kardiovaszkuláris medicina (kardiológia, szívsebészet) 4.",{"$f":"VLOOKUP(B400,#REF!,2,FALSE)","v":{"$error":"#REF!"}},6,"Lukács Réka Alíz\nPTE - ÁOK","Természetes clusterek azonosítása és túlélésvizsgálata myokardiális infarktuson átesett idős betegek esetén","PTE-ÁOK/12/063",{"$nulls":5},{"$error":"#DIV/0!"},{"$error":"#DIV/0!"}]
["366.","Konzervatív orvostudományok - Kardiovaszkuláris medicina (kardiológia, szívsebészet) 5.",{"$f":"VLOOKUP(B401,#REF!,2,FALSE)","v":{"$error":"#REF!"}},1,"Csikor Virág\nSE","Supraventricularis tachycardiák zero-fluoroszkópiás katéter ablációja elektroanatómiai térképező rendszerek használatával","SE/12/053",{"$nulls":5},{"$error":"#DIV/0!"},{"$error":"#DIV/0!"}]
["390.","Konzervatív orvostudományok - Kardiovaszkuláris medicina (kardiológia, szívsebészet) 5.",{"$f":"VLOOKUP(B402,#REF!,2,FALSE)","v":{"$error":"#REF!"}},2,"Kósa Dániel\nPTE - ÁOK","Új, non-invazív véráramlási vizsgálómódszerek a koszorúér-betegség progressziójának predikciójában","PTE-ÁOK/12/007",{"$nulls":5},{"$error":"#DIV/0!"},{"$error":"#DIV/0!"}]
["365.","Konzervatív orvostudományok - Kardiovaszkuláris medicina (kardiológia, szívsebészet) 5.",{"$f":"VLOOKUP(B403,#REF!,2,FALSE)","v":{"$error":"#REF!"}},3,"Kulcsár Flóra Zsófia\nSE","Machine Learning-alapú, nemek szerinti mortalitás-predikció a Kardiális Reszinkronizációs Terápián átesett betegekben","SE/12/030",{"$nulls":5},{"$error":"#DIV/0!"},{"$error":"#DIV/0!"}]
["370.","Konzervatív orvostudományok - Kardiovaszkuláris medicina (kardiológia, szívsebészet) 5.",{"$f":"VLOOKUP(B404,#REF!,2,FALSE)","v":{"$error":"#REF!"}},4,"Ladányi Zsuzsanna\nSE - ÁOK","Volumenterhelés által indukált bal kamrai miokardiális diszfunkció vizsgálata nyomás-strain-térfogat analízis segítségével","SE-ÁOK/12/002",{"$nulls":5},{"$error":"#DIV/0!"},{"$error":"#DIV/0!"}]
["386.","Konzervatív orvostudományok - Kardiovaszkuláris medicina (kardiológia, szívsebészet) 5.",{"$f":"VLOOKUP(B405,#REF!,2,FALSE)","v":{"$error":"#REF!"}},5,"Simon Ádám Antal\nDE - ÁOK","Akut szívelégtelenségben szenvedő betegek vizsgálata: a klinikai megjelenési forma szerepe","DE-ÁOK/12/039",{"$nulls":5},{"$error":"#DIV/0!"},{"$error":"#DIV/0!"}]
["383.","Konzervatív orvostudományok - Kardiovaszkuláris medicina (kardiológia, szívsebészet) 5.",{"$f":"VLOOKUP(B406,#REF!,2,FALSE)","v":{"$error":"#REF!"}},6,"Tóth Anna Zsófia\nDE - ÁOK","Jobb kamra longitudinális funkciójának a jelentősége a kardiális reszinkronizációs terápiára nonresponder betegek esetében","DE-ÁOK/12/019",{"$nulls":5},{"$error":"#DIV/0!"},{"$error":"#DIV/0!"}]
["372.","Konzervatív orvostudományok - Képalkotó diagnosztika 1.",{"$f":"VLOOKUP(B407,#REF!,2,FALSE)","v":{"$error":"#REF!"}},1,"Balla Dorottya, Fogarasi Csenge Emese\nSE - ÁOK","Szív mágneses rezonanciás vizsgálat alapú strain analízis szerepe a sportadaptáció vizsgálatában","SE-ÁOK/12/066",{"$nulls":5},{"$error":"#DIV/0!"},{"$error":"#DIV/0!"}]
["381.","Konzervatív orvostudományok - Képalkotó diagnosztika 1.",{"$f":"VLOOKUP(B408,#REF!,2,FALSE)","v":{"$error":"#REF!"}},2,"Benbabaali Abdessalem, Száraz Lili\nSE - ÁOK","Kalcium score alapú döntéstámogatás a koronária CT angiográfia elvégzését illetően","SE-ÁOK/12/039",{"$nulls":5},{"$error":"#DIV/0!"},{"$error":"#DIV/0!"}]
["505.","Konzervatív orvostudományok - Képalkotó diagnosztika 1.",{"$f":"VLOOKUP(B409,#REF!,2,FALSE)","v":{"$error":"#REF!"}},3,"Köllő Zoltán, Dho Nagy Eszter Anna, Cori Francesco\nETDK - OGYK","A nintedanib radiológiailag kimutatható tüdőre gyakorolt hatásai","ETDK-OGYK/12/006",{"$nulls":5},{"$error":"#DIV/0!"},{"$error":"#DIV/0!"}]
["403.","Konzervatív orvostudományok - Képalkotó diagnosztika 1.",{"$f":"VLOOKUP(B410,#REF!,2,FALSE)","v":{"$error":"#REF!"}},4,"Dunai Ludovika Zsófia\nSE - ÁOK","MR score-rendszerek a neonatális hypoxiás-ischaemias encephalopathia prognosztikájában","SE-ÁOK/12/068",{"$nulls":5},{"$error":"#DIV/0!"},{"$error":"#DIV/0!"}]
["397.","Konzervatív orvostudományok - Képalkotó diagnosztika 1.",{"$f":"VLOOKUP(B411,#REF!,2,FALSE)","v":{"$error":"#REF!"}},5,"Garda Jennifer Luca\nSZTE - ÁOK","A diffúziósúlyozott MR által detektált fehérállományi mikrostruktúrális károsodás prediktív értéke sclerosis multiplexben","SZTE-ÁOK/12/074",{"$nulls":5},{"$error":"#DIV/0!"},{"$error":"#DIV/0!"}]
["395.","Konzervatív orvostudományok - Képalkotó diagnosztika 1.",{"$f":"VLOOKUP(B412,#REF!,2,FALSE)","v":{"$error":"#REF!"}},6,"Máthé Nóra Beatrix\nDE - ÁOK","Az MR képfeldolgozás hatása a textúra analízis kvantitatív eredményére","DE-ÁOK/12/074",{"$nulls":5},{"$error":"#DIV/0!"},{"$error":"#DIV/0!"}]
["404.","Konzervatív orvostudományok - Képalkotó diagnosztika 1.",{"$f":"VLOOKUP(B413,#REF!,2,FALSE)","v":{"$error":"#REF!"}},7,"Stollmayer Róbert\nSE - ÁOK","2D és 3D dense neurális hálók klasszifikációs pontosságának vizsgálata fokális májléziók multiszekvenciális MRI felvételeinek felhasználásával","SE-ÁOK/12/054",{"$nulls":5},{"$error":"#DIV/0!"},{"$error":"#DIV/0!"}]
["398.","Konzervatív orvostudományok - Képalkotó diagnosztika 2.",{"$f":"VLOOKUP(B414,#REF!,2,FALSE)","v":{"$error":"#REF!"}},1,"Dr. Hári Zsófia\nPTE - ÁOK","Pajzsmirigygöbök mesterséges intelligenciával történő értékelésének buktatói a klinikai ultrahang diagnosztikában","PTE-ÁOK/12/036",{"$nulls":5},{"$error":"#DIV/0!"},{"$error":"#DIV/0!"}]
["356.","Konzervatív orvostudományok - Képalkotó diagnosztika 2.",{"$f":"VLOOKUP(B415,#REF!,2,FALSE)","v":{"$error":"#REF!"}},2,"Fábián Bálint\nSE","A ramus circumflexus anulus fibrosus sinisterhez való viszonyának háromdimenziós megjelenítése","SE/12/043",{"$nulls":5},{"$error":"#DIV/0!"},{"$error":"#DIV/0!"}]
["540.","Konzervatív orvostudományok - Képalkotó diagnosztika 2.",{"$f":"VLOOKUP(B416,#REF!,2,FALSE)","v":{"$error":"#REF!"}},3,"Hajnal Benjámin\nSE - ÁOK","Új módszer CT-alapú virtuális 3D lumbális gerinc modellek álló röntgen felvételhez illesztésére","SE-ÁOK/12/026",{"$nulls":5},{"$error":"#DIV/0!"},{"$error":"#DIV/0!"}]
["394.","Konzervatív orvostudományok - Képalkotó diagnosztika 2.",{"$f":"VLOOKUP(B417,#REF!,2,FALSE)","v":{"$error":"#REF!"}},4,"Jakab Fanni\nDE - ÁOK","A VUR korszerű képalkotó diagnosztikája gyermekkorban","DE-ÁOK/12/042",{"$nulls":5},{"$error":"#DIV/0!"},{"$error":"#DIV/0!"}]
["396.","Konzervatív orvostudományok - Képalkotó diagnosztika 2.",{"$f":"VLOOKUP(B418,#REF!,2,FALSE)","v":{"$error":"#REF!"}},5,"Kalmár Kamilla, Kis Barbara\nSZTE - ÁOK","Multiparametrikus ultrahangvizsgálat szerepe a férfi meddőségi kivizsgálás során – a nagyobb és rugalmasabb jobb!","SZTE-ÁOK/12/044",{"$nulls":5},{"$error":"#DIV/0!"},{"$error":"#DIV/0!"}]
["399.","Konzervatív orvostudományok - Képalkotó diagnosztika 2.",{"$f":"VLOOKUP(B419,#REF!,2,FALSE)","v":{"$error":"#REF!"}},6,"Vokó Boldizsár, Munkácsi Tamás\nSE - ÁOK","Ipsilateralis carotis műtét – contralateralis carotis stentelés: a hosszútávú eredmények vizsgálata","SE-ÁOK/12/035",{"$nulls":5},{"$error":"#DIV/0!"},{"$error":"#DIV/0!"}]
["378.","Konzervatív orvostudományok - Képalkotó diagnosztika 2.",{"$f":"VLOOKUP(B420,#REF!,2,FALSE)","v":{"$error":"#REF!"}},7,"Tóth Zsombor\nSE - ÁOK","Szív mágneses rezonancia képalkotás jelentősége és prognosztikai szerepe mitrális anulus diszjunkcióban","SE-ÁOK/12/032",{"$nulls":5},{"$error":"#DIV/0!"},{"$error":"#DIV/0!"}]
["401.","Konzervatív orvostudományok - Képalkotó diagnosztika 3.",{"$f":"VLOOKUP(B421,#REF!,2,FALSE)","v":{"$error":"#REF!"}},1,"Budai Bettina Katalin\nSE","A máj konvolúciós neurális hálozaton alapuló automatikus térfogat meghatározása összevetve manuális és egyéb félig automatikus szegmentálási technikákkal","SE/12/009",{"$nulls":5},{"$error":"#DIV/0!"},{"$error":"#DIV/0!"}]
["400.","Konzervatív orvostudományok - Képalkotó diagnosztika 3.",{"$f":"VLOOKUP(B422,#REF!,2,FALSE)","v":{"$error":"#REF!"}},2,"Hardi Roland\nDE - ÁOK","3D print alapú kisállat fantomok fejlesztése preklinikai képalkotáshoz","DE-ÁOK/12/079",{"$nulls":5},{"$error":"#DIV/0!"},{"$error":"#DIV/0!"}]
["402.","Konzervatív orvostudományok - Képalkotó diagnosztika 3.",{"$f":"VLOOKUP(B423,#REF!,2,FALSE)","v":{"$error":"#REF!"}},3,"Kovács Gergely Imre\nSE - ÁOK","A Digitális Variancia Angiográfia klinikai felhasználhatóságának vizsgálata csökkentett sugárdózisú alsó végtagi érfestések során","SE-ÁOK/12/077",{"$nulls":5},{"$error":"#DIV/0!"},{"$error":"#DIV/0!"}]
["406.","Konzervatív orvostudományok - Képalkotó diagnosztika 3.",{"$f":"VLOOKUP(B424,#REF!,2,FALSE)","v":{"$error":"#REF!"}},4,"Magyar Orsolya\nDE - ÁOK","Látens bal kamrai diszfunkció kimutatása megtartott bal kamra szisztolés funkcióval és szignifikáns aortabillentyű sztenózissal rendelkező betegekben","DE-ÁOK/12/055",{"$nulls":5},{"$error":"#DIV/0!"},{"$error":"#DIV/0!"}]
["405.","Konzervatív orvostudományok - Képalkotó diagnosztika 3.",{"$f":"VLOOKUP(B425,#REF!,2,FALSE)","v":{"$error":"#REF!"}},5,"Philippovich Márton\nSE","A femoralis plaque-karakterisztika jelentősége a carotis stentelés utáni restenosis kialakulásában","SE/12/048",{"$nulls":5},{"$error":"#DIV/0!"},{"$error":"#DIV/0!"}]
["432.","Konzervatív orvostudományok - Képalkotó diagnosztika 3.",{"$f":"VLOOKUP(B426,#REF!,2,FALSE)","v":{"$error":"#REF!"}},6,"Zsarnóczay Emese, Száraz Lili\nSE","A bal pitvari fülcse flow hatásának vizsgálata a stroke/TIA előfordulására valamint a pitvarfibrilláció rekurrenciára","SE/12/065",{"$nulls":5},{"$error":"#DIV/0!"},{"$error":"#DIV/0!"}]
["407.","Konzervatív orvostudományok - Képalkotó diagnosztika 3.",{"$f":"VLOOKUP(B427,#REF!,2,FALSE)","v":{"$error":"#REF!"}},7,"Vigh András István\nSZTE - ÁOK","A szürkeállományi aszimmetria, és téri figyelmi lateralizáció összefüggése sclerosis multiplexben","SZTE-ÁOK/12/055",{"$nulls":5},{"$error":"#DIV/0!"},{"$error":"#DIV/0!"}]
["411.","Konzervatív orvostudományok - Klinikai immunológia, reumatológia, bőrgyógyászat",{"$f":"VLOOKUP(B428,#REF!,2,FALSE)","v":{"$error":"#REF!"}},1,"Csiák-Osztotics Kitti\nPTE - ÁOK","Kézfunkció károsodás vizsgálata és összefüggések kutatása a szérumban jelenlévő specifikus biomarkerekkel szisztémás sclerosisos betegekben","PTE-ÁOK/12/014",{"$nulls":5},{"$error":"#DIV/0!"},{"$error":"#DIV/0!"}]
["419.","Konzervatív orvostudományok - Klinikai immunológia, reumatológia, bőrgyógyászat",{"$f":"VLOOKUP(B429,#REF!,2,FALSE)","v":{"$error":"#REF!"}},2,"Kiss Franciska Ilona\nPTE - ÁOK","Fáradékonyság felmérése szisztémás sclerosisban szenvedő betegeknél","PTE-ÁOK/12/003",{"$nulls":5},{"$error":"#DIV/0!"},{"$error":"#DIV/0!"}]
["408.","Konzervatív orvostudományok - Klinikai immunológia, reumatológia, bőrgyógyászat",{"$f":"VLOOKUP(B430,#REF!,2,FALSE)","v":{"$error":"#REF!"}},3,"Koreny Viktor Pál\nDE - ÁOK","Myositis alcsoportok vizsgálata az euroline immunoblottal detektált antitestek jelenléte alapján idiopathiás inflammatorikus myopathiás betegekben","DE-ÁOK/12/056",{"$nulls":5},{"$error":"#DIV/0!"},{"$error":"#DIV/0!"}]
["414.","Konzervatív orvostudományok - Klinikai immunológia, reumatológia, bőrgyógyászat",{"$f":"VLOOKUP(B431,#REF!,2,FALSE)","v":{"$error":"#REF!"}},4,"Kovács Réka\nPTE - ÁOK","Körömelváltozások vizsgálata digitális fényképek feldolgozásával","PTE-ÁOK/12/065",{"$nulls":5},{"$error":"#DIV/0!"},{"$error":"#DIV/0!"}]
["417.","Konzervatív orvostudományok - Klinikai immunológia, reumatológia, bőrgyógyászat",{"$f":"VLOOKUP(B432,#REF!,2,FALSE)","v":{"$error":"#REF!"}},5,"Meznerics Fanni Adél\nSE - ÁOK","Teledermatológia széles körben való alkalmazása a COVID-19 járvány első hulláma során −  új lehetőség az onkodermatológiai prevencióban","SE-ÁOK/12/042",{"$nulls":5},{"$error":"#DIV/0!"},{"$error":"#DIV/0!"}]
["415.","Konzervatív orvostudományok - Klinikai immunológia, reumatológia, bőrgyógyászat",{"$f":"VLOOKUP(B433,#REF!,2,FALSE)","v":{"$error":"#REF!"}},6,"Nagy Laura\nDE - ÁOK","Tüdőérintettség jellemzése Sjögren-szindrómában","DE-ÁOK/12/008",{"$nulls":5},{"$error":"#DIV/0!"},{"$error":"#DIV/0!"}]
["416.","Konzervatív orvostudományok - Klinikai immunológia, reumatológia, bőrgyógyászat",{"$f":"VLOOKUP(B434,#REF!,2,FALSE)","v":{"$error":"#REF!"}},7,"Torner Bernadett\nDE - ÁOK","Antifoszfolipid antitestek és a β2-glikoprotein I különböző konformációi közötti interakció vizsgálata","DE-ÁOK/12/075",{"$nulls":5},{"$error":"#DIV/0!"},{"$error":"#DIV/0!"}]
["409.","Konzervatív orvostudományok - Klinikai immunológia, reumatológia, bőrgyógyászat",{"$f":"VLOOKUP(B435,#REF!,2,FALSE)","v":{"$error":"#REF!"}},8,"Varga Noémi Nóra\nSE - ÁOK","Melanoma malignum sebészi széleinek műtét előtti vizsgálata multispektrális LED-alapú eszköz használatával","SE-ÁOK/12/047",{"$nulls":5},{"$error":"#DIV/0!"},{"$error":"#DIV/0!"}]
["313.","Konzervatív orvostudományok - Laboratóriumi medicina, klinikai mikrobiológia",{"$f":"VLOOKUP(B436,#REF!,2,FALSE)","v":{"$error":"#REF!"}},1,"Berecki Bernadett\nETDK - OGYK","A 25-OH D vitaminszint jelentősége az ovulációban","ETDK-OGYK/12/011",{"$nulls":5},{"$error":"#DIV/0!"},{"$error":"#DIV/0!"}]
["423.","Konzervatív orvostudományok - Laboratóriumi medicina, klinikai mikrobiológia",{"$f":"VLOOKUP(B437,#REF!,2,FALSE)","v":{"$error":"#REF!"}},2,"Hodossy-Takács Rebeka\nDE - ÁOK","Trombin generáció meghatározása gyulladásos bélbetegekben","DE-ÁOK/12/001",{"$nulls":5},{"$error":"#DIV/0!"},{"$error":"#DIV/0!"}]
["421.","Konzervatív orvostudományok - Laboratóriumi medicina, klinikai mikrobiológia",{"$f":"VLOOKUP(B438,#REF!,2,FALSE)","v":{"$error":"#REF!"}},3,"Horváth Réka\nPTE - ETK","A méz antimikrobiális hatásainak vizsgálata","PTE-ETK/12/027",{"$nulls":5},{"$error":"#DIV/0!"},{"$error":"#DIV/0!"}]
["418.","Konzervatív orvostudományok - Laboratóriumi medicina, klinikai mikrobiológia",{"$f":"VLOOKUP(B439,#REF!,2,FALSE)","v":{"$error":"#REF!"}},4,"Hunyadi Karen\nPTE - ÁOK","PD-1 gátlókkal kezelt melanomás betegek utánkövetése","PTE-ÁOK/12/057",{"$nulls":5},{"$error":"#DIV/0!"},{"$error":"#DIV/0!"}]
["425.","Konzervatív orvostudományok - Laboratóriumi medicina, klinikai mikrobiológia",{"$f":"VLOOKUP(B440,#REF!,2,FALSE)","v":{"$error":"#REF!"}},5,"Kozma Laura\nDE - ÁOK","Ponatinib hatása a prokoaguláns vérlemezkék kialakulására","DE-ÁOK/12/016",{"$nulls":5},{"$error":"#DIV/0!"},{"$error":"#DIV/0!"}]
["422.","Konzervatív orvostudományok - Laboratóriumi medicina, klinikai mikrobiológia",{"$f":"VLOOKUP(B441,#REF!,2,FALSE)","v":{"$error":"#REF!"}},6,"Tóth Anna\nDE - ÁOK","Az alpha2-plazmin inhibitor C-terminális heterogenitásának vizsgálata","DE-ÁOK/12/009",{"$nulls":5},{"$error":"#DIV/0!"},{"$error":"#DIV/0!"}]
["424.","Konzervatív orvostudományok - Laboratóriumi medicina, klinikai mikrobiológia",{"$f":"VLOOKUP(B442,#REF!,2,FALSE)","v":{"$error":"#REF!"}},7,"Tömöri Dóra\nDE - ÁOK","Antitrombin deficienciák molekuláris és laboratóriumi karakterizálása","DE-ÁOK/12/011",{"$nulls":5},{"$error":"#DIV/0!"},{"$error":"#DIV/0!"}]
["440.","Konzervatív orvostudományok - Neurológia, neurovaszkuláris medicina, pszichiátria 1.",{"$f":"VLOOKUP(B443,#REF!,2,FALSE)","v":{"$error":"#REF!"}},1,"Bálint Benedek, Békési Áron\nPTE - ÁOK","A harag és düh kifejezésének vizsgálata a League of Legends és Fortnite játékosok körében","PTE-ÁOK/12/004",{"$nulls":5},{"$error":"#DIV/0!"},{"$error":"#DIV/0!"}]
["429.","Konzervatív orvostudományok - Neurológia, neurovaszkuláris medicina, pszichiátria 1.",{"$f":"VLOOKUP(B444,#REF!,2,FALSE)","v":{"$error":"#REF!"}},2,"Berente Dalida Borbála\nSE - ÁOK","Vizuomotoros készségekre épülő új automatikus diagnosztikus eszközök Alzheimer-kórban","SE-ÁOK/12/006",{"$nulls":5},{"$error":"#DIV/0!"},{"$error":"#DIV/0!"}]
["315.","Konzervatív orvostudományok - Neurológia, neurovaszkuláris medicina, pszichiátria 1.",{"$f":"VLOOKUP(B445,#REF!,2,FALSE)","v":{"$error":"#REF!"}},3,"Emig Justine, Weber Carmen Sahra\nSZTE - ÁOK","Influence of physiological and affective characteristics on sensory function","SZTE-ÁOK/12/049",{"$nulls":5},{"$error":"#DIV/0!"},{"$error":"#DIV/0!"}]
["xxx","Konzervatív orvostudományok - Neurológia, neurovaszkuláris medicina, pszichiátria 1.",{"$f":"VLOOKUP(B446,#REF!,2,FALSE)","v":{"$error":"#REF!"}},4,"Kalocsai Adél Krisztina\nSE - ÁOK","Szorongás és depresszió kérdőívek használhatósága a szédüléshez kapcsolódó pszichés eltérések vizsgálatában","SE-ÁOK/12/090",{"$nulls":5},{"$error":"#DIV/0!"},{"$error":"#DIV/0!"}]
["438.","Konzervatív orvostudományok - Neurológia, neurovaszkuláris medicina, pszichiátria 1.",{"$f":"VLOOKUP(B447,#REF!,2,FALSE)","v":{"$error":"#REF!"}},5,"Palatka Réka\nDE - ÁOK","Az alvásmegvonás hatása a neurovaszkuláris kapcsolatra","DE-ÁOK/12/028",{"$nulls":5},{"$error":"#DIV/0!"},{"$error":"#DIV/0!"}]
["442.","Konzervatív orvostudományok - Neurológia, neurovaszkuláris medicina, pszichiátria 1.",{"$f":"VLOOKUP(B448,#REF!,2,FALSE)","v":{"$error":"#REF!"}},6,"Szabó Petra\nPTE - ÁOK","Subduralis vagy mélyelektródákkal készített invazív EEG monitorozási eljárások","PTE-ÁOK/12/025",{"$nulls":5},{"$error":"#DIV/0!"},{"$error":"#DIV/0!"}]
["434.","Konzervatív orvostudományok - Neurológia, neurovaszkuláris medicina, pszichiátria 1.",{"$f":"VLOOKUP(B449,#REF!,2,FALSE)","v":{"$error":"#REF!"}},7,"Szente Anna Tímea\nPTE - ÁOK","A digitalizáció központi idegrendszeri hatásai","PTE-ÁOK/12/071",{"$nulls":5},{"$error":"#DIV/0!"},{"$error":"#DIV/0!"}]
["312.","Konzervatív orvostudományok - Neurológia, neurovaszkuláris medicina, pszichiátria 1.",{"$f":"VLOOKUP(B450,#REF!,2,FALSE)","v":{"$error":"#REF!"}},8,"Tóth Aletta\nSZTE - ÁOK","A neurofilamentumok és kvinolinsav szerepe sclerosis multiplexben","SZTE-ÁOK/12/042",{"$nulls":5},{"$error":"#DIV/0!"},{"$error":"#DIV/0!"}]
["314.","Konzervatív orvostudományok - Neurológia, neurovaszkuláris medicina, pszichiátria 2.",{"$f":"VLOOKUP(B451,#REF!,2,FALSE)","v":{"$error":"#REF!"}},1,"Weber Carmen Sahra, Emig Justine\nSZTE - ÁOK","Short term and long term reproducibility of Quantitative Sensory Testing (QST)","SZTE-ÁOK/12/047",{"$nulls":5},{"$f":"AVERAGE(H451:L451)","v":{"$error":"#DIV/0!"}},{"$f":"_xlfn.RANK.EQ(M451,M:M)","v":{"$error":"#DIV/0!"}}]
["439.","Konzervatív orvostudományok - Neurológia, neurovaszkuláris medicina, pszichiátria 2.",{"$f":"VLOOKUP(B452,#REF!,2,FALSE)","v":{"$error":"#REF!"}},2,"Enyedi Enikő Edit\nDE - ÁOK","A szérum kitotriozidáz aktivitásának csökkenése a vér-agy gát zavarára utalhat sclerosis multiplexben","DE-ÁOK/12/002",{"$nulls":5},{"$error":"#DIV/0!"},{"$error":"#DIV/0!"}]
["435.","Konzervatív orvostudományok - Neurológia, neurovaszkuláris medicina, pszichiátria 2.",{"$f":"VLOOKUP(B453,#REF!,2,FALSE)","v":{"$error":"#REF!"}},3,"Matányi Marianna, Kákonyi Marcell\nSE - ÁOK","Reflexidő mérés saját fejlesztésű eszközzel – bevezető vizsgálatunk eredményei","SE-ÁOK/12/079",{"$nulls":5},{"$error":"#DIV/0!"},{"$error":"#DIV/0!"}]
["431.","Konzervatív orvostudományok - Neurológia, neurovaszkuláris medicina, pszichiátria 2.",{"$f":"VLOOKUP(B454,#REF!,2,FALSE)","v":{"$error":"#REF!"}},4,"Kegyes-Brassai Anna Csilla\nSE","Az alvási makrostruktúra összehasonlító vizsgálata major neurokognitív betegségekben","SE/12/029",{"$nulls":5},{"$error":"#DIV/0!"},{"$error":"#DIV/0!"}]
["539.","Konzervatív orvostudományok - Neurológia, neurovaszkuláris medicina, pszichiátria 2.",{"$f":"VLOOKUP(B455,#REF!,2,FALSE)","v":{"$error":"#REF!"}},5,"Kovács Viktória\nPTE - ÁOK","Neurovascularis kapcsolás vizsgálata TCD segítségével fiziológiás körülmények között","PTE-ÁOK/12/050",{"$nulls":5},{"$error":"#DIV/0!"},{"$error":"#DIV/0!"}]
["437.","Konzervatív orvostudományok - Neurológia, neurovaszkuláris medicina, pszichiátria 2.",{"$f":"VLOOKUP(B456,#REF!,2,FALSE)","v":{"$error":"#REF!"}},6,"Nemes Kinga\nETDK - OGYK","A prehospitalizációs időszak teendőinek ismerete stroke-os budapesti betegek körében","ETDK-OGYK/12/007",{"$nulls":5},{"$error":"#DIV/0!"},{"$error":"#DIV/0!"}]
["443.","Konzervatív orvostudományok - Neurológia, neurovaszkuláris medicina, pszichiátria 2.",{"$f":"VLOOKUP(B457,#REF!,2,FALSE)","v":{"$error":"#REF!"}},7,"Pethő Borbála\nPTE - ÁOK","Georg Trakl - alkotáslélektani és befogadáslélektani vizsgálatok","PTE-ÁOK/12/032",{"$nulls":5},{"$error":"#DIV/0!"},{"$error":"#DIV/0!"}]
["441.","Konzervatív orvostudományok - Neurológia, neurovaszkuláris medicina, pszichiátria 2.",{"$f":"VLOOKUP(B458,#REF!,2,FALSE)","v":{"$error":"#REF!"}},8,"Szabó Máté\nSZTE - ÁOK","A direkcionalitás használatának létjogosultsága Parkinson-kórban alkalmazott mélyagyi stimuláció esetében – Az SZTE Neurológiai Klinika beteganyagán végzett pilot vizsgálat eredményei","SZTE-ÁOK/12/006",{"$nulls":5},{"$error":"#DIV/0!"},{"$error":"#DIV/0!"}]
["450.","Konzervatív orvostudományok - Onkológia, sugárterápia, hematológia-hemosztazeológia 1.",{"$f":"VLOOKUP(B459,#REF!,2,FALSE)","v":{"$error":"#REF!"}},1,"Gulyás Anita\nDE - ÁOK","Fertilitás vizsgálata Hodgkin-lymphomás betegeknél","DE-ÁOK/12/058",{"$nulls":5},{"$error":"#DIV/0!"},{"$error":"#DIV/0!"}]
["445.","Konzervatív orvostudományok - Onkológia, sugárterápia, hematológia-hemosztazeológia 1.",{"$f":"VLOOKUP(B460,#REF!,2,FALSE)","v":{"$error":"#REF!"}},2,"Karancsi Zsófia\nSE - ÁOK","A tumor-stroma arány (TSR) prediktív szerepe neoadjuváns kemoterápiával kezelt emlőrákos betegekben","SE-ÁOK/12/060",{"$nulls":5},{"$error":"#DIV/0!"},{"$error":"#DIV/0!"}]
["449.","Konzervatív orvostudományok - Onkológia, sugárterápia, hematológia-hemosztazeológia 1.",{"$f":"VLOOKUP(B461,#REF!,2,FALSE)","v":{"$error":"#REF!"}},3,"Kiss József\nPTE - ETK","A lineáris gyorsító dozimetriai paramétereinek és a tervverifikációs mérések eredményeinek összefüggés vizsgálata","PTE-ETK/12/008",{"$nulls":5},{"$error":"#DIV/0!"},{"$error":"#DIV/0!"}]
["444.","Konzervatív orvostudományok - Onkológia, sugárterápia, hematológia-hemosztazeológia 1.",{"$f":"VLOOKUP(B462,#REF!,2,FALSE)","v":{"$error":"#REF!"}},4,"Miterli Mirjam\nDE - ÁOK","60 év feletti diffúz nagy B-sejtes limfómás (DLBCL) betegek túlélésének vizsgálata klinikánkon","DE-ÁOK/12/073",{"$nulls":5},{"$error":"#DIV/0!"},{"$error":"#DIV/0!"}]
["426.","Konzervatív orvostudományok - Onkológia, sugárterápia, hematológia-hemosztazeológia 1.",{"$f":"VLOOKUP(B463,#REF!,2,FALSE)","v":{"$error":"#REF!"}},5,"Tóth Eszter Lilla\nDE - ÁOK","Új, sejtciklus analízisen alapuló áramlási citometriai vizsgálat kidolgozása a méhnyak rákmegelőző állapotainak szűrése céljából","DE-ÁOK/12/040",{"$nulls":5},{"$error":"#DIV/0!"},{"$error":"#DIV/0!"}]
["453.","Konzervatív orvostudományok - Onkológia, sugárterápia, hematológia-hemosztazeológia 1.",{"$f":"VLOOKUP(B464,#REF!,2,FALSE)","v":{"$error":"#REF!"}},6,"Tóth Tünde\nPTE - ÁOK","Endogén PACAP vizsgálata myeloma multiplexes betegek vérplazma mintáiban","PTE-ÁOK/12/017",{"$nulls":5},{"$error":"#DIV/0!"},{"$error":"#DIV/0!"}]
["446.","Konzervatív orvostudományok - Onkológia, sugárterápia, hematológia-hemosztazeológia 1.",{"$f":"VLOOKUP(B465,#REF!,2,FALSE)","v":{"$error":"#REF!"}},7,"Vizsolyi János Ádám\nSE - ÁOK","Humán kissejtes tüdőrák sejtvonalak mTORC1/C2-gátló érzékenysége","SE-ÁOK/12/070",{"$nulls":5},{"$error":"#DIV/0!"},{"$error":"#DIV/0!"}]
["452.","Konzervatív orvostudományok - Onkológia, sugárterápia, hematológia-hemosztazeológia 2.",{"$f":"VLOOKUP(B466,#REF!,2,FALSE)","v":{"$error":"#REF!"}},1,"Horváth Anna\nSE","Reziduális betegség és a központi idegrendszeri érintettség vizsgálata gyermekkori akut limfoblasztos leukémiában","SE/12/073",{"$nulls":5},{"$error":"#DIV/0!"},{"$error":"#DIV/0!"}]
["448.","Konzervatív orvostudományok - Onkológia, sugárterápia, hematológia-hemosztazeológia 2.",{"$f":"VLOOKUP(B467,#REF!,2,FALSE)","v":{"$error":"#REF!"}},2,"Kotmayer Lili\nSE - ÁOK","A BTK p.C481S rezisztenciamutáció érzékeny kimutatása és monitorozása ibrutinib kezelés során terápia refrakter/relabált krónikus lymphocytás leukémiában","SE-ÁOK/12/001",{"$nulls":5},{"$error":"#DIV/0!"},{"$error":"#DIV/0!"}]
["451.","Konzervatív orvostudományok - Onkológia, sugárterápia, hematológia-hemosztazeológia 2.",{"$f":"VLOOKUP(B468,#REF!,2,FALSE)","v":{"$error":"#REF!"}},3,"Kozma Orsolya\nDE - ÁOK","Multidimenzionális áramlási citometriai analízis hatékonyságának vizsgálata CD5 pozitív B-CLPD-ben","DE-ÁOK/12/063",{"$nulls":5},{"$error":"#DIV/0!"},{"$error":"#DIV/0!"}]
["454.","Konzervatív orvostudományok - Onkológia, sugárterápia, hematológia-hemosztazeológia 2.",{"$f":"VLOOKUP(B469,#REF!,2,FALSE)","v":{"$error":"#REF!"}},4,"Miskei Judith Anna\nPTE - ÁOK","Investigation of circulating miRNA based biomarkers for squamous cell lung carcinoma","PTE-ÁOK/12/018",{"$nulls":5},{"$error":"#DIV/0!"},{"$error":"#DIV/0!"}]
["187.","Konzervatív orvostudományok - Onkológia, sugárterápia, hematológia-hemosztazeológia 2.",{"$f":"VLOOKUP(B470,#REF!,2,FALSE)","v":{"$error":"#REF!"}},5,"Nagy Mátyás\nPTE - ÁOK","Hemoreológiai profil vizsgálata coeliakiás betegekben eset-kontroll vizsgálat segítségével","PTE-ÁOK/12/058",{"$nulls":5},{"$error":"#DIV/0!"},{"$error":"#DIV/0!"}]
["455.","Konzervatív orvostudományok - Onkológia, sugárterápia, hematológia-hemosztazeológia 2.",{"$f":"VLOOKUP(B471,#REF!,2,FALSE)","v":{"$error":"#REF!"}},6,"Rácz Benedek Péter\nDE - ÁOK","Hereditaer haemorrhagiás teleangiectasiában (HHT) szenvedő családok klinikai és genetikai vizsgálata","DE-ÁOK/12/029",{"$nulls":5},{"$error":"#DIV/0!"},{"$error":"#DIV/0!"}]
["xxx","Konzervatív orvostudományok - Onkológia, sugárterápia, hematológia-hemosztazeológia 2.",{"$f":"VLOOKUP(B472,#REF!,2,FALSE)","v":{"$error":"#REF!"}},7,"Tóth Rebeka\nSE - GYTK","Glioblastoma sejtek detektálása és kezelése chlorotoxin konjugátumokkal","SE-ÁOK/12/086",{"$nulls":5},{"$error":"#DIV/0!"},{"$error":"#DIV/0!"}]
["456.","Operatív orvostudományok - Aneszteziológia és intenzív terápia, sürgősségi betegellátás 1.",{"$f":"VLOOKUP(B473,#REF!,2,FALSE)","v":{"$error":"#REF!"}},1,"Ballók Bence, Kulcsár Richárd Máté\nSZTE - ÁOK","Új modalitás fejlesztése a gépi lélegeztetésben: kevert frekvenciák alkalmazása állatkísérletes modellben","SZTE-ÁOK/12/034",{"$nulls":5},{"$error":"#DIV/0!"},{"$error":"#DIV/0!"}]
["462.","Operatív orvostudományok - Aneszteziológia és intenzív terápia, sürgősségi betegellátás 1.",{"$f":"VLOOKUP(B474,#REF!,2,FALSE)","v":{"$error":"#REF!"}},2,"Döbrönte László\nSE","Szintetikus kolloid oldat perioperatív alkalmazásának következményei a posztoperatív kimenetelre elektív szívműtétre kerülő betegeknél","SE/12/056",{"$nulls":5},{"$error":"#DIV/0!"},{"$error":"#DIV/0!"}]
["463.","Operatív orvostudományok - Aneszteziológia és intenzív terápia, sürgősségi betegellátás 1.",{"$f":"VLOOKUP(B475,#REF!,2,FALSE)","v":{"$error":"#REF!"}},3,"Priskin Gábor\nPTE - ETK","Akut kardiovaszkuláris kórképek a sürgősségi ellátásban Grey-zone vizsgálata az NSTEMI betegpopulációban","PTE-ETK/12/019",{"$nulls":5},{"$error":"#DIV/0!"},{"$error":"#DIV/0!"}]
["457.","Operatív orvostudományok - Aneszteziológia és intenzív terápia, sürgősségi betegellátás 1.",{"$f":"VLOOKUP(B476,#REF!,2,FALSE)","v":{"$error":"#REF!"}},4,"Stankovics Levente, Takáts Dániel\nPTE - ÁOK","Trauma indukálta koagulopátia vizsgálata légimentésben ellátott súlyos sérült betegeknél","PTE-ÁOK/12/026",{"$nulls":5},{"$error":"#DIV/0!"},{"$error":"#DIV/0!"}]
["460.","Operatív orvostudományok - Aneszteziológia és intenzív terápia, sürgősségi betegellátás 1.",{"$f":"VLOOKUP(B477,#REF!,2,FALSE)","v":{"$error":"#REF!"}},5,"Sümegi Donát\nPTE - ÁOK","A presepsin, mint a szepszis egy korai, szenzitív biomarkere","PTE-ÁOK/12/047",{"$nulls":5},{"$error":"#DIV/0!"},{"$error":"#DIV/0!"}]
["465.","Operatív orvostudományok - Aneszteziológia és intenzív terápia, sürgősségi betegellátás 1.",{"$f":"VLOOKUP(B478,#REF!,2,FALSE)","v":{"$error":"#REF!"}},6,"Weisz Erik Herman\nSE - ÁOK","Nehéz légúti helyzetek modellezése cadaveren","SE-ÁOK/12/015",{"$nulls":5},{"$error":"#DIV/0!"},{"$error":"#DIV/0!"}]
["466.","Operatív orvostudományok - Aneszteziológia és intenzív terápia, sürgősségi betegellátás 2.",{"$f":"VLOOKUP(B479,#REF!,2,FALSE)","v":{"$error":"#REF!"}},1,"Fülöp Bence\nPTE - ÁOK","Éretlen monocyta alakok szerepe az infekció korai előrejelzésében","PTE-ÁOK/12/024","Nem jelent meg"]
["458.","Operatív orvostudományok - Aneszteziológia és intenzív terápia, sürgősségi betegellátás 2.",{"$f":"VLOOKUP(B480,#REF!,2,FALSE)","v":{"$error":"#REF!"}},2,"Kiss Boldizsár, Párkányi Anna\nSE","FORECAST pilot score vizsgálata és alkalmazása az újraélesztett betegek mortalitásának korai becslésére","SE/12/052",{"$nulls":5},{"$error":"#DIV/0!"},{"$error":"#DIV/0!"}]
["467.","Operatív orvostudományok - Aneszteziológia és intenzív terápia, sürgősségi betegellátás 2.",{"$f":"VLOOKUP(B481,#REF!,2,FALSE)","v":{"$error":"#REF!"}},3,"Ledneczki Dávid\nPTE - ETK","A szepszis vizsgálata a sürgősségi ellátásban","PTE-ETK/12/036",{"$nulls":5},{"$error":"#DIV/0!"},{"$error":"#DIV/0!"}]
["464.","Operatív orvostudományok - Aneszteziológia és intenzív terápia, sürgősségi betegellátás 2.",{"$f":"VLOOKUP(B482,#REF!,2,FALSE)","v":{"$error":"#REF!"}},4,"Mező Nóra\nDE - ÁOK","Szimultán végzett akceleromiográfiás és elektromiográfiás neuromuszkuláris monitorozás a musculus adductor pollicison: klinikai összehasonlító vizsgálat","DE-ÁOK/12/060",{"$nulls":5},{"$error":"#DIV/0!"},{"$error":"#DIV/0!"}]
["461.","Operatív orvostudományok - Aneszteziológia és intenzív terápia, sürgősségi betegellátás 2.",{"$f":"VLOOKUP(B483,#REF!,2,FALSE)","v":{"$error":"#REF!"}},5,"Szakáll Richárd\nSZTE - ÁOK","„Ápol és eltakar”?: Transzkután CO2 mérés pontosságának vizsgálata","SZTE-ÁOK/12/053",{"$nulls":5},{"$error":"#DIV/0!"},{"$error":"#DIV/0!"}]
["468.","Operatív orvostudományok - Aneszteziológia és intenzív terápia, sürgősségi betegellátás 2.",{"$f":"VLOOKUP(B484,#REF!,2,FALSE)","v":{"$error":"#REF!"}},6,"Tóth Natália\nPTE - ÁOK","Vitaminok és kis dózisú hidrokortizon adása szeptikus betegek szupportív terápiájában","PTE-ÁOK/12/031",{"$nulls":5},{"$error":"#DIV/0!"},{"$error":"#DIV/0!"}]
["479.","Operatív orvostudományok - Fül-orr-gégészet, fej-nyak sebészet, szemészet",{"$f":"VLOOKUP(B485,#REF!,2,FALSE)","v":{"$error":"#REF!"}},1,"Dr. Bölcsföldi T. Barbara\nPTE - ÁOK","Kadáver disszekciós vezérfonal az endoszkópos fülsebészethez","PTE-ÁOK/12/055",{"$nulls":5},{"$error":"#DIV/0!"},{"$error":"#DIV/0!"}]
["470.","Operatív orvostudományok - Fül-orr-gégészet, fej-nyak sebészet, szemészet",{"$f":"VLOOKUP(B486,#REF!,2,FALSE)","v":{"$error":"#REF!"}},2,"Dr. Bukovszky Botond\nSE","Második primer malignus daganat nem HPV okozta laphámsejtes fej-nyaki rákot követően","SE/12/062",{"$nulls":5},{"$error":"#DIV/0!"},{"$error":"#DIV/0!"}]
["485.","Operatív orvostudományok - Fül-orr-gégészet, fej-nyak sebészet, szemészet",{"$f":"VLOOKUP(B487,#REF!,2,FALSE)","v":{"$error":"#REF!"}},3,"Forgony Áron\nDE - ÁOK","Keratoplasztikán átesett betegek vizsgálata elülső szegmentum OCT-vel","DE-ÁOK/12/036",{"$nulls":5},{"$error":"#DIV/0!"},{"$error":"#DIV/0!"}]
["476.","Operatív orvostudományok - Fül-orr-gégészet, fej-nyak sebészet, szemészet",{"$f":"VLOOKUP(B488,#REF!,2,FALSE)","v":{"$error":"#REF!"}},4,"Lászik Gábor\nSZTE - ÁOK","A makula érsűrűségének változása, mint a látásromlás biomarkere sikeres retina leválás ellenes műtét után","SZTE-ÁOK/12/021",{"$nulls":5},{"$error":"#DIV/0!"},{"$error":"#DIV/0!"}]
["475.","Operatív orvostudományok - Fül-orr-gégészet, fej-nyak sebészet, szemészet",{"$f":"VLOOKUP(B489,#REF!,2,FALSE)","v":{"$error":"#REF!"}},5,"Molnár Fiona Anna\nSZTE - ÁOK","Identification of cochlear implant (CI) tip fold-over using a novel software, Trans-Impedance Matrix (TIM)","SZTE-ÁOK/12/012",{"$nulls":5},{"$error":"#DIV/0!"},{"$error":"#DIV/0!"}]
["484.","Operatív orvostudományok - Fül-orr-gégészet, fej-nyak sebészet, szemészet",{"$f":"VLOOKUP(B490,#REF!,2,FALSE)","v":{"$error":"#REF!"}},6,"Nahas Ahmad\nDE - ÁOK","Differentiation and spatial organization of limbal, conjunctival and oral mucosal biopsies grown on contact lenses for autotransplantation in limbal stem cell deficiency","DE-ÁOK/12/044",{"$nulls":5},{"$error":"#DIV/0!"},{"$error":"#DIV/0!"}]
["480.","Operatív orvostudományok - Fül-orr-gégészet, fej-nyak sebészet, szemészet",{"$f":"VLOOKUP(B491,#REF!,2,FALSE)","v":{"$error":"#REF!"}},7,"Somfalvi Beáta Krisztina\nSE","A posztoperatív látóélesség és betegelégedettség összehasonlítása trifokális műlencsék beültetését követően","SE/12/007",{"$nulls":5},{"$error":"#DIV/0!"},{"$error":"#DIV/0!"}]
["473.","Operatív orvostudományok - Fül-orr-gégészet, fej-nyak sebészet, szemészet",{"$f":"VLOOKUP(B492,#REF!,2,FALSE)","v":{"$error":"#REF!"}},8,"Szabó Éva\nPTE - ÁOK","Krónikus oro-antralis fistula hagyományos és endoszkópos ellátást követő életminőség változás összehasonlító vizsgálata","PTE-ÁOK/12/067",{"$nulls":5},{"$error":"#DIV/0!"},{"$error":"#DIV/0!"}]
["474.","Operatív orvostudományok - Fül-orr-gégészet, fej-nyak sebészet, szemészet",{"$f":"VLOOKUP(B493,#REF!,2,FALSE)","v":{"$error":"#REF!"}},9,"Szabó Réka Judit\nPTE - ÁOK","Életminőség-felmérés és száloptikás endoszkóppal végzett nyelésvizsgálat korai stádiumú hangajak tumorok szén-dioxid lézerrel végzett transzorális reszekcióját követően","PTE-ÁOK/12/038",{"$nulls":5},{"$error":"#DIV/0!"},{"$error":"#DIV/0!"}]
["310.","Operatív orvostudományok - Kísérletes sebészet, kísérletes aneszteziológia",{"$f":"VLOOKUP(B494,#REF!,2,FALSE)","v":{"$error":"#REF!"}},1,"Kulcsár Richárd Máté, Ballók Bence\nSZTE - ÁOK","Humán használatú kapnográf adaptálása kisállat modellre 3D-nyomtatás felhasználásával","SZTE-ÁOK/12/032",{"$nulls":5},{"$error":"#DIV/0!"},{"$error":"#DIV/0!"}]
["521.","Operatív orvostudományok - Kísérletes sebészet, kísérletes aneszteziológia",{"$f":"VLOOKUP(B495,#REF!,2,FALSE)","v":{"$error":"#REF!"}},2,"Fazekas László Ádám\nDE - ÁOK","A hipofízis adenilát-cikláz aktiváló polipeptid (PACAP) hatása microvascularis anastomosisok regenerációjára patkányban","DE-ÁOK/12/006",{"$nulls":5},{"$error":"#DIV/0!"},{"$error":"#DIV/0!"}]
["527.","Operatív orvostudományok - Kísérletes sebészet, kísérletes aneszteziológia",{"$f":"VLOOKUP(B496,#REF!,2,FALSE)","v":{"$error":"#REF!"}},3,"Gömöri Lídia Éva\nDE - ÁOK","A gerincvelői fájdalominformáció-feldolgozásban résztvevő neuronális elemek célzott vizsgálatát lehetővé tevő vírusjelölés műtéti technikáinak optimalizálása","DE-ÁOK/12/004",{"$nulls":5},{"$error":"#DIV/0!"},{"$error":"#DIV/0!"}]
["522.","Operatív orvostudományok - Kísérletes sebészet, kísérletes aneszteziológia",{"$f":"VLOOKUP(B497,#REF!,2,FALSE)","v":{"$error":"#REF!"}},4,"Varga Zoltán, Hodoniczki Ádám\nSZTE - ÁOK","Hemodinamikai változások 24 órás veno-venózus extrakorporális membrán oxigenizáció nagyállat modelljében","SZTE-ÁOK/12/072",{"$nulls":5},{"$error":"#DIV/0!"},{"$error":"#DIV/0!"}]
["526.","Operatív orvostudományok - Kísérletes sebészet, kísérletes aneszteziológia",{"$f":"VLOOKUP(B498,#REF!,2,FALSE)","v":{"$error":"#REF!"}},5,"Lehoczki Csaba Ferenc, Sepp Yvette\nSE","Reverzibilis vena portae embolizáció vizsgálatára alkalmas kisállat modell kidolgozása","SE/12/079",{"$nulls":5},{"$error":"#DIV/0!"},{"$error":"#DIV/0!"}]
["524.","Operatív orvostudományok - Kísérletes sebészet, kísérletes aneszteziológia",{"$f":"VLOOKUP(B499,#REF!,2,FALSE)","v":{"$error":"#REF!"}},6,"Lévay Klára, Pollner Nóra\nSE","Preoperatív testedzés mitokondriális hatásának vizsgálata indukált májregeneráció patkány modelljében","SE/12/072",{"$nulls":5},{"$error":"#DIV/0!"},{"$error":"#DIV/0!"}]
["530.","Operatív orvostudományok - Mellkasi- hasi- és plasztikai sebészet, transzplantációs sebészet",{"$f":"VLOOKUP(B500,#REF!,2,FALSE)","v":{"$error":"#REF!"}},1,"Bajzát Dorina Rita\nDE - ÁOK","Ileo-coecalis resectiók Crohn-beteg gyermekekben: országos, multicentrikus felmérés a HUPIR (Hungarian Pediatric IBD Registry) adatai alapján","DE-ÁOK/12/076",{"$nulls":5},{"$error":"#DIV/0!"},{"$error":"#DIV/0!"}]
["532.","Operatív orvostudományok - Mellkasi- hasi- és plasztikai sebészet, transzplantációs sebészet",{"$f":"VLOOKUP(B501,#REF!,2,FALSE)","v":{"$error":"#REF!"}},2,"Jász Dávid Kurszán, Baráth Bálint\nSZTE - ÁOK","Metán dúsított transzplantációs oldat javítja a graft funkciót heterotróp szívtranszplantáció patkány modelljében","SZTE-ÁOK/12/020",{"$nulls":5},{"$error":"#DIV/0!"},{"$error":"#DIV/0!"}]
["529.","Operatív orvostudományok - Mellkasi- hasi- és plasztikai sebészet, transzplantációs sebészet",{"$f":"VLOOKUP(B502,#REF!,2,FALSE)","v":{"$error":"#REF!"}},3,"Dr. Szalai Orsolya\nSE","Allograft vasculopathia rizikótényezőinek vizsgálata szívtranszplantáltak körében","SE/12/008",{"$nulls":5},{"$error":"#DIV/0!"},{"$error":"#DIV/0!"}]
["523.","Operatív orvostudományok - Mellkasi- hasi- és plasztikai sebészet, transzplantációs sebészet",{"$f":"VLOOKUP(B503,#REF!,2,FALSE)","v":{"$error":"#REF!"}},4,"Fazekas Balázs\nPTE - ÁOK","Subnormothermiás májperfúzió és hideg prezerválás összehasonlító vizsgálata","PTE-ÁOK/12/060",{"$nulls":5},{"$error":"#DIV/0!"},{"$error":"#DIV/0!"}]
["531.","Operatív orvostudományok - Mellkasi- hasi- és plasztikai sebészet, transzplantációs sebészet",{"$f":"VLOOKUP(B504,#REF!,2,FALSE)","v":{"$error":"#REF!"}},5,"Hartyánszky István\nSZTE - ÁOK","Coarctatio aortae sebészi kezelése gyermek- és felnőttkorban","SZTE-ÁOK/12/050",{"$nulls":5},{"$error":"#DIV/0!"},{"$error":"#DIV/0!"}]
["528.","Operatív orvostudományok - Mellkasi- hasi- és plasztikai sebészet, transzplantációs sebészet",{"$f":"VLOOKUP(B505,#REF!,2,FALSE)","v":{"$error":"#REF!"}},6,"Szécsi Balázs, Tóth Krisztina\nSE","A donorgondozás új lehetőségei: pajzsmirigyhormonok szerepe a szívátültetésben.","SE/12/064",{"$nulls":5},{"$error":"#DIV/0!"},{"$error":"#DIV/0!"}]
["533.","Operatív orvostudományok - Traumatológia, ortopédia, idegsebészet",{"$f":"VLOOKUP(B506,#REF!,2,FALSE)","v":{"$error":"#REF!"}},1,"Boros Roxána Krisztina\nSE - ÁOK","A műtéti feltárás és vértelenség hatása a térdízületi artroplasztika korai rehabilitációra","SE-ÁOK/12/064",{"$nulls":5},{"$error":"#DIV/0!"},{"$error":"#DIV/0!"}]
["535.","Operatív orvostudományok - Traumatológia, ortopédia, idegsebészet",{"$f":"VLOOKUP(B507,#REF!,2,FALSE)","v":{"$error":"#REF!"}},2,"Demeter Zsófia\nDE - ÁOK","Oligodendrogliomák és asztrocitomák inváziós spektrumának összehasonlítása","DE-ÁOK/12/062",{"$nulls":5},{"$error":"#DIV/0!"},{"$error":"#DIV/0!"}]
["311.","Operatív orvostudományok - Traumatológia, ortopédia, idegsebészet",{"$f":"VLOOKUP(B508,#REF!,2,FALSE)","v":{"$error":"#REF!"}},3,"Ejide Chikolum Afamefuna\nSZTE - ÁOK","Differences in radiographic and clinical outcomes of Transforaminal lumbar interbody fusion and Oblique lumbar interbody fusion for lumbar degenerative disc disease","SZTE-ÁOK/12/066",{"$nulls":5},{"$error":"#DIV/0!"},{"$error":"#DIV/0!"}]
["542.","Operatív orvostudományok - Traumatológia, ortopédia, idegsebészet",{"$f":"VLOOKUP(B509,#REF!,2,FALSE)","v":{"$error":"#REF!"}},4,"Hargitai Emma\nPTE - ÁOK","Különböző kezelési módszerek összehasonlítása másodfokú égési sérülés állatmodelljében","PTE-ÁOK/12/051",{"$nulls":5},{"$error":"#DIV/0!"},{"$error":"#DIV/0!"}]
["534.","Operatív orvostudományok - Traumatológia, ortopédia, idegsebészet",{"$f":"VLOOKUP(B510,#REF!,2,FALSE)","v":{"$error":"#REF!"}},5,"Nagy Zsófia Katalin\nSE - ÁOK","Véralvadásgátlók szedésének hatása a traumás intrakraniális vérzések akut idegsebészeti ellátására és túlélésére – elemzés 10 év távlatából","SE-ÁOK/12/022",{"$nulls":5},{"$error":"#DIV/0!"},{"$error":"#DIV/0!"}]
["541.","Operatív orvostudományok - Traumatológia, ortopédia, idegsebészet",{"$f":"VLOOKUP(B511,#REF!,2,FALSE)","v":{"$error":"#REF!"}},6,"Nyakas Viktória\nPTE - ÁOK","A collodiaphysealis szög konvencionális röntgenfelvételen történő mérési módszereinek megbízhatósági vizsgálata","PTE-ÁOK/12/068",{"$nulls":5},{"$error":"#DIV/0!"},{"$error":"#DIV/0!"}]
["536.","Operatív orvostudományok - Traumatológia, ortopédia, idegsebészet",{"$f":"VLOOKUP(B512,#REF!,2,FALSE)","v":{"$error":"#REF!"}},7,"Törköly Péter Márk\nDE - ÁOK","Önzáró elven működő szárkiütő műszer biomechanikai vizsgálata","DE-ÁOK/12/010",{"$nulls":5},{"$error":"#DIV/0!"},{"$error":"#DIV/0!"}]
["538.","Operatív orvostudományok - Traumatológia, ortopédia, idegsebészet",{"$f":"VLOOKUP(B513,#REF!,2,FALSE)","v":{"$error":"#REF!"}},8,"Turbucz Máté\nSE","A Closed Loop sacrectomia utáni lumbopelvicus stabilizációs rendszer in silico biomechanikai vizsgálata végeselem módszer felhasználásával","SE/12/045",{"$nulls":5},{"$error":"#DIV/0!"},{"$error":"#DIV/0!"}]
["537.","Operatív orvostudományok - Traumatológia, ortopédia, idegsebészet",{"$f":"VLOOKUP(B514,#REF!,2,FALSE)","v":{"$error":"#REF!"}},9,"Zatykó Dóra Zoé\nSE - ÁOK","Akut, kritikus alsó végtagi ischaemia kezelése katéterrel végzett thrombolysissel","SE-ÁOK/12/041",{"$nulls":5},{"$error":"#DIV/0!"},{"$error":"#DIV/0!"}]
["469.","Operatív orvostudományok - Urológia, szülészet-nőgyógyászat",{"$f":"VLOOKUP(B515,#REF!,2,FALSE)","v":{"$error":"#REF!"}},1,"Kovács Kristóf\nDE - ÁOK","Koraszülés = Népbetegség? A DE KK Szülészeti és Nőgyógyászati Klinikáján koraszüléssel végződő terhességek elemzése a 2018-2019. évi adatok alapján","DE-ÁOK/12/021",{"$nulls":5},{"$f":"AVERAGE(H515:L515)","v":{"$error":"#DIV/0!"}},{"$f":"_xlfn.RANK.EQ(M515,M:M)","v":{"$error":"#DIV/0!"}}]
["471.","Operatív orvostudományok - Urológia, szülészet-nőgyógyászat",{"$f":"VLOOKUP(B516,#REF!,2,FALSE)","v":{"$error":"#REF!"}},2,"Lukács Luca\nDE - ÁOK","Perifériás fehérvérsejtek fagocita funkcióinak vizsgálata plazmakísérletek által endometriózisban szenvedő nőkben műtét előtt és után","DE-ÁOK/12/069",{"$nulls":5},{"$error":"#DIV/0!"},{"$error":"#DIV/0!"}]
["481.","Operatív orvostudományok - Urológia, szülészet-nőgyógyászat",{"$f":"VLOOKUP(B517,#REF!,2,FALSE)","v":{"$error":"#REF!"}},3,"Mayer Tamás\nSE","Az MMP-7 szérumszintjének jelentősége a felső húgyúti urothel sejtes carcinóma várható klinikai viselkedésének előrejelzésében.","SE/12/025",{"$nulls":5},{"$error":"#DIV/0!"},{"$error":"#DIV/0!"}]
["477.","Operatív orvostudományok - Urológia, szülészet-nőgyógyászat",{"$f":"VLOOKUP(B518,#REF!,2,FALSE)","v":{"$error":"#REF!"}},4,"Nagy Ákos Zalán\nDE - ÁOK","A transurethralis bipoláris prosztata enukleácio eredményességének vizsgálata","DE-ÁOK/12/022",{"$nulls":5},{"$error":"#DIV/0!"},{"$error":"#DIV/0!"}]
["482.","Operatív orvostudományok - Urológia, szülészet-nőgyógyászat",{"$f":"VLOOKUP(B519,#REF!,2,FALSE)","v":{"$error":"#REF!"}},5,"Nagyistók Luca Éva\nSE","Pravastatin kezelés hatása preeclampsiás terhességekben – metaanalízis","SE/12/004",{"$nulls":5},{"$error":"#DIV/0!"},{"$error":"#DIV/0!"}]
["483.","Operatív orvostudományok - Urológia, szülészet-nőgyógyászat",{"$f":"VLOOKUP(B520,#REF!,2,FALSE)","v":{"$error":"#REF!"}},6,"Takács Tímea\nPTE - ÁOK","Az anyatej hipofízis hormon tartalmának vizsgálata a gesztációs hetek függvényében","PTE-ÁOK/12/076",{"$nulls":5},{"$error":"#DIV/0!"},{"$error":"#DIV/0!"}]
["472.","Operatív orvostudományok - Urológia, szülészet-nőgyógyászat",{"$f":"VLOOKUP(B521,#REF!,2,FALSE)","v":{"$error":"#REF!"}},7,"Vas Lilla Éva\nDE - ÁOK","Neoadjuváns kemoterápia szerepe az előrehaladott petefészekrákos betegek kezelésében","DE-ÁOK/12/068",{"$nulls":5},{"$error":"#DIV/0!"},{"$error":"#DIV/0!"}]

{"sheet":"zsűri megjegyzései","index":2,"n_rows":78,"n_cols":2,"rows_kept":78,"cut":false,"hidden":true,"merged":[]}
["Beosztott tagozat"]
["Egészségtudományok - Egészségügyi szervezés és menedzsment"]
["Egészségtudományok - Képalkotó diagnosztikai analitika"]
["Egészségtudományok - Klinikai és elméleti epidemiológia 1."]
["Egészségtudományok - Klinikai és elméleti epidemiológia 2."]
["Egészségtudományok - Primer prevenció, védőnői prevenció, dietetika 1."]
["Egészségtudományok - Primer prevenció, védőnői prevenció, dietetika 2."]
["Egészségtudományok - Primer prevenció, védőnői prevenció, dietetika 3."]
["Egészségtudományok - Primer prevenció, védőnői prevenció, dietetika 4."]
["Egészségtudományok - Primer prevenció, védőnői prevenció, dietetika 5."]
["Egészségtudományok - Szekunder prevenció, családorvoslás, preventív medicina 1."]
["Egészségtudományok - Szekunder prevenció, családorvoslás, preventív medicina 2.","Zsűritagok javaslata alapján különdíja jelölt: Krishnan Rohan"]
["Egészségtudományok - Szekunder prevenció, családorvoslás, preventív medicina 3.","Különdíjra történő javaslat: Szikszai Alexandra"]
["Egészségtudományok - Tercier prevenció, fizioterápia, rehabilitáció, ápolás és betegellátás 1."]
["Egészségtudományok - Tercier prevenció, fizioterápia, rehabilitáció, ápolás és betegellátás 2.","Különdíjra jelölt: Meher Muhammad Zeeshan"]
["Egészségtudományok - Tercier prevenció, fizioterápia, rehabilitáció, ápolás és betegellátás 3."]
["Elméleti orvostudományok - Anatómia, morfológia, fejlődésbiológia 1."]
["Elméleti orvostudományok - Anatómia, morfológia, fejlődésbiológia 2."]
["Elméleti orvostudományok - Biofizika"]
["Elméleti orvostudományok - Bioinformatika, számítógépes modellezés"]
["Elméleti orvostudományok - Biokémia","A Zsűri jelöli a 3. helyezettet különdíjra!!!"]
["Elméleti orvostudományok - Élettan, kórélettan 1."]
["Elméleti orvostudományok - Élettan, kórélettan 2."]
["Elméleti orvostudományok - Élettan, kórélettan 3."]
["Elméleti orvostudományok - Élettan, kórélettan 4."]
["Elméleti orvostudományok - Élettan, kórélettan 5."]
["Elméleti orvostudományok - Élettan, kórélettan 6."]
["Elméleti orvostudományok - Élettan, kórélettan 7."]
["Elméleti orvostudományok - Élettan, kórélettan 8."]
["Elméleti orvostudományok - Élettan, kórélettan 9."]
["Elméleti orvostudományok - Farmakológia 1."]
["Elméleti orvostudományok - Farmakológia 2."]
["Elméleti orvostudományok - Genetika, genomika","A 3. helyezett előadást (Berke Gergő, PTE) a Zsűri különdíjra javasolja"]
["Elméleti orvostudományok - Kísérletes immunológia, mikrobiológia 1."]
["Elméleti orvostudományok - Kísérletes immunológia, mikrobiológia 2."]
["Elméleti orvostudományok - Kísérletes onkológia, jelátvitel"]
["Elméleti orvostudományok - Molekuláris biológia"]
["Konzervatív orvostudományok - Patológia, hisztológia, igazságügyi orvostan 1."]
["Konzervatív orvostudományok - Patológia, hisztológia, igazságügyi orvostan 2."]
["Elméleti orvostudományok - Sejtbiológia, sejtélettan 1."]
["Elméleti orvostudományok - Sejtbiológia, sejtélettan 2."]
["Farmakognózia"]
["Fogorvostudományok 1."]
["Fogorvostudományok 2."]
["Fogorvostudományok 3."]
["Fogorvostudományok 4."]
["Fogorvostudományok 5."]
["Gyógyszeranalitika, minőségellenőrzés"]
["Gyógyszerészi kémia"]
["Gyógyszerhatástan, klinikai gyógyszerészet"]
["Gyógyszertechnológia","Péterfi Orsolya - különdíj, amennyiben lehetséges"]
["Konzervatív orvostudományok - Endokrinológia, nefrológia, gasztroenterológia 1."]
["Konzervatív orvostudományok - Endokrinológia, nefrológia, gasztroenterológia 2."]
["Konzervatív orvostudományok - Endokrinológia, nefrológia, gasztroenterológia 3.","Első helyezés: Vicena Viktória"]
["Konzervatív orvostudományok - Gyermekgyógyászat, infektológia, pulmonológia 1."]
["Konzervatív orvostudományok - Gyermekgyógyászat, infektológia, pulmonológia 2."]
["Konzervatív orvostudományok - Gyermekgyógyászat, infektológia, pulmonológia 3."]
["Konzervatív orvostudományok - Kardiovaszkuláris medicina (kardiológia, szívsebészet) 1."]
["Konzervatív orvostudományok - Kardiovaszkuláris medicina (kardiológia, szívsebészet) 2."]
["Konzervatív orvostudományok - Kardiovaszkuláris medicina (kardiológia, szívsebészet) 3."]
["Konzervatív orvostudományok - Kardiovaszkuláris medicina (kardiológia, szívsebészet) 4."]
["Konzervatív orvostudományok - Kardiovaszkuláris medicina (kardiológia, szívsebészet) 5."]
["Konzervatív orvostudományok - Képalkotó diagnosztika 1."]
["Konzervatív orvostudományok - Képalkotó diagnosztika 2."]
["Konzervatív orvostudományok - Képalkotó diagnosztika 3."]
["Konzervatív orvostudományok - Klinikai immunológia, reumatológia, bőrgyógyászat"]
["Konzervatív orvostudományok - Laboratóriumi medicina, klinikai mikrobiológia"]
["Konzervatív orvostudományok - Neurológia, neurovaszkuláris medicina, pszichiátria 1.","5. helyezés: Tóth Aletta"]
["Konzervatív orvostudományok - Neurológia, neurovaszkuláris medicina, pszichiátria 2."]
["Konzervatív orvostudományok - Onkológia, sugárterápia, hematológia-hemosztazeológia 1."]
["Konzervatív orvostudományok - Onkológia, sugárterápia, hematológia-hemosztazeológia 2."]
["Operatív orvostudományok - Aneszteziológia és intenzív terápia, sürgősségi betegellátás 1."]
["Operatív orvostudományok - Aneszteziológia és intenzív terápia, sürgősségi betegellátás 2."]
["Operatív orvostudományok - Fül-orr-gégészet, fej-nyak sebészet, szemészet"]
["Operatív orvostudományok - Kísérletes sebészet, kísérletes aneszteziológia"]
["Operatív orvostudományok - Mellkasi- hasi- és plasztikai sebészet, transzplantációs sebészet"]
["Operatív orvostudományok - Traumatológia, ortopédia, idegsebészet"]
["Operatív orvostudományok - Urológia, szülészet-nőgyógyászat"]

{"sheet":"Template-pontoz","index":3,"n_rows":6,"n_cols":10,"rows_kept":6,"cut":false,"hidden":true,"merged":[[0,0,0,9],[1,0,1,9],[2,0,2,9],[3,0,3,2]]}
["Pontozólap"]
[" 35. OTDK Orvos- és Egészségtudományi Szekció"]
["Kérjük a tisztelt zsűritagokat, hogy a hallgatónkénti összpontszámot a tagozat végén erre a célra kialakított Zoom csoportszobában a TDT által delegált jegyzőkönyv-hitelesítőnek diktálják be"]
[{"$f":"VLOOKUP($A$5,Zsuri!$A:$J,10,FALSE)&\" [Zoom]\"","v":"Nap+Hét [Zoom]"},null,null,{"$f":"VLOOKUP($A$5,Zsuri!$A:$K,9,FALSE)","v":"Nap"}]
["Tagozat"]
["Sorszám","Szerző(k)","Pályamunka címe","A: Absztrakt\n(0-5 pont)","B: Szakmai tartalom\n(0-15 pont)","C: Előadói stílus\n(0-10 pont)","D: Szemléltető eszközök használata, humán demonstráció \n(0-10 pont)","E: Vitakészség és szakmai kompetencia\n(0-10 pont)","F: Kötelező pontlevonások\n(Függelék dia hiánya, 30 mp-t meghaladó időtúllépés)","Összpontszám\n(0-50 pont)\n=A+B+C+D+E-F"]

{"sheet":"Template-osszesit","index":4,"n_rows":9,"n_cols":12,"rows_kept":9,"cut":false,"hidden":true,"merged":[[5,8,6,11],[4,8,4,11],[0,0,0,11],[1,0,1,11],[2,0,2,10],[3,0,3,10],[5,0,6,7],[4,0,4,2]]}
["Pontösszesítő jegyzőkönyv"]
[" 35. OTDK Orvos- és Egészségtudományi Szekció"]
["Kérjük a tisztelt zsűritagokat, hogy a hallgatónkénti összpontszámot a tagozat végén erre a célra kialakított Zoom csoportszobában a TDT által delegált jegyzőkönyv-hitelesítőnek diktálják be"]
["A tagozat eredményeit tartalmazó alábbi táblázattal a zsűri egyetért, annak hitelességét a zsűrielnök aláírásával igazolja."]
[{"$f":"VLOOKUP($A$8,Zsuri!$A:$J,10,FALSE)&\" [Zoom]\"","v":"Nap+Hét [Zoom]"},null,null,{"$f":"VLOOKUP($A$8,Zsuri!$A:$K,9,FALSE)","v":"Nap"}]
["A zsűrielnököt kérjük, hogy a táblázatot kinyomtatva, aláírásával hitelesítve, szkennelt formában juttassa el a tdk.aok@med.u-szeged.hu címre a tagozat zárását követő 2 napon belül.",{"$nulls":7},"….... (zsűrielnök)"]
[]
["Tagozat"]
["Sorszám","Szerző(k)","Pályamunka címe","Pályamunka azonosítószáma",{"$f":"VLOOKUP($A$8,Zsuri!$A:$G,5,FALSE)&CHAR(10)&\"(DE)\"","v":"DE\n(DE)"},{"$f":"VLOOKUP($A$8,Zsuri!$A:$G,7,FALSE)&CHAR(10)&\"(PTE)\"","v":"PTE\n(PTE)"},{"$f":"VLOOKUP($A$8,Zsuri!$A:$G,4,FALSE)&CHAR(10)&\"(SE)\"","v":"SE\n(SE)"},{"$f":"VLOOKUP($A$8,Zsuri!$A:$G,6,FALSE)&CHAR(10)&\"(SZTE)\"","v":"SZTE\n(SZTE)"},{"$f":"VLOOKUP($A$8,Zsuri!$A:$G,3,FALSE)&CHAR(10)&\"(Külső tag)\"","v":"Külső\n(Külső tag)"},"Átlag","Helyezés","Végleges díjazás"]

{"sheet":"Zsuri","index":5,"n_rows":78,"n_cols":10,"rows_kept":78,"cut":false,"hidden":true,"merged":[]}
["Tagozat","Előadók","Külső","SE","DE","SZTE","PTE","Időpont","Nap","Nap+Hét"]
["Egészségtudományok - Egészségügyi szervezés és menedzsment",6,"Bártfai Zoltán","Feith Helga Judit","Zsuga Judit","Buzás Norbert","Lampek Kinga","2021. április 7. (szerda) 08:00–09:30",{"$f":"MID(H2,SEARCH(\"(\",H2)+1,SEARCH(\")\",H2)-SEARCH(\"(\",H2)-1)","v":"szerda"},{"$f":"LEFT(H2,SEARCH(\"(\",H2)-1)&RIGHT(H2,LEN(H2)-SEARCH(\")\",H2)-1)","v":"2021. április 7. 08:00–09:30"}]
["Egészségtudományok - Képalkotó diagnosztikai analitika",6,"Várnagy Anna","Doros Attila","Berényi Ervin","Joó Gabriella","Kovács Árpád","2021. április 8. (csütörtök) 08:00–09.30",{"$f":"MID(H3,SEARCH(\"(\",H3)+1,SEARCH(\")\",H3)-SEARCH(\"(\",H3)-1)","v":"csütörtök"},{"$f":"LEFT(H3,SEARCH(\"(\",H3)-1)&RIGHT(H3,LEN(H3)-SEARCH(\")\",H3)-1)","v":"2021. április 8. 08:00–09.30"}]
["Egészségtudományok - Klinikai és elméleti epidemiológia 1.",7,"Fodor Bertalan","Pándics Tamás","Bíró Klára","Rózsa Éva","Szolcsányi Tibor","2021. április 7. (szerda) 13:00–14:45","szerda","2021. április 7. 13:00–14:45"]
["Egészségtudományok - Klinikai és elméleti epidemiológia 2.",8,"Fodor Bertalan","Bánhidy Ferenc ","Ádám Balázs","Kelemen Oguz","Szolcsányi Tibor","2021. április 7. (szerda) 15:30–17:45","szerda","2021. április 7. 15:30–17:45"]
["Egészségtudományok - Primer prevenció, védőnői prevenció, dietetika 1.",6,"Kissné Garajszki Ildikó","Veresné Bálint Márta","Veres-Balajti Ilona","Tobak Orsolya","Figler Mária","2021. április 6. (kedd) 13:00–14:30","kedd","2021. április 6. 13:00–14:30"]
["Egészségtudományok - Primer prevenció, védőnői prevenció, dietetika 2.",6,"Kissné Garajszki Ildikó","Veresné Bálint Márta","Veres-Balajti Ilona","Tobak Orsolya","Figler Mária","2021. április 6. (kedd) 15:15–16:45","kedd","2021. április 6. 15:15–16:45"]
["Egészségtudományok - Primer prevenció, védőnői prevenció, dietetika 3.",7,"Kissné Garajszki Ildikó","Veresné Bálint Márta","Lukács Balázs","Tobak Orsolya","Strómajer-Rácz Tímea","2021. április 7. (szerda) 10:15–12:00","szerda","2021. április 7. 10:15–12:00"]
["Egészségtudományok - Primer prevenció, védőnői prevenció, dietetika 4.",7,"Petrik Zita","Gadó Klára","Kardos László","Erdősi Erika","Tóth Miklós","2021. április 7. (szerda) 13:00–14:45","szerda","2021. április 7. 13:00–14:45"]
["Egészségtudományok - Primer prevenció, védőnői prevenció, dietetika 5.",7,"Petrik Zita","Gadó Klára","Kardos László","Erdősi Erika","Figler Mária","2021. április 7. (szerda) 15:30–17:15","szerda","2021. április 7. 15:30–17:15"]
["Egészségtudományok - Szekunder prevenció, családorvoslás, preventív medicina 1.",7,"Szabó Mónika","Szabó László","Balázs Margit","Szatmári Angelika","Lampek Kinga","2021. április 6. (kedd) 13:00–14:45","kedd","2021. április 6. 13:00–14:45"]
["Egészségtudományok - Szekunder prevenció, családorvoslás, preventív medicina 2.",7,"Szabó Mónika","Szabó László","Balázs Margit","Szatmári Angelika","Lampek Kinga","2021. április 6. (kedd) 15:30–17:15","kedd","2021. április 6. 15:30–17:15"]
["Egészségtudományok - Szekunder prevenció, családorvoslás, preventív medicina 3.",7,"Szabó Mónika","Szabó László","Balázs Margit","Szatmári Angelika","Boncz Imre","2021. április 7. (szerda) 08:00–09:45","szerda","2021. április 7. 08:00–09:45"]
["Egészségtudományok - Tercier prevenció, fizioterápia, rehabilitáció, ápolás és betegellátás 1.",7,"Rochlitz Ildikó","Horváth Mónika","Nagy Attila","Domján Andrea","Verzár Zsófia","2021. április 7. (szerda) 10:30–12:15","szerda","2021. április 7. 10:30–12:15"]
["Egészségtudományok - Tercier prevenció, fizioterápia, rehabilitáció, ápolás és betegellátás 2.",7,"Lukács Andrea","Horváth Mónika","Nagy Attila","Paulik Edit","Hock Márta","2021. április 8. (csütörtök) 08:00–09:45","csütörtök","2021. április 8. 08:00–09:45"]
["Egészségtudományok - Tercier prevenció, fizioterápia, rehabilitáció, ápolás és betegellátás 3.",7,"Lukács Andrea","Horváth Mónika","Nagy Attila","Paulik Edit","Hock Márta","2021. április 8. (csütörtök) 10:30–12:15","csütörtök","2021. április 8. 10:30–12:15"]
["Elméleti orvostudományok - Anatómia, morfológia, fejlődésbiológia 1.",8,"Bódi István","Alpár Alán","Szűcs Péter","Nógrádi Antal","Reglődi Dóra","2021. április 6. (kedd) 13:00–15:00","kedd","2021. április 6. 13:00–15:00"]
["Elméleti orvostudományok - Anatómia, morfológia, fejlődésbiológia 2.",9,"Bódi István","Alpár Alán","Szűcs Péter","Hortobágyi Tibor","Kajtár Béla","2021. április 6. (kedd) 15:45–18:15","kedd","2021. április 6. 15:45–18:15"]
["Elméleti orvostudományok - Biofizika",6,"Krizbai István","Nemeskéri Ágnes","Szöllősi János","Nagy László","Nyitrai Miklós","2021. április 8. (csütörtök) 08:00–09:30","csütörtök","2021. április 8. 08:00–09:30"]
["Elméleti orvostudományok - Bioinformatika, számítógépes modellezés",8,"Szilágyi Tibor","Győrffy Balázs","Szöllősi János","Kincses Zsigmond Tamás","Gyenesei Attila","2021. április 8. (csütörtök) 10:15–12:30","csütörtök","2021. április 8. 10:15–12:30"]
["Elméleti orvostudományok - Biokémia",7,"Veszelka Szilvia","Petheő Gábor","Fésüs László","Csont Tamás","Gallyas Ferenc ","2021. április 8. (csütörtök) 08:00–09:45","csütörtök","2021. április 8. 08:00–09:45"]
["Elméleti orvostudományok - Élettan, kórélettan 1.",6,"Deli Mária","Mócsai Attila","Csernoch László","Leprán István","Ábrahám István","2021. április 6. (kedd) 13:00–14:30","kedd","2021. április 6. 13:00–14:30"]
["Elméleti orvostudományok - Élettan, kórélettan 2.",6,"Deli Mária","Mócsai Attila","Csernoch László","Leprán István","Ábrahám István ","2021. április 6. (kedd) 15:15–16:45","kedd","2021. április 6. 15:15–16:45"]
["Elméleti orvostudományok - Élettan, kórélettan 3.",6,"Ózsvári Béla","Benyó Zoltán","Szentandrássy Norbert","Lepránné Mezei Zsófia","Garami András ","2021. április 7. (szerda) 08:00–09:30","szerda","2021. április 7. 08:00–09:30"]
["Elméleti orvostudományok - Élettan, kórélettan 4.",6,"Ózsvári Béla","Benyó Zoltán","Szentandrássy Norbert","Lepránné Mezei Zsófia","Balogi Zsolt ","2021. április 7. (szerda) 10:15–11:45","szerda","2021. április 7. 10:15–11:45"]
["Elméleti orvostudományok - Élettan, kórélettan 5.",6,"Krizbai István","Petheő Gábor","Szentandrássy Norbert","Fülöp Lívia","Nyitrai Miklós","2021. április 7. (szerda) 13:00–14:30","szerda","2021. április 7. 13:00–14:30"]
["Elméleti orvostudományok - Élettan, kórélettan 6.",6,"Krizbai István","Petheő Gábor","Tóth Attila","Maléth József ","Balaskó Márta ","2021. április 7. (szerda) 15:15–16:45","szerda","2021. április 7. 15:15–16:45"]
["Elméleti orvostudományok - Élettan, kórélettan 7.",6,"Párducz Árpád","Káldi Krisztina","Panyi György","Bagosi Zsolt","Tamás Andrea ","2021. április 8. (csütörtök) 08:00–09:30","csütörtök","2021. április 8. 08:00–09:30"]
["Elméleti orvostudományok - Élettan, kórélettan 8.",6,"Párducz Árpád","Káldi Krisztina","Panyi György","Bagosi Zsolt","Tamás Andrea ","2021. április 8. (csütörtök) 10:15–11:45","csütörtök","2021. április 8. 10:15–11:45"]
["Elméleti orvostudományok - Élettan, kórélettan 9.",6,"Ózsvári Béla","Benyó Zoltán","Tóth Attila","Dux Mária","Hetényi Csaba","2021. április 8. (csütörtök) 10:15–11:45","csütörtök","2021. április 8. 10:15–11:45"]
["Elméleti orvostudományok - Farmakológia 1.",6,"Szántay Csaba","Riba Pál","Papp Zoltán","Baczkó István","Tamasikné Helyes Zsuzsanna","2021. április 7. (szerda) 08:00–09:30","szerda","2021. április 7. 08:00–09:30"]
["Elméleti orvostudományok - Farmakológia 2.",7,"Szántay Csaba","Riba Pál","Papp Zoltán","Baczkó István","Tamasikné Helyes Zsuzsanna","2021. április 7. (szerda) 10:15–12:00","szerda","2021. április 7. 10:15–12:00"]
["Elméleti orvostudományok - Genetika, genomika",9,"Szabó Áron","Mócsai Attila","Balogh István","Groma Gergely","Kiss István Zoltán ","2021. április 8. (csütörtök) 10:30–13:00","csütörtök","2021. április 8. 10:30–13:00"]
["Elméleti orvostudományok - Kísérletes immunológia, mikrobiológia 1.",7,"Szebeni Gábor","Szabó Dóra","Bácsi Attila","Burián Katalin","Berki Timea","2021. április 8. (csütörtök) 08:00–09:45","csütörtök","2021. április 8. 08:00–09:45"]
["Elméleti orvostudományok - Kísérletes immunológia, mikrobiológia 2.",7,"Szebeni Gábor","Riba Pál","Bácsi Attila","Burián Katalin","Berki Timea ","2021. április 8. (csütörtök) 10:30–12:15","csütörtök","2021. április 8. 10:30–12:15"]
["Elméleti orvostudományok - Kísérletes onkológia, jelátvitel",7,"Szebeni Gábor","Dank Magdolna ","Remenyik Éva","Oláh Judit","Pongrácz Judit ","2021. április 7. (szerda) 08:00–09:45","szerda","2021. április 7. 08:00–09:45"]
["Elméleti orvostudományok - Molekuláris biológia",9,"Barabás Enikő Csilla","Buzás Edit","Bereczky Zsuzsanna","Széll Márta","Sik Attila Gábor ","2021. április 6. (kedd) 13:00–15:30","kedd","2021. április 6. 13:00–15:30"]
["Elméleti orvostudományok - Sejtbiológia, sejtélettan 1.",7,"Kövesdi Dorottya","Majnik Judit","Virág László","Boldogkői Zsolt","Ábrahám Hajnalka Gabriella ","2021. április 8. (csütörtök) 08:00–09:45","csütörtök","2021. április 8. 08:00–09:45"]
["Elméleti orvostudományok - Sejtbiológia, sejtélettan 2.",7,"Kövesdi Dorottya","Majnik Judit","Virág László","Boldogkői Zsolt","Ábrahám Hajnalka Gabriella ","2021. április 8. (csütörtök) 10:30–12:15","csütörtök","2021. április 8. 10:30–12:15"]
["Farmakognózia",6,"Janicsák Gábor","Béni Szabolcs","Vecsernyés Miklós","Szakonyi Gerda","Horváth Györgyi","2021. április 7. (szerda) 08:00–09:30","szerda","2021. április 7. 08:00–09:30"]
["Fogorvostudományok 1.",6,"Segatto Angyalka","Hermann Péter","Bágyi Kinga","Nagy Katalin","Szalma József ","2021. április 6. (kedd) 16:15–17:45","kedd","2021. április 6. 16:15–17:45"]
["Fogorvostudományok 2.",6,"Olasz Tibor","Németh Zsolt","Hegedűs Csaba","Radnai Márta","Lempel Edina ","2021. április 7. (szerda) 08:00–09:30","szerda","2021. április 7. 08:00–09:30"]
["Fogorvostudományok 3.",6,"Olasz Tibor","Németh Zsolt","Hegedűs Csaba","Radnai Márta","Lempel Edina ","2021. április 7. (szerda) 10:15–11:45","szerda","2021. április 7. 10:15–11:45"]
["Fogorvostudományok 4.",7,"Segatto Angyalka","Dobó Nagy Csaba","Varga István","Madléna Melinda","Nagy Ákos ","2021. április 7. (szerda) 13:00–14:45","szerda","2021. április 7. 13:00–14:45"]
["Fogorvostudományok 5.",6,"Gerlóczy Pál","Dobó Nagy Csaba","Varga István","Madléna Melinda","Nagy Ákos ","2021. április 7. (szerda) 15:30–17:00","szerda","2021. április 7. 15:30–17:00"]
["Gyógyszeranalitika, minőségellenőrzés",7,"Spaits Tamás","Béni Szabolcs","Bácskay Ildikó","Szakonyi Gerda","Perjési Pál","2021. április 7. (szerda) 10:15–12:00","szerda","2021. április 7. 10:15–12:00"]
["Gyógyszerészi kémia",6,"Fekete Beáta","Őrfi László","Tósaki Árpád","Lázár László","Perjési Pál","2021. április 7. (szerda) 13:00–14:30","szerda","2021. április 7. 13:00–14:30"]
["Gyógyszerhatástan, klinikai gyógyszerészet",6,"Bálint Éva","Tábi Tamás","Halmos Gábor","Kanizsainé Minorics Renáta","Pethő Gábor ","2021. április 7. (szerda) 15:15–16:45","szerda","2021. április 7. 15:15–16:45"]
["Gyógyszertechnológia",6,"Lakatos Lóránt","Zelkó Romána","Vecsernyés Miklós","Sovány Tamás","Pongrácz Judit","2021. április 8. (csütörtök) 08:00–09:30","csütörtök","2021. április 8. 08:00–09:30"]
["Konzervatív orvostudományok - Endokrinológia, nefrológia, gasztroenterológia 1.",6,"Kelemen Piroska","Reusz György ","Altorjay István","Molnár Tamás","Bajnok László Zoltán ","2021. április 6. (kedd) 13:00–14:30","kedd","2021. április 6. 13:00–14:30"]
["Konzervatív orvostudományok - Endokrinológia, nefrológia, gasztroenterológia 2.",7,"Kelemen Piroska","Reusz György ","Altorjay István","Molnár Tamás","Bajnok László Zoltán ","2021. április 6. (kedd) 15:15–17:00","kedd","2021. április 6. 15:15–17:00"]
["Konzervatív orvostudományok - Endokrinológia, nefrológia, gasztroenterológia 3.",7,"Izbéki Ferenc","Hritz István","Nagy Endre","Szepes Zoltán","Nagy Zsuzsanna ","2021. április 6. (kedd) 13:00–14:45","kedd","2021. április 6. 13:00–14:45"]
["Konzervatív orvostudományok - Gyermekgyógyászat, infektológia, pulmonológia 1.",6,"Bártfai Zoltán","Arató András","Kiss Csongor","Bereczki Csaba","Erhardt Éva ","2021. április 7. (szerda) 10:45–12:15","szerda","2021. április 7. 10:45–12:15"]
["Konzervatív orvostudományok - Gyermekgyógyászat, infektológia, pulmonológia 2.",7,"Szabó Hajnalka","Arató András","Kiss Csongor","Bereczki Csaba","Ertl Tibor ","2021. április 7. (szerda) 13:15–15:00","szerda","2021. április 7. 13:15–15:00"]
["Konzervatív orvostudományok - Gyermekgyógyászat, infektológia, pulmonológia 3.",6,"Szabó Hajnalka","Kovács Gábor","Szűcs Gabriella","Bereczki Csaba","Ertl Tibor ","2021. április 7. (szerda) 15:45–17:15","szerda","2021. április 7. 15:45–17:15"]
["Konzervatív orvostudományok - Kardiovaszkuláris medicina (kardiológia, szívsebészet) 1.",6,"Márk László ","Gellér László","Csanádi Zoltán","Sepp Róbert","Szokodi István ","2021. április 6. (kedd) 13:00–14:30","kedd","2021. április 6. 13:00–14:30"]
["Konzervatív orvostudományok - Kardiovaszkuláris medicina (kardiológia, szívsebészet) 2.",6,"Márk László ","Gellér László","Csanádi Zoltán","Sepp Róbert","Szokodi István ","2021. április 6. (kedd) 15:15–16:45","kedd","2021. április 6. 15:15–16:45"]
["Konzervatív orvostudományok - Kardiovaszkuláris medicina (kardiológia, szívsebészet) 3.",7,"Mariann Gyöngyösi","Zima Endre ","Tóth Attila","Somfay Attila","Arató Endre","2021. április 6. (kedd) 13:00–14:45","kedd","2021. április 6. 13:00–14:45"]
["Konzervatív orvostudományok - Kardiovaszkuláris medicina (kardiológia, szívsebészet) 4.",6,"Reiber István ","Merkely Béla","Soltész Pál","Varga Albert","Horváth Iván Gábor","2021. április 7. (szerda) 13:00–14:30","szerda","2021. április 7. 13:00–14:30"]
["Konzervatív orvostudományok - Kardiovaszkuláris medicina (kardiológia, szívsebészet) 5.",6,"Reiber István ","Merkely Béla","Soltész Pál","Varga Albert","Horváth Iván Gábor","2021. április 7. (szerda) 15:15–16:45","szerda","2021. április 7. 15:15–16:45"]
["Konzervatív orvostudományok - Képalkotó diagnosztika 1.",7,"Kiss Róbert Gábor","Hritz István","Berényi Ervin","Hideghéty Katalin","Bogner Péter","2021. április 7. (szerda) 08:00–09:45","szerda","2021. április 7. 08:00–09:45"]
["Konzervatív orvostudományok - Képalkotó diagnosztika 2.",7,"Kiss Róbert Gábor","Kozák Lajos","Berényi Ervin","Hideghéty Katalin","Bogner Péter","2021. április 7. (szerda) 10:30–12:30","szerda","2021. április 7. 10:30–12:30"]
["Konzervatív orvostudományok - Képalkotó diagnosztika 3.",7,"Sztriha László","Maurovich-Horvat Pál","Póka Róbert","Hideghéty Katalin","Bogner Péter","2021. április 7. (szerda) 13:30–15:30","szerda","2021. április 7. 13:30–15:30"]
["Konzervatív orvostudományok - Klinikai immunológia, reumatológia, bőrgyógyászat",8,"Kelemen Piroska","Sárdy Miklós","Kappelmayer János","Buzás Krisztina","Rauch Tibor Attila","2021. április 8. (csütörtök) 08:00–10:15","csütörtök","2021. április 8. 08:00–10:15"]
["Konzervatív orvostudományok - Laboratóriumi medicina, klinikai mikrobiológia",7,"Barabás Enikő Csilla","Vásárhelyi Barna","Remenyik Éva","Földesi Imre","Nagy Tamás","2021. április 8. (csütörtök) 11:00–12:45",{"$f":"MID(H65,SEARCH(\"(\",H65)+1,SEARCH(\")\",H65)-SEARCH(\"(\",H65)-1)","v":"csütörtök"},{"$f":"LEFT(H65,SEARCH(\"(\",H65)-1)&RIGHT(H65,LEN(H65)-SEARCH(\")\",H65)-1)","v":"2021. április 8. 11:00–12:45"}]
["Konzervatív orvostudományok - Neurológia, neurovaszkuláris medicina, pszichiátria 1.",8,"Sztriha László","Bereczki Dániel ","Csépány Tünde","Klivényi Péter","Komoly Sámuel","2021. április 8. (csütörtök) 08:00–10:15","csütörtök","2021. április 8. 08:00–10:15"]
["Konzervatív orvostudományok - Neurológia, neurovaszkuláris medicina, pszichiátria 2.",8,"Sztriha László","Réthelyi János","Csépány Tünde","Pákáski Magdolna","Komoly Sámuel","2021. április 8. (csütörtök) 11:00–13:15","csütörtök","2021. április 8. 11:00–13:15"]
["Konzervatív orvostudományok - Onkológia, sugárterápia, hematológia-hemosztazeológia 1.",7,"Bodoky György","Csóka Mónika","Illés Árpád","Maráz Anikó","Karádi Oszkár","2021. április 7. (szerda) 13:00–14:45","szerda","2021. április 7. 13:00–14:45"]
["Konzervatív orvostudományok - Onkológia, sugárterápia, hematológia-hemosztazeológia 2.",7,"Bodoky György","Csóka Mónika","Illés Árpád","Oláh Judit","Karádi Oszkár","2021. április 7. (szerda) 15:30–17:15","szerda","2021. április 7. 15:30–17:15"]
["Konzervatív orvostudományok - Patológia, hisztológia, igazságügyi orvostan 1.",7,"Bódi István","Kiss András ","Méhes Gábor","Hortobágyi Tibor","Poór Viktor Soma","2021. április 7. (szerda) 08:00–09:45",{"$f":"MID(H70,SEARCH(\"(\",H70)+1,SEARCH(\")\",H70)-SEARCH(\"(\",H70)-1)","v":"szerda"},{"$f":"LEFT(H70,SEARCH(\"(\",H70)-1)&RIGHT(H70,LEN(H70)-SEARCH(\")\",H70)-1)","v":"2021. április 7. 08:00–09:45"}]
["Konzervatív orvostudományok - Patológia, hisztológia, igazságügyi orvostan 2.",6,"Bódi István","Kiss András ","Méhes Gábor","Rázga Zsolt","Poór Viktor Soma","2021. április 7. (szerda) 10:30–12:00",{"$f":"MID(H71,SEARCH(\"(\",H71)+1,SEARCH(\")\",H71)-SEARCH(\"(\",H71)-1)","v":"szerda"},{"$f":"LEFT(H71,SEARCH(\"(\",H71)-1)&RIGHT(H71,LEN(H71)-SEARCH(\")\",H71)-1)","v":"2021. április 7. 10:30–12:00"}]
["Operatív orvostudományok - Aneszteziológia és intenzív terápia, sürgősségi betegellátás 1.",6,"Lex Dániel","Székely Andrea","Molnár Csilla","Boros Mihály","Jancsó Gábor","2021. április 6. (kedd) 13:00–14:30","kedd","2021. április 6. 13:00–14:30"]
["Operatív orvostudományok - Aneszteziológia és intenzív terápia, sürgősségi betegellátás 2.",6,"Lex Dániel","Székely Andrea","Molnár Csilla","Pető Zoltán","Csontos Csaba","2021. április 6. (kedd) 15:15–16:45","kedd","2021. április 6. 15:15–16:45"]
["Operatív orvostudományok - Fül-orr-gégészet, fej-nyak sebészet, szemészet",9,"Smehák György","Tamás László","Nagy Valéria","Tóth-Molnár Edit","Gerlinger Imre","2021. április 7. (szerda) 10:15–12:45","szerda","2021. április 7. 10:15–12:45"]
["Operatív orvostudományok - Kísérletes sebészet, kísérletes aneszteziológia",6,"Albu Gergely","Sótonyi Péter","Nemes Balázs","Babik Barna","Molnár Tihamér","2021. április 7. (szerda) 08:00–09:30","szerda","2021. április 7. 08:00–09:30"]
["Operatív orvostudományok - Mellkasi- hasi- és plasztikai sebészet, transzplantációs sebészet",6,"Szolnoky Jenő","Szücs Ákos","Németh Norbert","Bajory Zoltán","Molnár F. Tamás ","2021. április 7. (szerda) 13:45–15:15","szerda","2021. április 7. 13:45–15:15"]
["Operatív orvostudományok - Traumatológia, ortopédia, idegsebészet",9,"Albu Gergely","Szücs Ákos","Turchányi Béla","Varga Endre","Szabó György ","2021. április 6. (kedd) 15:30–18:00","kedd","2021. április 6. 15:30–18:00"]
["Operatív orvostudományok - Urológia, szülészet-nőgyógyászat",7,"Fülöp Vilmos","Majoros Attila","Póka Róbert","Németh Gábor","Farkas László","2021. április 7. (szerda) 16:00–17:45","szerda","2021. április 7. 16:00–17:45"]

{"sheet":"Helyezesek_SZTE_AOK","index":6,"n_rows":45,"n_cols":6,"rows_kept":45,"cut":false,"hidden":false,"merged":[]}
["Díj","Tagozat","Szerző(k)","Cím","Témavezető(k)","Intézet(ek)"]
["I. díj","Operatív orvostudományok - Aneszteziológia és intenzív terápia, sürgősségi betegellátás 1.","Ballók Bence, Kulcsár Richárd Máté","Új modalitás fejlesztése a gépi lélegeztetésben: kevert frekvenciák alkalmazása állatkísérletes modellben","Dr. Fodor Gergely (egyetemi adjunktus), Dr. Peták Ferenc (egyetemi tanár)","Orvosi Fizikai és Orvosi Informatikai Intézet"]
["I. díj","Elméleti orvostudományok - Élettan, kórélettan 2.","Dr. Hantosi Dóra","A dimetil-triptamin neuroprotektív hatása iszkémiás patkány agykéregben","Prof. Bari Ferenc (egyetemi tanár), Szabó Írisz (tudományos segédmunkatárs)","Orvosi Fizikai és Orvosi Informatikai Intézet"]
["I. díj","Elméleti orvostudományok - Élettan, kórélettan 4.","Fejes Alexandra, Gausz Flóra Diána","A kinurénsav potenciális prekondícionáló hatásának vizsgálata doxorubicin indukálta akut szívkárosodás modellben","Dr. Csont Tamás (egyetemi docens), Dr. Demján Virág (PhD hallgató)","Biokémiai Intézet"]
["I. díj","Elméleti orvostudományok - Élettan, kórélettan 7.","Gausz Flóra Diána, Fejes Alexandra","Szívkárosodás vizsgálata hím és nőstény db/db egerekben","Dr. Csont Tamás (egyetemi docens), Dr. Szűcs Gergő (tudományos munkatárs)","Biokémiai Intézet"]
["I. díj","Operatív orvostudományok - Mellkasi- hasi- és plasztikai sebészet, transzplantációs sebészet","Jász Dávid Kurszán, Baráth Bálint","Metán dúsított transzplantációs oldat javítja a graft funkciót heterotróp szívtranszplantáció patkány modelljében","Dr. Hartmann Petra (egyetemi adjunktus)","Sebészeti Műtéttani Intézet"]
["I. díj","Egészségtudományok - Klinikai és elméleti epidemiológia 2.","Kovács Barbara Nóra","A cukorbetegek kardiovaszkuláris állapotromlásának szezonális ingadozása: a vérnyomás szerepének vizsgálata","Dr. Babik Barna (egyetemi tanár), Dr. Peták Ferenc (egyetemi tanár)","Aneszteziológiai és Intenzív Terápiás Intézet, Orvosi Fizikai és Orvosi Informatikai Intézet"]
["I. díj","Operatív orvostudományok - Kísérletes sebészet, kísérletes aneszteziológia","Kulcsár Richárd Máté, Ballók Bence","Humán használatú kapnográf adaptálása kisállat modellre 3D-nyomtatás felhasználásával","Dr. Fodor Gergely (egyetemi adjunktus), Dr. Peták Ferenc (egyetemi tanár)","Orvosi Fizikai és Orvosi Informatikai Intézet"]
["I. díj","Konzervatív orvostudományok - Patológia, hisztológia, igazságügyi orvostan 2.","Meszlényi Valéria Éva, Nógrádi Bernát","Különböző genetikai mutációkkal rendelkező amiotrófiás laterálszklerózis betegek vérszérumával történő passzív transzfer hatása egerek ideg-izom szinapszisaira","Dr. Patai Roland (tudományos munkatárs), Dr. Siklós László (tudományos tanácsadó)","SZBK, Biofizikai Intézet"]
["I. díj","Operatív orvostudományok - Aneszteziológia és intenzív terápia, sürgősségi betegellátás 2.","Szakáll Richárd","„Ápol és eltakar”?: Transzkután CO2 mérés pontosságának vizsgálata","Dr. Babik Barna (egyetemi tanár), Dr. Fodor Gergely (egyetemi adjunktus)","Aneszteziológiai és Intenzív Terápiás Intézet, Orvosi Fizikai és Orvosi Informatikai Intézet"]
["I. díj","Elméleti orvostudományok - Élettan, kórélettan 3.","Szarvas Péter Archibald","Különböző módszerekkel kiváltott terjedő depolarizációk elektrofiziológiai és szövettani jellemzése patkány agyszeleten","Dr. Menyhárt Ákos (egyetemi adjunktus), Frank Rita (PhD hallgató)","Orvosi Fizikai és Orvosi Informatikai Intézet"]
["I. díj","Egészségtudományok - Primer prevenció, védőnői prevenció, dietetika 4.","Szatmári Ferenc, Lázár Tímea","A méhnyakrákkal és a human papillomavírussal kapcsolatos ismeretek vizsgálata tudásindex használatával","Dr. Pócs Dávid (tudományos segédmunkatárs), Erdős Csaba (tudományos segédmunkatárs)","Népegészségtani Intézet, Magatartástudományi Intézet"]
["I. díj","Elméleti orvostudományok - Molekuláris biológia","Tóth Dávid","SARS-Cov-2 fehérjék és LC3 kölcsönhatásának analízise MCF-7 sejtekben","Dr. Horváth V. Gábor (tudományos főmunkatárs), Dr. Juhász Gábor (tudományos tanácsadó)","SZBK, Genetika Intézet"]
["I. díj","Konzervatív orvostudományok - Neurológia, neurovaszkuláris medicina, pszichiátria 2.","Weber Carmen Sahra, Emig Justine","Short term and long term reproducibility of Quantitative Sensory Testing (QST)","Dr. Kincses Bálint (PhD hallgató), Dr. Kincses Zsigmond Tamás (egyetemi docens)","Radiológiai Klinika"]
["II. díj","Konzervatív orvostudományok - Patológia, hisztológia, igazságügyi orvostan 1.","Fekete Zoltán, Bordács Barbara","Syntaxin-1A kifejeződése tápcsatornai neuroendokrin tumorokban és carcinomákban","Dr. Kővári Bence (egyetemi adjunktus)","Pathológiai Intézet"]
["II. díj","Elméleti orvostudományok - Élettan, kórélettan 6.","Grassalkovich Anna","A CFTR csatorna korrekciója és aktivációja csökkenti az akut pankreatitisz súlyosságát","Dr. Hegyi Péter (egyetemi tanár), Dr. Tóth Emese (tudományos segédmunkatárs)","PTE ÁOK, Transzlációs Medicina Intézet,  MTA-SZTE Lendület Transzlációs Gasztroenterológia Kutatócsoport, I. sz. Belgyógyászati Klinika"]
["II. díj","Elméleti orvostudományok - Élettan, kórélettan 1.","Harangozó Márk","A temporális lebeny epilepszia kezelése a mediális szeptum elektromos ingerlésével","Dr. Berényi Antal (egyetemi adjunktus), Dr. Takeuchi Yuichi (tudományos munkatárs)","Élettani Intézet"]
["II. díj","Konzervatív orvostudományok - Patológia, hisztológia, igazságügyi orvostan 2.","Hegedűs Fanni","A chronicus ileitis kórszövettani spektruma - a gastricus metaplasia és a Paneth-sejt hyperplasia diagnosztikus jelentősége","Dr. Kővári Bence Péter (egyetemi adjunktus), Dr. Sejben Anita (szakorvosjelölt)","Pathológiai Intézet"]
["II. díj","Elméleti orvostudományok - Élettan, kórélettan 3.","Hernádi Zsófia","Pericita kontraktillitás vizsgálata időskori agyi ischaemiás folyamatokban","Dr. Krizbai István (tudományos tanácsadó)","SZBK, Biofizikai Intézet"]
["II. díj","Operatív orvostudományok - Fül-orr-gégészet, fej-nyak sebészet, szemészet","Lászik Gábor","A makula érsűrűségének változása, mint a látásromlás biomarkere sikeres retina leválás ellenes műtét után","Dr. Resch Miklós (egyetemi docens)","SE ÁOK, Szemészeti Klinika"]
["II. díj","Elméleti orvostudományok - Élettan, kórélettan 8.","Márványkövi Fanni Magdolna","A nemi különbségek hatásai az iszkémiás prekondícionálás által kiváltott kardioprotekcióra krónikus veseelégtelenségben: a STAT3 jelút lehetséges szerepe","Dr. Csont Tamás (egyetemi docens), Dr. Sárközy Márta (egyetemi adjunktus)","Biokémiai Intézet"]
["II. díj","Operatív orvostudományok - Fül-orr-gégészet, fej-nyak sebészet, szemészet","Molnár Fiona Anna","Identification of cochlear implant (CI) tip fold-over using a novel software, Trans-Impedance Matrix (TIM)","Dr. József Géza Kiss (tudományos tanácsadó), Dr. László Rovó (tanszékvezető egyetemi tanár)","Fül- Orr- Gégészeti és Fej- Nyaksebészeti Klinika"]
["II. díj","Elméleti orvostudományok - Genetika, genomika","Nagy Zsófia Flóra","Amiotrófiás laterálszklerózisban szenvedő magyar betegek átfogó genetikai vizsgálata","Dr. Széll Márta (egyetemi tanár), Dr. Tripolszki Kornélia (tudományos munkatárs)","Orvosi Genetikai Intézet"]
["II. díj","Elméleti orvostudományok - Biokémia","Nászai Anna, Terhes Emil","Az extramitokondriális kalcium mozgás vizsgálata","Dr. Juhász László (tudományos munkatárs)","Sebészeti Műtéttani Intézet"]
["II. díj","Elméleti orvostudományok - Élettan, kórélettan 5.","Nógrádi Bernát, Kristóf Rebeka","NLRP3 inflammaszóma aktivációjának gátlása perifériás idegsérülést követően","Dr. Patai Roland (tudományos munkatárs), Dr. Siklós László (tudományos tanácsadó)","SZBK, Biofizikai Intézet"]
["II. díj","Egészségtudományok - Szekunder prevenció, családorvoslás, preventív medicina 1.","Pintér Jenő Antal","ST-elevációs miokardiális infarktuson (STEMI-n) átesett betegek prehospitális késésének vizsgálata","Dr. Farkas András (egyetemi docens), Rárosi Ferenc (tudományos segédmunkatárs)","II. sz. Belgyógyászati Klinika és Kardiológiai Központ, Orvosi Fizikai és Orvosi Informatikai Intézet"]
["II. díj","Egészségtudományok - Szekunder prevenció, családorvoslás, preventív medicina 3.","Rózsa Árpád, Korányi Viktória","Férfiak szexuális zavarainak vizsgálata a „Diagnostic and statistical manual of mental disorders” (DSM-5) alapján","Dr. Pócs Dávid (szakorvos), Erdős Csaba (egyetemi tanársegéd)","Népegészségtani Intézet, Magatartástudományi Intézet"]
["II. díj","Elméleti orvostudományok - Kísérletes onkológia, jelátvitel","Szenci-Kaszás Balázs József","A BMP jelátvitelt indukáló tiloron hatása a vázizom atrófia csökkentésére","Dr. Keller-Pintér Anikó (tudományos főmunkatárs), Szabó Kitti (doktorjelölt)","Biokémiai Intézet"]
["II. díj","Elméleti orvostudományok - Sejtbiológia, sejtélettan 2.","Szőke Krisztina","Szinergista radioszenzitizáció: az arany nanorészecskék és a hiszton-deacetiláz inhibitor SAHA kombinációja fokozza a sugárterápia hatékonyságát","Dr. Kiricsi Mónika (egyetemi adjunktus), Igaz Nóra (tudományos segédmunkatárs)","SZTE TTIK, Biokémiai és Molekuláris Biológiai Tanszék"]
["II. díj","Elméleti orvostudományok - Élettan, kórélettan 7.","Tóth Réka","A citotoxikus ödéma szimultán depolarizációt okoz anoxiás agyszeletekben","Dr. Menyhárt Ákos (egyetemi adjunktus), Frank Rita (PhD hallgató)","Orvosi Fizikai és Orvosi Informatikai Intézet"]
["II. díj","Elméleti orvostudományok - Anatómia, morfológia, fejlődésbiológia 1.","Vass Máté","Szisztémás neuroectodermalis őssejtkezeléssel indukált morfológiai és funkcionális felépülés kontúziós gerincvelő-sérülést követően","Bellák Tamás (egyetemi tanársegéd), Dr. Pajer Krisztián (egyetemi adjunktus)","Anatómiai, Szövet- és Fejlődéstani Intézet"]
["II. díj","Elméleti orvostudományok - Farmakológia 2.","Volford Dávid","A losartan hatásainak vizsgálata krónikus radiogén szívkárosodásban patkány modellben","Dr.Csont Tamás (egyetemi docens), Dr Sárközy Márta (egyetemi adjunktus)","Biokémiai Intézet"]
["Különdíj","Elméleti orvostudományok - Bioinformatika, számítógépes modellezés","Asztalos Leó","A neoantigének sötét oldala","Dr. Manczinger Máté (egyetemi adjunktus)","Bőrgyógyászati és Allergológiai Klinika"]
["Különdíj","Konzervatív orvostudományok - Endokrinológia, nefrológia, gasztroenterológia 3.","Bacsur Péter","Anti-TNF-a kezelésben részesülő gyulladásos bélbetegek szérum, szöveti és széklet mintáiból történő gyógyszerszint monitorozással szerzett tapasztalataink","Dr. Farkas Klaudia (egyetemi docens), Dr. Molnár Tamás (egyetemi tanár)","I. sz. Belgyógyászati Klinika"]
["Különdíj","Konzervatív orvostudományok - Neurológia, neurovaszkuláris medicina, pszichiátria 1.","Emig Justine, Weber Carmen Sahra","Influence of physiological and affective characteristics on sensory function","Dr. Kincses Zsigmond Tamás","Radiológiai Klinika"]
["Különdíj","Konzervatív orvostudományok - Gyermekgyógyászat, infektológia, pulmonológia 3.","Forgács Robin","Légzésmechanikai paraméterek vizsgálata byssinonisban szenvedő betegeknél, szívműtét során.","Dr. Babik Barna (egyetemi tanár), Dr. Csorba Zsófia (egyetemi adjunktus)","Aneszteziológiai és Intenzív Terápiás Intézet, Orvosi Fizikai és Orvosi Informatikai Intézet"]
["Különdíj","Konzervatív orvostudományok - Képalkotó diagnosztika 1.","Garda Jennifer Luca","A diffúziósúlyozott MR által detektált fehérállományi mikrostruktúrális károsodás prediktív értéke sclerosis multiplexben","Dr. Kincses Bálint (Ph.D. kutató), Dr. Kincses Zsigmond Tamás (Egyetemi docens)","Radiológiai Klinika, Neurológiai Klinika"]
["Különdíj","Elméleti orvostudományok - Sejtbiológia, sejtélettan 2.","Gyulai-Nagy Szuzina","Az exoszómák és az aktin nanoszerkezet szerepe a szindekán-4 sejtmigrációra gyakorolt hatásában","Becsky Dániel (PhD hallgató), Dr. Keller-Pintér Anikó (tudományos főmunkatárs)","Biokémiai Intézet"]
["Különdíj","Operatív orvostudományok - Mellkasi- hasi- és plasztikai sebészet, transzplantációs sebészet","Hartyánszky István","Coarctatio aortae sebészi kezelése gyermek- és felnőttkorban","Dr. Varga Sándor (egyetemi adjunktus)","II. sz. Belgyógyászati Klinika és Kardiológiai Központ"]
["Különdíj","Konzervatív orvostudományok - Gyermekgyógyászat, infektológia, pulmonológia 1.","Kajlik Réka","Antibiotikum használat újszülöttkori korai szepszis prevenciójában","Dr. Gyurkovits Zita (egyetemi adjunktus)","Szülészeti és Nőgyógyászati Klinika"]
["Különdíj","Konzervatív orvostudományok - Endokrinológia, nefrológia, gasztroenterológia 2.","Lengyel Balázs","Are there any beneficial effects of metformin therapy in neuroendocrine tumors treated with somatostatin analogues?","Dr. Tiszlavicz László (egyetemi tanár), Dr.Valkusz Zsuzsanna (klinikai főorvos)","I. sz. Belgyógyászati Klinika, Pathológiai Intézet"]
["Különdíj","Konzervatív orvostudományok - Gyermekgyógyászat, infektológia, pulmonológia 2.","Molnár Andrea, Kiss Liliána","Az intrapulmonális sönt emelkedése elhízott betegekben: romló oxigén igény-kínálat","Dr. Babik Barna (egyetemi tanár), Dr. Peták Ferenc (egyetemi tanár)","Aneszteziológiai és Intenzív Terápiás Intézet, Orvosi Fizikai és Orvosi Informatikai Intézet"]
["Különdíj","Konzervatív orvostudományok - Neurológia, neurovaszkuláris medicina, pszichiátria 2.","Szabó Máté","A direkcionalitás használatának létjogosultsága Parkinson-kórban alkalmazott mélyagyi stimuláció esetében – Az SZTE Neurológiai Klinika beteganyagán végzett pilot vizsgálat eredményei","Dr. Salamon András (rezidens), Dr. Zádori Dénes (egyetemi docens)","Neurológiai Klinika"]
["Különdíj","Elméleti orvostudományok - Sejtbiológia, sejtélettan 1.","Tézsla Zsófia","Transzplantált humán indukált pluripotens őssejtek differenciálódásának és hatásmechanizmusának felderítése a gerincvelő kontúziós sérülését követően","Bellák Tamás (egyetemi tanársegéd), Dr. Nógrádi Antal (tanszékvezető egyetemi tanár)","Anatómiai, Szövet- és Fejlődéstani Intézet"]
["Különdíj","Konzervatív orvostudományok - Képalkotó diagnosztika 3.","Vigh András István","A szürkeállományi aszimmetria, és téri figyelmi lateralizáció összefüggése sclerosis multiplexben","Dr. Kincses Zsigmond Tamás (egyetemi docens), Kocsis Krisztián (tudományos segédmunkatárs)","Radiológiai Klinika"]